{"text_format":"1","workbook":"xlsx","n_sheets":4,"sheets":["Saisie","Tables","Sortilèges","Equipement"],"not_rendered":{"charts":0,"images":0,"macros":1,"external_links":0,"defined_names":476,"comments":0,"pivot_tables":0},"unopened":[],"bounds":{"document_bytes":16777216,"sheet_cells":100000,"rows_first":2000,"rows_last":500,"rows_between":2000,"halvings":0,"cell_chars":16384,"cell_head_chars":4096},"cells_cut":0,"cells_raw":0,"read":"whole","date_system":"1900"}

{"sheet":"Saisie","index":0,"n_rows":204,"n_cols":14,"rows_kept":204,"cut":false,"hidden":false,"merged":[]}
[]
[null,"Nom : "]
[]
[null,"Né à l'heure"]
[null,"Sexe :",null,"Taille :",null,"Poids : "]
[null,"Cheveux :",null,"Yeux :",null,"Beauté : ",null,{"$f":"IF(G6<>\"\",VLOOKUP(G6,Table_beauté,2,0),\"\")","v":""}]
[null,"Main directrice :"]
[]
[null,"Caractéristiques"]
[]
[null,"TAILLE",null,"VOLONTE"]
[null,"APPARENCE",null,"INTELLECT",null,null,"Vie",{"$f":"ROUNDUP((C11+C13)/2,0)","v":0},"Endurance",{"$f":"MAX(C11+C13,H12+E11)","v":0}]
[null,"CONSTITUTION",null,"EMPATHIE",null,null,"+dom",{"$f":"IF(ISERROR(VLOOKUP(ROUNDDOWN((C11+C14)/2,0),Bonus_dom,2,0)),\"\",VLOOKUP(ROUNDDOWN((C11+C14)/2,0),Bonus_dom,2,0))","v":""},"Malus Armure",{"$f":"IF(ISERROR(IF(VLOOKUP(\"Armures\",Sursoi,2,0)<>\"\",VLOOKUP(VLOOKUP(\"Armures\",Sursoi,2,0),Table_armures,4,0))),\"\",IF(VLOOKUP(\"Armures\",Sursoi,2,0)<>\"\",VLOOKUP(VLOOKUP(\"Armures\",Sursoi,2,0),Table_armures,4,0)))","v":""}]
[null,"FORCE",null,"RÊVE"]
[null,"AGILITE",null,"CHANCE",null,null,"S.Const.",{"$f":"ROUNDDOWN(C13/3,0)","v":0},"Sust.",{"$f":"ROUNDUP((C11-1)/4,0)","v":-1}]
[null,"DEXTERITE",null,"Mêlée",{"$f":"ROUNDDOWN(($C$14+$C$15)/2,0)","v":0},null,"Encombrement",{"$f":"(C11+C14)/2","v":0}]
[null,"VUE",null,"Tir",{"$f":"ROUNDDOWN(($C$17+$C$16)/2,0)","v":0}]
[null,"OUIE",null,"Lancer",{"$f":"ROUNDDOWN(($E$17+$C$14)/2,0)","v":0}]
[null,"ODORAT-GOUT",null,"Dérobée",{"$f":"ROUNDDOWN(($C$15+(21-$C$11))/2,0)","v":10}]
[]
[null,null,"Points restants : ",{"$f":"160-(SUM(C11:C19,E11:E15)+IF((G6-10)>0,(G6-10),))","v":160}]
[]
[null,"Compétences"]
[]
[null,null,null,"(1)(2)(3)(4) Compétences troncs jusqu'à 0 "]
[null,"C. de Mêlée (-6)","Niv.","Pts de Comp.","C. de Tir et Lancer (-8)","Niv.","Pts de Comp.","C.Spécialisées (-11)","Niv.","Pts de Comp."]
[null,"Armes d'hast",-6,{"$f":"VLOOKUP(C27,Cout_comp,4,0)","v":0},"Arbalète",-8,{"$f":"VLOOKUP(F27,Cout_comp,3,0)","v":0},"Acrobatie",-11,{"$f":"VLOOKUP(I27,Cout_comp,2,0)","v":0}]
[null,"Bouclier",-6,0,"Arc",-8,0,"Chirurgie",-11,0]
[null,"Corps à corps(1)",-6,{"$f":"IF(AND(VLOOKUP(C29,Cout_comp,4,0)<=80,OR(VLOOKUP(C29,Cout_comp,4,0)<VLOOKUP(C30,Cout_comp,4,0),VLOOKUP(C29,Cout_comp,4,0)<VLOOKUP(C33,Cout_comp,4,0))),0,IF(AND(VLOOKUP(C29,Cout_comp,4,0)>=80,OR(VLOOKUP(C29,Cout_comp,4,0)<VLOOKUP(C30,Cout_comp,4,0),VLOOKUP(C29,Cout_comp,4,0)<VLOOKUP(C33,Cout_comp,4,0))),VLOOKUP(C29,Cout_comp,4,0)-80,VLOOKUP(C29,Cout_comp,4,0)))","v":0},"Dague",-8,0,"Jeu",-11,0]
[null,"Dague(1)",-6,{"$f":"IF(AND(VLOOKUP(C30,Cout_comp,4,0)<=80,OR(VLOOKUP(C30,Cout_comp,4,0)<=VLOOKUP(C29,Cout_comp,4,0),VLOOKUP(C30,Cout_comp,4,0)<VLOOKUP(C33,Cout_comp,4,0))),0,IF(AND(VLOOKUP(C30,Cout_comp,4,0)>=80,OR(VLOOKUP(C30,Cout_comp,4,0)<=VLOOKUP(C29,Cout_comp,4,0),VLOOKUP(C30,Cout_comp,4,0)<VLOOKUP(C33,Cout_comp,4,0))),VLOOKUP(C30,Cout_comp,4,0)-80,VLOOKUP(C30,Cout_comp,4,0)))","v":0},"Fouet",-8,0,"Jonglerie",-11,0]
[null,"Epée 1 main(2)",-6,{"$f":"IF(AND(VLOOKUP(C31,Cout_comp,4,0)<=80,VLOOKUP(C31,Cout_comp,4,0)<VLOOKUP(C32,Cout_comp,4,0)),0,IF(AND(VLOOKUP(C31,Cout_comp,4,0)>=80,VLOOKUP(C31,Cout_comp,4,0)<VLOOKUP(C32,Cout_comp,4,0)),VLOOKUP(C31,Cout_comp,4,0)-80,VLOOKUP(C31,Cout_comp,4,0)))","v":0},"Fronde",-8,0,"Maroquinerie",-11,0]
[null,"Epee 2 mains(2)",-6,{"$f":"IF(AND(VLOOKUP(C32,Cout_comp,4,0)<=80,VLOOKUP(C32,Cout_comp,4,0)<=VLOOKUP(C31,Cout_comp,4,0)),0,IF(AND(VLOOKUP(C32,Cout_comp,4,0)>=80,VLOOKUP(C32,Cout_comp,4,0)<=VLOOKUP(C31,Cout_comp,4,0)),VLOOKUP(C32,Cout_comp,4,0)-80,VLOOKUP(C32,Cout_comp,4,0)))","v":0},"Hache",-8,0,"Métallurgie",-11,0]
[null,"Esquive(1)",-6,{"$f":"IF(AND(VLOOKUP(C33,Cout_comp,4,0)<=80,OR(VLOOKUP(C33,Cout_comp,4,0)<=VLOOKUP(C29,Cout_comp,4,0),VLOOKUP(C33,Cout_comp,4,0)<=VLOOKUP(C30,Cout_comp,4,0))),0,IF(AND(VLOOKUP(C33,Cout_comp,4,0)>=80,OR(VLOOKUP(C33,Cout_comp,4,0)<=VLOOKUP(C29,Cout_comp,4,0),VLOOKUP(C33,Cout_comp,4,0)<=VLOOKUP(C30,Cout_comp,4,0))),VLOOKUP(C33,Cout_comp,4,0)-80,VLOOKUP(C33,Cout_comp,4,0)))","v":0},"Javelot",-8,0,"Natation",-11,0]
[null,"Fléau",-6,0,null,null,null,"Navigation",-11,0]
[null,"Hache 1 main(3)",-6,{"$f":"IF(AND(VLOOKUP(C35,Cout_comp,4,0)<=80,VLOOKUP(C35,Cout_comp,4,0)<VLOOKUP(C36,Cout_comp,4,0)),0,IF(AND(VLOOKUP(C35,Cout_comp,4,0)>=80,VLOOKUP(C35,Cout_comp,4,0)<VLOOKUP(C36,Cout_comp,4,0)),VLOOKUP(C35,Cout_comp,4,0)-80,VLOOKUP(C35,Cout_comp,4,0)))","v":0},null,null,null,"Orfèvrerie",-11,0]
[null,"Hache 2 mains(3)",-6,{"$f":"IF(AND(VLOOKUP(C36,Cout_comp,4,0)<=80,VLOOKUP(C36,Cout_comp,4,0)<=VLOOKUP(C35,Cout_comp,4,0)),0,IF(AND(VLOOKUP(C36,Cout_comp,4,0)>=80,VLOOKUP(C36,Cout_comp,4,0)<=VLOOKUP(C35,Cout_comp,4,0)),VLOOKUP(C36,Cout_comp,4,0)-80,VLOOKUP(C36,Cout_comp,4,0)))","v":0},null,null,null,"Serrurerie",-11,0]
[null,"Lance",-6,0]
[null,"Masse 1 main(4)",-6,{"$f":"IF(AND(VLOOKUP(C38,Cout_comp,4,0)<=80,VLOOKUP(C38,Cout_comp,4,0)<VLOOKUP(C39,Cout_comp,4,0)),0,IF(AND(VLOOKUP(C38,Cout_comp,4,0)>=80,VLOOKUP(C38,Cout_comp,4,0)<VLOOKUP(C39,Cout_comp,4,0)),VLOOKUP(C38,Cout_comp,4,0)-80,VLOOKUP(C38,Cout_comp,4,0)))","v":0}]
[null,"Masse 2 mains(4)",-6,{"$f":"IF(AND(VLOOKUP(C39,Cout_comp,4,0)<=80,VLOOKUP(C39,Cout_comp,4,0)<=VLOOKUP(C38,Cout_comp,4,0)),0,IF(AND(VLOOKUP(C39,Cout_comp,4,0)>=80,VLOOKUP(C39,Cout_comp,4,0)<=VLOOKUP(C38,Cout_comp,4,0)),VLOOKUP(C39,Cout_comp,4,0)-80,VLOOKUP(C39,Cout_comp,4,0)))","v":0}]
[]
[null,"C. Générales (-4)","Niv.","Pts de Comp.","C.Particulières (-8)","Niv.","Pts de Comp.","Connaissances (-11)","Niv.","Pts de Comp."]
[null,"Bricolage",-4,{"$f":"VLOOKUP(C42,Cout_comp,5,0)","v":0},"Charpenterie",-8,{"$f":"VLOOKUP(F42,Cout_comp,3,0)","v":0},"Alchimie",-11,{"$f":"VLOOKUP(I42,Cout_comp,2,0)","v":0}]
[null,"Chant",-4,0,"Comédie",-8,0,"Astrologie",-11,0]
[null,"Course",-4,0,"Commerce",-8,0,"Botanique",-11,0]
[null,"Cuisine",-4,0,"Equitation",-8,0,"Ecriture",-11,0]
[null,"Danse",-4,0,"Maçonnerie",-8,0,"Légendes",-11,0]
[null,"Dessin",-4,0,"Musique",-8,0,"Médecine",-11,0]
[null,"Discrétion",-4,0,"Pickpocket",-8,0,"Zoologie",-11,0]
[null,"Escalade",-4,0,"Srv.Cité",-8,0]
[null,"Saut",-4,0,"Srv.Extérieur",-8,0]
[null,"Séduction",-4,0,"Désert",-8,0,"Draconic (-11)","Niv.","Pts de Comp."]
[null,"Vigilance",-4,0,"Forêt",-8,0,"Oniros",-11,{"$f":"VLOOKUP(I52,Cout_comp,2,0)","v":0}]
[null,null,null,null,"Glaces",-8,0,"Hypnos",-11,{"$f":"VLOOKUP(I53,Cout_comp,2,0)","v":0}]
[null,null,null,null,"Marais",-8,0,"Narcos",-11,{"$f":"VLOOKUP(I54,Cout_comp,2,0)","v":0}]
[null,"Points de Comp. restants : ",{"$f":"D96","v":3000},null,"Montagne",-8,0,"Thanathos",-11,{"$f":"VLOOKUP(I55,Cout_comp,6,0)","v":0}]
[null,null,null,null,"Sous-sol",-8,0]
[null,null,null,null,"Travestissement",-8,0]
[]
[null,"Sortilèges"]
[]
[null,"Oniros",null,null,null,null,null,"Hypnos"]
[null,null,"Difficulté max.",{"$f":"IF((I52+5)>0,I52+5,0)","v":0},null,null,null,null,"Difficulté max.",{"$f":"IF((I53+5)>0,I53+5,0)","v":0}]
[null,"Nom","case","Diff.","r","Coût",null,"Nom","case","Diff.","r","Coût"]
[null,null,{"$f":"IF(B64<>\"\",VLOOKUP(B64,Sorts_Oniros_noms,2,0),\"\")","v":""},{"$f":"IF(B64<>\"\",VLOOKUP(B64,Sorts_Oniros_noms,4,0),\"\")","v":""},{"$f":"IF(B64<>\"\",VLOOKUP(B64,Sorts_Oniros_noms,3,0),\"\")","v":""},{"$f":"IF(B64<>\"\",ABS(VLOOKUP(B64,Sorts_Oniros_noms,4,0))*10 + (IF((ABS(VLOOKUP(B64,Sorts_Oniros_noms,4,0))-$I$52)>0,(ABS(VLOOKUP(B64,Sorts_Oniros_noms,4,0))-$I$52),0)*10),\"\")","v":""},null,null,{"$f":"IF(H64<>\"\",VLOOKUP(H64,Sorts_Hypnos_noms,2,0),\"\")","v":""},{"$f":"IF(H64<>\"\",VLOOKUP(H64,Sorts_Hypnos_noms,4,0),\"\")","v":""},{"$f":"IF(H64<>\"\",VLOOKUP(H64,Sorts_Hypnos_noms,3,0),\"\")","v":""},{"$f":"IF(H64<>\"\",ABS(VLOOKUP(H64,Sorts_Hypnos_noms,4,0))*10 + (IF((ABS(VLOOKUP(H64,Sorts_Hypnos_noms,4,0))-$I$53)>0,(ABS(VLOOKUP(H64,Sorts_Hypnos_noms,4,0))-$I$53),0)*10),\"\")","v":""}]
[null,null,"","","","",null,null,"","","",""]
[null,null,"","","","",null,null,"","","",""]
[null,null,"","","","",null,null,"","","",""]
[null,null,"","","","",null,null,"","","",""]
[null,null,"","","","",null,null,"","","",""]
[null,null,"","","","",null,null,"","","",""]
[null,null,"","","","",null,null,"","","",""]
[null,null,"","","","",null,null,"","","",""]
[null,null,"","","","",null,null,"","","",""]
[null,null,"","","","",null,null,"","","",""]
[null,null,"","","","",null,null,"","","",""]
[]
[]
[null,"Narcos",null,null,null,null,null,"Thanatos"]
[null,null,"Difficulté max.",{"$f":"IF((I54+5)>0,I54+5,0)","v":0},null,null,null,null,"Difficulté max.",{"$f":"IF((I55+5)>0,I55+5,0)","v":0}]
[null,"Nom","case","Diff.","r","Coût",null,"Nom","case","Diff.","r","Coût"]
[null,null,{"$f":"IF(B81<>\"\",VLOOKUP(B81,Sorts_Narcos_Noms,2,0),\"\")","v":""},{"$f":"IF(B81<>\"\",VLOOKUP(B81,Sorts_Narcos_Noms,4,0),\"\")","v":""},{"$f":"IF(B81<>\"\",VLOOKUP(B81,Sorts_Narcos_Noms,3,0),\"\")","v":""},{"$f":"IF(B81<>\"\",ABS(VLOOKUP(B81,Sorts_Narcos_Noms,4,0))*10 + (IF((ABS(VLOOKUP(B81,Sorts_Narcos_Noms,4,0))-$I$54)>0,(ABS(VLOOKUP(B81,Sorts_Narcos_Noms,4,0))-$I$54),0)*10),\"\")","v":""},null,null,{"$f":"IF(H81<>\"\",VLOOKUP(H81,Sorts_Thanatos_noms,2,0),\"\")","v":""},{"$f":"IF(H81<>\"\",VLOOKUP(H81,Sorts_Thanatos_noms,4,0),\"\")","v":""},{"$f":"IF(H81<>\"\",VLOOKUP(H81,Sorts_Thanatos_noms,3,0),\"\")","v":""},{"$f":"IF(H81<>\"\",ABS(VLOOKUP(H81,Sorts_Thanatos_noms,4,0))*10 + (IF((ABS(VLOOKUP(H81,Sorts_Thanatos_noms,4,0))-$I$55)>0,(ABS(VLOOKUP(H81,Sorts_Thanatos_noms,4,0))-$I$55),0)*10),\"\")","v":""}]
[null,null,"","","","",null,null,"","","",""]
[null,null,"","","","",null,null,"","","",""]
[null,null,"","","","",null,null,"","","",""]
[null,null,"","","","",null,null,"","","",""]
[null,null,"","","","",null,null,"","","",""]
[null,null,"","","","",null,null,"","","",""]
[null,null,"","","","",null,null,"","","",""]
[null,null,"","","","",null,null,"","","",""]
[null,null,"","","","",null,null,"","","",""]
[null,null,"","","","",null,null,"","","",""]
[null,null,"","","","",null,null,"","","",""]
[]
[null,null,"Points de comp.sorts restants :",{"$f":"300-SUM(F64:F75,L64:L75,F81:F92,L81:L92)","v":300}]
[]
[null,null,"Points de Comp. restants : ",{"$f":"3000-SUM(D27:D39,D42:D52,G42:G57,J27:J36,J42:J48,J52:J55,G27:G33,F64:F75,L64:L75,F81:F92,L81:L92)","v":3000}]
[]
[null,"Equipement"]
[]
[null,"dépensé : ",{"$f":"SUM(G137,G149,G158,G167,G176,N116,N121,N126,N130,N134,N138,N159,N177,G204,G186,G195,N187,N196)","v":0},null,"Enc.Total : ",{"$f":"SUM(F137,F149,F158,F167,F176,F186,F195,M116,M121,M126,M130,M134,M138,M159,M177,M187,M196)","v":0}]
[null,"restant : ",{"$f":"5000-C100","v":5000},null,"Malus enc.",{"$f":"IF(H16 -F100<0,CEILING(H16 - F100,0.5),0)","v":0}]
[]
[null,"Monnaie"]
[null,"Or (10s)",{"$f":"IF(AND(C101>0,LEN(C101)>3),MID(C101,1,LEN(C101)-3),0)","v":"5"}]
[null,"Argent (1 sol)",{"$f":"IF(AND(C101>0,LEN(C101)>2),MID(RIGHT(C101,3),1,1),0)","v":"0"}]
[null,"Bronze (10 d)",{"$f":"IF(AND(C101>0,LEN(C101)>1),MID(RIGHT(C101,2),1,1),0)","v":"0"}]
[null,"Etain (1 denier)",{"$f":"IF(C101>0,RIGHT(C101,1),0)","v":"0"}]
[]
[]
[null,"Sur soi",null,null,null,null,null,null,"Capacité unique"]
[null,"Catégorie","Equipement","Qté","Qlté","Enc.","Prix"]
[null,null,null,null,null,{"$f":"IF(AND(C112<>\"\",B112<>\"Vêtements\"),VLOOKUP(C112,equip_global,2,0)*D112*1,\"\")","v":""},{"$f":"IF(AND(D112<>\"\",E112<>\"\"),IF(RIGHT(VLOOKUP(C112,equip_global,3,0),1)=\"s\",LEFT(VLOOKUP(C112,equip_global,3,0),LEN(VLOOKUP(C112,equip_global,3,0))-1)*100*D112*VLOOKUP(E112,Qualité,2,0),LEFT(VLOOKUP(C112,equip_global,3,0),LEN(VLOOKUP(C112,equip_global,3,0))-1)*1*D112*VLOOKUP(E112,Qualité,2,0)),\"\")","v":""},null,null,{"$f":"IF(I112<>\"\",VLOOKUP(I112,capa_cont,2,0),\"\")","v":""}]
[null,null,null,null,null,"","",null,"Catégorie","Equipement","Qté","Qlté","Enc.","Prix"]
[null,null,null,null,null,"","",null,null,null,null,null,{"$f":"IF(J114<>\"\",VLOOKUP(J114,equip_global,2,0)*K114*1,\"\")","v":""},{"$f":"IF(AND(K114<>\"\",L114<>\"\"),IF(RIGHT(VLOOKUP(J114,equip_global,3,0),1)=\"s\",LEFT(VLOOKUP(J114,equip_global,3,0),LEN(VLOOKUP(J114,equip_global,3,0))-1)*100*K114*VLOOKUP(L114,Qualité,2,0),LEFT(VLOOKUP(J114,equip_global,3,0),LEN(VLOOKUP(J114,equip_global,3,0))-1)*1*K114*VLOOKUP(L114,Qualité,2,0)),\"\")","v":""}]
[null,null,null,null,null,"","",null,null,null,null,null,{"$f":"IF(J115<>\"\",VLOOKUP(J115,equip_global,2,0)*K115*1,\"\")","v":""},{"$f":"IF(AND(K115<>\"\",L115<>\"\"),IF(RIGHT(VLOOKUP(J115,equip_global,3,0),1)=\"s\",LEFT(VLOOKUP(J115,equip_global,3,0),LEN(VLOOKUP(J115,equip_global,3,0))-1)*100*K115*VLOOKUP(L115,Qualité,2,0),LEFT(VLOOKUP(J115,equip_global,3,0),LEN(VLOOKUP(J115,equip_global,3,0))-1)*1*K115*VLOOKUP(L115,Qualité,2,0)),\"\")","v":""}]
[null,null,null,null,null,"","",null,null,null,null,null,{"$f":"IF(AND(J112<>\"\",SUM(M114:M115)<>\"\"),IF(SUM(M114:M115)>J112,\"trop rempli !\",SUM(M114:M115)),\"\")","v":""},{"$f":"SUM(N114:N115)","v":0}]
[null,null,null,null,null,"","",null,null,{"$f":"IF(I117<>\"\",VLOOKUP(I117,capa_cont,2,0),\"\")","v":""}]
[null,null,null,null,null,"","",null,"Catégorie","Equipement","Qté","Qlté","Enc.","Prix"]
[null,null,null,null,null,"","",null,null,null,null,null,{"$f":"IF(J119<>\"\",VLOOKUP(J119,equip_global,2,0)*K119*1,\"\")","v":""},{"$f":"IF(AND(K119<>\"\",L119<>\"\"),IF(RIGHT(VLOOKUP(J119,equip_global,3,0),1)=\"s\",LEFT(VLOOKUP(J119,equip_global,3,0),LEN(VLOOKUP(J119,equip_global,3,0))-1)*100*K119*VLOOKUP(L119,Qualité,2,0),LEFT(VLOOKUP(J119,equip_global,3,0),LEN(VLOOKUP(J119,equip_global,3,0))-1)*1*K119*VLOOKUP(L119,Qualité,2,0)),\"\")","v":""}]
[null,null,null,null,null,"","",null,null,null,null,null,{"$f":"IF(J120<>\"\",VLOOKUP(J120,equip_global,2,0)*K120*1,\"\")","v":""},{"$f":"IF(AND(K120<>\"\",L120<>\"\"),IF(RIGHT(VLOOKUP(J120,equip_global,3,0),1)=\"s\",LEFT(VLOOKUP(J120,equip_global,3,0),LEN(VLOOKUP(J120,equip_global,3,0))-1)*100*K120*VLOOKUP(L120,Qualité,2,0),LEFT(VLOOKUP(J120,equip_global,3,0),LEN(VLOOKUP(J120,equip_global,3,0))-1)*1*K120*VLOOKUP(L120,Qualité,2,0)),\"\")","v":""}]
[null,null,null,null,null,"","",null,null,null,null,null,{"$f":"IF(AND(J117<>\"\",SUM(M119:M120)<>\"\"),IF(SUM(M119:M120)>J117,\"trop rempli !\",SUM(M119:M120)),\"\")","v":""},{"$f":"SUM(N119:N120)","v":0}]
[null,null,null,null,null,"","",null,null,{"$f":"IF(I122<>\"\",VLOOKUP(I122,capa_cont,2,0),\"\")","v":""}]
[null,null,null,null,null,"","",null,"Catégorie","Equipement","Qté","Qlté","Enc.","Prix"]
[null,null,null,null,null,"","",null,null,null,null,null,{"$f":"IF(J124<>\"\",VLOOKUP(J124,equip_global,2,0)*K124*1,\"\")","v":""},{"$f":"IF(AND(K124<>\"\",L124<>\"\"),IF(RIGHT(VLOOKUP(J124,equip_global,3,0),1)=\"s\",LEFT(VLOOKUP(J124,equip_global,3,0),LEN(VLOOKUP(J124,equip_global,3,0))-1)*100*K124*VLOOKUP(L124,Qualité,2,0),LEFT(VLOOKUP(J124,equip_global,3,0),LEN(VLOOKUP(J124,equip_global,3,0))-1)*1*K124*VLOOKUP(L124,Qualité,2,0)),\"\")","v":""}]
[null,null,null,null,null,"","",null,null,null,null,null,{"$f":"IF(J125<>\"\",VLOOKUP(J125,equip_global,2,0)*K125*1,\"\")","v":""},{"$f":"IF(J125<>\"\",IF(RIGHT(VLOOKUP(J125,equip_global,3,0),1)=\"s\",LEFT(VLOOKUP(J125,equip_global,3,0),LEN(VLOOKUP(J125,equip_global,3,0))-1)*100*K125*VLOOKUP(L125,Qualité,2,0),LEFT(VLOOKUP(J125,equip_global,3,0),LEN(VLOOKUP(J125,equip_global,3,0))-1)*1*K125*VLOOKUP(L125,Qualité,2,0)),\"\")","v":""}]
[null,null,null,null,null,"","",null,null,null,null,null,{"$f":"IF(AND(J122<>\"\",SUM(M124:M125)<>\"\"),IF(SUM(M124:M125)>J122,\"trop rempli !\",SUM(M124:M125)),\"\")","v":""},{"$f":"SUM(N124:N125)","v":0}]
[null,null,null,null,null,"","",null,null,{"$f":"IF(I127<>\"\",VLOOKUP(I127,capa_cont,2,0),\"\")","v":""}]
[null,null,null,null,null,"","",null,"Catégorie","Equipement","Qté","Qlté","Enc.","Prix"]
[null,null,null,null,null,"","",null,null,null,null,null,{"$f":"IF(J129<>\"\",VLOOKUP(J129,equip_global,2,0)*K129*1,\"\")","v":""},{"$f":"IF(AND(K129<>\"\",L129<>\"\"),IF(RIGHT(VLOOKUP(J129,equip_global,3,0),1)=\"s\",LEFT(VLOOKUP(J129,equip_global,3,0),LEN(VLOOKUP(J129,equip_global,3,0))-1)*100*K129*VLOOKUP(L129,Qualité,2,0),LEFT(VLOOKUP(J129,equip_global,3,0),LEN(VLOOKUP(J129,equip_global,3,0))-1)*1*K129*VLOOKUP(L129,Qualité,2,0)),\"\")","v":""}]
[null,null,null,null,null,"","",null,null,null,null,null,{"$f":"IF(AND(J127<>\"\",SUM(M129)<>\"\"),IF(SUM(M129)>J127,\"trop rempli !\",SUM(M129)),\"\")","v":""},{"$f":"SUM(N129)","v":0}]
[null,null,null,null,null,"","",null,null,{"$f":"IF(I131<>\"\",VLOOKUP(I131,capa_cont,2,0),\"\")","v":""}]
[null,null,null,null,null,"","",null,"Catégorie","Equipement","Qté","Qlté","Enc.","Prix"]
[null,null,null,null,null,"","",null,null,null,null,null,{"$f":"IF(J133<>\"\",VLOOKUP(J133,equip_global,2,0)*K133*1,\"\")","v":""},{"$f":"IF(AND(K133<>\"\",L133<>\"\"),IF(RIGHT(VLOOKUP(J133,equip_global,3,0),1)=\"s\",LEFT(VLOOKUP(J133,equip_global,3,0),LEN(VLOOKUP(J133,equip_global,3,0))-1)*100*K133*VLOOKUP(L133,Qualité,2,0),LEFT(VLOOKUP(J133,equip_global,3,0),LEN(VLOOKUP(J133,equip_global,3,0))-1)*1*K133*VLOOKUP(L133,Qualité,2,0)),\"\")","v":""}]
[null,null,null,null,null,"","",null,null,null,null,null,{"$f":"IF(AND(J131<>\"\",SUM(M133)<>\"\"),IF(SUM(M133)>J131,\"trop rempli !\",SUM(M133)),\"\")","v":""},{"$f":"SUM(N133)","v":0}]
[null,null,null,null,null,"","",null,null,{"$f":"IF(I135<>\"\",VLOOKUP(I135,capa_cont,2,0),\"\")","v":""}]
[null,null,null,null,null,"","",null,"Catégorie","Equipement","Qté","Qlté","Enc.","Prix"]
[null,null,null,null,null,{"$f":"SUM(F112:F136)","v":0},{"$f":"SUM(G112:G136)","v":0},null,null,null,null,null,{"$f":"IF(J137<>\"\",VLOOKUP(J137,equip_global,2,0)*K137*1,\"\")","v":""},{"$f":"IF(AND(K137<>\"\",L137<>\"\"),IF(RIGHT(VLOOKUP(J137,equip_global,3,0),1)=\"s\",LEFT(VLOOKUP(J137,equip_global,3,0),LEN(VLOOKUP(J137,equip_global,3,0))-1)*100*K137*VLOOKUP(L137,Qualité,2,0),LEFT(VLOOKUP(J137,equip_global,3,0),LEN(VLOOKUP(J137,equip_global,3,0))-1)*1*K137*VLOOKUP(L137,Qualité,2,0)),\"\")","v":""}]
[null,null,null,null,null,null,null,null,null,null,null,null,{"$f":"IF(AND(J135<>\"\",SUM(M137)<>\"\"),IF(SUM(M137)>J135,\"trop rempli !\",SUM(M137)),\"\")","v":""},{"$f":"SUM(N137)","v":0}]
[null,"Petits Contenants"]
[null,null,null,null,null,null,null,null,"Moyennes et Grandes Capacités"]
[null,null,{"$f":"IF(B141<>\"\",VLOOKUP(B141,capa_cont,2,0),\"\")","v":""}]
[null,"Catégorie","Equipement","Qté","Qlté","Enc.","Prix",null,null,{"$f":"IF(I142<>\"\",VLOOKUP(I142,capa_cont,2,0),\"\")","v":""}]
[null,null,null,null,null,{"$f":"IF(C143<>\"\",VLOOKUP(C143,equip_global,2,0)*D143*1,\"\")","v":""},{"$f":"IF(AND(D143<>\"\",E143<>\"\"),IF(RIGHT(VLOOKUP(C143,equip_global,3,0),1)=\"s\",LEFT(VLOOKUP(C143,equip_global,3,0),LEN(VLOOKUP(C143,equip_global,3,0))-1)*100*D143*VLOOKUP(E143,Qualité,2,0),LEFT(VLOOKUP(C143,equip_global,3,0),LEN(VLOOKUP(C143,equip_global,3,0))-1)*1*D143*VLOOKUP(E143,Qualité,2,0)),\"\")","v":""},null,"Catégorie","Equipement","Qté","Qlté","Enc.","Prix"]
[null,null,null,null,null,"","",null,null,null,null,null,{"$f":"IF(J144<>\"\",VLOOKUP(J144,equip_global,2,0)*K144*1,\"\")","v":""},{"$f":"IF(AND(K144<>\"\",L144<>\"\"),IF(RIGHT(VLOOKUP(J144,equip_global,3,0),1)=\"s\",LEFT(VLOOKUP(J144,equip_global,3,0),LEN(VLOOKUP(J144,equip_global,3,0))-1)*100*K144*VLOOKUP(L144,Qualité,2,0),LEFT(VLOOKUP(J144,equip_global,3,0),LEN(VLOOKUP(J144,equip_global,3,0))-1)*1*K144*VLOOKUP(L144,Qualité,2,0)),\"\")","v":""}]
[null,null,null,null,null,"","",null,null,null,null,null,"",""]
[null,null,null,null,null,"","",null,null,null,null,null,"",""]
[null,null,null,null,null,"","",null,null,null,null,null,"",""]
[null,null,null,null,null,"","",null,null,null,null,null,"",""]
[null,null,null,null,null,{"$f":"IF(AND(C141<>\"\",SUM(F143:F148)<>\"\"),IF(SUM(F143:F148)>C141,\"trop rempli !\",SUM(F143:F148)),\"\")","v":""},{"$f":"SUM(G143:G148)","v":0},null,null,null,null,null,"",""]
[null,null,{"$f":"IF(B150<>\"\",VLOOKUP(B150,capa_cont,2,0),\"\")","v":""},null,null,null,null,null,null,null,null,null,"",""]
[null,"Catégorie","Equipement","Qté","Qlté","Enc.","Prix",null,null,null,null,null,"",""]
[null,null,null,null,null,{"$f":"IF(C152<>\"\",VLOOKUP(C152,equip_global,2,0)*D152*1,\"\")","v":""},{"$f":"IF(AND(D152<>\"\",E152<>\"\"),IF(RIGHT(VLOOKUP(C152,equip_global,3,0),1)=\"s\",LEFT(VLOOKUP(C152,equip_global,3,0),LEN(VLOOKUP(C152,equip_global,3,0))-1)*100*D152*VLOOKUP(E152,Qualité,2,0),LEFT(VLOOKUP(C152,equip_global,3,0),LEN(VLOOKUP(C152,equip_global,3,0))-1)*1*D152*VLOOKUP(E152,Qualité,2,0)),\"\")","v":""},null,null,null,null,null,"",""]
[null,null,null,null,null,"","",null,null,null,null,null,"",""]
[null,null,null,null,null,"","",null,null,null,null,null,"",""]
[null,null,null,null,null,"","",null,null,null,null,null,"",""]
[null,null,null,null,null,"","",null,null,null,null,null,"",""]
[null,null,null,null,null,"","",null,null,null,null,null,"",""]
[null,null,null,null,null,{"$f":"IF(AND(C150<>\"\",SUM(F152:F157)<>\"\"),IF(SUM(F152:F157)>C150,\"trop rempli !\",SUM(F152:F157)),\"\")","v":""},{"$f":"SUM(G152:G157)","v":0},null,null,null,null,null,"",""]
[null,null,{"$f":"IF(B159<>\"\",VLOOKUP(B159,capa_cont,2,0),\"\")","v":""},null,null,null,null,null,null,null,null,null,{"$f":"IF(AND(J142<>\"\",SUM(M144:M158)<>\"\"),IF(SUM(M144:M158)>J142,\"trop rempli !\",SUM(M144:M158)),\"\")","v":""},{"$f":"SUM(N144:N158)","v":0}]
[null,"Catégorie","Equipement","Qté","Qlté","Enc.","Prix",null,null,{"$f":"IF(I160<>\"\",VLOOKUP(I160,capa_cont,2,0),\"\")","v":""}]
[null,null,null,null,null,{"$f":"IF(C161<>\"\",VLOOKUP(C161,equip_global,2,0)*D161*1,\"\")","v":""},{"$f":"IF(AND(D161<>\"\",E161<>\"\"),IF(RIGHT(VLOOKUP(C161,equip_global,3,0),1)=\"s\",LEFT(VLOOKUP(C161,equip_global,3,0),LEN(VLOOKUP(C161,equip_global,3,0))-1)*100*D161*VLOOKUP(E161,Qualité,2,0),LEFT(VLOOKUP(C161,equip_global,3,0),LEN(VLOOKUP(C161,equip_global,3,0))-1)*1*D161*VLOOKUP(E161,Qualité,2,0)),\"\")","v":""},null,"Catégorie","Equipement","Qté","Qlté","Enc.","Prix"]
[null,null,null,null,null,"","",null,null,null,null,null,{"$f":"IF(J162<>\"\",VLOOKUP(J162,equip_global,2,0)*K162*1,\"\")","v":""},{"$f":"IF(AND(K162<>\"\",L162<>\"\"),IF(RIGHT(VLOOKUP(J162,equip_global,3,0),1)=\"s\",LEFT(VLOOKUP(J162,equip_global,3,0),LEN(VLOOKUP(J162,equip_global,3,0))-1)*100*K162*VLOOKUP(L162,Qualité,2,0),LEFT(VLOOKUP(J162,equip_global,3,0),LEN(VLOOKUP(J162,equip_global,3,0))-1)*1*K162*VLOOKUP(L162,Qualité,2,0)),\"\")","v":""}]
[null,null,null,null,null,"","",null,null,null,null,null,"",""]
[null,null,null,null,null,"","",null,null,null,null,null,"",""]
[null,null,null,null,null,"","",null,null,null,null,null,"",""]
[null,null,null,null,null,"","",null,null,null,null,null,"",""]
[null,null,null,null,null,{"$f":"IF(AND(C159<>\"\",SUM(F161:F166)<>\"\"),IF(SUM(F161:F166)>C159,\"trop rempli !\",SUM(F161:F166)),\"\")","v":""},{"$f":"SUM(G161:G166)","v":0},null,null,null,null,null,"",""]
[null,null,{"$f":"IF(B168<>\"\",VLOOKUP(B168,capa_cont,2,0),\"\")","v":""},null,null,null,null,null,null,null,null,null,"",""]
[null,"Catégorie","Equipement","Qté","Qlté","Enc.","Prix",null,null,null,null,null,"",""]
[null,null,null,null,null,{"$f":"IF(C170<>\"\",VLOOKUP(C170,equip_global,2,0)*D170*1,\"\")","v":""},{"$f":"IF(AND(D170<>\"\",E170<>\"\"),IF(RIGHT(VLOOKUP(C170,equip_global,3,0),1)=\"s\",LEFT(VLOOKUP(C170,equip_global,3,0),LEN(VLOOKUP(C170,equip_global,3,0))-1)*100*D170*VLOOKUP(E170,Qualité,2,0),LEFT(VLOOKUP(C170,equip_global,3,0),LEN(VLOOKUP(C170,equip_global,3,0))-1)*1*D170*VLOOKUP(E170,Qualité,2,0)),\"\")","v":""},null,null,null,null,null,"",""]
[null,null,null,null,null,"","",null,null,null,null,null,"",""]
[null,null,null,null,null,"","",null,null,null,null,null,"",""]
[null,null,null,null,null,"","",null,null,null,null,null,"",""]
[null,null,null,null,null,"","",null,null,null,null,null,"",""]
[null,null,null,null,null,"","",null,null,null,null,null,"",""]
[null,null,null,null,null,{"$f":"IF(AND(C168<>\"\",SUM(F170:F175)<>\"\"),IF(SUM(F170:F175)>C168,\"trop rempli !\",SUM(F170:F175)),\"\")","v":""},{"$f":"SUM(G170:G175)","v":0},null,null,null,null,null,"",""]
[null,null,null,null,null,null,null,null,null,null,null,null,{"$f":"IF(AND(J160<>\"\",SUM(M162:M176)<>\"\"),IF(SUM(M162:M176)>J160,\"trop rempli !\",SUM(M162:M176)),\"\")","v":""},{"$f":"SUM(N162:N176)","v":0}]
[null,null,{"$f":"IF(B178<>\"\",VLOOKUP(B178,capa_cont,2,0),\"\")","v":""}]
[null,"Catégorie","Equipement","Qté","Qlté","Enc.","Prix",null,null,{"$f":"IF(I179<>\"\",VLOOKUP(I179,capa_cont,2,0),\"\")","v":""}]
[null,null,null,null,null,{"$f":"IF(C180<>\"\",VLOOKUP(C180,equip_global,2,0)*D180*1,\"\")","v":""},{"$f":"IF(AND(D180<>\"\",E180<>\"\"),IF(RIGHT(VLOOKUP(C180,equip_global,3,0),1)=\"s\",LEFT(VLOOKUP(C180,equip_global,3,0),LEN(VLOOKUP(C180,equip_global,3,0))-1)*100*D180*VLOOKUP(E180,Qualité,2,0),LEFT(VLOOKUP(C180,equip_global,3,0),LEN(VLOOKUP(C180,equip_global,3,0))-1)*1*D180*VLOOKUP(E180,Qualité,2,0)),\"\")","v":""},null,"Catégorie","Equipement","Qté","Qlté","Enc.","Prix"]
[null,null,null,null,null,"","",null,null,null,null,null,{"$f":"IF(J181<>\"\",VLOOKUP(J181,equip_global,2,0)*K181*1,\"\")","v":""},{"$f":"IF(AND(K181<>\"\",L181<>\"\"),IF(RIGHT(VLOOKUP(J181,equip_global,3,0),1)=\"s\",LEFT(VLOOKUP(J181,equip_global,3,0),LEN(VLOOKUP(J181,equip_global,3,0))-1)*100*K181*VLOOKUP(L181,Qualité,2,0),LEFT(VLOOKUP(J181,equip_global,3,0),LEN(VLOOKUP(J181,equip_global,3,0))-1)*1*K181*VLOOKUP(L181,Qualité,2,0)),\"\")","v":""}]
[null,null,null,null,null,"","",null,null,null,null,null,"",""]
[null,null,null,null,null,"","",null,null,null,null,null,"",""]
[null,null,null,null,null,"","",null,null,null,null,null,"",""]
[null,null,null,null,null,"","",null,null,null,null,null,"",""]
[null,null,null,null,null,{"$f":"IF(AND(C178<>\"\",SUM(F180:F185)<>\"\"),IF(SUM(F180:F185)>C178,\"trop rempli !\",SUM(F180:F185)),\"\")","v":""},{"$f":"SUM(G180:G185)","v":0},null,null,null,null,null,"",""]
[null,null,{"$f":"IF(B187<>\"\",VLOOKUP(B187,capa_cont,2,0),\"\")","v":""},null,null,null,null,null,null,null,null,null,{"$f":"IF(AND(J179<>\"\",SUM(M181:M186)<>\"\"),IF(SUM(M181:M186)>J179,\"trop rempli !\",SUM(M181:M186)),\"\")","v":""},{"$f":"SUM(N181:N186)","v":0}]
[null,"Catégorie","Equipement","Qté","Qlté","Enc.","Prix",null,null,{"$f":"IF(I188<>\"\",VLOOKUP(I188,capa_cont,2,0),\"\")","v":""}]
[null,null,null,null,null,{"$f":"IF(C189<>\"\",VLOOKUP(C189,equip_global,2,0)*D189*1,\"\")","v":""},{"$f":"IF(AND(D189<>\"\",E189<>\"\"),IF(RIGHT(VLOOKUP(C189,equip_global,3,0),1)=\"s\",LEFT(VLOOKUP(C189,equip_global,3,0),LEN(VLOOKUP(C189,equip_global,3,0))-1)*100*D189*VLOOKUP(E189,Qualité,2,0),LEFT(VLOOKUP(C189,equip_global,3,0),LEN(VLOOKUP(C189,equip_global,3,0))-1)*1*D189*VLOOKUP(E189,Qualité,2,0)),\"\")","v":""},null,"Catégorie","Equipement","Qté","Qlté","Enc.","Prix"]
[null,null,null,null,null,"","",null,null,null,null,null,{"$f":"IF(J190<>\"\",VLOOKUP(J190,equip_global,2,0)*K190*1,\"\")","v":""},{"$f":"IF(AND(K190<>\"\",L190<>\"\"),IF(RIGHT(VLOOKUP(J190,equip_global,3,0),1)=\"s\",LEFT(VLOOKUP(J190,equip_global,3,0),LEN(VLOOKUP(J190,equip_global,3,0))-1)*100*K190*VLOOKUP(L190,Qualité,2,0),LEFT(VLOOKUP(J190,equip_global,3,0),LEN(VLOOKUP(J190,equip_global,3,0))-1)*1*K190*VLOOKUP(L190,Qualité,2,0)),\"\")","v":""}]
[null,null,null,null,null,"","",null,null,null,null,null,"",""]
[null,null,null,null,null,"","",null,null,null,null,null,"",""]
[null,null,null,null,null,"","",null,null,null,null,null,"",""]
[null,null,null,null,null,"","",null,null,null,null,null,"",""]
[null,null,null,null,null,{"$f":"IF(AND(C187<>\"\",SUM(F189:F194)<>\"\"),IF(SUM(F189:F194)>C187,\"trop rempli !\",SUM(F189:F194)),\"\")","v":""},{"$f":"SUM(G189:G194)","v":0},null,null,null,null,null,"",""]
[null,null,null,null,null,null,null,null,null,null,null,null,{"$f":"IF(AND(J188<>\"\",SUM(M190:M195)<>\"\"),IF(SUM(M190:M195)>J188,\"trop rempli !\",SUM(M190:M195)),\"\")","v":""},{"$f":"SUM(N190:N195)","v":0}]
[null,"Moyen(s) de transport"]
[]
[null,"Catégorie","Equipement","Qté","Qlté","Enc.","Prix"]
[null,null,null,null,null,{"$f":"IF(C200<>\"\",VLOOKUP(C200,equip_global,2,0)*D200*1,\"\")","v":""},{"$f":"IF(AND(D200<>\"\",E200<>\"\"),IF(RIGHT(VLOOKUP(C200,equip_global,3,0),1)=\"s\",LEFT(VLOOKUP(C200,equip_global,3,0),LEN(VLOOKUP(C200,equip_global,3,0))-1)*100*D200*VLOOKUP(E200,Qualité,2,0),LEFT(VLOOKUP(C200,equip_global,3,0),LEN(VLOOKUP(C200,equip_global,3,0))-1)*1*D200*VLOOKUP(E200,Qualité,2,0)),\"\")","v":""}]
[null,null,null,null,null,"",{"$f":"IF(AND(D201<>\"\",E201<>\"\"),IF(RIGHT(VLOOKUP(C201,equip_global,3,0),1)=\"s\",LEFT(VLOOKUP(C201,equip_global,3,0),LEN(VLOOKUP(C201,equip_global,3,0))-1)*100*D201*VLOOKUP(E201,Qualité,2,0),LEFT(VLOOKUP(C201,equip_global,3,0),LEN(VLOOKUP(C201,equip_global,3,0))-1)*1*D201*VLOOKUP(E201,Qualité,2,0)),\"\")","v":""}]
[null,null,null,null,null,"",{"$f":"IF(AND(D202<>\"\",E202<>\"\"),IF(RIGHT(VLOOKUP(C202,equip_global,3,0),1)=\"s\",LEFT(VLOOKUP(C202,equip_global,3,0),LEN(VLOOKUP(C202,equip_global,3,0))-1)*100*D202*VLOOKUP(E202,Qualité,2,0),LEFT(VLOOKUP(C202,equip_global,3,0),LEN(VLOOKUP(C202,equip_global,3,0))-1)*1*D202*VLOOKUP(E202,Qualité,2,0)),\"\")","v":""}]
[null,null,null,null,null,"",{"$f":"IF(AND(D203<>\"\",E203<>\"\"),IF(RIGHT(VLOOKUP(C203,equip_global,3,0),1)=\"s\",LEFT(VLOOKUP(C203,equip_global,3,0),LEN(VLOOKUP(C203,equip_global,3,0))-1)*100*D203*VLOOKUP(E203,Qualité,2,0),LEFT(VLOOKUP(C203,equip_global,3,0),LEN(VLOOKUP(C203,equip_global,3,0))-1)*1*D203*VLOOKUP(E203,Qualité,2,0)),\"\")","v":""}]
[null,null,null,null,null,null,{"$f":"SUM(G200:G203)","v":0}]

{"sheet":"Tables","index":1,"n_rows":101,"n_cols":22,"rows_kept":101,"cut":false,"hidden":true,"merged":[]}
["Caractéristiques"]
["Générales",null,"FORCE",null,"Beauté"]
[6,null,6,null,3]
[7,null,7,null,4]
[8,null,8,null,5]
[9,null,9,null,6]
[10,null,10,null,7]
[11,null,{"$f":"IF(ISERROR(IF(Saisie!$C$11 >=7,\"11\",\"\")*1),\"\",IF(Saisie!$C$11 >=7,\"11\",\"\")*1)","v":""},null,8]
[12,null,{"$f":"IF(ISERROR(IF(Saisie!$C$11 >=8,\"12\",\"\")*1),\"\",IF(Saisie!$C$11 >=8,\"12\",\"\")*1)","v":""},null,9]
[13,null,{"$f":"IF(ISERROR(IF(Saisie!$C$11 >=9,\"13\",\"\")*1),\"\",IF(Saisie!$C$11 >=9,\"13\",\"\")*1)","v":""},null,10]
[14,null,{"$f":"IF(ISERROR(IF(Saisie!$C$11 >=10,\"14\",\"\")*1),\"\",IF(Saisie!$C$11 >=10,\"14\",\"\")*1)","v":""},null,11]
[15,null,{"$f":"IF(ISERROR(IF(Saisie!$C$11 >=11,\"15\",\"\")*1),\"\",IF(Saisie!$C$11 >=11,\"15\",\"\")*1)","v":""},null,12]
[null,null,null,null,13]
[null,null,null,null,14]
[null,null,null,null,15]
[null,null,null,null,16]
[]
[]
["Généralités"]
["Heure de naissance",null,"Sexe",null,"Poids",null,null,null,null,null,null,null,null,null,null,null,null,"Menu déroulant poids"]
["du Vaisseau",null,"M",null,6,31,32,33,34,35,36,37,38,39,40,null,null,{"$f":"VLOOKUP(Saisie!$C$11,poids_taille,2,0)","v":{"$error":"#N/A"}}]
["de la Sirène",null,"F",null,7,41,42,43,44,45,46,47,48,49,50,null,null,{"$f":"VLOOKUP(Saisie!$C$11,poids_taille,3,0)","v":{"$error":"#N/A"}}]
["du Faucon",null,null,null,8,51,52,53,54,55,56,57,58,59,60,null,null,{"$f":"VLOOKUP(Saisie!$C$11,poids_taille,4,0)","v":{"$error":"#N/A"}}]
["de la Couronne",null,null,null,9,61,61,62,62,63,63,64,64,65,65,null,null,{"$f":"VLOOKUP(Saisie!$C$11,poids_taille,5,0)","v":{"$error":"#N/A"}}]
["du Dragon",null,null,null,10,66,66,67,67,68,68,69,69,70,70,null,null,{"$f":"VLOOKUP(Saisie!$C$11,poids_taille,6,0)","v":{"$error":"#N/A"}}]
["des Epées",null,null,null,11,71,71,72,72,73,73,74,74,75,75,null,null,{"$f":"VLOOKUP(Saisie!$C$11,poids_taille,7,0)","v":{"$error":"#N/A"}}]
["de la Lyre",null,null,null,12,76,76,77,77,78,78,79,79,80,80,null,null,{"$f":"VLOOKUP(Saisie!$C$11,poids_taille,8,0)","v":{"$error":"#N/A"}}]
["du Serpent",null,null,null,13,81,82,83,84,85,86,87,88,89,90,null,null,{"$f":"VLOOKUP(Saisie!$C$11,poids_taille,9,0)","v":{"$error":"#N/A"}}]
["du Poisson Acrobate",null,null,null,14,91,92,93,94,95,96,97,98,99,100,null,null,{"$f":"VLOOKUP(Saisie!$C$11,poids_taille,10,0)","v":{"$error":"#N/A"}}]
["de l'Araignée",null,null,null,15,101,102,103,104,105,106,107,108,109,110,null,null,{"$f":"VLOOKUP(Saisie!$C$11,poids_taille,11,0)","v":{"$error":"#N/A"}}]
["du Roseau"]
["du Château dormant"]
[]
[null,null,null,null,"Taille",null,null,null,"Menu déroulant taille",null,null,"Beauté",null,null,"Main directrice"]
[null,null,null,null,6,1.26,null,null,{"$f":"VLOOKUP(Saisie!$C$11,Taille_taille,2,0)*0.75","v":{"$error":"#N/A"}},null,null,3,"Hideux",null,"Droitier"]
[null,null,null,null,7,1.43,null,null,{"$f":"VLOOKUP(Saisie!$C$11,Taille_taille,2,0)*0.77","v":{"$error":"#N/A"}},null,null,4,"Repoussant",null,"Gaucher"]
[null,null,null,null,8,1.58,null,null,{"$f":"VLOOKUP(Saisie!$C$11,Taille_taille,2,0)*0.79","v":{"$error":"#N/A"}},null,null,5,"Franchement très laid",null,"Ambidextre"]
[null,null,null,null,9,1.69,null,null,{"$f":"VLOOKUP(Saisie!$C$11,Taille_taille,2,0)*0.81","v":{"$error":"#N/A"}},null,null,6,"laid"]
[null,null,null,null,10,1.75,null,null,{"$f":"VLOOKUP(Saisie!$C$11,Taille_taille,2,0)*0.83","v":{"$error":"#N/A"}},null,null,7,"Très désavantagé"]
[null,null,null,null,11,1.82,null,null,{"$f":"VLOOKUP(Saisie!$C$11,Taille_taille,2,0)*0.85","v":{"$error":"#N/A"}},null,null,8,"Désavantagé"]
[null,null,null,null,12,1.88,null,null,{"$f":"VLOOKUP(Saisie!$C$11,Taille_taille,2,0)*0.87","v":{"$error":"#N/A"}},null,null,9,"Pas terrible"]
[null,null,null,null,13,1.96,null,null,{"$f":"VLOOKUP(Saisie!$C$11,Taille_taille,2,0)*0.89","v":{"$error":"#N/A"}},null,null,10,"Commum"]
[null,null,null,null,14,2.0699999999999998,null,null,{"$f":"VLOOKUP(Saisie!$C$11,Taille_taille,2,0)*0.91","v":{"$error":"#N/A"}},null,null,11,"Pas mal"]
[null,null,null,null,15,2.1800000000000002,null,null,{"$f":"VLOOKUP(Saisie!$C$11,Taille_taille,2,0)*0.93","v":{"$error":"#N/A"}},null,null,12,"Avantagé"]
[null,null,null,null,null,null,null,null,{"$f":"VLOOKUP(Saisie!$C$11,Taille_taille,2,0)*0.95","v":{"$error":"#N/A"}},null,null,13,"Mignon"]
[null,null,null,null,null,null,null,null,{"$f":"VLOOKUP(Saisie!$C$11,Taille_taille,2,0)*0.97","v":{"$error":"#N/A"}},null,null,14,"Beau"]
[null,null,null,null,null,null,null,null,{"$f":"VLOOKUP(Saisie!$C$11,Taille_taille,2,0)*0.99","v":{"$error":"#N/A"}},null,null,15,"Très beau"]
[null,null,null,null,null,null,null,null,{"$f":"VLOOKUP(Saisie!$C$11,Taille_taille,2,0)*1","v":{"$error":"#N/A"}},null,null,16,"Eblouissant"]
[null,null,null,null,null,null,null,null,{"$f":"VLOOKUP(Saisie!$C$11,Taille_taille,2,0)*1.01","v":{"$error":"#N/A"}}]
[null,null,null,null,null,null,null,null,{"$f":"VLOOKUP(Saisie!$C$11,Taille_taille,2,0)*1.02","v":{"$error":"#N/A"}}]
[null,null,null,null,null,null,null,null,{"$f":"VLOOKUP(Saisie!$C$11,Taille_taille,2,0)*1.03","v":{"$error":"#N/A"}}]
[null,null,null,null,null,null,null,null,{"$f":"VLOOKUP(Saisie!$C$11,Taille_taille,2,0)*1.04","v":{"$error":"#N/A"}}]
[null,null,null,null,null,null,null,null,{"$f":"VLOOKUP(Saisie!$C$11,Taille_taille,2,0)*1.05","v":{"$error":"#N/A"}}]
[null,null,null,null,null,null,null,null,{"$f":"VLOOKUP(Saisie!$C$11,Taille_taille,2,0)*1.06","v":{"$error":"#N/A"}}]
[null,null,null,null,null,null,null,null,{"$f":"VLOOKUP(Saisie!$C$11,Taille_taille,2,0)*1.07","v":{"$error":"#N/A"}}]
[null,null,null,null,null,null,null,null,{"$f":"VLOOKUP(Saisie!$C$11,Taille_taille,2,0)*1.08","v":{"$error":"#N/A"}}]
[null,null,null,null,null,null,null,null,{"$f":"VLOOKUP(Saisie!$C$11,Taille_taille,2,0)*1.09","v":{"$error":"#N/A"}}]
[null,null,null,null,null,null,null,null,{"$f":"VLOOKUP(Saisie!$C$11,Taille_taille,2,0)*1.1","v":{"$error":"#N/A"}}]
[]
[]
[]
[]
[]
[]
[]
[]
[]
["Points et Seuils"]
[]
["(Taille+Force)/2","+dom"]
[6,-1]
[7,-1]
[8,0]
[9,0]
[10,0]
[11,0]
[12,1]
[13,1]
[14,2]
[15,2]
[]
["Compétences"]
[]
[null,null,null,null,null,null,null,"Survies"]
["Niv","(-11)","(-8)","(-6)","(-4)","Thanatos",null,null,null,"corps à corps",null,"dague","esquive",null,"Epee1m","Epee2m",null,"Hache1m","hache2m",null,"masse1m","masse2m"]
[-11]
[-10,5,null,null,null,{"$f":"B87*2","v":10}]
[-9,10,null,null,null,{"$f":"B88*2","v":20}]
[-8,15,null,null,null,30,null,-8]
[-7,25,10,null,null,50,null,{"$f":"IF(Saisie!$F$50>=(-7),-7,-8)","v":-8}]
[-6,35,20,null,null,70,null,{"$f":"IF(Saisie!$F$50>=(-6),-6,-8)","v":-8},null,{"$f":"IF(OR(Saisie!$C$30>-6,Saisie!$C$33>-6),IF(OR(Saisie!$C$30>0,Saisie!$C$33>0),0,IF(Saisie!$C$30>=Saisie!$C$33,Saisie!$C$30,Saisie!$C$33)),-6)","v":-6},null,{"$f":"IF(OR(Saisie!$C$29>-6,Saisie!$C$33>-6),IF(OR(Saisie!$C$29>0,Saisie!$C$33>0),0,IF(Saisie!$C$29>=Saisie!$C$33,Saisie!$C$29,Saisie!$C$33)),-6)","v":-6},{"$f":"IF(OR(Saisie!$C$30>-6,Saisie!$C$29>-6),IF(OR(Saisie!$C$30>0,Saisie!$C$29>0),0,IF(Saisie!$C$30>=Saisie!$C$29,Saisie!$C$30,Saisie!$C$29)),-6)","v":-6},null,{"$f":"IF(Saisie!$C$32>-6,IF(Saisie!$C$32>0,0,Saisie!$C$32),-6)","v":-6},{"$f":"IF(Saisie!$C$31>-6,IF(Saisie!$C$31>0,0,Saisie!$C$31),-6)","v":-6},null,{"$f":"IF(Saisie!$C$36>-6,IF(Saisie!$C$36>0,0,Saisie!$C$36),-6)","v":-6},{"$f":"IF(Saisie!$C$35>-6,IF(Saisie!$C$35>0,0,Saisie!$C$35),-6)","v":-6},null,{"$f":"IF(Saisie!$C$39>-6,IF(Saisie!$C$39>0,0,Saisie!$C$39),-6)","v":-6},{"$f":"IF(Saisie!$C$38>-6,IF(Saisie!$C$38>0,0,Saisie!$C$38),-6)","v":-6}]
[-5,45,30,10,null,90,null,{"$f":"IF(Saisie!$F$50>=(-5),-5,-8)","v":-8},null,{"$f":"IF(OR(Saisie!$C$30>-5,Saisie!$C$33>-5),IF(OR(Saisie!$C$30>0,Saisie!$C$33>0),0,IF(Saisie!$C$30>=Saisie!$C$33,Saisie!$C$30,Saisie!$C$33)),-5)","v":-5},null,{"$f":"IF(OR(Saisie!$C$29>-5,Saisie!$C$33>-5),IF(OR(Saisie!$C$29>0,Saisie!$C$33>0),0,IF(Saisie!$C$29>=Saisie!$C$33,Saisie!$C$29,Saisie!$C$33)),-5)","v":-5},{"$f":"IF(OR(Saisie!$C$30>-5,Saisie!$C$29>-5),IF(OR(Saisie!$C$30>0,Saisie!$C$29>0),0,IF(Saisie!$C$30>=Saisie!$C$29,Saisie!$C$30,Saisie!$C$29)),-5)","v":-5},null,{"$f":"IF(Saisie!$C$32>-5,IF(Saisie!$C$32>0,0,Saisie!$C$32),-5)","v":-5},{"$f":"IF(Saisie!$C$31>-5,IF(Saisie!$C$31>0,0,Saisie!$C$31),-5)","v":-5},null,{"$f":"IF(Saisie!$C$36>-5,IF(Saisie!$C$36>0,0,Saisie!$C$36),-5)","v":-5},{"$f":"IF(Saisie!$C$35>-5,IF(Saisie!$C$35>0,0,Saisie!$C$35),-5)","v":-5},null,{"$f":"IF(Saisie!$C$39>-5,IF(Saisie!$C$39>0,0,Saisie!$C$39),-5)","v":-5},{"$f":"IF(Saisie!$C$38>-5,IF(Saisie!$C$38>0,0,Saisie!$C$38),-5)","v":-5}]
[-4,55,40,20,null,110,null,{"$f":"IF(Saisie!$F$50>=(-4),-4,-8)","v":-8},null,{"$f":"IF(OR(Saisie!$C$30>-4,Saisie!$C$33>-4),IF(OR(Saisie!$C$30>0,Saisie!$C$33>0),0,IF(Saisie!$C$30>=Saisie!$C$33,Saisie!$C$30,Saisie!$C$33)),-4)","v":-4},null,{"$f":"IF(OR(Saisie!$C$29>-4,Saisie!$C$33>-4),IF(OR(Saisie!$C$29>0,Saisie!$C$33>0),0,IF(Saisie!$C$29>=Saisie!$C$33,Saisie!$C$29,Saisie!$C$33)),-4)","v":-4},{"$f":"IF(OR(Saisie!$C$30>-4,Saisie!$C$29>-4),IF(OR(Saisie!$C$30>0,Saisie!$C$29>0),0,IF(Saisie!$C$30>=Saisie!$C$29,Saisie!$C$30,Saisie!$C$29)),-4)","v":-4},null,{"$f":"IF(Saisie!$C$32>-4,IF(Saisie!$C$32>0,0,Saisie!$C$32),-4)","v":-4},{"$f":"IF(Saisie!$C$31>-4,IF(Saisie!$C$31>0,0,Saisie!$C$31),-4)","v":-4},null,{"$f":"IF(Saisie!$C$36>-4,IF(Saisie!$C$36>0,0,Saisie!$C$36),-4)","v":-4},{"$f":"IF(Saisie!$C$35>-4,IF(Saisie!$C$35>0,0,Saisie!$C$35),-4)","v":-4},null,{"$f":"IF(Saisie!$C$39>-4,IF(Saisie!$C$39>0,0,Saisie!$C$39),-4)","v":-4},{"$f":"IF(Saisie!$C$38>-4,IF(Saisie!$C$38>0,0,Saisie!$C$38),-4)","v":-4}]
[-3,70,55,35,15,140,null,{"$f":"IF(Saisie!$F$50>=(-3),-3,-8)","v":-8},null,{"$f":"IF(OR(Saisie!$C$30>-3,Saisie!$C$33>-3),IF(OR(Saisie!$C$30>0,Saisie!$C$33>0),0,IF(Saisie!$C$30>=Saisie!$C$33,Saisie!$C$30,Saisie!$C$33)),-3)","v":-3},null,{"$f":"IF(OR(Saisie!$C$29>-3,Saisie!$C$33>-3),IF(OR(Saisie!$C$29>0,Saisie!$C$33>0),0,IF(Saisie!$C$29>=Saisie!$C$33,Saisie!$C$29,Saisie!$C$33)),-3)","v":-3},{"$f":"IF(OR(Saisie!$C$30>-3,Saisie!$C$29>-3),IF(OR(Saisie!$C$30>0,Saisie!$C$29>0),0,IF(Saisie!$C$30>=Saisie!$C$29,Saisie!$C$30,Saisie!$C$29)),-3)","v":-3},null,{"$f":"IF(Saisie!$C$32>-3,IF(Saisie!$C$32>0,0,Saisie!$C$32),-3)","v":-3},{"$f":"IF(Saisie!$C$31>-3,IF(Saisie!$C$31>0,0,Saisie!$C$31),-3)","v":-3},null,{"$f":"IF(Saisie!$C$36>-3,IF(Saisie!$C$36>0,0,Saisie!$C$36),-3)","v":-3},{"$f":"IF(Saisie!$C$35>-3,IF(Saisie!$C$35>0,0,Saisie!$C$35),-3)","v":-3},null,{"$f":"IF(Saisie!$C$39>-3,IF(Saisie!$C$39>0,0,Saisie!$C$39),-3)","v":-3},{"$f":"IF(Saisie!$C$38>-3,IF(Saisie!$C$38>0,0,Saisie!$C$38),-3)","v":-3}]
[-2,85,70,50,30,170,null,{"$f":"IF(Saisie!$F$50>=(-2),-2,-8)","v":-8},null,{"$f":"IF(OR(Saisie!$C$30>-2,Saisie!$C$33>-2),IF(OR(Saisie!$C$30>0,Saisie!$C$33>0),0,IF(Saisie!$C$30>=Saisie!$C$33,Saisie!$C$30,Saisie!$C$33)),-2)","v":-2},null,{"$f":"IF(OR(Saisie!$C$29>-2,Saisie!$C$33>-2),IF(OR(Saisie!$C$29>0,Saisie!$C$33>0),0,IF(Saisie!$C$29>=Saisie!$C$33,Saisie!$C$29,Saisie!$C$33)),-2)","v":-2},{"$f":"IF(OR(Saisie!$C$30>-2,Saisie!$C$29>-2),IF(OR(Saisie!$C$30>0,Saisie!$C$29>0),0,IF(Saisie!$C$30>=Saisie!$C$29,Saisie!$C$30,Saisie!$C$29)),-2)","v":-2},null,{"$f":"IF(Saisie!$C$32>-2,IF(Saisie!$C$32>0,0,Saisie!$C$32),-2)","v":-2},{"$f":"IF(Saisie!$C$31>-2,IF(Saisie!$C$31>0,0,Saisie!$C$31),-2)","v":-2},null,{"$f":"IF(Saisie!$C$36>-2,IF(Saisie!$C$36>0,0,Saisie!$C$36),-2)","v":-2},{"$f":"IF(Saisie!$C$35>-2,IF(Saisie!$C$35>0,0,Saisie!$C$35),-2)","v":-2},null,{"$f":"IF(Saisie!$C$39>-2,IF(Saisie!$C$39>0,0,Saisie!$C$39),-2)","v":-2},{"$f":"IF(Saisie!$C$38>-2,IF(Saisie!$C$38>0,0,Saisie!$C$38),-2)","v":-2}]
[-1,100,85,65,45,200,null,{"$f":"IF(Saisie!$F$50>=(-1),-1,-8)","v":-8},null,{"$f":"IF(OR(Saisie!$C$30>-1,Saisie!$C$33>-1),IF(OR(Saisie!$C$30>0,Saisie!$C$33>0),0,IF(Saisie!$C$30>=Saisie!$C$33,Saisie!$C$30,Saisie!$C$33)),-1)","v":-1},null,{"$f":"IF(OR(Saisie!$C$29>-1,Saisie!$C$33>-1),IF(OR(Saisie!$C$29>0,Saisie!$C$33>0),0,IF(Saisie!$C$29>=Saisie!$C$33,Saisie!$C$29,Saisie!$C$33)),-1)","v":-1},{"$f":"IF(OR(Saisie!$C$30>-1,Saisie!$C$29>-1),IF(OR(Saisie!$C$30>0,Saisie!$C$29>0),0,IF(Saisie!$C$30>=Saisie!$C$29,Saisie!$C$30,Saisie!$C$29)),-1)","v":-1},null,{"$f":"IF(Saisie!$C$32>-1,IF(Saisie!$C$32>0,0,Saisie!$C$32),-1)","v":-1},{"$f":"IF(Saisie!$C$31>-1,IF(Saisie!$C$31>0,0,Saisie!$C$31),-1)","v":-1},null,{"$f":"IF(Saisie!$C$36>-1,IF(Saisie!$C$36>0,0,Saisie!$C$36),-1)","v":-1},{"$f":"IF(Saisie!$C$35>-1,IF(Saisie!$C$35>0,0,Saisie!$C$35),-1)","v":-1},null,{"$f":"IF(Saisie!$C$39>-1,IF(Saisie!$C$39>0,0,Saisie!$C$39),-1)","v":-1},{"$f":"IF(Saisie!$C$38>-1,IF(Saisie!$C$38>0,0,Saisie!$C$38),-1)","v":-1}]
[0,115,100,80,60,230,null,{"$f":"IF(Saisie!$F$50>=(0),0,-8)","v":-8},null,0,null,0,0,null,0,0,null,0,0,null,0,0]
[1,135,120,100,80,270,null,{"$f":"IF(Saisie!$F$50>=0,1,-8)","v":-8},null,1,null,1,1,null,1,1,null,1,1,null,1,1]
[2,155,140,120,100,310,null,{"$f":"IF(Saisie!$F$50>=0,2,-8)","v":-8},null,2,null,2,2,null,2,2,null,2,2,null,2,2]
[3,175,160,140,120,350,null,{"$f":"IF(Saisie!$F$50>=0,3,-8)","v":-8},null,3,null,3,3,null,3,3,null,3,3,null,3,3]
[" "]

{"sheet":"Sortilèges","index":2,"n_rows":151,"n_cols":8,"rows_kept":151,"cut":false,"hidden":true,"merged":[]}
[]
[null,"Oniros"]
[null,"Diff.","Nom","case","r",null,null,"Menu déroulant Oniros"]
[null,2,"Anti-Magie","Plaines","1+",-2,null,{"$f":"IF(Saisie!$D$62>=Sortilèges!B4,Sortilèges!C4,\"\")","v":""}]
[null,2,"Clameurs","Cité","1+",-2,null,{"$f":"IF(Saisie!$D$62>=Sortilèges!B5,Sortilèges!C5,\"\")","v":""}]
[null,2,"Silence","Désert",4,-2,null,{"$f":"IF(Saisie!$D$62>=Sortilèges!B6,Sortilèges!C6,\"\")","v":""}]
[null,3,"Brouillard","Forêt","1+",-3,null,{"$f":"IF(Saisie!$D$62>=Sortilèges!B7,Sortilèges!C7,\"\")","v":""}]
[null,3,"Lanterne","Cité",2,-3,null,{"$f":"IF(Saisie!$D$62>=Sortilèges!B8,Sortilèges!C8,\"\")","v":""}]
[null,3,"Quiétude","Nécropole",4,-3,null,{"$f":"IF(Saisie!$D$62>=Sortilèges!B9,Sortilèges!C9,\"\")","v":""}]
[null,3,"Détection d'Aura","Sanctuaire",1,-3,null,{"$f":"IF(Saisie!$D$62>=Sortilèges!B10,Sortilèges!C10,\"\")","v":""}]
[null,3,"Lecture d'Aura","Sanctuaire",3,-3,null,{"$f":"IF(Saisie!$D$62>=Sortilèges!B11,Sortilèges!C11,\"\")","v":""}]
[null,4,"Chaleur","Cité","1+",-4,null,{"$f":"IF(Saisie!$D$62>=Sortilèges!B12,Sortilèges!C12,\"\")","v":""}]
[null,4,"Froid","Désolation","1+",-4,null,{"$f":"IF(Saisie!$D$62>=Sortilèges!B13,Sortilèges!C13,\"\")","v":""}]
[null,4,"Illusion animale","Forêt",4,-4,null,{"$f":"IF(Saisie!$D$62>=Sortilèges!B14,Sortilèges!C14,\"\")","v":""}]
[null,4,"Illusion géographique","Gouffre",4,-4,null,{"$f":"IF(Saisie!$D$62>=Sortilèges!B15,Sortilèges!C15,\"\")","v":""}]
[null,4,"Lumière","Plaines",3,-4,null,{"$f":"IF(Saisie!$D$62>=Sortilèges!B16,Sortilèges!C16,\"\")","v":""}]
[null,4,"Ténèbres","Gouffre",3,-4,null,{"$f":"IF(Saisie!$D$62>=Sortilèges!B17,Sortilèges!C17,\"\")","v":""}]
[null,4,"Bois en Terre","Nécropole",2,-4,null,{"$f":"IF(Saisie!$D$62>=Sortilèges!B18,Sortilèges!C18,\"\")","v":""}]
[null,4,"Eau en Air","Désert",2,-4,null,{"$f":"IF(Saisie!$D$62>=Sortilèges!B19,Sortilèges!C19,\"\")","v":""}]
[null,4,"Eau en Bois","Forêt",2,-4,null,{"$f":"IF(Saisie!$D$62>=Sortilèges!B20,Sortilèges!C20,\"\")","v":""}]
[null,4,"Feu en Air","Désolation",2,-4,null,{"$f":"IF(Saisie!$D$62>=Sortilèges!B21,Sortilèges!C21,\"\")","v":""}]
[null,4,"Terre en Bois","Plaines",2,-4,null,{"$f":"IF(Saisie!$D$62>=Sortilèges!B22,Sortilèges!C22,\"\")","v":""}]
[null,4,"Bois transparent","Cité",4,-4,null,{"$f":"IF(Saisie!$D$62>=Sortilèges!B23,Sortilèges!C23,\"\")","v":""}]
[null,4,"Métal transparent","Gouffre",4,-4,null,{"$f":"IF(Saisie!$D$62>=Sortilèges!B24,Sortilèges!C24,\"\")","v":""}]
[null,4,"Terre transparente","Collines",4,-4,null,{"$f":"IF(Saisie!$D$62>=Sortilèges!B25,Sortilèges!C25,\"\")","v":""}]
[null,4,"Elargissement de zone","variable",4,-4,null,{"$f":"IF(Saisie!$D$62>=Sortilèges!B26,Sortilèges!C26,\"\")","v":""}]
[null,4,"Annulation de ses propres zones","Variable",2,-4,null,{"$f":"IF(Saisie!$D$62>=Sortilèges!B27,Sortilèges!C27,\"\")","v":""}]
[null,5,"Miroirs","Sanctuaire",5,-5,null,{"$f":"IF(Saisie!$D$62>=Sortilèges!B28,Sortilèges!C28,\"\")","v":""}]
[null,6,"Croissance végétale","Forêt",5,-6,null,{"$f":"IF(Saisie!$D$62>=Sortilèges!B29,Sortilèges!C29,\"\")","v":""}]
[null,6,"Illusion humanoïde","Cité","2+",-6,null,{"$f":"IF(Saisie!$D$62>=Sortilèges!B30,Sortilèges!C30,\"\")","v":""}]
[null,6,"Pont immatériel","Pont","2+",-6,null,{"$f":"IF(Saisie!$D$62>=Sortilèges!B31,Sortilèges!C31,\"\")","v":""}]
[null,6,"Bois en Eau","Sanctuaire",4,-6,null,{"$f":"IF(Saisie!$D$62>=Sortilèges!B32,Sortilèges!C32,\"\")","v":""}]
[null,6,"Bois en Feu","Désert",4,-6,null,{"$f":"IF(Saisie!$D$62>=Sortilèges!B33,Sortilèges!C33,\"\")","v":""}]
[null,6,"Bois en Métal","Monts",4,-6,null,{"$f":"IF(Saisie!$D$62>=Sortilèges!B34,Sortilèges!C34,\"\")","v":""}]
[null,6,"Eau en Métal","Sanctuaire",4,-6,null,{"$f":"IF(Saisie!$D$62>=Sortilèges!B35,Sortilèges!C35,\"\")","v":""}]
[null,6,"Eau en Terre","Pont",4,-6,null,{"$f":"IF(Saisie!$D$62>=Sortilèges!B36,Sortilèges!C36,\"\")","v":""}]
[null,6,"Feu en Bois","Collines",4,-6,null,{"$f":"IF(Saisie!$D$62>=Sortilèges!B37,Sortilèges!C37,\"\")","v":""}]
[null,6,"Feu en Eau","Cité",4,-6,null,{"$f":"IF(Saisie!$D$62>=Sortilèges!B38,Sortilèges!C38,\"\")","v":""}]
[null,6,"Feu en Métal","Sanctuaire",4,-6,null,{"$f":"IF(Saisie!$D$62>=Sortilèges!B39,Sortilèges!C39,\"\")","v":""}]
[null,6,"Feu en Terre","Désert",4,-6,null,{"$f":"IF(Saisie!$D$62>=Sortilèges!B40,Sortilèges!C40,\"\")","v":""}]
[null,6,"Métal en Bois","Collines",4,-6,null,{"$f":"IF(Saisie!$D$62>=Sortilèges!B41,Sortilèges!C41,\"\")","v":""}]
[null,6,"Métal en Terre","Plaines",4,-6,null,{"$f":"IF(Saisie!$D$62>=Sortilèges!B42,Sortilèges!C42,\"\")","v":""}]
[null,6,"Terre en Eau","Forêt",4,-6,null,{"$f":"IF(Saisie!$D$62>=Sortilèges!B43,Sortilèges!C43,\"\")","v":""}]
[null,6,"Terre en Métal","Gouffre",4,-6,null,{"$f":"IF(Saisie!$D$62>=Sortilèges!B44,Sortilèges!C44,\"\")","v":""}]
[null,7,"Bouclier","Gouffre",6,-7,null,{"$f":"IF(Saisie!$D$62>=Sortilèges!B45,Sortilèges!C45,\"\")","v":""}]
[null,7,"Annulation de Magie","Variable","variable",-7,null,{"$f":"IF(Saisie!$D$62>=Sortilèges!B46,Sortilèges!C46,\"\")","v":""}]
[null,8,"Barque de Rêve","Lac","1+",-8,null,{"$f":"IF(Saisie!$D$62>=Sortilèges!B47,Sortilèges!C47,\"\")","v":""}]
[null,8,"Air en Eau","Cité",6,-8,null,{"$f":"IF(Saisie!$D$62>=Sortilèges!B48,Sortilèges!C48,\"\")","v":""}]
[null,8,"Bois en Air","Marais",6,-8,null,{"$f":"IF(Saisie!$D$62>=Sortilèges!B49,Sortilèges!C49,\"\")","v":""}]
[null,8,"Eau en Feu","Monts",6,-8,null,{"$f":"IF(Saisie!$D$62>=Sortilèges!B50,Sortilèges!C50,\"\")","v":""}]
[null,8,"Métal en Air","Fleuve",6,-8,null,{"$f":"IF(Saisie!$D$62>=Sortilèges!B51,Sortilèges!C51,\"\")","v":""}]
[null,8,"Métal en Eau","Fleuve",6,-8,null,{"$f":"IF(Saisie!$D$62>=Sortilèges!B52,Sortilèges!C52,\"\")","v":""}]
[null,8,"Métal en Feu","Lac",6,-8,null,{"$f":"IF(Saisie!$D$62>=Sortilèges!B53,Sortilèges!C53,\"\")","v":""}]
[null,8,"Terre en Air","Lac",6,-8,null,{"$f":"IF(Saisie!$D$62>=Sortilèges!B54,Sortilèges!C54,\"\")","v":""}]
[null,10,"Bulle Volante","Marais","1+",-10,null,{"$f":"IF(Saisie!$D$62>=Sortilèges!B55,Sortilèges!C55,\"\")","v":""}]
[null,10,"Air en Feu","Désolation",6,-10,null,{"$f":"IF(Saisie!$D$62>=Sortilèges!B56,Sortilèges!C56,\"\")","v":""}]
[null,11,"Téléportation","Collines",9,-11,null,{"$f":"IF(Saisie!$D$62>=Sortilèges!B57,Sortilèges!C57,\"\")","v":""}]
[null,13,"Permanence de zone","variable",13,-13,null,{"$f":"IF(Saisie!$D$62>=Sortilèges!B58,Sortilèges!C58,\"\")","v":""}]
[]
[]
[null,"Hypnos"]
[null,"Diff.","Nom","case","r",null,null,"Menu déroulant Hypnos"]
[null,3,"Repos","Cité","2+",-3,null,{"$f":"IF(Saisie!$J$62>=Sortilèges!B63,Sortilèges!C63,\"\")","v":""}]
[null,3,"Sérénité","Collines","3+",-3,null,{"$f":"IF(Saisie!$J$62>=Sortilèges!B64,Sortilèges!C64,\"\")","v":""}]
[null,3,"Langue d'Hypnos","Cité",2,-3,null,{"$f":"IF(Saisie!$J$62>=Sortilèges!B65,Sortilèges!C65,\"\")","v":""}]
[null,3,"Détection d'Aura","Sanctuaire",1,-3,null,{"$f":"IF(Saisie!$J$62>=Sortilèges!B66,Sortilèges!C66,\"\")","v":""}]
[null,3,"Lecture d'Aura","Sanctuaire",3,-3,null,{"$f":"IF(Saisie!$J$62>=Sortilèges!B67,Sortilèges!C67,\"\")","v":""}]
[null,4,"Egarement","Désolation",4,-4,null,{"$f":"IF(Saisie!$J$62>=Sortilèges!B68,Sortilèges!C68,\"\")","v":""}]
[null,4,"Non-Agressivité","Sanctuaire",3,-4,null,{"$f":"IF(Saisie!$J$62>=Sortilèges!B69,Sortilèges!C69,\"\")","v":""}]
[null,4,"Narine d'Hypnos","Plaines",3,-4,null,{"$f":"IF(Saisie!$J$62>=Sortilèges!B70,Sortilèges!C70,\"\")","v":""}]
[null,4,"Harpe d'Hypnos","Monts","1+",-4,null,{"$f":"IF(Saisie!$J$62>=Sortilèges!B71,Sortilèges!C71,\"\")","v":""}]
[null,4,"Voix d'Hypnos","Désert",4,-4,null,{"$f":"IF(Saisie!$J$62>=Sortilèges!B72,Sortilèges!C72,\"\")","v":""}]
[null,4,"Annulation de ses propres illusions","Variable",2,-4,null,{"$f":"IF(Saisie!$J$62>=Sortilèges!B73,Sortilèges!C73,\"\")","v":""}]
[null,4,"Conjurer l'oubli","Lac",4,-4,null,{"$f":"IF(Saisie!$J$62>=Sortilèges!B74,Sortilèges!C74,\"\")","v":""}]
[null,5,"Peur","Nécropole",5,-5,null,{"$f":"IF(Saisie!$J$62>=Sortilèges!B75,Sortilèges!C75,\"\")","v":""}]
[null,5,"Tympah d'Hypnos","Collines",4,-5,null,{"$f":"IF(Saisie!$J$62>=Sortilèges!B76,Sortilèges!C76,\"\")","v":""}]
[null,5,"Miroir d'Hypnos","Nécropole","1+",-5,null,{"$f":"IF(Saisie!$J$62>=Sortilèges!B77,Sortilèges!C77,\"\")","v":""}]
[null,5,"Kanaillou","Mont de Kanaï E1",4,-5,null,{"$f":"IF(Saisie!$J$62>=Sortilèges!B78,Sortilèges!C78,\"\")","v":""}]
[null,6,"Fauchage","Plaines",5,-6,null,{"$f":"IF(Saisie!$J$62>=Sortilèges!B79,Sortilèges!C79,\"\")","v":""}]
[null,6,"Transfiguration","Monts",4,-6,null,{"$f":"IF(Saisie!$J$62>=Sortilèges!B80,Sortilèges!C80,\"\")","v":""}]
[null,6,"Invoquer sa voix","Cité","1+",-6,null,{"$f":"IF(Saisie!$J$62>=Sortilèges!B81,Sortilèges!C81,\"\")","v":""}]
[null,6,"Invoquer son image","Sanctuaire","1+",-6,null,{"$f":"IF(Saisie!$J$62>=Sortilèges!B82,Sortilèges!C82,\"\")","v":""}]
[null,7,"Fatigue","Nécropole",5,-7,null,{"$f":"IF(Saisie!$J$62>=Sortilèges!B83,Sortilèges!C83,\"\")","v":""}]
[null,7,"Non-Rêve","Désolation","4+",-7,null,{"$f":"IF(Saisie!$J$62>=Sortilèges!B84,Sortilèges!C84,\"\")","v":""}]
[null,7,"Annulation de Magie","Variable","variable",-7,null,{"$f":"IF(Saisie!$J$62>=Sortilèges!B85,Sortilèges!C85,\"\")","v":""}]
[null,8,"Oubli","Fleuve","6+",-8,null,{"$f":"IF(Saisie!$J$62>=Sortilèges!B86,Sortilèges!C86,\"\")","v":""}]
[null,8,"Métamorphose","Gouffre",6,-8,null,{"$f":"IF(Saisie!$J$62>=Sortilèges!B87,Sortilèges!C87,\"\")","v":""}]
[null,8,"Guerrier Sorde","Cité Sordide D13",7,-8,null,{"$f":"IF(Saisie!$J$62>=Sortilèges!B88,Sortilèges!C88,\"\")","v":""}]
[null,8,"Guerrier Turme","Forêt Turmide C8",7,-8,null,{"$f":"IF(Saisie!$J$62>=Sortilèges!B89,Sortilèges!C89,\"\")","v":""}]
[null,8,"Nonechalepasse","Cité Jalouse M1",7,-8,null,{"$f":"IF(Saisie!$J$62>=Sortilèges!B90,Sortilèges!C90,\"\")","v":""}]
[null,9,"Sommeil","Désert","1+",-9,null,{"$f":"IF(Saisie!$J$62>=Sortilèges!B91,Sortilèges!C91,\"\")","v":""}]
[null,9,"Invoquer sa présence","Nécropole","1+",-9,null,{"$f":"IF(Saisie!$J$62>=Sortilèges!B92,Sortilèges!C92,\"\")","v":""}]
[null,10,"Invisibilité","Fleuve",8,-10,null,{"$f":"IF(Saisie!$J$62>=Sortilèges!B93,Sortilèges!C93,\"\")","v":""}]
[null,11,"Grand Sommeil d'Hypnos","Marais",8,-11,null,{"$f":"IF(Saisie!$J$62>=Sortilèges!B94,Sortilèges!C94,\"\")","v":""}]
[]
[]
[null,"Narcos"]
[null,"Diff.","Nom","case","r",null,null,"Menu déroulant Narcos"]
[null,3,"Détection d'Aura","Sanctuaire",1,-3,null,{"$f":"IF(Saisie!$D$79>=Sortilèges!B99,Sortilèges!C99,\"\")","v":""}]
[null,3,"Lecture d'Aura","Sanctuaire",3,-3,null,{"$f":"IF(Saisie!$D$79>=Sortilèges!B100,Sortilèges!C100,\"\")","v":""}]
[null,4,"Enchantement","Cité","1+",-4,null,{"$f":"IF(Saisie!$D$79>=Sortilèges!B101,Sortilèges!C101,\"\")","v":""}]
[null,4,"Purification","Nécropole",4,-4,null,{"$f":"IF(Saisie!$D$79>=Sortilèges!B102,Sortilèges!C102,\"\")","v":""}]
[null,4,"Alliance","Pont",4,-4,null,{"$f":"IF(Saisie!$D$79>=Sortilèges!B103,Sortilèges!C103,\"\")","v":""}]
[null,4,"Individualité","Désert",4,-4,null,{"$f":"IF(Saisie!$D$79>=Sortilèges!B104,Sortilèges!C104,\"\")","v":""}]
[null,5,"Permanence","Sanctuaire",5,-4,null,{"$f":"IF(Saisie!$D$79>=Sortilèges!B105,Sortilèges!C105,\"\")","v":""}]
[null,6,"Restauration","Cité","1+",-6,null,{"$f":"IF(Saisie!$D$79>=Sortilèges!B106,Sortilèges!C106,\"\")","v":""}]
[null,6,"Ecaille de protection contre le venin","Forêt",4,-6,null,{"$f":"IF(Saisie!$D$79>=Sortilèges!B107,Sortilèges!C107,\"\")","v":""}]
[null,6,"Ecaille de protection contre la maladie","Cité",4,-6,null,{"$f":"IF(Saisie!$D$79>=Sortilèges!B108,Sortilèges!C108,\"\")","v":""}]
[null,6,"Ecaille de protection contre le feu","Désert",4,-6,null,{"$f":"IF(Saisie!$D$79>=Sortilèges!B109,Sortilèges!C109,\"\")","v":""}]
[null,7,"Maîtrise","Fleuve",7,-7,null,{"$f":"IF(Saisie!$D$79>=Sortilèges!B110,Sortilèges!C110,\"\")","v":""}]
[null,7,"Annulation de Magie","Variable","variable",-7,null,{"$f":"IF(Saisie!$D$79>=Sortilèges!B111,Sortilèges!C111,\"\")","v":""}]
[null,8,"Ecaille d'efficacité","Monts",7,-8,null,{"$f":"IF(Saisie!$D$79>=Sortilèges!B112,Sortilèges!C112,\"\")","v":""}]
[null,8,"Ecaille de protection contre la magie","Sanctuaire",6,-8,null,{"$f":"IF(Saisie!$D$79>=Sortilèges!B113,Sortilèges!C113,\"\")","v":""}]
[null,8,"Ecaille de protection contre les projectiles","Gouffre",6,-8,null,{"$f":"IF(Saisie!$D$79>=Sortilèges!B114,Sortilèges!C114,\"\")","v":""}]
[null,8,"Puits de rêve","Lac",8,-8,null,{"$f":"IF(Saisie!$D$79>=Sortilèges!B115,Sortilèges!C115,\"\")","v":""}]
[null,9,"Ecaille d'activité","Désolation",7,-9,null,{"$f":"IF(Saisie!$D$79>=Sortilèges!B116,Sortilèges!C116,\"\")","v":""}]
[null,9,"Bouilloire de Mélimnod","Monts Brûlants E5",9,-9,null,{"$f":"IF(Saisie!$D$79>=Sortilèges!B117,Sortilèges!C117,\"\")","v":""}]
[null,10,"Autonomie","Lac",10,-10,null,{"$f":"IF(Saisie!$D$79>=Sortilèges!B118,Sortilèges!C118,\"\")","v":""}]
[null,10,"Ecaille de protection contre les lames","Lac",8,-10,null,{"$f":"IF(Saisie!$D$79>=Sortilèges!B119,Sortilèges!C119,\"\")","v":""}]
[null,10,"Ecaille de protection contre les griffes et crocs","Marais",8,-10,null,{"$f":"IF(Saisie!$D$79>=Sortilèges!B120,Sortilèges!C120,\"\")","v":""}]
[]
[]
[null,"Thanatos"]
[null,"Diff.","Nom","case","r",null,null,"Menu déroulant Thanatos"]
[null,3,"Détection d'Aura","Sanctuaire",1,-3,null,{"$f":"IF(Saisie!$J$79>=Sortilèges!B125,Sortilèges!C125,\"\")","v":""}]
[null,3,"Lecture d'Aura","Sanctuaire",3,-3,null,{"$f":"IF(Saisie!$J$79>=Sortilèges!B126,Sortilèges!C126,\"\")","v":""}]
[null,4,"Faire parler un mort","Pont","1+",-4,null,{"$f":"IF(Saisie!$J$79>=Sortilèges!B127,Sortilèges!C127,\"\")","v":""}]
[null,5,"Cauchemar","Monts",5,-5,null,{"$f":"IF(Saisie!$J$79>=Sortilèges!B128,Sortilèges!C128,\"\")","v":""}]
[null,5,"Thanatoeil","Nécropole","1+",-5,null,{"$f":"IF(Saisie!$J$79>=Sortilèges!B129,Sortilèges!C129,\"\")","v":""}]
[null,6,"Surdité","Gouffre","2+",-6,null,{"$f":"IF(Saisie!$J$79>=Sortilèges!B130,Sortilèges!C130,\"\")","v":""}]
[null,6,"Poing de Thanatos","Plaines","1+",-6,null,{"$f":"IF(Saisie!$J$79>=Sortilèges!B131,Sortilèges!C131,\"\")","v":""}]
[null,6,"Faire parler un crâne","Désert","1+",-6,null,{"$f":"IF(Saisie!$J$79>=Sortilèges!B132,Sortilèges!C132,\"\")","v":""}]
[null,7,"Interdiction","Désert",7,-7,null,{"$f":"IF(Saisie!$J$79>=Sortilèges!B133,Sortilèges!C133,\"\")","v":""}]
[null,7,"Autométamorphose en bête","Forêt",7,-7,null,{"$f":"IF(Saisie!$J$79>=Sortilèges!B134,Sortilèges!C134,\"\")","v":""}]
[null,7,"Animer un zombi","Nécropole","1+",-7,null,{"$f":"IF(Saisie!$J$79>=Sortilèges!B135,Sortilèges!C135,\"\")","v":""}]
[null,7,"Invoquer un désespoir","Désolation",7,-7,null,{"$f":"IF(Saisie!$J$79>=Sortilèges!B136,Sortilèges!C136,\"\")","v":""}]
[null,7,"Invoquer une haine","Marais",7,-7,null,{"$f":"IF(Saisie!$J$79>=Sortilèges!B137,Sortilèges!C137,\"\")","v":""}]
[null,7,"Invoquer une peur","Gouffre",7,-7,null,{"$f":"IF(Saisie!$J$79>=Sortilèges!B138,Sortilèges!C138,\"\")","v":""}]
[null,8,"Cécité","Cité","2+",-8,null,{"$f":"IF(Saisie!$J$79>=Sortilèges!B139,Sortilèges!C139,\"\")","v":""}]
[null,8,"Tâche","Forêt",8,-8,null,{"$f":"IF(Saisie!$J$79>=Sortilèges!B140,Sortilèges!C140,\"\")","v":""}]
[null,8,"Flétrissement","Fleuve","1+",-8,null,{"$f":"IF(Saisie!$J$79>=Sortilèges!B141,Sortilèges!C141,\"\")","v":""}]
[null,8,"Putrescence","Marais","1+",-8,null,{"$f":"IF(Saisie!$J$79>=Sortilèges!B142,Sortilèges!C142,\"\")","v":""}]
[null,8,"Griffe de Thanatos","Nécropole",8,-8,null,{"$f":"IF(Saisie!$J$79>=Sortilèges!B143,Sortilèges!C143,\"\")","v":""}]
[null,9,"Possession de corps","Marais","2+",-9,null,{"$f":"IF(Saisie!$J$79>=Sortilèges!B144,Sortilèges!C144,\"\")","v":""}]
[null,9,"Possession d'esprit","Lac","2+",-9,null,{"$f":"IF(Saisie!$J$79>=Sortilèges!B145,Sortilèges!C145,\"\")","v":""}]
[null,9,"Peur thanataire","Lac","1+",-9,null,{"$f":"IF(Saisie!$J$79>=Sortilèges!B146,Sortilèges!C146,\"\")","v":""}]
[null,9,"Animer un squelette","Nécropole","1+",-9,null,{"$f":"IF(Saisie!$J$79>=Sortilèges!B147,Sortilèges!C147,\"\")","v":""}]
[null,10,"Métamorphose en bête","Fleuve",10,-10,null,{"$f":"IF(Saisie!$J$79>=Sortilèges!B148,Sortilèges!C148,\"\")","v":""}]
[null,11,"Maladie","Désolation","5+",-11,null,{"$f":"IF(Saisie!$J$79>=Sortilèges!B149,Sortilèges!C149,\"\")","v":""}]
[null,11,"Griffe morbide de Thanatos","Marais",11,-11,null,{"$f":"IF(Saisie!$J$79>=Sortilèges!B150,Sortilèges!C150,\"\")","v":""}]
[null,13,"Dague de meurtre","Désolation de Sel G9",13,-13,null,{"$f":"IF(Saisie!$J$79>=Sortilèges!B151,Sortilèges!C151,\"\")","v":""}]

{"sheet":"Equipement","index":3,"n_rows":444,"n_cols":35,"rows_kept":444,"cut":false,"hidden":true,"merged":[]}
["1er et 2eme niv de cascade"]
[]
[null,"Armes_de_mêlée","Armes_de_tir","Armes_de_lancer","Armures","Contenants_et_Bagages","Ecrire","Feux","Herbes_de_soin","Herbes_diverses","Jouer","Jute_Fil_Corde_Tissus","Outillage","Poterie_Cuisine","Remèdes_et_Antidotes","Sels_alchimiques","Soins","Sustentation","Vêtements","Expédiants_divers",null,"Contenants_uniques","Contenants_petite_capacité","Contenants_moy_gde_capacité",null,null,null,null,"Locomotion",null,"Outre_cuir_2l_c","Carquois_cuir_c","Etui_à_luth_cuir_c","Fiole_de_grès_20cl_c","Fiole_de_verre_20cl_c"]
[null,"Dague","Arbalète","Dague","Drap_matelassé","Sac_à_dos_cuir_40l","Feuille_de_parchemin ","Chandelle_de_suif_1_heure","Fausse_Suppure","Herbe_de_Lune_7_brins","Flûte_à_bec","Bâche_1m²","Hachette","Mortier_en_marbre","Bitume_de_Camphre","Candide","Miroir_de_cuivre_20cm","Provisions_non_cuites_1_sust","Pourpoint_de_cuir_souple","Pleureuse_i",null,"Fiole_de_grès_20cl_c","Aumônière_cuir_c","Sac_à_dos_cuir_40l",null,null,null,null,"Cheval_de_selle",null,"Sustentation","Armes_de_tir","Armes_de_mêlée","Sustentation","Sustentation"]
[null,"Epée_gnome","Arc","Javelot","Cuir_souple","Besace_cuir_5l","Encre_20cl","Bougie_de_cire_2h","Suppure","Mercurion","Luth","Toile_de_voile_1m²","Grappin","Pilon_en_marbre","Gelée_royale","Boralm","Brosse_à_cheveux","Provisions_cuites_1_sust","Cotte_de_cuir_souple","Crapauvure_i",null,"Fiole_de_verre_20cl_c","Bourse_cuir_c","Besace_cuir_5l_c",null,null,null,null,"Cheval_de_trait",null,"Herbes_de_soin","Armes_de_lancer","Jouer","Herbes_de_soin","Herbes_de_soin"]
[null,"Esparlongue","Fronde","Fouet","Cuir_épais","Aumônière_cuir","Crayon_à_mine_de_plomb","Torche_30mn","Méritoine","Satum","Harpe","Tresse_de_crins","Pelle","Pichet_de_grès_1l","Tournegraisse","Odyssum_vert","Peigne_en_corne","Vin_20cl","Culottes de cuir souple","Sucre_de_Xotel_i",null,"Etui_à_luth_cuir_c","Besace_cuir_5l_c","Sac_en_jute_50l",null,null,null,null,"Mule",null,"Remèdes_et_Antidotes",null,"Armes_de_tir","Remèdes_et_Antidotes","Remèdes_et_Antidotes"]
[null,"Epée_cyane","Flèche",null,"Cuir_plus_métal","Bourse_cuir","Ecritoire","Huile_4h_20cl","Ortigal","Névropenthe","Tambourin","Bobine_de_fil","Marteau","Chope_de_grès_20cl","Perle_de_Bjwal","Odyssum_gris","Eponge","Bière_20cl","Bottes_de_cuir_souple","Mauvèze_l",null,"Carquois_cuir_c",null,"Sac_en_jute_20l",null,null,null,null,"Ane",null,"Sels_alchimiques",null,null,"Sels_alchimiques","Sels_alchimiques"]
[null,"Epée_dragonne","Carreau",null,"Mailles_de_fer","Outre_cuir_2l","Plume_de_fer","Lanterne_à_huile","Ortigal_noir","Chronophile_3_brins","Cor_en_corne","Ficelle_10m ","Maillet","Chope_de_fer_20cl","SablePoudre",null,"Savon_500g","Hydromel_20cl","Sandales_cuir","Arachnaire_l",null,"Outre_cuir_2l_c",null,null,null,null,null,null,"Aligate",null,"Herbes_diverses",null,null,"Herbes_diverses","Herbes_diverses"]
[null,"Epée_sorde",null,null,"Plaques_de_fer","Tube_à_parchemins_cuir","Porteplume_en_bois","Lanterne_à_bougie","Bélidane","Herbe_à_pipe_1_dose","Dé_à_jouer_en_os","Cordelette_10m","Burin_ou_Gouge","Ecuelle_de_grès","Topazoïne",null,"Petit_pot_de_fard","Brandevin_10cl","Gants_cuir","Vent_du_nord_l",null,"Tube_à_parchemins_cuir_c",null,null,null,null,null,null,"Zyglute",null,"Feux",null,null,"Feux","Feux"]
[null,"Epée_bâtarde",null,null,null,"Etui_à_luth_cuir","Cire_à_cacheter","Briquet_à_silex","Faux_Murus",null,"Echecs_draconics_en_bois","Corde_10m","Lime_ou_Râpe","Ecuelle_de_fer","Elixir_des_Gnomes",null,"Matériel_de_chirurgie","Lait_20cl","Ceinturon_cuir",null,null,null,null,null,null,null,null,null,"Selle_et_harnais",null,null,null,null,"Expédiants_divers","Expédiants_divers"]
[null,"Double_dragonne",null,null,null,"Carquois_cuir","Craie_1_bâton","Soufflet","Murus",null,"Viole","Lacet_cuir_1m","Scie","Poêle_à_frire_40cm","Lait_de_lune",null,"Rasoir","Eau_20cl","Chapeau_cuir",null,null,null,null,null,null,null,null,null,"Chariot_4_roues"]
[null,"Hachette",null,null,null,"Sac_en_jute_50l","Sablier_15_minutes","Pot_à_braise","Tanemiel",null,null,"tissu_de_laine_1m²","Gros_clou","Casserolle_en_fer_1l","Liqueur_de_Bagdol",null,"Couverture_de_laine",null,"Manteau_de_fourrure",null,null,null,null,null,null,null,null,null,"Charrette_2_roues"]
[null,"Hache_de_bataille",null,null,null,"Sac_en_jute_20l","Verre_grossissant","Pipe_en_bois","Tanemiel_doré",null,null,"tissu_de_lin_1m²","Alêne_ou_poinçon","Marmite_de_fer_3l","Mirobolant",null,null,null,"Pourpoint_de_drap_matelassé"]
[null,"Grande_hache",null,null,null,"Fiole_de_grès_20cl","Cristal_alchimique",null,null,null,null,"soie_ou_velours_1m²","Aiguille_à_coudre","Marmite_de_fer_5l","Teinture_d_Erozonne",null,null,null,"Cotte_de_drap_matelassé"]
[null,"Gourdin",null,null,null,"Fiole_de_verre_20cl",null,null,null,null,null,null,"Hameçon","Bouilloire_de_fer_2l","Huile_de_Sélikanthe",null,null,null,"Culottes_de_drap_matelassé",null,null,null,"contenant","contenance"]
[null,"Bâton",null,null,null,null,null,null,null,null,null,null,"Couteau_de_cuisine","Entonnoir_de_fer",null,null,null,null,"Bas_de_laine",null,null,null,"Bourse_cuir_c",0.3]
[null,"Massette",null,null,null,null,null,null,null,null,null,null,"Pierre_à_aiguiser","Cuillère_de_fer",null,null,null,null,"Chemise_de_laine",null,null,null,"Aumônière_cuir_c",1,null,null,null,null,null,null,"Aumônière_cuir_c","Bourse_cuir_c","Tube_à_parchemins_cuir_c","Besace_cuir_5l_c"]
[null,"Masse_lourde",null,null,null,null,null,null,null,null,null,null,"Crochets_de_serrurier","Cuillère_de_bois",null,null,null,null,"Chemise_de_lin",null,null,null,"Tube_à_parchemins_cuir_c",0.1,null,null,null,null,null,null,"Armes_de_mêlée","Ecrire","Ecrire","Armes_de_mêlée"]
[null,"Fléau_léger",null,null,null,null,null,null,null,null,null,null,"Graisse_à_bottes_500g","Seau_de_fer_et_bois_10l",null,null,null,null,"Culottes_de_laine",null,null,null,"Besace_cuir_5l_c",2.5,null,null,null,null,null,null,"Contenants_et_Bagages","Feux",null,"Armes_de_tir"]
[null,"Fléau_lourd",null,null,null,null,null,null,null,null,null,null,"Cire_d_abeille_500g","Tonnelet_10l",null,null,null,null,"Robe_de_laine",null,null,null,"Fiole_de_grès_20cl_c",0.1,null,null,null,null,null,null,"Ecrire","Herbes_de_soin",null,"Armes_de_lancer"]
[null,"Lance_courte",null,null,null,null,null,null,null,null,null,null,"Lingot_cuivre_1kg","Charbon_de_bois_1kg",null,null,null,null,"Robe_de_lin",null,null,null,"Fiole_de_verre_20cl_c",0.1,null,null,null,null,null,null,"Feux","Herbes_diverses",null,"Contenants_et_Bagages"]
[null,"Javeline",null,null,null,null,null,null,null,null,null,null,"Lingot_fer_1kg",null,null,null,null,null,"Cotte_de_laine",null,null,null,"Etui_à_luth_cuir_c",1.1000000000000001,null,null,null,null,null,null,"Herbes_de_soin","Jouer",null,"Ecrire"]
[null,"Arme_d_hast",null,null,null,null,null,null,null,null,null,null,"Lingot_étain_1kg",null,null,null,null,null,"Bonnet_de_laine",null,null,null,"Carquois_cuir_c",2,null,null,null,null,null,null,"Herbes_diverses","Jute_Fil_Corde_Tissus",null,"Feux"]
[null,"Bouclier_léger",null,null,null,null,null,null,null,null,null,null,"Lingot_argent_1kg",null,null,null,null,null,"Chaperon_de_laine",null,null,null,"Outre_cuir_2l_c",1,null,null,null,null,null,null,"Jouer","Outillage",null,"Jouer"]
[null,"Bouclier_moyen",null,null,null,null,null,null,null,null,null,null,null,null,null,null,null,null,"Manteau_de_laine",null,null,null,"Sac_à_dos_cuir_40l",20,null,null,null,null,null,null,"Jute_Fil_Corde_Tissus","Poterie_Cuisine",null,"Jute_Fil_Corde_Tissus"]
[null,"Bouclier_lourd",null,null,null,null,null,null,null,null,null,null,null,null,null,null,null,null,"Chemise_de_soie",null,null,null,"Sac_en_jute_50l",25,null,null,null,null,null,null,"Outillage","Remèdes_et_Antidotes",null,"Outillage"]
[null,null,null,null,null,null,null,null,null,null,null,null,null,null,null,null,null,null,"Robe_de_soie",null,null,null,"Sac_en_jute_20l",10,null,null,null,null,null,null,"Poterie_Cuisine","Sels_alchimiques",null,"Poterie_Cuisine"]
[null,null,null,null,null,null,null,null,null,null,null,null,null,null,null,null,null,null,"Robe_de_velours",null,null,null,null,null,null,null,null,null,null,null,"Soins","Soins",null,"Soins"]
[null,null,null,null,null,null,null,null,null,null,null,null,null,null,null,null,null,null,"Culottes_de_velours",null,null,null,null,null,null,null,null,null,null,null,"Sustentation","Sustentation",null,"Sustentation"]
[null,null,null,null,null,null,null,null,null,null,null,null,null,null,null,null,null,null,"Pourpoint_de_velours",null,null,null,null,null,null,null,null,null,null,null,"Vêtements","Expédiants_divers",null,"Vêtements"]
[null,null,null,null,null,null,null,null,null,null,null,null,null,null,null,null,null,null,"Manteau_de_velours"]
[null,null,null,null,null,null,null,null,null,null,null,null,null,null,null,null,null,null,"Béret_de_velours"]
[null,null,null,null,null,null,null,null,null,null,null,null,null,null,null,null,null,null,"Bas_de_soie"]
[]
[]
[]
[]
[null,"Armes de mêlée","enc.","prix"]
[null,"Dague",0.5,"3s",null,1,2,3,4,5]
[null,"Epée_gnome",1,"12s",null,1,2]
[null,"Esparlongue",1.5,"20s",null,1,2]
[null,"Epée_cyane",2,"25s",null,1,2]
[null,"Epée_dragonne",2,"20s",null,1,2]
[null,"Epée_sorde",2,"20s",null,1,2]
[null,"Epée_bâtarde",3,"30s",null,1,2]
[null,"Double_dragonne",4,"50s",null,1,2]
[null,"Hachette",1,"4s",null,1,2]
[null,"Hache_de_bataille",2,"10s",null,1,2]
[null,"Grande_hache",3,"15s",null,1,2]
[null,"Gourdin",1,"0d",null,1,2]
[null,"Bâton",2,"50d",null,1,2]
[null,"Massette",1,"2s",null,1,2]
[null,"Masse_lourde",3,"4s",null,1,2]
[null,"Fléau_léger",2,"12s",null,1,2]
[null,"Fléau_lourd",3,"15s",null,1,2]
[null,"Lance_courte",2,"3s",null,1,2]
[null,"Javeline",1,"1s",null,1,2,3,4,5,6]
[null,"Arme_d'hast",4,"10s",null,1]
[null,"Bouclier_léger",1,"4s",null,1,2]
[null,"Bouclier_moyen",2,"6s",null,1,2]
[null,"Bouclier_lourd",3,"8s",null,1,2]
[]
[null,"Armes de tir","enc.","prix"]
[null,"Arbalète",3,"30s",null,1,2]
[null,"Arc",1,"10s",null,1,2]
[null,"Fronde",null,"60d",null,1,2]
[null,"Flèche",0.1,"10d",null,1,2,3,4,5,6,7,8,9,10,11,12,13,14,15,16,17,18,19,20,21,22,23,24,25]
[null,"Carreau",0.1,"10d",null,1,2,3,4,5,6,7,8,9,10,11,12,13,14,15,16,17,18,19,20,21,22,23,24,25]
[]
[null,"Armes de lancer","enc.","prix"]
[null,"Dague",0.5,"3s",null,1,2,3,4,5]
[null,"Javelot",1,"1s",null,1,2,3,4,5,6,7,8,9,10]
[null,"Fouet",0.5,"1s",null,1,2]
[]
[null,"Armures","enc.","prix"]
[null,"Drap_matelassé",0.2,"4s",0,1,2]
[null,"Cuir_souple",0.5,"6s",0,1,2]
[null,"Cuir_épais",2,"10s",-1,1,2]
[null,"Cuir_plus_métal",4,"20s",-2,1,2]
[null,"Mailles_de_fer",6,"50s",-4,1,2]
[null,"Plaques_de_fer",8,"100s",-6,1,2]
[]
[null,"Contenants_et_Bagages","enc.","prix"]
[null,"Sac_à_dos_cuir_40l",0.4,"1s",null,1]
[null,"Besace_cuir_5l",0.2,"50d",null,1,2,3]
[null,"Aumônière_cuir",0.1,"20d",null,1,2,3]
[null,"Bourse_cuir",null,"10d",null,1,2,3,4,5]
[null,"Outre_cuir_2l",0.1,"20d",null,1,2,3,4,5]
[null,"Tube_à_parchemins_cuir",0.1,"50d",null,1,2,3,4,5]
[null,"Etui_à_luth_cuir",0.2,"1s",null,1]
[null,"Carquois_cuir",0.1,"50d",null,1,2,3]
[null,"Sac_en_jute_50l",0.1,"8d",null,1,2,3,4,5]
[null,"Sac_en_jute_20l",0.05,"4d",null,1,2,3,4,5]
[null,"Fiole_de_grès_20cl",0.1,"10d",null,1,2,3,4,5,6,7,8,9,10]
[null,"Fiole_de_verre_20cl",null,"20d",null,1,2,3,4,5,6,7,8,9,10]
[]
[]
[null,"Ecrire","enc.","prix"]
[null,"Feuille_de_parchemin ",2.5000000000000001E-2,"20d",null,1,2,3,4,5,6,7,8,9,10]
[null,"Encre_20cl",0.1,"10d",null,1,2,3,4,5]
[null,"Crayon_à_mine_de_plomb",null,"30d",null,1,2,3]
[null,"Ecritoire",1,"1s",null,1,2]
[null,"Plume_de_fer",null,"10d",null,1,2,3]
[null,"Porteplume_en_bois",null,"5d",null,1,2,3]
[null,"Cire_à_cacheter",null,"20d",null,1,2,3]
[null,"Craie_1_bâton",null,"1d",null,1,2,3,4,5,6,7,8,9,10]
[null,"Sablier_15_minutes",0.1,"2s",null,1,2]
[null,"Verre_grossissant",null,"2s",null,1,2]
[null,"Cristal_alchimique",null,"4s",null,1,2,3,4,5]
[]
[null,"Feux","enc.","prix"]
[null,"Chandelle_de_suif_1_heure",0.1,"2d",null,1,2,3,4,5,6,7,8,9,10,11,12,13,14,15]
[null,"Bougie_de_cire_2h",0.1,"5d",null,1,2,3,4,5,6,7,8,9,10,11,12,13,14,15]
[null,"Torche_30mn",0.3,"2d",null,1,2,3,4,5,6,7,8,9,10,11,12,13,14,15]
[null,"Huile_4h_20cl",0.1,"4d",null,1,2,3,4,5,6,7,8,9,10,11,12,13,14,15]
[null,"Lanterne_à_huile",1,"5s",null,1,2,3,4,5,6,7,8,9,10,11,12,13,14,15]
[null,"Lanterne_à_bougie",1,"3s",null,1,2,3,4,5,6,7,8,9,10,11,12,13,14,15]
[null,"Briquet_à_silex",null,"40d",null,1,2,3]
[null,"Soufflet",0.2,"40d",null,1,2,3]
[null,"Pot_à_braise",0.1,"20d",null,1,2,3]
[null,"Pipe_en_bois",null,"10d",null,1,2,3]
[]
[null,"Herbes de soin ","unité = 1 brin","prix"]
[null,"Fausse_Suppure",null,"2d",null,11,22,33,44,55,66,77,88,99,110]
[null,"Suppure",null,"3d",null,10,20,30,40,50,60,70,80,90,100]
[null,"Méritoine",null,"6d",null,9,18,27,36,45,54,63,72,81,90]
[null,"Ortigal",null,"10d",null,8,16,24,32,40,48,56,64,72,80]
[null,"Ortigal_noir",null,"20d",null,7,14,21,28,35,42,49,56,63,70]
[null,"Bélidane",null,"30d",null,6,12,18,24,30,36,42,48,54,60]
[null,"Faux_Murus",null,"40d",null,5,10,15,20,25,30,35,40,45,50]
[null,"Murus",null,"60d",null,4,8,12,16,20,24,28,32,36,40]
[null,"Tanemiel",null,"90d",null,3,6,9,12,15,18,21,24,27,30]
[null,"Tanemiel_doré",null,"2s",null,2,4,6,8,10,12,14,16,18,20]
[]
[null,"Herbes diverses","unité = 1 brin","prix"]
[null,"Herbe_de_Lune_7_brins",null,"1s",null,1,2,3,4,5,6,7,8,9,10]
[null,"Mercurion",null,"2d",null,1,2,3,4,5,6,7,8,9,10,11,12,13,14,15,16,17,18,19,20,21,22,23,24,25]
[null,"Satum",null,"3d",null,1,2,3,4,5,6,7,8,9,10,11,12,13,14,15,16,17,18,19,20,21,22,23,24,25]
[null,"Névropenthe",null,"6d",null,1,2,3,4,5,6,7,8,9,10,11,12,13,14,15,16,17,18,19,20,21,22,23,24,25]
[null,"Chronophile_3_brins",null,"60d",null,1,2,3,4,5,6,7,8,9,10,11,12,13,14,15,16,17,18,19,20,21,22,23,24,25]
[null,"Herbe_à_pipe_1_dose",null,"1d",null,1,2,3,4,5,6,7,8,9,10,11,12,13,14,15,16,17,18,19,20,21,22,23,24,25]
[]
[null,"Jouer","enc.","prix"]
[null,"Flûte_à_bec",null,"1s",null,1,2]
[null,"Luth",1,"7s",null,1,2]
[null,"Harpe",1,"5s",null,1,2]
[null,"Tambourin",0.1,"50d",null,1,2]
[null,"Cor_en_corne",0.1,"60d",null,1,2]
[null,"Dé_à_jouer_en_os",null,"10d",null,1,2,3,4,5,6,7,8,9,10]
[null,"Echecs_draconics_en_bois",0.5,"2s",null,1]
[null,"Viole",1,"7s",null,1,2]
[]
[null,"Jute_Fil_Corde_Tissus","enc.","prix"]
[null,"Bâche_1m²",0.5,"20d",null,1,2,3,4,5]
[null,"Toile_de_voile_1m²",0.2,"10d",null,1,2,3,4,5]
[null,"Tresse_de_crins",null,"10d",null,1,2,3,4,5]
[null,"Bobine_de_fil",null,"10d",null,1,2,3,4,5]
[null,"Ficelle_10m ",null,"10d",null,1,2,3,4,5]
[null,"Cordelette_10m",0.2,"20d",null,1,2,3,4,5]
[null,"Corde_10m",1,"30d",null,1,2,3,4,5]
[null,"Lacet_cuir_1m",null,"6d",null,1,2,3,4,5,6,7,8,9,10,11,12,13,14,15]
[null,"tissu_de_laine_1m²",0.1,"10d",null,1,2,3,4,5,6,7,8,9,10]
[null,"tissu_de_lin_1m²",0.05,"15d",null,1,2,3,4,5,6,7,8,9,10]
[null,"soie_ou_velours_1m²",0.05,"3s",null,1,2,3,4,5,6,7,8,9,10]
[]
[null,"Locomotion",null,"prix"]
[null,"Cheval_de_selle",null,"40s",null,1,2]
[null,"Cheval_de_trait",null,"30s",null,1,2]
[null,"Mule",null,"15s",null,1,2]
[null,"Ane",null,"8s",null,1,2]
[null,"Aligate",null,"20s",null,1,2]
[null,"Zyglute",null,"15s",null,1,2]
[null,"Selle_et_harnais",null,"5s",null,1,2]
[null,"Chariot_4_roues",null,"30s",null,1,2]
[null,"Charrette_2_roues",null,"20s",null,1,2]
[]
[null,"Outillage","enc.","prix"]
[null,"Hachette",1,"4s",null,"voir armes de mêlée"]
[null,"Grappin",0.5,"2s",null,1,2,3]
[null,"Pelle",1,"1s",null,1,2,3]
[null,"Marteau",0.3,"1s",null,1,2,3]
[null,"Maillet",0.1,"5d",null,1,2,3]
[null,"Burin_ou_Gouge",0.2,"30d",null,1,2,3]
[null,"Lime_ou_Râpe",0.2,"50d",null,1,2,3]
[null,"Scie",1,"1s",null,1,2,3]
[null,"Gros_clou",0.1,"5d",null,1,2,3]
[null,"Alêne_ou_poinçon",null,"10d",null,1,2,3]
[null,"Aiguille_à_coudre",null,"10d",null,1,2,3]
[null,"Hameçon",null,"10d",null,1,2,3]
[null,"Couteau_de_cuisine",0.2,"1s",null,1,2,3]
[null,"Pierre_à_aiguiser",0.2,"30d",null,1,2,3]
[null,"Crochets_de_serrurier",0.2,"3s",null,1,2]
[null,"Graisse_à_bottes_500g",0.2,"5d",null,1,2,3]
[null,"Cire_d_abeille_500g",0.2,"5d",null,1,2,3]
["cuivre+étain = bronze","Lingot_cuivre_1kg",0.5,"275d",null,1,2,3,4,5,6,7,8,9,10]
[null,"Lingot_fer_1kg",0.5,"150d",null,1,2,3,4,5,6,7,8,9,10]
[null,"Lingot_étain_1kg",0.5,"50d",null,1,2,3,4,5,6,7,8,9,10]
[null,"Lingot_argent_1kg",0.5,"50s",null,1,2,3,4,5,6,7,8,9,10]
[]
[null,"Poterie, Cuisine","enc.","prix"]
[null,"Mortier_en_marbre",0.3,"20d",null,1,2]
[null,"Pilon_en_marbre",0.1,"10d",null,1,2]
[null,"Pichet_de_grès_1l",0.2,"15d",null,1,2]
[null,"Chope_de_grès_20cl",0.1,"10d",null,1,2]
[null,"Chope_de_fer_20cl",null,"15d",null,1,2]
[null,"Ecuelle_de_grès",0.1,"10d",null,1,2]
[null,"Ecuelle_de_fer",0.1,"15d",null,1,2]
[null,"Poêle_à_frire_40cm",0.3,"50d",null,1,2]
[null,"Casserolle_en_fer_1l",0.2,"30d",null,1,2,3]
[null,"Marmite_de_fer_3l",0.6,"60d",null,1,2]
[null,"Marmite_de_fer_5l",1,"1s",null,1,2]
[null,"Bouilloire_de_fer_2l",0.5,"50d",null,1,2]
[null,"Entonnoir_de_fer",0.1,"15d",null,1,2]
[null,"Cuillère_de_fer",null,"10d",null,1,2,3]
[null,"Cuillère_de_bois",null,"3d",null,1,2,3]
[null,"Seau_de_fer_et_bois_10l",1,"20d",null,1,2]
[null,"Tonnelet_10l",1,"25d",null,1,2,3]
[null,"Charbon_de_bois_1kg",0.5,"6d",null,1,2,3,4,5,6,7,8,9,10]
[]
[null,"Remèdes & Antidotes","unité = 1 dose, enc 0,1","prix"]
[null,"Bitume_de_Camphre",null,"2s",null,1,2,3,4,5]
[null,"Gelée_royale",null,"20d",null,1,2,3,4,5]
[null,"Tournegraisse",null,"2s",null,1,2,3,4,5]
[null,"Perle_de_Bjwal",null,"1s",null,1,2,3,4,5]
[null,"SablePoudre",null,"2s",null,1,2,3,4,5]
[null,"Topazoïne",null,"2s",null,1,2,3,4,5]
[null,"Elixir_des_Gnomes",null,"1s",null,1,2,3,4,5]
[null,"Lait_de_lune",null,"1s",null,1,2,3,4,5]
[null,"Liqueur_de_Bagdol",null,"50d",null,1,2,3,4,5]
[null,"Mirobolant",null,"2s",null,1,2,3,4,5]
[null,"Teinture_d_Erozonne",null,"2s",null,1,2,3,4,5]
[null,"Huile_de_Sélikanthe",null,"1s",null,1,2,3,4,5]
[]
[null,"Sels alchimiques","unité = 1 pépin","prix"]
[null,"Candide",null,"2d",null,1,2,3,4,5,6,7,8,9,10,11,12,13,14,15]
[null,"Boralm",null,"3d",null,1,2,3,4,5,6,7,8,9,10,11,12,13,14,15]
[null,"Odyssum_vert",null,"5d",null,1,2,3,4,5,6,7,8,9,10,11,12,13,14,15]
[null,"Odyssum_gris",null,"10d",null,1,2,3,4,5,6,7,8,9,10,11,12,13,14,15]
[]
[null,"Soins","enc.","prix"]
[null,"Miroir_de_cuivre_20cm",0.2,"1s",null,1,2,3]
[null,"Brosse_à_cheveux",null,"1s",null,1,2,3]
[null,"Peigne_en_corne",null,"40d",null,1,2,3]
[null,"Eponge",null,"1s",null,1,2,3]
[null,"Savon_500g",0.25,"20d",null,1,2,3]
[null,"Petit_pot_de_fard",0.05,"30d",null,1,2,3]
[null,"Matériel_de_chirurgie",0.2,"1s",null,1,2,3]
[null,"Rasoir",0.1,"2s",null,1,2,3]
[null,"Couverture_de_laine",0.6,"30d",null,1,2,3,4,5]
[]
[null,"Sustentation","1 sust = 0,1 enc, 20 cl = 0,1 enc, F = force éthylique","prix"]
[null,"Provisions_non_cuites_1_sust",0.1,"1d",null,1,2,3,4,5,6,7,8,9,10,11,12,13,14,15,16,17,18,19,20]
[null,"Provisions_cuites_1_sust",0.1,"2d",null,1,2,3,4,5,6,7,8,9,10,11,12,13,14,15,16,17,18,19,20]
[null,"Vin_20cl",0.1,"1d",null,1,2,3,4,5,6,7,8,9,10]
[null,"Bière_20cl",0.1,"1d",null,1,2,3,4,5,6,7,8,9,10]
[null,"Hydromel_20cl",0.1,"4d",null,1,2,3,4,5,6,7,8,9,10]
[null,"Brandevin_10cl",0.05,"10d",null,1,2,3,4,5,6,7,8,9,10]
[null,"Lait_20cl",0.1,"1d",null,1,2,3,4,5,6,7,8,9,10]
[null,"Eau_20cl",0.1,"0d",null,1,2,3,4,5,6,7,8,9,10]
[null,"Repas moyen à l'auberge (sans la boisson) 1 sust",null,"3d"]
[]
[null,"Vêtements","enc.","prix"]
[null,"Pourpoint_de_cuir_souple",0.3,"2s",null,1,2,3]
[null,"Cotte_de_cuir_souple",0.4,"2s",null,1,2,3]
[null,"Culottes de cuir souple",0.2,"2s",null,1,2,3]
[null,"Bottes_de_cuir_souple",0.4,"2s",null,1,2,3]
[null,"Sandales_cuir",0.1,"30d",null,1,2,3]
[null,"Gants_cuir"," ","1s",null,1,2,3]
[null,"Ceinturon_cuir",0.1,"50d",null,1,2,3]
[null,"Chapeau_cuir",null,"20d",null,1,2,3]
[null,"Manteau_de_fourrure",1,"10s",null,1,2]
[null,"Pourpoint_de_drap_matelassé",0.2,"1s",null,1,2,3,4,5]
[null,"Cotte_de_drap_matelassé",0.3,"1s",null,1,2,3,4,5]
[null,"Culottes_de_drap_matelassé",0.1,"2s",null,1,2,3,4,5]
[null,"Bas_de_laine",null,"10d",null,1,2,3,4,5]
[null,"Chemise_de_laine",0.1,"20d",null,1,2,3,4,5]
[null,"Chemise_de_lin",null,"30d",null,1,2,3,4,5]
[null,"Culottes_de_laine",0.1,"20d",null,1,2,3,4,5]
[null,"Robe_de_laine",0.2,"40d",null,1,2,3,4,5]
[null,"Robe_de_lin",0.1,"60d",null,1,2,3,4,5]
[null,"Cotte_de_laine",0.1,"30d",null,1,2,3,4,5]
[null,"Bonnet_de_laine",null,"6d",null,1,2,3,4,5]
[null,"Chaperon_de_laine",0.1,"20d",null,1,2,3,4,5]
[null,"Manteau_de_laine",0.8,"60d",null,1,2,3,4,5]
[null,"Chemise_de_soie",null,"6s",null,1,2,3]
[null,"Robe_de_soie",null,"10s",null,1,2,3]
[null,"Robe_de_velours",0.3,"10s",null,1,2,3]
[null,"Culottes_de_velours",0.2,"6s",null,1,2,3]
[null,"Pourpoint_de_velours",0.2,"8s",null,1,2,3]
[null,"Manteau_de_velours",1,"10s",null,1,2,3]
[null,"Béret_de_velours",null,"3s",null,1,2,3]
[null,"Bas_de_soie",null,"3s",null,1,2,3]
[]
[]
[null,"Gemmes",null,"prix"]
[null,"Almaze",null,"1s",null,1,2,3,4,5,6,7,8,9,10]
[null,"Aquafane",null,"1s",null,1,2,3,4,5,6,7,8,9,10]
[null,"Astérite",null,"1s",null,1,2,3,4,5,6,7,8,9,10]
[null,"Cyanolithe",null,"1s",null,1,2,3,4,5,6,7,8,9,10]
[null,"Larme_de_Dragon",null,"1s",null,1,2,3,4,5,6,7,8,9,10]
[null,"Muska",null,"1s",null,1,2,3,4,5,6,7,8,9,10]
[null,"Nébuleuse",null,"1s",null,1,2,3,4,5,6,7,8,9,10]
[null,"Œil_de_Tigre",null,"1s",null,1,2,3,4,5,6,7,8,9,10]
[null,"Scarlatine",null,"1s",null,1,2,3,4,5,6,7,8,9,10]
[null,"Séliphane",null,"1s",null,1,2,3,4,5,6,7,8,9,10]
[null,"Tournelune",null,"1s",null,1,2,3,4,5,6,7,8,9,10]
[null,"Zébraïde",null,"1s",null,1,2,3,4,5,6,7,8,9,10]
[]
["M /P/D/diag/Ant1/Ant2","Expédiants_divers",null,"prix au pépin/cl"]
["M -2/P 1mn/D1/d-1/Racine de tuberoncle +12/orgue de nuit +8","Pleureuse_i",null,"30d",null,3,6,9,12,15,18,21,24]
["M -3/P 2mn/D1/d -2/Lait de lune +12/Sable poudre +12","Crapauvure_i",null,"60d",null,5,10,15,20,25,30,35,40]
["M -5/P 5mn/D2/d -4/Huile de sélikanthe +12/Tanemiel doré +7","Sucre_de_Xotel_i",null,"120d",null,2,4,6,8,10,12,14,16]
["M -2/P 2mn/D1/d -4/Racine de tuberoncle +12/Tanemiel doré +7","Mauvèze_l",null,"60d",null,1,2,3,4,5,6,7,8,9,10]
["M -4/P 1mn/D2/d -3/Liqueur de Bagdol +12/Topazoïne +6","Arachnaire_l",null,"90d",null,1,2,3,4,5,6,7,8,9,10]
["M -6/P 2rds/D2/d -5/Teinture d'Erozonne +10/Tournegraisse +6","Vent_du_nord_l",null,"15s",null,1,2,3,4,5,6,7,8,9,10]
[]
[]
[]
[]
[]
[]
[]
[]
[]
[]
[]
[]
[]
[]
[]
[]
[]
[]
[]
[]
[]
[]
[]
[]
[null,null,null,"Pureté",null,null,null,"Qualité"]
[]
[null,null,null,1,null,null,null,"Pitoyable",0.25]
[null,null,null,2,null,null,null,"Mauvaise",0.5]
[null,null,null,3,null,null,null,"Normale",1]
[null,null,null,4,null,null,null,"Bonne",1.5]
[null,null,null,5,null,null,null,"Excellente",2]
[null,null,null,6]
[null,null,null,7]
[]
[]
[null,"Pitoyable","Mauvaise","Normale","Bonne","Excellente",null,null,"Pitoyable","Mauvaise","Normale","Bonne","Excellente"]
["md_qlté_112",{"$f":"IF(Saisie!$B112<>\"\",IF(OR(Saisie!$B112=\"Herbes_de_soin\",Saisie!$B112=\"Herbes_diverses\",Saisie!$B112=\"Remèdes_et_Antidotes\",Saisie!$B112=\"Sels_alchimiques\"),\"Normale\",\"Pitoyable\"),\"\")","v":""},{"$f":"IF(Saisie!$B112<>\"\",IF(OR(Saisie!$B112=\"Herbes_de_soin\",Saisie!$B112=\"Herbes_diverses\",Saisie!$B112=\"Remèdes_et_Antidotes\",Saisie!$B112=\"Sels_alchimiques\"),\"Normale\",\"Mauvaise\"),\"\")","v":""},{"$f":"IF(Saisie!$B112<>\"\",IF(OR(Saisie!$B112=\"Herbes_de_soin\",Saisie!$B112=\"Herbes_diverses\",Saisie!$B112=\"Remèdes_et_Antidotes\",Saisie!$B112=\"Sels_alchimiques\"),\"Normale\",\"Normale\"),\"\")","v":""},{"$f":"IF(Saisie!$B112<>\"\",IF(OR(Saisie!$B112=\"Herbes_de_soin\",Saisie!$B112=\"Herbes_diverses\",Saisie!$B112=\"Remèdes_et_Antidotes\",Saisie!$B112=\"Sels_alchimiques\"),\"Normale\",\"Bonne\"),\"\")","v":""},{"$f":"IF(Saisie!$B112<>\"\",IF(OR(Saisie!$B112=\"Herbes_de_soin\",Saisie!$B112=\"Herbes_diverses\",Saisie!$B112=\"Remèdes_et_Antidotes\",Saisie!$B112=\"Sels_alchimiques\"),\"Normale\",\"Excellente\"),\"\")","v":""},null,"md_qlté_L112",{"$f":"IF(Saisie!$I112<>\"\",IF(OR(Saisie!$I112=\"Herbes_de_soin\",Saisie!$I112=\"Herbes_diverses\",Saisie!$I112=\"Remèdes_et_Antidotes\",Saisie!$I112=\"Sels_alchimiques\"),\"Normale\",\"Pitoyable\"),\"\")","v":""},{"$f":"IF(Saisie!$I112<>\"\",IF(OR(Saisie!$I112=\"Herbes_de_soin\",Saisie!$I112=\"Herbes_diverses\",Saisie!$I112=\"Remèdes_et_Antidotes\",Saisie!$I112=\"Sels_alchimiques\"),\"Normale\",\"Mauvaise\"),\"\")","v":""},{"$f":"IF(Saisie!$I112<>\"\",IF(OR(Saisie!$I112=\"Herbes_de_soin\",Saisie!$I112=\"Herbes_diverses\",Saisie!$I112=\"Remèdes_et_Antidotes\",Saisie!$I112=\"Sels_alchimiques\"),\"Normale\",\"Normale\"),\"\")","v":""},{"$f":"IF(Saisie!$I112<>\"\",IF(OR(Saisie!$I112=\"Herbes_de_soin\",Saisie!$I112=\"Herbes_diverses\",Saisie!$I112=\"Remèdes_et_Antidotes\",Saisie!$I112=\"Sels_alchimiques\"),\"Normale\",\"Bonne\"),\"\")","v":""},{"$f":"IF(Saisie!$I112<>\"\",IF(OR(Saisie!$I112=\"Herbes_de_soin\",Saisie!$I112=\"Herbes_diverses\",Saisie!$I112=\"Remèdes_et_Antidotes\",Saisie!$I112=\"Sels_alchimiques\"),\"Normale\",\"Excellente\"),\"\")","v":""}]
["md_qlté_113",{"$f":"IF(Saisie!$B113<>\"\",IF(OR(Saisie!$B113=\"Herbes_de_soin\",Saisie!$B113=\"Herbes_diverses\",Saisie!$B113=\"Remèdes_et_Antidotes\",Saisie!$B113=\"Sels_alchimiques\"),\"Normale\",\"Pitoyable\"),\"\")","v":""},{"$f":"IF(Saisie!$B113<>\"\",IF(OR(Saisie!$B113=\"Herbes_de_soin\",Saisie!$B113=\"Herbes_diverses\",Saisie!$B113=\"Remèdes_et_Antidotes\",Saisie!$B113=\"Sels_alchimiques\"),\"Normale\",\"Mauvaise\"),\"\")","v":""},{"$f":"IF(Saisie!$B113<>\"\",IF(OR(Saisie!$B113=\"Herbes_de_soin\",Saisie!$B113=\"Herbes_diverses\",Saisie!$B113=\"Remèdes_et_Antidotes\",Saisie!$B113=\"Sels_alchimiques\"),\"Normale\",\"Normale\"),\"\")","v":""},{"$f":"IF(Saisie!$B113<>\"\",IF(OR(Saisie!$B113=\"Herbes_de_soin\",Saisie!$B113=\"Herbes_diverses\",Saisie!$B113=\"Remèdes_et_Antidotes\",Saisie!$B113=\"Sels_alchimiques\"),\"Normale\",\"Bonne\"),\"\")","v":""},{"$f":"IF(Saisie!$B113<>\"\",IF(OR(Saisie!$B113=\"Herbes_de_soin\",Saisie!$B113=\"Herbes_diverses\",Saisie!$B113=\"Remèdes_et_Antidotes\",Saisie!$B113=\"Sels_alchimiques\"),\"Normale\",\"Excellente\"),\"\")","v":""},null,"md_qlté_L113",{"$f":"IF(Saisie!$I113<>\"\",IF(OR(Saisie!$I113=\"Herbes_de_soin\",Saisie!$I113=\"Herbes_diverses\",Saisie!$I113=\"Remèdes_et_Antidotes\",Saisie!$I113=\"Sels_alchimiques\"),\"Normale\",\"Pitoyable\"),\"\")","v":"Pitoyable"},{"$f":"IF(Saisie!$I113<>\"\",IF(OR(Saisie!$I113=\"Herbes_de_soin\",Saisie!$I113=\"Herbes_diverses\",Saisie!$I113=\"Remèdes_et_Antidotes\",Saisie!$I113=\"Sels_alchimiques\"),\"Normale\",\"Mauvaise\"),\"\")","v":"Mauvaise"},{"$f":"IF(Saisie!$I113<>\"\",IF(OR(Saisie!$I113=\"Herbes_de_soin\",Saisie!$I113=\"Herbes_diverses\",Saisie!$I113=\"Remèdes_et_Antidotes\",Saisie!$I113=\"Sels_alchimiques\"),\"Normale\",\"Normale\"),\"\")","v":"Normale"},{"$f":"IF(Saisie!$I113<>\"\",IF(OR(Saisie!$I113=\"Herbes_de_soin\",Saisie!$I113=\"Herbes_diverses\",Saisie!$I113=\"Remèdes_et_Antidotes\",Saisie!$I113=\"Sels_alchimiques\"),\"Normale\",\"Bonne\"),\"\")","v":"Bonne"},{"$f":"IF(Saisie!$I113<>\"\",IF(OR(Saisie!$I113=\"Herbes_de_soin\",Saisie!$I113=\"Herbes_diverses\",Saisie!$I113=\"Remèdes_et_Antidotes\",Saisie!$I113=\"Sels_alchimiques\"),\"Normale\",\"Excellente\"),\"\")","v":"Excellente"}]
["md_qlté_114",{"$f":"IF(Saisie!$B114<>\"\",IF(OR(Saisie!$B114=\"Herbes_de_soin\",Saisie!$B114=\"Herbes_diverses\",Saisie!$B114=\"Remèdes_et_Antidotes\",Saisie!$B114=\"Sels_alchimiques\"),\"Normale\",\"Pitoyable\"),\"\")","v":""},{"$f":"IF(Saisie!$B114<>\"\",IF(OR(Saisie!$B114=\"Herbes_de_soin\",Saisie!$B114=\"Herbes_diverses\",Saisie!$B114=\"Remèdes_et_Antidotes\",Saisie!$B114=\"Sels_alchimiques\"),\"Normale\",\"Mauvaise\"),\"\")","v":""},{"$f":"IF(Saisie!$B114<>\"\",IF(OR(Saisie!$B114=\"Herbes_de_soin\",Saisie!$B114=\"Herbes_diverses\",Saisie!$B114=\"Remèdes_et_Antidotes\",Saisie!$B114=\"Sels_alchimiques\"),\"Normale\",\"Normale\"),\"\")","v":""},{"$f":"IF(Saisie!$B114<>\"\",IF(OR(Saisie!$B114=\"Herbes_de_soin\",Saisie!$B114=\"Herbes_diverses\",Saisie!$B114=\"Remèdes_et_Antidotes\",Saisie!$B114=\"Sels_alchimiques\"),\"Normale\",\"Bonne\"),\"\")","v":""},{"$f":"IF(Saisie!$B114<>\"\",IF(OR(Saisie!$B114=\"Herbes_de_soin\",Saisie!$B114=\"Herbes_diverses\",Saisie!$B114=\"Remèdes_et_Antidotes\",Saisie!$B114=\"Sels_alchimiques\"),\"Normale\",\"Excellente\"),\"\")","v":""},null,"md_qlté_L114",{"$f":"IF(Saisie!$I114<>\"\",IF(OR(Saisie!$I114=\"Herbes_de_soin\",Saisie!$I114=\"Herbes_diverses\",Saisie!$I114=\"Remèdes_et_Antidotes\",Saisie!$I114=\"Sels_alchimiques\"),\"Normale\",\"Pitoyable\"),\"\")","v":""},{"$f":"IF(Saisie!$I114<>\"\",IF(OR(Saisie!$I114=\"Herbes_de_soin\",Saisie!$I114=\"Herbes_diverses\",Saisie!$I114=\"Remèdes_et_Antidotes\",Saisie!$I114=\"Sels_alchimiques\"),\"Normale\",\"Mauvaise\"),\"\")","v":""},{"$f":"IF(Saisie!$I114<>\"\",IF(OR(Saisie!$I114=\"Herbes_de_soin\",Saisie!$I114=\"Herbes_diverses\",Saisie!$I114=\"Remèdes_et_Antidotes\",Saisie!$I114=\"Sels_alchimiques\"),\"Normale\",\"Normale\"),\"\")","v":""},{"$f":"IF(Saisie!$I114<>\"\",IF(OR(Saisie!$I114=\"Herbes_de_soin\",Saisie!$I114=\"Herbes_diverses\",Saisie!$I114=\"Remèdes_et_Antidotes\",Saisie!$I114=\"Sels_alchimiques\"),\"Normale\",\"Bonne\"),\"\")","v":""},{"$f":"IF(Saisie!$I114<>\"\",IF(OR(Saisie!$I114=\"Herbes_de_soin\",Saisie!$I114=\"Herbes_diverses\",Saisie!$I114=\"Remèdes_et_Antidotes\",Saisie!$I114=\"Sels_alchimiques\"),\"Normale\",\"Excellente\"),\"\")","v":""}]
["md_qlté_115",{"$f":"IF(Saisie!$B115<>\"\",IF(OR(Saisie!$B115=\"Herbes_de_soin\",Saisie!$B115=\"Herbes_diverses\",Saisie!$B115=\"Remèdes_et_Antidotes\",Saisie!$B115=\"Sels_alchimiques\"),\"Normale\",\"Pitoyable\"),\"\")","v":""},{"$f":"IF(Saisie!$B115<>\"\",IF(OR(Saisie!$B115=\"Herbes_de_soin\",Saisie!$B115=\"Herbes_diverses\",Saisie!$B115=\"Remèdes_et_Antidotes\",Saisie!$B115=\"Sels_alchimiques\"),\"Normale\",\"Mauvaise\"),\"\")","v":""},{"$f":"IF(Saisie!$B115<>\"\",IF(OR(Saisie!$B115=\"Herbes_de_soin\",Saisie!$B115=\"Herbes_diverses\",Saisie!$B115=\"Remèdes_et_Antidotes\",Saisie!$B115=\"Sels_alchimiques\"),\"Normale\",\"Normale\"),\"\")","v":""},{"$f":"IF(Saisie!$B115<>\"\",IF(OR(Saisie!$B115=\"Herbes_de_soin\",Saisie!$B115=\"Herbes_diverses\",Saisie!$B115=\"Remèdes_et_Antidotes\",Saisie!$B115=\"Sels_alchimiques\"),\"Normale\",\"Bonne\"),\"\")","v":""},{"$f":"IF(Saisie!$B115<>\"\",IF(OR(Saisie!$B115=\"Herbes_de_soin\",Saisie!$B115=\"Herbes_diverses\",Saisie!$B115=\"Remèdes_et_Antidotes\",Saisie!$B115=\"Sels_alchimiques\"),\"Normale\",\"Excellente\"),\"\")","v":""},null,"md_qlté_L115",{"$f":"IF(Saisie!$I115<>\"\",IF(OR(Saisie!$I115=\"Herbes_de_soin\",Saisie!$I115=\"Herbes_diverses\",Saisie!$I115=\"Remèdes_et_Antidotes\",Saisie!$I115=\"Sels_alchimiques\"),\"Normale\",\"Pitoyable\"),\"\")","v":""},{"$f":"IF(Saisie!$I115<>\"\",IF(OR(Saisie!$I115=\"Herbes_de_soin\",Saisie!$I115=\"Herbes_diverses\",Saisie!$I115=\"Remèdes_et_Antidotes\",Saisie!$I115=\"Sels_alchimiques\"),\"Normale\",\"Mauvaise\"),\"\")","v":""},{"$f":"IF(Saisie!$I115<>\"\",IF(OR(Saisie!$I115=\"Herbes_de_soin\",Saisie!$I115=\"Herbes_diverses\",Saisie!$I115=\"Remèdes_et_Antidotes\",Saisie!$I115=\"Sels_alchimiques\"),\"Normale\",\"Normale\"),\"\")","v":""},{"$f":"IF(Saisie!$I115<>\"\",IF(OR(Saisie!$I115=\"Herbes_de_soin\",Saisie!$I115=\"Herbes_diverses\",Saisie!$I115=\"Remèdes_et_Antidotes\",Saisie!$I115=\"Sels_alchimiques\"),\"Normale\",\"Bonne\"),\"\")","v":""},{"$f":"IF(Saisie!$I115<>\"\",IF(OR(Saisie!$I115=\"Herbes_de_soin\",Saisie!$I115=\"Herbes_diverses\",Saisie!$I115=\"Remèdes_et_Antidotes\",Saisie!$I115=\"Sels_alchimiques\"),\"Normale\",\"Excellente\"),\"\")","v":""}]
["md_qlté_116",{"$f":"IF(Saisie!$B116<>\"\",IF(OR(Saisie!$B116=\"Herbes_de_soin\",Saisie!$B116=\"Herbes_diverses\",Saisie!$B116=\"Remèdes_et_Antidotes\",Saisie!$B116=\"Sels_alchimiques\"),\"Normale\",\"Pitoyable\"),\"\")","v":""},{"$f":"IF(Saisie!$B116<>\"\",IF(OR(Saisie!$B116=\"Herbes_de_soin\",Saisie!$B116=\"Herbes_diverses\",Saisie!$B116=\"Remèdes_et_Antidotes\",Saisie!$B116=\"Sels_alchimiques\"),\"Normale\",\"Mauvaise\"),\"\")","v":""},{"$f":"IF(Saisie!$B116<>\"\",IF(OR(Saisie!$B116=\"Herbes_de_soin\",Saisie!$B116=\"Herbes_diverses\",Saisie!$B116=\"Remèdes_et_Antidotes\",Saisie!$B116=\"Sels_alchimiques\"),\"Normale\",\"Normale\"),\"\")","v":""},{"$f":"IF(Saisie!$B116<>\"\",IF(OR(Saisie!$B116=\"Herbes_de_soin\",Saisie!$B116=\"Herbes_diverses\",Saisie!$B116=\"Remèdes_et_Antidotes\",Saisie!$B116=\"Sels_alchimiques\"),\"Normale\",\"Bonne\"),\"\")","v":""},{"$f":"IF(Saisie!$B116<>\"\",IF(OR(Saisie!$B116=\"Herbes_de_soin\",Saisie!$B116=\"Herbes_diverses\",Saisie!$B116=\"Remèdes_et_Antidotes\",Saisie!$B116=\"Sels_alchimiques\"),\"Normale\",\"Excellente\"),\"\")","v":""},null,"md_qlté_L116",{"$f":"IF(Saisie!$I116<>\"\",IF(OR(Saisie!$I116=\"Herbes_de_soin\",Saisie!$I116=\"Herbes_diverses\",Saisie!$I116=\"Remèdes_et_Antidotes\",Saisie!$I116=\"Sels_alchimiques\"),\"Normale\",\"Pitoyable\"),\"\")","v":""},{"$f":"IF(Saisie!$I116<>\"\",IF(OR(Saisie!$I116=\"Herbes_de_soin\",Saisie!$I116=\"Herbes_diverses\",Saisie!$I116=\"Remèdes_et_Antidotes\",Saisie!$I116=\"Sels_alchimiques\"),\"Normale\",\"Mauvaise\"),\"\")","v":""},{"$f":"IF(Saisie!$I116<>\"\",IF(OR(Saisie!$I116=\"Herbes_de_soin\",Saisie!$I116=\"Herbes_diverses\",Saisie!$I116=\"Remèdes_et_Antidotes\",Saisie!$I116=\"Sels_alchimiques\"),\"Normale\",\"Normale\"),\"\")","v":""},{"$f":"IF(Saisie!$I116<>\"\",IF(OR(Saisie!$I116=\"Herbes_de_soin\",Saisie!$I116=\"Herbes_diverses\",Saisie!$I116=\"Remèdes_et_Antidotes\",Saisie!$I116=\"Sels_alchimiques\"),\"Normale\",\"Bonne\"),\"\")","v":""},{"$f":"IF(Saisie!$I116<>\"\",IF(OR(Saisie!$I116=\"Herbes_de_soin\",Saisie!$I116=\"Herbes_diverses\",Saisie!$I116=\"Remèdes_et_Antidotes\",Saisie!$I116=\"Sels_alchimiques\"),\"Normale\",\"Excellente\"),\"\")","v":""}]
["md_qlté_117",{"$f":"IF(Saisie!$B117<>\"\",IF(OR(Saisie!$B117=\"Herbes_de_soin\",Saisie!$B117=\"Herbes_diverses\",Saisie!$B117=\"Remèdes_et_Antidotes\",Saisie!$B117=\"Sels_alchimiques\"),\"Normale\",\"Pitoyable\"),\"\")","v":""},{"$f":"IF(Saisie!$B117<>\"\",IF(OR(Saisie!$B117=\"Herbes_de_soin\",Saisie!$B117=\"Herbes_diverses\",Saisie!$B117=\"Remèdes_et_Antidotes\",Saisie!$B117=\"Sels_alchimiques\"),\"Normale\",\"Mauvaise\"),\"\")","v":""},{"$f":"IF(Saisie!$B117<>\"\",IF(OR(Saisie!$B117=\"Herbes_de_soin\",Saisie!$B117=\"Herbes_diverses\",Saisie!$B117=\"Remèdes_et_Antidotes\",Saisie!$B117=\"Sels_alchimiques\"),\"Normale\",\"Normale\"),\"\")","v":""},{"$f":"IF(Saisie!$B117<>\"\",IF(OR(Saisie!$B117=\"Herbes_de_soin\",Saisie!$B117=\"Herbes_diverses\",Saisie!$B117=\"Remèdes_et_Antidotes\",Saisie!$B117=\"Sels_alchimiques\"),\"Normale\",\"Bonne\"),\"\")","v":""},{"$f":"IF(Saisie!$B117<>\"\",IF(OR(Saisie!$B117=\"Herbes_de_soin\",Saisie!$B117=\"Herbes_diverses\",Saisie!$B117=\"Remèdes_et_Antidotes\",Saisie!$B117=\"Sels_alchimiques\"),\"Normale\",\"Excellente\"),\"\")","v":""},null,"md_qlté_L117",{"$f":"IF(Saisie!$I117<>\"\",IF(OR(Saisie!$I117=\"Herbes_de_soin\",Saisie!$I117=\"Herbes_diverses\",Saisie!$I117=\"Remèdes_et_Antidotes\",Saisie!$I117=\"Sels_alchimiques\"),\"Normale\",\"Pitoyable\"),\"\")","v":""},{"$f":"IF(Saisie!$I117<>\"\",IF(OR(Saisie!$I117=\"Herbes_de_soin\",Saisie!$I117=\"Herbes_diverses\",Saisie!$I117=\"Remèdes_et_Antidotes\",Saisie!$I117=\"Sels_alchimiques\"),\"Normale\",\"Mauvaise\"),\"\")","v":""},{"$f":"IF(Saisie!$I117<>\"\",IF(OR(Saisie!$I117=\"Herbes_de_soin\",Saisie!$I117=\"Herbes_diverses\",Saisie!$I117=\"Remèdes_et_Antidotes\",Saisie!$I117=\"Sels_alchimiques\"),\"Normale\",\"Normale\"),\"\")","v":""},{"$f":"IF(Saisie!$I117<>\"\",IF(OR(Saisie!$I117=\"Herbes_de_soin\",Saisie!$I117=\"Herbes_diverses\",Saisie!$I117=\"Remèdes_et_Antidotes\",Saisie!$I117=\"Sels_alchimiques\"),\"Normale\",\"Bonne\"),\"\")","v":""},{"$f":"IF(Saisie!$I117<>\"\",IF(OR(Saisie!$I117=\"Herbes_de_soin\",Saisie!$I117=\"Herbes_diverses\",Saisie!$I117=\"Remèdes_et_Antidotes\",Saisie!$I117=\"Sels_alchimiques\"),\"Normale\",\"Excellente\"),\"\")","v":""}]
["md_qlté_118",{"$f":"IF(Saisie!$B118<>\"\",IF(OR(Saisie!$B118=\"Herbes_de_soin\",Saisie!$B118=\"Herbes_diverses\",Saisie!$B118=\"Remèdes_et_Antidotes\",Saisie!$B118=\"Sels_alchimiques\"),\"Normale\",\"Pitoyable\"),\"\")","v":""},{"$f":"IF(Saisie!$B118<>\"\",IF(OR(Saisie!$B118=\"Herbes_de_soin\",Saisie!$B118=\"Herbes_diverses\",Saisie!$B118=\"Remèdes_et_Antidotes\",Saisie!$B118=\"Sels_alchimiques\"),\"Normale\",\"Mauvaise\"),\"\")","v":""},{"$f":"IF(Saisie!$B118<>\"\",IF(OR(Saisie!$B118=\"Herbes_de_soin\",Saisie!$B118=\"Herbes_diverses\",Saisie!$B118=\"Remèdes_et_Antidotes\",Saisie!$B118=\"Sels_alchimiques\"),\"Normale\",\"Normale\"),\"\")","v":""},{"$f":"IF(Saisie!$B118<>\"\",IF(OR(Saisie!$B118=\"Herbes_de_soin\",Saisie!$B118=\"Herbes_diverses\",Saisie!$B118=\"Remèdes_et_Antidotes\",Saisie!$B118=\"Sels_alchimiques\"),\"Normale\",\"Bonne\"),\"\")","v":""},{"$f":"IF(Saisie!$B118<>\"\",IF(OR(Saisie!$B118=\"Herbes_de_soin\",Saisie!$B118=\"Herbes_diverses\",Saisie!$B118=\"Remèdes_et_Antidotes\",Saisie!$B118=\"Sels_alchimiques\"),\"Normale\",\"Excellente\"),\"\")","v":""},null,"md_qlté_L118",{"$f":"IF(Saisie!$I118<>\"\",IF(OR(Saisie!$I118=\"Herbes_de_soin\",Saisie!$I118=\"Herbes_diverses\",Saisie!$I118=\"Remèdes_et_Antidotes\",Saisie!$I118=\"Sels_alchimiques\"),\"Normale\",\"Pitoyable\"),\"\")","v":"Pitoyable"},{"$f":"IF(Saisie!$I118<>\"\",IF(OR(Saisie!$I118=\"Herbes_de_soin\",Saisie!$I118=\"Herbes_diverses\",Saisie!$I118=\"Remèdes_et_Antidotes\",Saisie!$I118=\"Sels_alchimiques\"),\"Normale\",\"Mauvaise\"),\"\")","v":"Mauvaise"},{"$f":"IF(Saisie!$I118<>\"\",IF(OR(Saisie!$I118=\"Herbes_de_soin\",Saisie!$I118=\"Herbes_diverses\",Saisie!$I118=\"Remèdes_et_Antidotes\",Saisie!$I118=\"Sels_alchimiques\"),\"Normale\",\"Normale\"),\"\")","v":"Normale"},{"$f":"IF(Saisie!$I118<>\"\",IF(OR(Saisie!$I118=\"Herbes_de_soin\",Saisie!$I118=\"Herbes_diverses\",Saisie!$I118=\"Remèdes_et_Antidotes\",Saisie!$I118=\"Sels_alchimiques\"),\"Normale\",\"Bonne\"),\"\")","v":"Bonne"},{"$f":"IF(Saisie!$I118<>\"\",IF(OR(Saisie!$I118=\"Herbes_de_soin\",Saisie!$I118=\"Herbes_diverses\",Saisie!$I118=\"Remèdes_et_Antidotes\",Saisie!$I118=\"Sels_alchimiques\"),\"Normale\",\"Excellente\"),\"\")","v":"Excellente"}]
["md_qlté_119",{"$f":"IF(Saisie!$B119<>\"\",IF(OR(Saisie!$B119=\"Herbes_de_soin\",Saisie!$B119=\"Herbes_diverses\",Saisie!$B119=\"Remèdes_et_Antidotes\",Saisie!$B119=\"Sels_alchimiques\"),\"Normale\",\"Pitoyable\"),\"\")","v":""},{"$f":"IF(Saisie!$B119<>\"\",IF(OR(Saisie!$B119=\"Herbes_de_soin\",Saisie!$B119=\"Herbes_diverses\",Saisie!$B119=\"Remèdes_et_Antidotes\",Saisie!$B119=\"Sels_alchimiques\"),\"Normale\",\"Mauvaise\"),\"\")","v":""},{"$f":"IF(Saisie!$B119<>\"\",IF(OR(Saisie!$B119=\"Herbes_de_soin\",Saisie!$B119=\"Herbes_diverses\",Saisie!$B119=\"Remèdes_et_Antidotes\",Saisie!$B119=\"Sels_alchimiques\"),\"Normale\",\"Normale\"),\"\")","v":""},{"$f":"IF(Saisie!$B119<>\"\",IF(OR(Saisie!$B119=\"Herbes_de_soin\",Saisie!$B119=\"Herbes_diverses\",Saisie!$B119=\"Remèdes_et_Antidotes\",Saisie!$B119=\"Sels_alchimiques\"),\"Normale\",\"Bonne\"),\"\")","v":""},{"$f":"IF(Saisie!$B119<>\"\",IF(OR(Saisie!$B119=\"Herbes_de_soin\",Saisie!$B119=\"Herbes_diverses\",Saisie!$B119=\"Remèdes_et_Antidotes\",Saisie!$B119=\"Sels_alchimiques\"),\"Normale\",\"Excellente\"),\"\")","v":""},null,"md_qlté_L119",{"$f":"IF(Saisie!$I119<>\"\",IF(OR(Saisie!$I119=\"Herbes_de_soin\",Saisie!$I119=\"Herbes_diverses\",Saisie!$I119=\"Remèdes_et_Antidotes\",Saisie!$I119=\"Sels_alchimiques\"),\"Normale\",\"Pitoyable\"),\"\")","v":""},{"$f":"IF(Saisie!$I119<>\"\",IF(OR(Saisie!$I119=\"Herbes_de_soin\",Saisie!$I119=\"Herbes_diverses\",Saisie!$I119=\"Remèdes_et_Antidotes\",Saisie!$I119=\"Sels_alchimiques\"),\"Normale\",\"Mauvaise\"),\"\")","v":""},{"$f":"IF(Saisie!$I119<>\"\",IF(OR(Saisie!$I119=\"Herbes_de_soin\",Saisie!$I119=\"Herbes_diverses\",Saisie!$I119=\"Remèdes_et_Antidotes\",Saisie!$I119=\"Sels_alchimiques\"),\"Normale\",\"Normale\"),\"\")","v":""},{"$f":"IF(Saisie!$I119<>\"\",IF(OR(Saisie!$I119=\"Herbes_de_soin\",Saisie!$I119=\"Herbes_diverses\",Saisie!$I119=\"Remèdes_et_Antidotes\",Saisie!$I119=\"Sels_alchimiques\"),\"Normale\",\"Bonne\"),\"\")","v":""},{"$f":"IF(Saisie!$I119<>\"\",IF(OR(Saisie!$I119=\"Herbes_de_soin\",Saisie!$I119=\"Herbes_diverses\",Saisie!$I119=\"Remèdes_et_Antidotes\",Saisie!$I119=\"Sels_alchimiques\"),\"Normale\",\"Excellente\"),\"\")","v":""}]
["md_qlté_120",{"$f":"IF(Saisie!$B120<>\"\",IF(OR(Saisie!$B120=\"Herbes_de_soin\",Saisie!$B120=\"Herbes_diverses\",Saisie!$B120=\"Remèdes_et_Antidotes\",Saisie!$B120=\"Sels_alchimiques\"),\"Normale\",\"Pitoyable\"),\"\")","v":""},{"$f":"IF(Saisie!$B120<>\"\",IF(OR(Saisie!$B120=\"Herbes_de_soin\",Saisie!$B120=\"Herbes_diverses\",Saisie!$B120=\"Remèdes_et_Antidotes\",Saisie!$B120=\"Sels_alchimiques\"),\"Normale\",\"Mauvaise\"),\"\")","v":""},{"$f":"IF(Saisie!$B120<>\"\",IF(OR(Saisie!$B120=\"Herbes_de_soin\",Saisie!$B120=\"Herbes_diverses\",Saisie!$B120=\"Remèdes_et_Antidotes\",Saisie!$B120=\"Sels_alchimiques\"),\"Normale\",\"Normale\"),\"\")","v":""},{"$f":"IF(Saisie!$B120<>\"\",IF(OR(Saisie!$B120=\"Herbes_de_soin\",Saisie!$B120=\"Herbes_diverses\",Saisie!$B120=\"Remèdes_et_Antidotes\",Saisie!$B120=\"Sels_alchimiques\"),\"Normale\",\"Bonne\"),\"\")","v":""},{"$f":"IF(Saisie!$B120<>\"\",IF(OR(Saisie!$B120=\"Herbes_de_soin\",Saisie!$B120=\"Herbes_diverses\",Saisie!$B120=\"Remèdes_et_Antidotes\",Saisie!$B120=\"Sels_alchimiques\"),\"Normale\",\"Excellente\"),\"\")","v":""},null,"md_qlté_L120",{"$f":"IF(Saisie!$I120<>\"\",IF(OR(Saisie!$I120=\"Herbes_de_soin\",Saisie!$I120=\"Herbes_diverses\",Saisie!$I120=\"Remèdes_et_Antidotes\",Saisie!$I120=\"Sels_alchimiques\"),\"Normale\",\"Pitoyable\"),\"\")","v":""},{"$f":"IF(Saisie!$I120<>\"\",IF(OR(Saisie!$I120=\"Herbes_de_soin\",Saisie!$I120=\"Herbes_diverses\",Saisie!$I120=\"Remèdes_et_Antidotes\",Saisie!$I120=\"Sels_alchimiques\"),\"Normale\",\"Mauvaise\"),\"\")","v":""},{"$f":"IF(Saisie!$I120<>\"\",IF(OR(Saisie!$I120=\"Herbes_de_soin\",Saisie!$I120=\"Herbes_diverses\",Saisie!$I120=\"Remèdes_et_Antidotes\",Saisie!$I120=\"Sels_alchimiques\"),\"Normale\",\"Normale\"),\"\")","v":""},{"$f":"IF(Saisie!$I120<>\"\",IF(OR(Saisie!$I120=\"Herbes_de_soin\",Saisie!$I120=\"Herbes_diverses\",Saisie!$I120=\"Remèdes_et_Antidotes\",Saisie!$I120=\"Sels_alchimiques\"),\"Normale\",\"Bonne\"),\"\")","v":""},{"$f":"IF(Saisie!$I120<>\"\",IF(OR(Saisie!$I120=\"Herbes_de_soin\",Saisie!$I120=\"Herbes_diverses\",Saisie!$I120=\"Remèdes_et_Antidotes\",Saisie!$I120=\"Sels_alchimiques\"),\"Normale\",\"Excellente\"),\"\")","v":""}]
["md_qlté_121",{"$f":"IF(Saisie!$B121<>\"\",IF(OR(Saisie!$B121=\"Herbes_de_soin\",Saisie!$B121=\"Herbes_diverses\",Saisie!$B121=\"Remèdes_et_Antidotes\",Saisie!$B121=\"Sels_alchimiques\"),\"Normale\",\"Pitoyable\"),\"\")","v":""},{"$f":"IF(Saisie!$B121<>\"\",IF(OR(Saisie!$B121=\"Herbes_de_soin\",Saisie!$B121=\"Herbes_diverses\",Saisie!$B121=\"Remèdes_et_Antidotes\",Saisie!$B121=\"Sels_alchimiques\"),\"Normale\",\"Mauvaise\"),\"\")","v":""},{"$f":"IF(Saisie!$B121<>\"\",IF(OR(Saisie!$B121=\"Herbes_de_soin\",Saisie!$B121=\"Herbes_diverses\",Saisie!$B121=\"Remèdes_et_Antidotes\",Saisie!$B121=\"Sels_alchimiques\"),\"Normale\",\"Normale\"),\"\")","v":""},{"$f":"IF(Saisie!$B121<>\"\",IF(OR(Saisie!$B121=\"Herbes_de_soin\",Saisie!$B121=\"Herbes_diverses\",Saisie!$B121=\"Remèdes_et_Antidotes\",Saisie!$B121=\"Sels_alchimiques\"),\"Normale\",\"Bonne\"),\"\")","v":""},{"$f":"IF(Saisie!$B121<>\"\",IF(OR(Saisie!$B121=\"Herbes_de_soin\",Saisie!$B121=\"Herbes_diverses\",Saisie!$B121=\"Remèdes_et_Antidotes\",Saisie!$B121=\"Sels_alchimiques\"),\"Normale\",\"Excellente\"),\"\")","v":""},null,"md_qlté_L121",{"$f":"IF(Saisie!$I121<>\"\",IF(OR(Saisie!$I121=\"Herbes_de_soin\",Saisie!$I121=\"Herbes_diverses\",Saisie!$I121=\"Remèdes_et_Antidotes\",Saisie!$I121=\"Sels_alchimiques\"),\"Normale\",\"Pitoyable\"),\"\")","v":""},{"$f":"IF(Saisie!$I121<>\"\",IF(OR(Saisie!$I121=\"Herbes_de_soin\",Saisie!$I121=\"Herbes_diverses\",Saisie!$I121=\"Remèdes_et_Antidotes\",Saisie!$I121=\"Sels_alchimiques\"),\"Normale\",\"Mauvaise\"),\"\")","v":""},{"$f":"IF(Saisie!$I121<>\"\",IF(OR(Saisie!$I121=\"Herbes_de_soin\",Saisie!$I121=\"Herbes_diverses\",Saisie!$I121=\"Remèdes_et_Antidotes\",Saisie!$I121=\"Sels_alchimiques\"),\"Normale\",\"Normale\"),\"\")","v":""},{"$f":"IF(Saisie!$I121<>\"\",IF(OR(Saisie!$I121=\"Herbes_de_soin\",Saisie!$I121=\"Herbes_diverses\",Saisie!$I121=\"Remèdes_et_Antidotes\",Saisie!$I121=\"Sels_alchimiques\"),\"Normale\",\"Bonne\"),\"\")","v":""},{"$f":"IF(Saisie!$I121<>\"\",IF(OR(Saisie!$I121=\"Herbes_de_soin\",Saisie!$I121=\"Herbes_diverses\",Saisie!$I121=\"Remèdes_et_Antidotes\",Saisie!$I121=\"Sels_alchimiques\"),\"Normale\",\"Excellente\"),\"\")","v":""}]
["md_qlté_122",{"$f":"IF(Saisie!$B122<>\"\",IF(OR(Saisie!$B122=\"Herbes_de_soin\",Saisie!$B122=\"Herbes_diverses\",Saisie!$B122=\"Remèdes_et_Antidotes\",Saisie!$B122=\"Sels_alchimiques\"),\"Normale\",\"Pitoyable\"),\"\")","v":""},{"$f":"IF(Saisie!$B122<>\"\",IF(OR(Saisie!$B122=\"Herbes_de_soin\",Saisie!$B122=\"Herbes_diverses\",Saisie!$B122=\"Remèdes_et_Antidotes\",Saisie!$B122=\"Sels_alchimiques\"),\"Normale\",\"Mauvaise\"),\"\")","v":""},{"$f":"IF(Saisie!$B122<>\"\",IF(OR(Saisie!$B122=\"Herbes_de_soin\",Saisie!$B122=\"Herbes_diverses\",Saisie!$B122=\"Remèdes_et_Antidotes\",Saisie!$B122=\"Sels_alchimiques\"),\"Normale\",\"Normale\"),\"\")","v":""},{"$f":"IF(Saisie!$B122<>\"\",IF(OR(Saisie!$B122=\"Herbes_de_soin\",Saisie!$B122=\"Herbes_diverses\",Saisie!$B122=\"Remèdes_et_Antidotes\",Saisie!$B122=\"Sels_alchimiques\"),\"Normale\",\"Bonne\"),\"\")","v":""},{"$f":"IF(Saisie!$B122<>\"\",IF(OR(Saisie!$B122=\"Herbes_de_soin\",Saisie!$B122=\"Herbes_diverses\",Saisie!$B122=\"Remèdes_et_Antidotes\",Saisie!$B122=\"Sels_alchimiques\"),\"Normale\",\"Excellente\"),\"\")","v":""},null,"md_qlté_L122",{"$f":"IF(Saisie!$I122<>\"\",IF(OR(Saisie!$I122=\"Herbes_de_soin\",Saisie!$I122=\"Herbes_diverses\",Saisie!$I122=\"Remèdes_et_Antidotes\",Saisie!$I122=\"Sels_alchimiques\"),\"Normale\",\"Pitoyable\"),\"\")","v":""},{"$f":"IF(Saisie!$I122<>\"\",IF(OR(Saisie!$I122=\"Herbes_de_soin\",Saisie!$I122=\"Herbes_diverses\",Saisie!$I122=\"Remèdes_et_Antidotes\",Saisie!$I122=\"Sels_alchimiques\"),\"Normale\",\"Mauvaise\"),\"\")","v":""},{"$f":"IF(Saisie!$I122<>\"\",IF(OR(Saisie!$I122=\"Herbes_de_soin\",Saisie!$I122=\"Herbes_diverses\",Saisie!$I122=\"Remèdes_et_Antidotes\",Saisie!$I122=\"Sels_alchimiques\"),\"Normale\",\"Normale\"),\"\")","v":""},{"$f":"IF(Saisie!$I122<>\"\",IF(OR(Saisie!$I122=\"Herbes_de_soin\",Saisie!$I122=\"Herbes_diverses\",Saisie!$I122=\"Remèdes_et_Antidotes\",Saisie!$I122=\"Sels_alchimiques\"),\"Normale\",\"Bonne\"),\"\")","v":""},{"$f":"IF(Saisie!$I122<>\"\",IF(OR(Saisie!$I122=\"Herbes_de_soin\",Saisie!$I122=\"Herbes_diverses\",Saisie!$I122=\"Remèdes_et_Antidotes\",Saisie!$I122=\"Sels_alchimiques\"),\"Normale\",\"Excellente\"),\"\")","v":""}]
["md_qlté_123",{"$f":"IF(Saisie!$B123<>\"\",IF(OR(Saisie!$B123=\"Herbes_de_soin\",Saisie!$B123=\"Herbes_diverses\",Saisie!$B123=\"Remèdes_et_Antidotes\",Saisie!$B123=\"Sels_alchimiques\"),\"Normale\",\"Pitoyable\"),\"\")","v":""},{"$f":"IF(Saisie!$B123<>\"\",IF(OR(Saisie!$B123=\"Herbes_de_soin\",Saisie!$B123=\"Herbes_diverses\",Saisie!$B123=\"Remèdes_et_Antidotes\",Saisie!$B123=\"Sels_alchimiques\"),\"Normale\",\"Mauvaise\"),\"\")","v":""},{"$f":"IF(Saisie!$B123<>\"\",IF(OR(Saisie!$B123=\"Herbes_de_soin\",Saisie!$B123=\"Herbes_diverses\",Saisie!$B123=\"Remèdes_et_Antidotes\",Saisie!$B123=\"Sels_alchimiques\"),\"Normale\",\"Normale\"),\"\")","v":""},{"$f":"IF(Saisie!$B123<>\"\",IF(OR(Saisie!$B123=\"Herbes_de_soin\",Saisie!$B123=\"Herbes_diverses\",Saisie!$B123=\"Remèdes_et_Antidotes\",Saisie!$B123=\"Sels_alchimiques\"),\"Normale\",\"Bonne\"),\"\")","v":""},{"$f":"IF(Saisie!$B123<>\"\",IF(OR(Saisie!$B123=\"Herbes_de_soin\",Saisie!$B123=\"Herbes_diverses\",Saisie!$B123=\"Remèdes_et_Antidotes\",Saisie!$B123=\"Sels_alchimiques\"),\"Normale\",\"Excellente\"),\"\")","v":""},null,"md_qlté_L123",{"$f":"IF(Saisie!$I123<>\"\",IF(OR(Saisie!$I123=\"Herbes_de_soin\",Saisie!$I123=\"Herbes_diverses\",Saisie!$I123=\"Remèdes_et_Antidotes\",Saisie!$I123=\"Sels_alchimiques\"),\"Normale\",\"Pitoyable\"),\"\")","v":"Pitoyable"},{"$f":"IF(Saisie!$I123<>\"\",IF(OR(Saisie!$I123=\"Herbes_de_soin\",Saisie!$I123=\"Herbes_diverses\",Saisie!$I123=\"Remèdes_et_Antidotes\",Saisie!$I123=\"Sels_alchimiques\"),\"Normale\",\"Mauvaise\"),\"\")","v":"Mauvaise"},{"$f":"IF(Saisie!$I123<>\"\",IF(OR(Saisie!$I123=\"Herbes_de_soin\",Saisie!$I123=\"Herbes_diverses\",Saisie!$I123=\"Remèdes_et_Antidotes\",Saisie!$I123=\"Sels_alchimiques\"),\"Normale\",\"Normale\"),\"\")","v":"Normale"},{"$f":"IF(Saisie!$I123<>\"\",IF(OR(Saisie!$I123=\"Herbes_de_soin\",Saisie!$I123=\"Herbes_diverses\",Saisie!$I123=\"Remèdes_et_Antidotes\",Saisie!$I123=\"Sels_alchimiques\"),\"Normale\",\"Bonne\"),\"\")","v":"Bonne"},{"$f":"IF(Saisie!$I123<>\"\",IF(OR(Saisie!$I123=\"Herbes_de_soin\",Saisie!$I123=\"Herbes_diverses\",Saisie!$I123=\"Remèdes_et_Antidotes\",Saisie!$I123=\"Sels_alchimiques\"),\"Normale\",\"Excellente\"),\"\")","v":"Excellente"}]
["md_qlté_124",{"$f":"IF(Saisie!$B124<>\"\",IF(OR(Saisie!$B124=\"Herbes_de_soin\",Saisie!$B124=\"Herbes_diverses\",Saisie!$B124=\"Remèdes_et_Antidotes\",Saisie!$B124=\"Sels_alchimiques\"),\"Normale\",\"Pitoyable\"),\"\")","v":""},{"$f":"IF(Saisie!$B124<>\"\",IF(OR(Saisie!$B124=\"Herbes_de_soin\",Saisie!$B124=\"Herbes_diverses\",Saisie!$B124=\"Remèdes_et_Antidotes\",Saisie!$B124=\"Sels_alchimiques\"),\"Normale\",\"Mauvaise\"),\"\")","v":""},{"$f":"IF(Saisie!$B124<>\"\",IF(OR(Saisie!$B124=\"Herbes_de_soin\",Saisie!$B124=\"Herbes_diverses\",Saisie!$B124=\"Remèdes_et_Antidotes\",Saisie!$B124=\"Sels_alchimiques\"),\"Normale\",\"Normale\"),\"\")","v":""},{"$f":"IF(Saisie!$B124<>\"\",IF(OR(Saisie!$B124=\"Herbes_de_soin\",Saisie!$B124=\"Herbes_diverses\",Saisie!$B124=\"Remèdes_et_Antidotes\",Saisie!$B124=\"Sels_alchimiques\"),\"Normale\",\"Bonne\"),\"\")","v":""},{"$f":"IF(Saisie!$B124<>\"\",IF(OR(Saisie!$B124=\"Herbes_de_soin\",Saisie!$B124=\"Herbes_diverses\",Saisie!$B124=\"Remèdes_et_Antidotes\",Saisie!$B124=\"Sels_alchimiques\"),\"Normale\",\"Excellente\"),\"\")","v":""},null,"md_qlté_L124",{"$f":"IF(Saisie!$I124<>\"\",IF(OR(Saisie!$I124=\"Herbes_de_soin\",Saisie!$I124=\"Herbes_diverses\",Saisie!$I124=\"Remèdes_et_Antidotes\",Saisie!$I124=\"Sels_alchimiques\"),\"Normale\",\"Pitoyable\"),\"\")","v":""},{"$f":"IF(Saisie!$I124<>\"\",IF(OR(Saisie!$I124=\"Herbes_de_soin\",Saisie!$I124=\"Herbes_diverses\",Saisie!$I124=\"Remèdes_et_Antidotes\",Saisie!$I124=\"Sels_alchimiques\"),\"Normale\",\"Mauvaise\"),\"\")","v":""},{"$f":"IF(Saisie!$I124<>\"\",IF(OR(Saisie!$I124=\"Herbes_de_soin\",Saisie!$I124=\"Herbes_diverses\",Saisie!$I124=\"Remèdes_et_Antidotes\",Saisie!$I124=\"Sels_alchimiques\"),\"Normale\",\"Normale\"),\"\")","v":""},{"$f":"IF(Saisie!$I124<>\"\",IF(OR(Saisie!$I124=\"Herbes_de_soin\",Saisie!$I124=\"Herbes_diverses\",Saisie!$I124=\"Remèdes_et_Antidotes\",Saisie!$I124=\"Sels_alchimiques\"),\"Normale\",\"Bonne\"),\"\")","v":""},{"$f":"IF(Saisie!$I124<>\"\",IF(OR(Saisie!$I124=\"Herbes_de_soin\",Saisie!$I124=\"Herbes_diverses\",Saisie!$I124=\"Remèdes_et_Antidotes\",Saisie!$I124=\"Sels_alchimiques\"),\"Normale\",\"Excellente\"),\"\")","v":""}]
["md_qlté_125",{"$f":"IF(Saisie!$B125<>\"\",IF(OR(Saisie!$B125=\"Herbes_de_soin\",Saisie!$B125=\"Herbes_diverses\",Saisie!$B125=\"Remèdes_et_Antidotes\",Saisie!$B125=\"Sels_alchimiques\"),\"Normale\",\"Pitoyable\"),\"\")","v":""},{"$f":"IF(Saisie!$B125<>\"\",IF(OR(Saisie!$B125=\"Herbes_de_soin\",Saisie!$B125=\"Herbes_diverses\",Saisie!$B125=\"Remèdes_et_Antidotes\",Saisie!$B125=\"Sels_alchimiques\"),\"Normale\",\"Mauvaise\"),\"\")","v":""},{"$f":"IF(Saisie!$B125<>\"\",IF(OR(Saisie!$B125=\"Herbes_de_soin\",Saisie!$B125=\"Herbes_diverses\",Saisie!$B125=\"Remèdes_et_Antidotes\",Saisie!$B125=\"Sels_alchimiques\"),\"Normale\",\"Normale\"),\"\")","v":""},{"$f":"IF(Saisie!$B125<>\"\",IF(OR(Saisie!$B125=\"Herbes_de_soin\",Saisie!$B125=\"Herbes_diverses\",Saisie!$B125=\"Remèdes_et_Antidotes\",Saisie!$B125=\"Sels_alchimiques\"),\"Normale\",\"Bonne\"),\"\")","v":""},{"$f":"IF(Saisie!$B125<>\"\",IF(OR(Saisie!$B125=\"Herbes_de_soin\",Saisie!$B125=\"Herbes_diverses\",Saisie!$B125=\"Remèdes_et_Antidotes\",Saisie!$B125=\"Sels_alchimiques\"),\"Normale\",\"Excellente\"),\"\")","v":""},null,"md_qlté_L125",{"$f":"IF(Saisie!$I125<>\"\",IF(OR(Saisie!$I125=\"Herbes_de_soin\",Saisie!$I125=\"Herbes_diverses\",Saisie!$I125=\"Remèdes_et_Antidotes\",Saisie!$I125=\"Sels_alchimiques\"),\"Normale\",\"Pitoyable\"),\"\")","v":""},{"$f":"IF(Saisie!$I125<>\"\",IF(OR(Saisie!$I125=\"Herbes_de_soin\",Saisie!$I125=\"Herbes_diverses\",Saisie!$I125=\"Remèdes_et_Antidotes\",Saisie!$I125=\"Sels_alchimiques\"),\"Normale\",\"Mauvaise\"),\"\")","v":""},{"$f":"IF(Saisie!$I125<>\"\",IF(OR(Saisie!$I125=\"Herbes_de_soin\",Saisie!$I125=\"Herbes_diverses\",Saisie!$I125=\"Remèdes_et_Antidotes\",Saisie!$I125=\"Sels_alchimiques\"),\"Normale\",\"Normale\"),\"\")","v":""},{"$f":"IF(Saisie!$I125<>\"\",IF(OR(Saisie!$I125=\"Herbes_de_soin\",Saisie!$I125=\"Herbes_diverses\",Saisie!$I125=\"Remèdes_et_Antidotes\",Saisie!$I125=\"Sels_alchimiques\"),\"Normale\",\"Bonne\"),\"\")","v":""},{"$f":"IF(Saisie!$I125<>\"\",IF(OR(Saisie!$I125=\"Herbes_de_soin\",Saisie!$I125=\"Herbes_diverses\",Saisie!$I125=\"Remèdes_et_Antidotes\",Saisie!$I125=\"Sels_alchimiques\"),\"Normale\",\"Excellente\"),\"\")","v":""}]
["md_qlté_126",{"$f":"IF(Saisie!$B126<>\"\",IF(OR(Saisie!$B126=\"Herbes_de_soin\",Saisie!$B126=\"Herbes_diverses\",Saisie!$B126=\"Remèdes_et_Antidotes\",Saisie!$B126=\"Sels_alchimiques\"),\"Normale\",\"Pitoyable\"),\"\")","v":""},{"$f":"IF(Saisie!$B126<>\"\",IF(OR(Saisie!$B126=\"Herbes_de_soin\",Saisie!$B126=\"Herbes_diverses\",Saisie!$B126=\"Remèdes_et_Antidotes\",Saisie!$B126=\"Sels_alchimiques\"),\"Normale\",\"Mauvaise\"),\"\")","v":""},{"$f":"IF(Saisie!$B126<>\"\",IF(OR(Saisie!$B126=\"Herbes_de_soin\",Saisie!$B126=\"Herbes_diverses\",Saisie!$B126=\"Remèdes_et_Antidotes\",Saisie!$B126=\"Sels_alchimiques\"),\"Normale\",\"Normale\"),\"\")","v":""},{"$f":"IF(Saisie!$B126<>\"\",IF(OR(Saisie!$B126=\"Herbes_de_soin\",Saisie!$B126=\"Herbes_diverses\",Saisie!$B126=\"Remèdes_et_Antidotes\",Saisie!$B126=\"Sels_alchimiques\"),\"Normale\",\"Bonne\"),\"\")","v":""},{"$f":"IF(Saisie!$B126<>\"\",IF(OR(Saisie!$B126=\"Herbes_de_soin\",Saisie!$B126=\"Herbes_diverses\",Saisie!$B126=\"Remèdes_et_Antidotes\",Saisie!$B126=\"Sels_alchimiques\"),\"Normale\",\"Excellente\"),\"\")","v":""},null,"md_qlté_L126",{"$f":"IF(Saisie!$I126<>\"\",IF(OR(Saisie!$I126=\"Herbes_de_soin\",Saisie!$I126=\"Herbes_diverses\",Saisie!$I126=\"Remèdes_et_Antidotes\",Saisie!$I126=\"Sels_alchimiques\"),\"Normale\",\"Pitoyable\"),\"\")","v":""},{"$f":"IF(Saisie!$I126<>\"\",IF(OR(Saisie!$I126=\"Herbes_de_soin\",Saisie!$I126=\"Herbes_diverses\",Saisie!$I126=\"Remèdes_et_Antidotes\",Saisie!$I126=\"Sels_alchimiques\"),\"Normale\",\"Mauvaise\"),\"\")","v":""},{"$f":"IF(Saisie!$I126<>\"\",IF(OR(Saisie!$I126=\"Herbes_de_soin\",Saisie!$I126=\"Herbes_diverses\",Saisie!$I126=\"Remèdes_et_Antidotes\",Saisie!$I126=\"Sels_alchimiques\"),\"Normale\",\"Normale\"),\"\")","v":""},{"$f":"IF(Saisie!$I126<>\"\",IF(OR(Saisie!$I126=\"Herbes_de_soin\",Saisie!$I126=\"Herbes_diverses\",Saisie!$I126=\"Remèdes_et_Antidotes\",Saisie!$I126=\"Sels_alchimiques\"),\"Normale\",\"Bonne\"),\"\")","v":""},{"$f":"IF(Saisie!$I126<>\"\",IF(OR(Saisie!$I126=\"Herbes_de_soin\",Saisie!$I126=\"Herbes_diverses\",Saisie!$I126=\"Remèdes_et_Antidotes\",Saisie!$I126=\"Sels_alchimiques\"),\"Normale\",\"Excellente\"),\"\")","v":""}]
["md_qlté_127",{"$f":"IF(Saisie!$B127<>\"\",IF(OR(Saisie!$B127=\"Herbes_de_soin\",Saisie!$B127=\"Herbes_diverses\",Saisie!$B127=\"Remèdes_et_Antidotes\",Saisie!$B127=\"Sels_alchimiques\"),\"Normale\",\"Pitoyable\"),\"\")","v":""},{"$f":"IF(Saisie!$B127<>\"\",IF(OR(Saisie!$B127=\"Herbes_de_soin\",Saisie!$B127=\"Herbes_diverses\",Saisie!$B127=\"Remèdes_et_Antidotes\",Saisie!$B127=\"Sels_alchimiques\"),\"Normale\",\"Mauvaise\"),\"\")","v":""},{"$f":"IF(Saisie!$B127<>\"\",IF(OR(Saisie!$B127=\"Herbes_de_soin\",Saisie!$B127=\"Herbes_diverses\",Saisie!$B127=\"Remèdes_et_Antidotes\",Saisie!$B127=\"Sels_alchimiques\"),\"Normale\",\"Normale\"),\"\")","v":""},{"$f":"IF(Saisie!$B127<>\"\",IF(OR(Saisie!$B127=\"Herbes_de_soin\",Saisie!$B127=\"Herbes_diverses\",Saisie!$B127=\"Remèdes_et_Antidotes\",Saisie!$B127=\"Sels_alchimiques\"),\"Normale\",\"Bonne\"),\"\")","v":""},{"$f":"IF(Saisie!$B127<>\"\",IF(OR(Saisie!$B127=\"Herbes_de_soin\",Saisie!$B127=\"Herbes_diverses\",Saisie!$B127=\"Remèdes_et_Antidotes\",Saisie!$B127=\"Sels_alchimiques\"),\"Normale\",\"Excellente\"),\"\")","v":""},null,"md_qlté_L127",{"$f":"IF(Saisie!$I127<>\"\",IF(OR(Saisie!$I127=\"Herbes_de_soin\",Saisie!$I127=\"Herbes_diverses\",Saisie!$I127=\"Remèdes_et_Antidotes\",Saisie!$I127=\"Sels_alchimiques\"),\"Normale\",\"Pitoyable\"),\"\")","v":""},{"$f":"IF(Saisie!$I127<>\"\",IF(OR(Saisie!$I127=\"Herbes_de_soin\",Saisie!$I127=\"Herbes_diverses\",Saisie!$I127=\"Remèdes_et_Antidotes\",Saisie!$I127=\"Sels_alchimiques\"),\"Normale\",\"Mauvaise\"),\"\")","v":""},{"$f":"IF(Saisie!$I127<>\"\",IF(OR(Saisie!$I127=\"Herbes_de_soin\",Saisie!$I127=\"Herbes_diverses\",Saisie!$I127=\"Remèdes_et_Antidotes\",Saisie!$I127=\"Sels_alchimiques\"),\"Normale\",\"Normale\"),\"\")","v":""},{"$f":"IF(Saisie!$I127<>\"\",IF(OR(Saisie!$I127=\"Herbes_de_soin\",Saisie!$I127=\"Herbes_diverses\",Saisie!$I127=\"Remèdes_et_Antidotes\",Saisie!$I127=\"Sels_alchimiques\"),\"Normale\",\"Bonne\"),\"\")","v":""},{"$f":"IF(Saisie!$I127<>\"\",IF(OR(Saisie!$I127=\"Herbes_de_soin\",Saisie!$I127=\"Herbes_diverses\",Saisie!$I127=\"Remèdes_et_Antidotes\",Saisie!$I127=\"Sels_alchimiques\"),\"Normale\",\"Excellente\"),\"\")","v":""}]
["md_qlté_128",{"$f":"IF(Saisie!$B128<>\"\",IF(OR(Saisie!$B128=\"Herbes_de_soin\",Saisie!$B128=\"Herbes_diverses\",Saisie!$B128=\"Remèdes_et_Antidotes\",Saisie!$B128=\"Sels_alchimiques\"),\"Normale\",\"Pitoyable\"),\"\")","v":""},{"$f":"IF(Saisie!$B128<>\"\",IF(OR(Saisie!$B128=\"Herbes_de_soin\",Saisie!$B128=\"Herbes_diverses\",Saisie!$B128=\"Remèdes_et_Antidotes\",Saisie!$B128=\"Sels_alchimiques\"),\"Normale\",\"Mauvaise\"),\"\")","v":""},{"$f":"IF(Saisie!$B128<>\"\",IF(OR(Saisie!$B128=\"Herbes_de_soin\",Saisie!$B128=\"Herbes_diverses\",Saisie!$B128=\"Remèdes_et_Antidotes\",Saisie!$B128=\"Sels_alchimiques\"),\"Normale\",\"Normale\"),\"\")","v":""},{"$f":"IF(Saisie!$B128<>\"\",IF(OR(Saisie!$B128=\"Herbes_de_soin\",Saisie!$B128=\"Herbes_diverses\",Saisie!$B128=\"Remèdes_et_Antidotes\",Saisie!$B128=\"Sels_alchimiques\"),\"Normale\",\"Bonne\"),\"\")","v":""},{"$f":"IF(Saisie!$B128<>\"\",IF(OR(Saisie!$B128=\"Herbes_de_soin\",Saisie!$B128=\"Herbes_diverses\",Saisie!$B128=\"Remèdes_et_Antidotes\",Saisie!$B128=\"Sels_alchimiques\"),\"Normale\",\"Excellente\"),\"\")","v":""},null,"md_qlté_L128",{"$f":"IF(Saisie!$I128<>\"\",IF(OR(Saisie!$I128=\"Herbes_de_soin\",Saisie!$I128=\"Herbes_diverses\",Saisie!$I128=\"Remèdes_et_Antidotes\",Saisie!$I128=\"Sels_alchimiques\"),\"Normale\",\"Pitoyable\"),\"\")","v":"Pitoyable"},{"$f":"IF(Saisie!$I128<>\"\",IF(OR(Saisie!$I128=\"Herbes_de_soin\",Saisie!$I128=\"Herbes_diverses\",Saisie!$I128=\"Remèdes_et_Antidotes\",Saisie!$I128=\"Sels_alchimiques\"),\"Normale\",\"Mauvaise\"),\"\")","v":"Mauvaise"},{"$f":"IF(Saisie!$I128<>\"\",IF(OR(Saisie!$I128=\"Herbes_de_soin\",Saisie!$I128=\"Herbes_diverses\",Saisie!$I128=\"Remèdes_et_Antidotes\",Saisie!$I128=\"Sels_alchimiques\"),\"Normale\",\"Normale\"),\"\")","v":"Normale"},{"$f":"IF(Saisie!$I128<>\"\",IF(OR(Saisie!$I128=\"Herbes_de_soin\",Saisie!$I128=\"Herbes_diverses\",Saisie!$I128=\"Remèdes_et_Antidotes\",Saisie!$I128=\"Sels_alchimiques\"),\"Normale\",\"Bonne\"),\"\")","v":"Bonne"},{"$f":"IF(Saisie!$I128<>\"\",IF(OR(Saisie!$I128=\"Herbes_de_soin\",Saisie!$I128=\"Herbes_diverses\",Saisie!$I128=\"Remèdes_et_Antidotes\",Saisie!$I128=\"Sels_alchimiques\"),\"Normale\",\"Excellente\"),\"\")","v":"Excellente"}]
["md_qlté_129",{"$f":"IF(Saisie!$B129<>\"\",IF(OR(Saisie!$B129=\"Herbes_de_soin\",Saisie!$B129=\"Herbes_diverses\",Saisie!$B129=\"Remèdes_et_Antidotes\",Saisie!$B129=\"Sels_alchimiques\"),\"Normale\",\"Pitoyable\"),\"\")","v":""},{"$f":"IF(Saisie!$B129<>\"\",IF(OR(Saisie!$B129=\"Herbes_de_soin\",Saisie!$B129=\"Herbes_diverses\",Saisie!$B129=\"Remèdes_et_Antidotes\",Saisie!$B129=\"Sels_alchimiques\"),\"Normale\",\"Mauvaise\"),\"\")","v":""},{"$f":"IF(Saisie!$B129<>\"\",IF(OR(Saisie!$B129=\"Herbes_de_soin\",Saisie!$B129=\"Herbes_diverses\",Saisie!$B129=\"Remèdes_et_Antidotes\",Saisie!$B129=\"Sels_alchimiques\"),\"Normale\",\"Normale\"),\"\")","v":""},{"$f":"IF(Saisie!$B129<>\"\",IF(OR(Saisie!$B129=\"Herbes_de_soin\",Saisie!$B129=\"Herbes_diverses\",Saisie!$B129=\"Remèdes_et_Antidotes\",Saisie!$B129=\"Sels_alchimiques\"),\"Normale\",\"Bonne\"),\"\")","v":""},{"$f":"IF(Saisie!$B129<>\"\",IF(OR(Saisie!$B129=\"Herbes_de_soin\",Saisie!$B129=\"Herbes_diverses\",Saisie!$B129=\"Remèdes_et_Antidotes\",Saisie!$B129=\"Sels_alchimiques\"),\"Normale\",\"Excellente\"),\"\")","v":""},null,"md_qlté_L129",{"$f":"IF(Saisie!$I129<>\"\",IF(OR(Saisie!$I129=\"Herbes_de_soin\",Saisie!$I129=\"Herbes_diverses\",Saisie!$I129=\"Remèdes_et_Antidotes\",Saisie!$I129=\"Sels_alchimiques\"),\"Normale\",\"Pitoyable\"),\"\")","v":""},{"$f":"IF(Saisie!$I129<>\"\",IF(OR(Saisie!$I129=\"Herbes_de_soin\",Saisie!$I129=\"Herbes_diverses\",Saisie!$I129=\"Remèdes_et_Antidotes\",Saisie!$I129=\"Sels_alchimiques\"),\"Normale\",\"Mauvaise\"),\"\")","v":""},{"$f":"IF(Saisie!$I129<>\"\",IF(OR(Saisie!$I129=\"Herbes_de_soin\",Saisie!$I129=\"Herbes_diverses\",Saisie!$I129=\"Remèdes_et_Antidotes\",Saisie!$I129=\"Sels_alchimiques\"),\"Normale\",\"Normale\"),\"\")","v":""},{"$f":"IF(Saisie!$I129<>\"\",IF(OR(Saisie!$I129=\"Herbes_de_soin\",Saisie!$I129=\"Herbes_diverses\",Saisie!$I129=\"Remèdes_et_Antidotes\",Saisie!$I129=\"Sels_alchimiques\"),\"Normale\",\"Bonne\"),\"\")","v":""},{"$f":"IF(Saisie!$I129<>\"\",IF(OR(Saisie!$I129=\"Herbes_de_soin\",Saisie!$I129=\"Herbes_diverses\",Saisie!$I129=\"Remèdes_et_Antidotes\",Saisie!$I129=\"Sels_alchimiques\"),\"Normale\",\"Excellente\"),\"\")","v":""}]
["md_qlté_130",{"$f":"IF(Saisie!$B130<>\"\",IF(OR(Saisie!$B130=\"Herbes_de_soin\",Saisie!$B130=\"Herbes_diverses\",Saisie!$B130=\"Remèdes_et_Antidotes\",Saisie!$B130=\"Sels_alchimiques\"),\"Normale\",\"Pitoyable\"),\"\")","v":""},{"$f":"IF(Saisie!$B130<>\"\",IF(OR(Saisie!$B130=\"Herbes_de_soin\",Saisie!$B130=\"Herbes_diverses\",Saisie!$B130=\"Remèdes_et_Antidotes\",Saisie!$B130=\"Sels_alchimiques\"),\"Normale\",\"Mauvaise\"),\"\")","v":""},{"$f":"IF(Saisie!$B130<>\"\",IF(OR(Saisie!$B130=\"Herbes_de_soin\",Saisie!$B130=\"Herbes_diverses\",Saisie!$B130=\"Remèdes_et_Antidotes\",Saisie!$B130=\"Sels_alchimiques\"),\"Normale\",\"Normale\"),\"\")","v":""},{"$f":"IF(Saisie!$B130<>\"\",IF(OR(Saisie!$B130=\"Herbes_de_soin\",Saisie!$B130=\"Herbes_diverses\",Saisie!$B130=\"Remèdes_et_Antidotes\",Saisie!$B130=\"Sels_alchimiques\"),\"Normale\",\"Bonne\"),\"\")","v":""},{"$f":"IF(Saisie!$B130<>\"\",IF(OR(Saisie!$B130=\"Herbes_de_soin\",Saisie!$B130=\"Herbes_diverses\",Saisie!$B130=\"Remèdes_et_Antidotes\",Saisie!$B130=\"Sels_alchimiques\"),\"Normale\",\"Excellente\"),\"\")","v":""},null,"md_qlté_L130",{"$f":"IF(Saisie!$I130<>\"\",IF(OR(Saisie!$I130=\"Herbes_de_soin\",Saisie!$I130=\"Herbes_diverses\",Saisie!$I130=\"Remèdes_et_Antidotes\",Saisie!$I130=\"Sels_alchimiques\"),\"Normale\",\"Pitoyable\"),\"\")","v":""},{"$f":"IF(Saisie!$I130<>\"\",IF(OR(Saisie!$I130=\"Herbes_de_soin\",Saisie!$I130=\"Herbes_diverses\",Saisie!$I130=\"Remèdes_et_Antidotes\",Saisie!$I130=\"Sels_alchimiques\"),\"Normale\",\"Mauvaise\"),\"\")","v":""},{"$f":"IF(Saisie!$I130<>\"\",IF(OR(Saisie!$I130=\"Herbes_de_soin\",Saisie!$I130=\"Herbes_diverses\",Saisie!$I130=\"Remèdes_et_Antidotes\",Saisie!$I130=\"Sels_alchimiques\"),\"Normale\",\"Normale\"),\"\")","v":""},{"$f":"IF(Saisie!$I130<>\"\",IF(OR(Saisie!$I130=\"Herbes_de_soin\",Saisie!$I130=\"Herbes_diverses\",Saisie!$I130=\"Remèdes_et_Antidotes\",Saisie!$I130=\"Sels_alchimiques\"),\"Normale\",\"Bonne\"),\"\")","v":""},{"$f":"IF(Saisie!$I130<>\"\",IF(OR(Saisie!$I130=\"Herbes_de_soin\",Saisie!$I130=\"Herbes_diverses\",Saisie!$I130=\"Remèdes_et_Antidotes\",Saisie!$I130=\"Sels_alchimiques\"),\"Normale\",\"Excellente\"),\"\")","v":""}]
["md_qlté_131",{"$f":"IF(Saisie!$B131<>\"\",IF(OR(Saisie!$B131=\"Herbes_de_soin\",Saisie!$B131=\"Herbes_diverses\",Saisie!$B131=\"Remèdes_et_Antidotes\",Saisie!$B131=\"Sels_alchimiques\"),\"Normale\",\"Pitoyable\"),\"\")","v":""},{"$f":"IF(Saisie!$B131<>\"\",IF(OR(Saisie!$B131=\"Herbes_de_soin\",Saisie!$B131=\"Herbes_diverses\",Saisie!$B131=\"Remèdes_et_Antidotes\",Saisie!$B131=\"Sels_alchimiques\"),\"Normale\",\"Mauvaise\"),\"\")","v":""},{"$f":"IF(Saisie!$B131<>\"\",IF(OR(Saisie!$B131=\"Herbes_de_soin\",Saisie!$B131=\"Herbes_diverses\",Saisie!$B131=\"Remèdes_et_Antidotes\",Saisie!$B131=\"Sels_alchimiques\"),\"Normale\",\"Normale\"),\"\")","v":""},{"$f":"IF(Saisie!$B131<>\"\",IF(OR(Saisie!$B131=\"Herbes_de_soin\",Saisie!$B131=\"Herbes_diverses\",Saisie!$B131=\"Remèdes_et_Antidotes\",Saisie!$B131=\"Sels_alchimiques\"),\"Normale\",\"Bonne\"),\"\")","v":""},{"$f":"IF(Saisie!$B131<>\"\",IF(OR(Saisie!$B131=\"Herbes_de_soin\",Saisie!$B131=\"Herbes_diverses\",Saisie!$B131=\"Remèdes_et_Antidotes\",Saisie!$B131=\"Sels_alchimiques\"),\"Normale\",\"Excellente\"),\"\")","v":""},null,"md_qlté_L131",{"$f":"IF(Saisie!$I131<>\"\",IF(OR(Saisie!$I131=\"Herbes_de_soin\",Saisie!$I131=\"Herbes_diverses\",Saisie!$I131=\"Remèdes_et_Antidotes\",Saisie!$I131=\"Sels_alchimiques\"),\"Normale\",\"Pitoyable\"),\"\")","v":""},{"$f":"IF(Saisie!$I131<>\"\",IF(OR(Saisie!$I131=\"Herbes_de_soin\",Saisie!$I131=\"Herbes_diverses\",Saisie!$I131=\"Remèdes_et_Antidotes\",Saisie!$I131=\"Sels_alchimiques\"),\"Normale\",\"Mauvaise\"),\"\")","v":""},{"$f":"IF(Saisie!$I131<>\"\",IF(OR(Saisie!$I131=\"Herbes_de_soin\",Saisie!$I131=\"Herbes_diverses\",Saisie!$I131=\"Remèdes_et_Antidotes\",Saisie!$I131=\"Sels_alchimiques\"),\"Normale\",\"Normale\"),\"\")","v":""},{"$f":"IF(Saisie!$I131<>\"\",IF(OR(Saisie!$I131=\"Herbes_de_soin\",Saisie!$I131=\"Herbes_diverses\",Saisie!$I131=\"Remèdes_et_Antidotes\",Saisie!$I131=\"Sels_alchimiques\"),\"Normale\",\"Bonne\"),\"\")","v":""},{"$f":"IF(Saisie!$I131<>\"\",IF(OR(Saisie!$I131=\"Herbes_de_soin\",Saisie!$I131=\"Herbes_diverses\",Saisie!$I131=\"Remèdes_et_Antidotes\",Saisie!$I131=\"Sels_alchimiques\"),\"Normale\",\"Excellente\"),\"\")","v":""}]
["md_qlté_132",{"$f":"IF(Saisie!$B132<>\"\",IF(OR(Saisie!$B132=\"Herbes_de_soin\",Saisie!$B132=\"Herbes_diverses\",Saisie!$B132=\"Remèdes_et_Antidotes\",Saisie!$B132=\"Sels_alchimiques\"),\"Normale\",\"Pitoyable\"),\"\")","v":""},{"$f":"IF(Saisie!$B132<>\"\",IF(OR(Saisie!$B132=\"Herbes_de_soin\",Saisie!$B132=\"Herbes_diverses\",Saisie!$B132=\"Remèdes_et_Antidotes\",Saisie!$B132=\"Sels_alchimiques\"),\"Normale\",\"Mauvaise\"),\"\")","v":""},{"$f":"IF(Saisie!$B132<>\"\",IF(OR(Saisie!$B132=\"Herbes_de_soin\",Saisie!$B132=\"Herbes_diverses\",Saisie!$B132=\"Remèdes_et_Antidotes\",Saisie!$B132=\"Sels_alchimiques\"),\"Normale\",\"Normale\"),\"\")","v":""},{"$f":"IF(Saisie!$B132<>\"\",IF(OR(Saisie!$B132=\"Herbes_de_soin\",Saisie!$B132=\"Herbes_diverses\",Saisie!$B132=\"Remèdes_et_Antidotes\",Saisie!$B132=\"Sels_alchimiques\"),\"Normale\",\"Bonne\"),\"\")","v":""},{"$f":"IF(Saisie!$B132<>\"\",IF(OR(Saisie!$B132=\"Herbes_de_soin\",Saisie!$B132=\"Herbes_diverses\",Saisie!$B132=\"Remèdes_et_Antidotes\",Saisie!$B132=\"Sels_alchimiques\"),\"Normale\",\"Excellente\"),\"\")","v":""},null,"md_qlté_L132",{"$f":"IF(Saisie!$I132<>\"\",IF(OR(Saisie!$I132=\"Herbes_de_soin\",Saisie!$I132=\"Herbes_diverses\",Saisie!$I132=\"Remèdes_et_Antidotes\",Saisie!$I132=\"Sels_alchimiques\"),\"Normale\",\"Pitoyable\"),\"\")","v":"Pitoyable"},{"$f":"IF(Saisie!$I132<>\"\",IF(OR(Saisie!$I132=\"Herbes_de_soin\",Saisie!$I132=\"Herbes_diverses\",Saisie!$I132=\"Remèdes_et_Antidotes\",Saisie!$I132=\"Sels_alchimiques\"),\"Normale\",\"Mauvaise\"),\"\")","v":"Mauvaise"},{"$f":"IF(Saisie!$I132<>\"\",IF(OR(Saisie!$I132=\"Herbes_de_soin\",Saisie!$I132=\"Herbes_diverses\",Saisie!$I132=\"Remèdes_et_Antidotes\",Saisie!$I132=\"Sels_alchimiques\"),\"Normale\",\"Normale\"),\"\")","v":"Normale"},{"$f":"IF(Saisie!$I132<>\"\",IF(OR(Saisie!$I132=\"Herbes_de_soin\",Saisie!$I132=\"Herbes_diverses\",Saisie!$I132=\"Remèdes_et_Antidotes\",Saisie!$I132=\"Sels_alchimiques\"),\"Normale\",\"Bonne\"),\"\")","v":"Bonne"},{"$f":"IF(Saisie!$I132<>\"\",IF(OR(Saisie!$I132=\"Herbes_de_soin\",Saisie!$I132=\"Herbes_diverses\",Saisie!$I132=\"Remèdes_et_Antidotes\",Saisie!$I132=\"Sels_alchimiques\"),\"Normale\",\"Excellente\"),\"\")","v":"Excellente"}]
["md_qlté_133",{"$f":"IF(Saisie!$B133<>\"\",IF(OR(Saisie!$B133=\"Herbes_de_soin\",Saisie!$B133=\"Herbes_diverses\",Saisie!$B133=\"Remèdes_et_Antidotes\",Saisie!$B133=\"Sels_alchimiques\"),\"Normale\",\"Pitoyable\"),\"\")","v":""},{"$f":"IF(Saisie!$B133<>\"\",IF(OR(Saisie!$B133=\"Herbes_de_soin\",Saisie!$B133=\"Herbes_diverses\",Saisie!$B133=\"Remèdes_et_Antidotes\",Saisie!$B133=\"Sels_alchimiques\"),\"Normale\",\"Mauvaise\"),\"\")","v":""},{"$f":"IF(Saisie!$B133<>\"\",IF(OR(Saisie!$B133=\"Herbes_de_soin\",Saisie!$B133=\"Herbes_diverses\",Saisie!$B133=\"Remèdes_et_Antidotes\",Saisie!$B133=\"Sels_alchimiques\"),\"Normale\",\"Normale\"),\"\")","v":""},{"$f":"IF(Saisie!$B133<>\"\",IF(OR(Saisie!$B133=\"Herbes_de_soin\",Saisie!$B133=\"Herbes_diverses\",Saisie!$B133=\"Remèdes_et_Antidotes\",Saisie!$B133=\"Sels_alchimiques\"),\"Normale\",\"Bonne\"),\"\")","v":""},{"$f":"IF(Saisie!$B133<>\"\",IF(OR(Saisie!$B133=\"Herbes_de_soin\",Saisie!$B133=\"Herbes_diverses\",Saisie!$B133=\"Remèdes_et_Antidotes\",Saisie!$B133=\"Sels_alchimiques\"),\"Normale\",\"Excellente\"),\"\")","v":""},null,"md_qlté_L133",{"$f":"IF(Saisie!$I133<>\"\",IF(OR(Saisie!$I133=\"Herbes_de_soin\",Saisie!$I133=\"Herbes_diverses\",Saisie!$I133=\"Remèdes_et_Antidotes\",Saisie!$I133=\"Sels_alchimiques\"),\"Normale\",\"Pitoyable\"),\"\")","v":""},{"$f":"IF(Saisie!$I133<>\"\",IF(OR(Saisie!$I133=\"Herbes_de_soin\",Saisie!$I133=\"Herbes_diverses\",Saisie!$I133=\"Remèdes_et_Antidotes\",Saisie!$I133=\"Sels_alchimiques\"),\"Normale\",\"Mauvaise\"),\"\")","v":""},{"$f":"IF(Saisie!$I133<>\"\",IF(OR(Saisie!$I133=\"Herbes_de_soin\",Saisie!$I133=\"Herbes_diverses\",Saisie!$I133=\"Remèdes_et_Antidotes\",Saisie!$I133=\"Sels_alchimiques\"),\"Normale\",\"Normale\"),\"\")","v":""},{"$f":"IF(Saisie!$I133<>\"\",IF(OR(Saisie!$I133=\"Herbes_de_soin\",Saisie!$I133=\"Herbes_diverses\",Saisie!$I133=\"Remèdes_et_Antidotes\",Saisie!$I133=\"Sels_alchimiques\"),\"Normale\",\"Bonne\"),\"\")","v":""},{"$f":"IF(Saisie!$I133<>\"\",IF(OR(Saisie!$I133=\"Herbes_de_soin\",Saisie!$I133=\"Herbes_diverses\",Saisie!$I133=\"Remèdes_et_Antidotes\",Saisie!$I133=\"Sels_alchimiques\"),\"Normale\",\"Excellente\"),\"\")","v":""}]
["md_qlté_134",{"$f":"IF(Saisie!$B134<>\"\",IF(OR(Saisie!$B134=\"Herbes_de_soin\",Saisie!$B134=\"Herbes_diverses\",Saisie!$B134=\"Remèdes_et_Antidotes\",Saisie!$B134=\"Sels_alchimiques\"),\"Normale\",\"Pitoyable\"),\"\")","v":""},{"$f":"IF(Saisie!$B134<>\"\",IF(OR(Saisie!$B134=\"Herbes_de_soin\",Saisie!$B134=\"Herbes_diverses\",Saisie!$B134=\"Remèdes_et_Antidotes\",Saisie!$B134=\"Sels_alchimiques\"),\"Normale\",\"Mauvaise\"),\"\")","v":""},{"$f":"IF(Saisie!$B134<>\"\",IF(OR(Saisie!$B134=\"Herbes_de_soin\",Saisie!$B134=\"Herbes_diverses\",Saisie!$B134=\"Remèdes_et_Antidotes\",Saisie!$B134=\"Sels_alchimiques\"),\"Normale\",\"Normale\"),\"\")","v":""},{"$f":"IF(Saisie!$B134<>\"\",IF(OR(Saisie!$B134=\"Herbes_de_soin\",Saisie!$B134=\"Herbes_diverses\",Saisie!$B134=\"Remèdes_et_Antidotes\",Saisie!$B134=\"Sels_alchimiques\"),\"Normale\",\"Bonne\"),\"\")","v":""},{"$f":"IF(Saisie!$B134<>\"\",IF(OR(Saisie!$B134=\"Herbes_de_soin\",Saisie!$B134=\"Herbes_diverses\",Saisie!$B134=\"Remèdes_et_Antidotes\",Saisie!$B134=\"Sels_alchimiques\"),\"Normale\",\"Excellente\"),\"\")","v":""},null,"md_qlté_L134",{"$f":"IF(Saisie!$I134<>\"\",IF(OR(Saisie!$I134=\"Herbes_de_soin\",Saisie!$I134=\"Herbes_diverses\",Saisie!$I134=\"Remèdes_et_Antidotes\",Saisie!$I134=\"Sels_alchimiques\"),\"Normale\",\"Pitoyable\"),\"\")","v":""},{"$f":"IF(Saisie!$I134<>\"\",IF(OR(Saisie!$I134=\"Herbes_de_soin\",Saisie!$I134=\"Herbes_diverses\",Saisie!$I134=\"Remèdes_et_Antidotes\",Saisie!$I134=\"Sels_alchimiques\"),\"Normale\",\"Mauvaise\"),\"\")","v":""},{"$f":"IF(Saisie!$I134<>\"\",IF(OR(Saisie!$I134=\"Herbes_de_soin\",Saisie!$I134=\"Herbes_diverses\",Saisie!$I134=\"Remèdes_et_Antidotes\",Saisie!$I134=\"Sels_alchimiques\"),\"Normale\",\"Normale\"),\"\")","v":""},{"$f":"IF(Saisie!$I134<>\"\",IF(OR(Saisie!$I134=\"Herbes_de_soin\",Saisie!$I134=\"Herbes_diverses\",Saisie!$I134=\"Remèdes_et_Antidotes\",Saisie!$I134=\"Sels_alchimiques\"),\"Normale\",\"Bonne\"),\"\")","v":""},{"$f":"IF(Saisie!$I134<>\"\",IF(OR(Saisie!$I134=\"Herbes_de_soin\",Saisie!$I134=\"Herbes_diverses\",Saisie!$I134=\"Remèdes_et_Antidotes\",Saisie!$I134=\"Sels_alchimiques\"),\"Normale\",\"Excellente\"),\"\")","v":""}]
["md_qlté_135",{"$f":"IF(Saisie!$B135<>\"\",IF(OR(Saisie!$B135=\"Herbes_de_soin\",Saisie!$B135=\"Herbes_diverses\",Saisie!$B135=\"Remèdes_et_Antidotes\",Saisie!$B135=\"Sels_alchimiques\"),\"Normale\",\"Pitoyable\"),\"\")","v":""},{"$f":"IF(Saisie!$B135<>\"\",IF(OR(Saisie!$B135=\"Herbes_de_soin\",Saisie!$B135=\"Herbes_diverses\",Saisie!$B135=\"Remèdes_et_Antidotes\",Saisie!$B135=\"Sels_alchimiques\"),\"Normale\",\"Mauvaise\"),\"\")","v":""},{"$f":"IF(Saisie!$B135<>\"\",IF(OR(Saisie!$B135=\"Herbes_de_soin\",Saisie!$B135=\"Herbes_diverses\",Saisie!$B135=\"Remèdes_et_Antidotes\",Saisie!$B135=\"Sels_alchimiques\"),\"Normale\",\"Normale\"),\"\")","v":""},{"$f":"IF(Saisie!$B135<>\"\",IF(OR(Saisie!$B135=\"Herbes_de_soin\",Saisie!$B135=\"Herbes_diverses\",Saisie!$B135=\"Remèdes_et_Antidotes\",Saisie!$B135=\"Sels_alchimiques\"),\"Normale\",\"Bonne\"),\"\")","v":""},{"$f":"IF(Saisie!$B135<>\"\",IF(OR(Saisie!$B135=\"Herbes_de_soin\",Saisie!$B135=\"Herbes_diverses\",Saisie!$B135=\"Remèdes_et_Antidotes\",Saisie!$B135=\"Sels_alchimiques\"),\"Normale\",\"Excellente\"),\"\")","v":""},null,"md_qlté_L135",{"$f":"IF(Saisie!$I135<>\"\",IF(OR(Saisie!$I135=\"Herbes_de_soin\",Saisie!$I135=\"Herbes_diverses\",Saisie!$I135=\"Remèdes_et_Antidotes\",Saisie!$I135=\"Sels_alchimiques\"),\"Normale\",\"Pitoyable\"),\"\")","v":""},{"$f":"IF(Saisie!$I135<>\"\",IF(OR(Saisie!$I135=\"Herbes_de_soin\",Saisie!$I135=\"Herbes_diverses\",Saisie!$I135=\"Remèdes_et_Antidotes\",Saisie!$I135=\"Sels_alchimiques\"),\"Normale\",\"Mauvaise\"),\"\")","v":""},{"$f":"IF(Saisie!$I135<>\"\",IF(OR(Saisie!$I135=\"Herbes_de_soin\",Saisie!$I135=\"Herbes_diverses\",Saisie!$I135=\"Remèdes_et_Antidotes\",Saisie!$I135=\"Sels_alchimiques\"),\"Normale\",\"Normale\"),\"\")","v":""},{"$f":"IF(Saisie!$I135<>\"\",IF(OR(Saisie!$I135=\"Herbes_de_soin\",Saisie!$I135=\"Herbes_diverses\",Saisie!$I135=\"Remèdes_et_Antidotes\",Saisie!$I135=\"Sels_alchimiques\"),\"Normale\",\"Bonne\"),\"\")","v":""},{"$f":"IF(Saisie!$I135<>\"\",IF(OR(Saisie!$I135=\"Herbes_de_soin\",Saisie!$I135=\"Herbes_diverses\",Saisie!$I135=\"Remèdes_et_Antidotes\",Saisie!$I135=\"Sels_alchimiques\"),\"Normale\",\"Excellente\"),\"\")","v":""}]
["md_qlté_136",{"$f":"IF(Saisie!$B136<>\"\",IF(OR(Saisie!$B136=\"Herbes_de_soin\",Saisie!$B136=\"Herbes_diverses\",Saisie!$B136=\"Remèdes_et_Antidotes\",Saisie!$B136=\"Sels_alchimiques\"),\"Normale\",\"Pitoyable\"),\"\")","v":""},{"$f":"IF(Saisie!$B136<>\"\",IF(OR(Saisie!$B136=\"Herbes_de_soin\",Saisie!$B136=\"Herbes_diverses\",Saisie!$B136=\"Remèdes_et_Antidotes\",Saisie!$B136=\"Sels_alchimiques\"),\"Normale\",\"Mauvaise\"),\"\")","v":""},{"$f":"IF(Saisie!$B136<>\"\",IF(OR(Saisie!$B136=\"Herbes_de_soin\",Saisie!$B136=\"Herbes_diverses\",Saisie!$B136=\"Remèdes_et_Antidotes\",Saisie!$B136=\"Sels_alchimiques\"),\"Normale\",\"Normale\"),\"\")","v":""},{"$f":"IF(Saisie!$B136<>\"\",IF(OR(Saisie!$B136=\"Herbes_de_soin\",Saisie!$B136=\"Herbes_diverses\",Saisie!$B136=\"Remèdes_et_Antidotes\",Saisie!$B136=\"Sels_alchimiques\"),\"Normale\",\"Bonne\"),\"\")","v":""},{"$f":"IF(Saisie!$B136<>\"\",IF(OR(Saisie!$B136=\"Herbes_de_soin\",Saisie!$B136=\"Herbes_diverses\",Saisie!$B136=\"Remèdes_et_Antidotes\",Saisie!$B136=\"Sels_alchimiques\"),\"Normale\",\"Excellente\"),\"\")","v":""},null,"md_qlté_L136",{"$f":"IF(Saisie!$I136<>\"\",IF(OR(Saisie!$I136=\"Herbes_de_soin\",Saisie!$I136=\"Herbes_diverses\",Saisie!$I136=\"Remèdes_et_Antidotes\",Saisie!$I136=\"Sels_alchimiques\"),\"Normale\",\"Pitoyable\"),\"\")","v":"Pitoyable"},{"$f":"IF(Saisie!$I136<>\"\",IF(OR(Saisie!$I136=\"Herbes_de_soin\",Saisie!$I136=\"Herbes_diverses\",Saisie!$I136=\"Remèdes_et_Antidotes\",Saisie!$I136=\"Sels_alchimiques\"),\"Normale\",\"Mauvaise\"),\"\")","v":"Mauvaise"},{"$f":"IF(Saisie!$I136<>\"\",IF(OR(Saisie!$I136=\"Herbes_de_soin\",Saisie!$I136=\"Herbes_diverses\",Saisie!$I136=\"Remèdes_et_Antidotes\",Saisie!$I136=\"Sels_alchimiques\"),\"Normale\",\"Normale\"),\"\")","v":"Normale"},{"$f":"IF(Saisie!$I136<>\"\",IF(OR(Saisie!$I136=\"Herbes_de_soin\",Saisie!$I136=\"Herbes_diverses\",Saisie!$I136=\"Remèdes_et_Antidotes\",Saisie!$I136=\"Sels_alchimiques\"),\"Normale\",\"Bonne\"),\"\")","v":"Bonne"},{"$f":"IF(Saisie!$I136<>\"\",IF(OR(Saisie!$I136=\"Herbes_de_soin\",Saisie!$I136=\"Herbes_diverses\",Saisie!$I136=\"Remèdes_et_Antidotes\",Saisie!$I136=\"Sels_alchimiques\"),\"Normale\",\"Excellente\"),\"\")","v":"Excellente"}]
["md_qlté_137",{"$f":"IF(Saisie!$B137<>\"\",IF(OR(Saisie!$B137=\"Herbes_de_soin\",Saisie!$B137=\"Herbes_diverses\",Saisie!$B137=\"Remèdes_et_Antidotes\",Saisie!$B137=\"Sels_alchimiques\"),\"Normale\",\"Pitoyable\"),\"\")","v":""},{"$f":"IF(Saisie!$B137<>\"\",IF(OR(Saisie!$B137=\"Herbes_de_soin\",Saisie!$B137=\"Herbes_diverses\",Saisie!$B137=\"Remèdes_et_Antidotes\",Saisie!$B137=\"Sels_alchimiques\"),\"Normale\",\"Mauvaise\"),\"\")","v":""},{"$f":"IF(Saisie!$B137<>\"\",IF(OR(Saisie!$B137=\"Herbes_de_soin\",Saisie!$B137=\"Herbes_diverses\",Saisie!$B137=\"Remèdes_et_Antidotes\",Saisie!$B137=\"Sels_alchimiques\"),\"Normale\",\"Normale\"),\"\")","v":""},{"$f":"IF(Saisie!$B137<>\"\",IF(OR(Saisie!$B137=\"Herbes_de_soin\",Saisie!$B137=\"Herbes_diverses\",Saisie!$B137=\"Remèdes_et_Antidotes\",Saisie!$B137=\"Sels_alchimiques\"),\"Normale\",\"Bonne\"),\"\")","v":""},{"$f":"IF(Saisie!$B137<>\"\",IF(OR(Saisie!$B137=\"Herbes_de_soin\",Saisie!$B137=\"Herbes_diverses\",Saisie!$B137=\"Remèdes_et_Antidotes\",Saisie!$B137=\"Sels_alchimiques\"),\"Normale\",\"Excellente\"),\"\")","v":""},null,"md_qlté_L137",{"$f":"IF(Saisie!$I137<>\"\",IF(OR(Saisie!$I137=\"Herbes_de_soin\",Saisie!$I137=\"Herbes_diverses\",Saisie!$I137=\"Remèdes_et_Antidotes\",Saisie!$I137=\"Sels_alchimiques\"),\"Normale\",\"Pitoyable\"),\"\")","v":""},{"$f":"IF(Saisie!$I137<>\"\",IF(OR(Saisie!$I137=\"Herbes_de_soin\",Saisie!$I137=\"Herbes_diverses\",Saisie!$I137=\"Remèdes_et_Antidotes\",Saisie!$I137=\"Sels_alchimiques\"),\"Normale\",\"Mauvaise\"),\"\")","v":""},{"$f":"IF(Saisie!$I137<>\"\",IF(OR(Saisie!$I137=\"Herbes_de_soin\",Saisie!$I137=\"Herbes_diverses\",Saisie!$I137=\"Remèdes_et_Antidotes\",Saisie!$I137=\"Sels_alchimiques\"),\"Normale\",\"Normale\"),\"\")","v":""},{"$f":"IF(Saisie!$I137<>\"\",IF(OR(Saisie!$I137=\"Herbes_de_soin\",Saisie!$I137=\"Herbes_diverses\",Saisie!$I137=\"Remèdes_et_Antidotes\",Saisie!$I137=\"Sels_alchimiques\"),\"Normale\",\"Bonne\"),\"\")","v":""},{"$f":"IF(Saisie!$I137<>\"\",IF(OR(Saisie!$I137=\"Herbes_de_soin\",Saisie!$I137=\"Herbes_diverses\",Saisie!$I137=\"Remèdes_et_Antidotes\",Saisie!$I137=\"Sels_alchimiques\"),\"Normale\",\"Excellente\"),\"\")","v":""}]
["md_qlté_138",{"$f":"IF(Saisie!$B138<>\"\",IF(OR(Saisie!$B138=\"Herbes_de_soin\",Saisie!$B138=\"Herbes_diverses\",Saisie!$B138=\"Remèdes_et_Antidotes\",Saisie!$B138=\"Sels_alchimiques\"),\"Normale\",\"Pitoyable\"),\"\")","v":""},{"$f":"IF(Saisie!$B138<>\"\",IF(OR(Saisie!$B138=\"Herbes_de_soin\",Saisie!$B138=\"Herbes_diverses\",Saisie!$B138=\"Remèdes_et_Antidotes\",Saisie!$B138=\"Sels_alchimiques\"),\"Normale\",\"Mauvaise\"),\"\")","v":""},{"$f":"IF(Saisie!$B138<>\"\",IF(OR(Saisie!$B138=\"Herbes_de_soin\",Saisie!$B138=\"Herbes_diverses\",Saisie!$B138=\"Remèdes_et_Antidotes\",Saisie!$B138=\"Sels_alchimiques\"),\"Normale\",\"Normale\"),\"\")","v":""},{"$f":"IF(Saisie!$B138<>\"\",IF(OR(Saisie!$B138=\"Herbes_de_soin\",Saisie!$B138=\"Herbes_diverses\",Saisie!$B138=\"Remèdes_et_Antidotes\",Saisie!$B138=\"Sels_alchimiques\"),\"Normale\",\"Bonne\"),\"\")","v":""},{"$f":"IF(Saisie!$B138<>\"\",IF(OR(Saisie!$B138=\"Herbes_de_soin\",Saisie!$B138=\"Herbes_diverses\",Saisie!$B138=\"Remèdes_et_Antidotes\",Saisie!$B138=\"Sels_alchimiques\"),\"Normale\",\"Excellente\"),\"\")","v":""},null,"md_qlté_L138",{"$f":"IF(Saisie!$I138<>\"\",IF(OR(Saisie!$I138=\"Herbes_de_soin\",Saisie!$I138=\"Herbes_diverses\",Saisie!$I138=\"Remèdes_et_Antidotes\",Saisie!$I138=\"Sels_alchimiques\"),\"Normale\",\"Pitoyable\"),\"\")","v":""},{"$f":"IF(Saisie!$I138<>\"\",IF(OR(Saisie!$I138=\"Herbes_de_soin\",Saisie!$I138=\"Herbes_diverses\",Saisie!$I138=\"Remèdes_et_Antidotes\",Saisie!$I138=\"Sels_alchimiques\"),\"Normale\",\"Mauvaise\"),\"\")","v":""},{"$f":"IF(Saisie!$I138<>\"\",IF(OR(Saisie!$I138=\"Herbes_de_soin\",Saisie!$I138=\"Herbes_diverses\",Saisie!$I138=\"Remèdes_et_Antidotes\",Saisie!$I138=\"Sels_alchimiques\"),\"Normale\",\"Normale\"),\"\")","v":""},{"$f":"IF(Saisie!$I138<>\"\",IF(OR(Saisie!$I138=\"Herbes_de_soin\",Saisie!$I138=\"Herbes_diverses\",Saisie!$I138=\"Remèdes_et_Antidotes\",Saisie!$I138=\"Sels_alchimiques\"),\"Normale\",\"Bonne\"),\"\")","v":""},{"$f":"IF(Saisie!$I138<>\"\",IF(OR(Saisie!$I138=\"Herbes_de_soin\",Saisie!$I138=\"Herbes_diverses\",Saisie!$I138=\"Remèdes_et_Antidotes\",Saisie!$I138=\"Sels_alchimiques\"),\"Normale\",\"Excellente\"),\"\")","v":""}]
["md_qlté_139",{"$f":"IF(Saisie!$B139<>\"\",IF(OR(Saisie!$B139=\"Herbes_de_soin\",Saisie!$B139=\"Herbes_diverses\",Saisie!$B139=\"Remèdes_et_Antidotes\",Saisie!$B139=\"Sels_alchimiques\"),\"Normale\",\"Pitoyable\"),\"\")","v":"Pitoyable"},{"$f":"IF(Saisie!$B139<>\"\",IF(OR(Saisie!$B139=\"Herbes_de_soin\",Saisie!$B139=\"Herbes_diverses\",Saisie!$B139=\"Remèdes_et_Antidotes\",Saisie!$B139=\"Sels_alchimiques\"),\"Normale\",\"Mauvaise\"),\"\")","v":"Mauvaise"},{"$f":"IF(Saisie!$B139<>\"\",IF(OR(Saisie!$B139=\"Herbes_de_soin\",Saisie!$B139=\"Herbes_diverses\",Saisie!$B139=\"Remèdes_et_Antidotes\",Saisie!$B139=\"Sels_alchimiques\"),\"Normale\",\"Normale\"),\"\")","v":"Normale"},{"$f":"IF(Saisie!$B139<>\"\",IF(OR(Saisie!$B139=\"Herbes_de_soin\",Saisie!$B139=\"Herbes_diverses\",Saisie!$B139=\"Remèdes_et_Antidotes\",Saisie!$B139=\"Sels_alchimiques\"),\"Normale\",\"Bonne\"),\"\")","v":"Bonne"},{"$f":"IF(Saisie!$B139<>\"\",IF(OR(Saisie!$B139=\"Herbes_de_soin\",Saisie!$B139=\"Herbes_diverses\",Saisie!$B139=\"Remèdes_et_Antidotes\",Saisie!$B139=\"Sels_alchimiques\"),\"Normale\",\"Excellente\"),\"\")","v":"Excellente"},null,"md_qlté_L139",{"$f":"IF(Saisie!$I139<>\"\",IF(OR(Saisie!$I139=\"Herbes_de_soin\",Saisie!$I139=\"Herbes_diverses\",Saisie!$I139=\"Remèdes_et_Antidotes\",Saisie!$I139=\"Sels_alchimiques\"),\"Normale\",\"Pitoyable\"),\"\")","v":""},{"$f":"IF(Saisie!$I139<>\"\",IF(OR(Saisie!$I139=\"Herbes_de_soin\",Saisie!$I139=\"Herbes_diverses\",Saisie!$I139=\"Remèdes_et_Antidotes\",Saisie!$I139=\"Sels_alchimiques\"),\"Normale\",\"Mauvaise\"),\"\")","v":""},{"$f":"IF(Saisie!$I139<>\"\",IF(OR(Saisie!$I139=\"Herbes_de_soin\",Saisie!$I139=\"Herbes_diverses\",Saisie!$I139=\"Remèdes_et_Antidotes\",Saisie!$I139=\"Sels_alchimiques\"),\"Normale\",\"Normale\"),\"\")","v":""},{"$f":"IF(Saisie!$I139<>\"\",IF(OR(Saisie!$I139=\"Herbes_de_soin\",Saisie!$I139=\"Herbes_diverses\",Saisie!$I139=\"Remèdes_et_Antidotes\",Saisie!$I139=\"Sels_alchimiques\"),\"Normale\",\"Bonne\"),\"\")","v":""},{"$f":"IF(Saisie!$I139<>\"\",IF(OR(Saisie!$I139=\"Herbes_de_soin\",Saisie!$I139=\"Herbes_diverses\",Saisie!$I139=\"Remèdes_et_Antidotes\",Saisie!$I139=\"Sels_alchimiques\"),\"Normale\",\"Excellente\"),\"\")","v":""}]
["md_qlté_140",{"$f":"IF(Saisie!$B140<>\"\",IF(OR(Saisie!$B140=\"Herbes_de_soin\",Saisie!$B140=\"Herbes_diverses\",Saisie!$B140=\"Remèdes_et_Antidotes\",Saisie!$B140=\"Sels_alchimiques\"),\"Normale\",\"Pitoyable\"),\"\")","v":""},{"$f":"IF(Saisie!$B140<>\"\",IF(OR(Saisie!$B140=\"Herbes_de_soin\",Saisie!$B140=\"Herbes_diverses\",Saisie!$B140=\"Remèdes_et_Antidotes\",Saisie!$B140=\"Sels_alchimiques\"),\"Normale\",\"Mauvaise\"),\"\")","v":""},{"$f":"IF(Saisie!$B140<>\"\",IF(OR(Saisie!$B140=\"Herbes_de_soin\",Saisie!$B140=\"Herbes_diverses\",Saisie!$B140=\"Remèdes_et_Antidotes\",Saisie!$B140=\"Sels_alchimiques\"),\"Normale\",\"Normale\"),\"\")","v":""},{"$f":"IF(Saisie!$B140<>\"\",IF(OR(Saisie!$B140=\"Herbes_de_soin\",Saisie!$B140=\"Herbes_diverses\",Saisie!$B140=\"Remèdes_et_Antidotes\",Saisie!$B140=\"Sels_alchimiques\"),\"Normale\",\"Bonne\"),\"\")","v":""},{"$f":"IF(Saisie!$B140<>\"\",IF(OR(Saisie!$B140=\"Herbes_de_soin\",Saisie!$B140=\"Herbes_diverses\",Saisie!$B140=\"Remèdes_et_Antidotes\",Saisie!$B140=\"Sels_alchimiques\"),\"Normale\",\"Excellente\"),\"\")","v":""},null,"md_qlté_L140",{"$f":"IF(Saisie!$I140<>\"\",IF(OR(Saisie!$I140=\"Herbes_de_soin\",Saisie!$I140=\"Herbes_diverses\",Saisie!$I140=\"Remèdes_et_Antidotes\",Saisie!$I140=\"Sels_alchimiques\"),\"Normale\",\"Pitoyable\"),\"\")","v":"Pitoyable"},{"$f":"IF(Saisie!$I140<>\"\",IF(OR(Saisie!$I140=\"Herbes_de_soin\",Saisie!$I140=\"Herbes_diverses\",Saisie!$I140=\"Remèdes_et_Antidotes\",Saisie!$I140=\"Sels_alchimiques\"),\"Normale\",\"Mauvaise\"),\"\")","v":"Mauvaise"},{"$f":"IF(Saisie!$I140<>\"\",IF(OR(Saisie!$I140=\"Herbes_de_soin\",Saisie!$I140=\"Herbes_diverses\",Saisie!$I140=\"Remèdes_et_Antidotes\",Saisie!$I140=\"Sels_alchimiques\"),\"Normale\",\"Normale\"),\"\")","v":"Normale"},{"$f":"IF(Saisie!$I140<>\"\",IF(OR(Saisie!$I140=\"Herbes_de_soin\",Saisie!$I140=\"Herbes_diverses\",Saisie!$I140=\"Remèdes_et_Antidotes\",Saisie!$I140=\"Sels_alchimiques\"),\"Normale\",\"Bonne\"),\"\")","v":"Bonne"},{"$f":"IF(Saisie!$I140<>\"\",IF(OR(Saisie!$I140=\"Herbes_de_soin\",Saisie!$I140=\"Herbes_diverses\",Saisie!$I140=\"Remèdes_et_Antidotes\",Saisie!$I140=\"Sels_alchimiques\"),\"Normale\",\"Excellente\"),\"\")","v":"Excellente"}]
["md_qlté_141",{"$f":"IF(Saisie!$B141<>\"\",IF(OR(Saisie!$B141=\"Herbes_de_soin\",Saisie!$B141=\"Herbes_diverses\",Saisie!$B141=\"Remèdes_et_Antidotes\",Saisie!$B141=\"Sels_alchimiques\"),\"Normale\",\"Pitoyable\"),\"\")","v":""},{"$f":"IF(Saisie!$B141<>\"\",IF(OR(Saisie!$B141=\"Herbes_de_soin\",Saisie!$B141=\"Herbes_diverses\",Saisie!$B141=\"Remèdes_et_Antidotes\",Saisie!$B141=\"Sels_alchimiques\"),\"Normale\",\"Mauvaise\"),\"\")","v":""},{"$f":"IF(Saisie!$B141<>\"\",IF(OR(Saisie!$B141=\"Herbes_de_soin\",Saisie!$B141=\"Herbes_diverses\",Saisie!$B141=\"Remèdes_et_Antidotes\",Saisie!$B141=\"Sels_alchimiques\"),\"Normale\",\"Normale\"),\"\")","v":""},{"$f":"IF(Saisie!$B141<>\"\",IF(OR(Saisie!$B141=\"Herbes_de_soin\",Saisie!$B141=\"Herbes_diverses\",Saisie!$B141=\"Remèdes_et_Antidotes\",Saisie!$B141=\"Sels_alchimiques\"),\"Normale\",\"Bonne\"),\"\")","v":""},{"$f":"IF(Saisie!$B141<>\"\",IF(OR(Saisie!$B141=\"Herbes_de_soin\",Saisie!$B141=\"Herbes_diverses\",Saisie!$B141=\"Remèdes_et_Antidotes\",Saisie!$B141=\"Sels_alchimiques\"),\"Normale\",\"Excellente\"),\"\")","v":""},null,"md_qlté_L141",{"$f":"IF(Saisie!$I141<>\"\",IF(OR(Saisie!$I141=\"Herbes_de_soin\",Saisie!$I141=\"Herbes_diverses\",Saisie!$I141=\"Remèdes_et_Antidotes\",Saisie!$I141=\"Sels_alchimiques\"),\"Normale\",\"Pitoyable\"),\"\")","v":""},{"$f":"IF(Saisie!$I141<>\"\",IF(OR(Saisie!$I141=\"Herbes_de_soin\",Saisie!$I141=\"Herbes_diverses\",Saisie!$I141=\"Remèdes_et_Antidotes\",Saisie!$I141=\"Sels_alchimiques\"),\"Normale\",\"Mauvaise\"),\"\")","v":""},{"$f":"IF(Saisie!$I141<>\"\",IF(OR(Saisie!$I141=\"Herbes_de_soin\",Saisie!$I141=\"Herbes_diverses\",Saisie!$I141=\"Remèdes_et_Antidotes\",Saisie!$I141=\"Sels_alchimiques\"),\"Normale\",\"Normale\"),\"\")","v":""},{"$f":"IF(Saisie!$I141<>\"\",IF(OR(Saisie!$I141=\"Herbes_de_soin\",Saisie!$I141=\"Herbes_diverses\",Saisie!$I141=\"Remèdes_et_Antidotes\",Saisie!$I141=\"Sels_alchimiques\"),\"Normale\",\"Bonne\"),\"\")","v":""},{"$f":"IF(Saisie!$I141<>\"\",IF(OR(Saisie!$I141=\"Herbes_de_soin\",Saisie!$I141=\"Herbes_diverses\",Saisie!$I141=\"Remèdes_et_Antidotes\",Saisie!$I141=\"Sels_alchimiques\"),\"Normale\",\"Excellente\"),\"\")","v":""}]
["md_qlté_142",{"$f":"IF(Saisie!$B142<>\"\",IF(OR(Saisie!$B142=\"Herbes_de_soin\",Saisie!$B142=\"Herbes_diverses\",Saisie!$B142=\"Remèdes_et_Antidotes\",Saisie!$B142=\"Sels_alchimiques\"),\"Normale\",\"Pitoyable\"),\"\")","v":"Pitoyable"},{"$f":"IF(Saisie!$B142<>\"\",IF(OR(Saisie!$B142=\"Herbes_de_soin\",Saisie!$B142=\"Herbes_diverses\",Saisie!$B142=\"Remèdes_et_Antidotes\",Saisie!$B142=\"Sels_alchimiques\"),\"Normale\",\"Mauvaise\"),\"\")","v":"Mauvaise"},{"$f":"IF(Saisie!$B142<>\"\",IF(OR(Saisie!$B142=\"Herbes_de_soin\",Saisie!$B142=\"Herbes_diverses\",Saisie!$B142=\"Remèdes_et_Antidotes\",Saisie!$B142=\"Sels_alchimiques\"),\"Normale\",\"Normale\"),\"\")","v":"Normale"},{"$f":"IF(Saisie!$B142<>\"\",IF(OR(Saisie!$B142=\"Herbes_de_soin\",Saisie!$B142=\"Herbes_diverses\",Saisie!$B142=\"Remèdes_et_Antidotes\",Saisie!$B142=\"Sels_alchimiques\"),\"Normale\",\"Bonne\"),\"\")","v":"Bonne"},{"$f":"IF(Saisie!$B142<>\"\",IF(OR(Saisie!$B142=\"Herbes_de_soin\",Saisie!$B142=\"Herbes_diverses\",Saisie!$B142=\"Remèdes_et_Antidotes\",Saisie!$B142=\"Sels_alchimiques\"),\"Normale\",\"Excellente\"),\"\")","v":"Excellente"},null,"md_qlté_L142",{"$f":"IF(Saisie!$I142<>\"\",IF(OR(Saisie!$I142=\"Herbes_de_soin\",Saisie!$I142=\"Herbes_diverses\",Saisie!$I142=\"Remèdes_et_Antidotes\",Saisie!$I142=\"Sels_alchimiques\"),\"Normale\",\"Pitoyable\"),\"\")","v":""},{"$f":"IF(Saisie!$I142<>\"\",IF(OR(Saisie!$I142=\"Herbes_de_soin\",Saisie!$I142=\"Herbes_diverses\",Saisie!$I142=\"Remèdes_et_Antidotes\",Saisie!$I142=\"Sels_alchimiques\"),\"Normale\",\"Mauvaise\"),\"\")","v":""},{"$f":"IF(Saisie!$I142<>\"\",IF(OR(Saisie!$I142=\"Herbes_de_soin\",Saisie!$I142=\"Herbes_diverses\",Saisie!$I142=\"Remèdes_et_Antidotes\",Saisie!$I142=\"Sels_alchimiques\"),\"Normale\",\"Normale\"),\"\")","v":""},{"$f":"IF(Saisie!$I142<>\"\",IF(OR(Saisie!$I142=\"Herbes_de_soin\",Saisie!$I142=\"Herbes_diverses\",Saisie!$I142=\"Remèdes_et_Antidotes\",Saisie!$I142=\"Sels_alchimiques\"),\"Normale\",\"Bonne\"),\"\")","v":""},{"$f":"IF(Saisie!$I142<>\"\",IF(OR(Saisie!$I142=\"Herbes_de_soin\",Saisie!$I142=\"Herbes_diverses\",Saisie!$I142=\"Remèdes_et_Antidotes\",Saisie!$I142=\"Sels_alchimiques\"),\"Normale\",\"Excellente\"),\"\")","v":""}]
["md_qlté_143",{"$f":"IF(Saisie!$B143<>\"\",IF(OR(Saisie!$B143=\"Herbes_de_soin\",Saisie!$B143=\"Herbes_diverses\",Saisie!$B143=\"Remèdes_et_Antidotes\",Saisie!$B143=\"Sels_alchimiques\"),\"Normale\",\"Pitoyable\"),\"\")","v":""},{"$f":"IF(Saisie!$B143<>\"\",IF(OR(Saisie!$B143=\"Herbes_de_soin\",Saisie!$B143=\"Herbes_diverses\",Saisie!$B143=\"Remèdes_et_Antidotes\",Saisie!$B143=\"Sels_alchimiques\"),\"Normale\",\"Mauvaise\"),\"\")","v":""},{"$f":"IF(Saisie!$B143<>\"\",IF(OR(Saisie!$B143=\"Herbes_de_soin\",Saisie!$B143=\"Herbes_diverses\",Saisie!$B143=\"Remèdes_et_Antidotes\",Saisie!$B143=\"Sels_alchimiques\"),\"Normale\",\"Normale\"),\"\")","v":""},{"$f":"IF(Saisie!$B143<>\"\",IF(OR(Saisie!$B143=\"Herbes_de_soin\",Saisie!$B143=\"Herbes_diverses\",Saisie!$B143=\"Remèdes_et_Antidotes\",Saisie!$B143=\"Sels_alchimiques\"),\"Normale\",\"Bonne\"),\"\")","v":""},{"$f":"IF(Saisie!$B143<>\"\",IF(OR(Saisie!$B143=\"Herbes_de_soin\",Saisie!$B143=\"Herbes_diverses\",Saisie!$B143=\"Remèdes_et_Antidotes\",Saisie!$B143=\"Sels_alchimiques\"),\"Normale\",\"Excellente\"),\"\")","v":""},null,"md_qlté_L143",{"$f":"IF(Saisie!$I143<>\"\",IF(OR(Saisie!$I143=\"Herbes_de_soin\",Saisie!$I143=\"Herbes_diverses\",Saisie!$I143=\"Remèdes_et_Antidotes\",Saisie!$I143=\"Sels_alchimiques\"),\"Normale\",\"Pitoyable\"),\"\")","v":"Pitoyable"},{"$f":"IF(Saisie!$I143<>\"\",IF(OR(Saisie!$I143=\"Herbes_de_soin\",Saisie!$I143=\"Herbes_diverses\",Saisie!$I143=\"Remèdes_et_Antidotes\",Saisie!$I143=\"Sels_alchimiques\"),\"Normale\",\"Mauvaise\"),\"\")","v":"Mauvaise"},{"$f":"IF(Saisie!$I143<>\"\",IF(OR(Saisie!$I143=\"Herbes_de_soin\",Saisie!$I143=\"Herbes_diverses\",Saisie!$I143=\"Remèdes_et_Antidotes\",Saisie!$I143=\"Sels_alchimiques\"),\"Normale\",\"Normale\"),\"\")","v":"Normale"},{"$f":"IF(Saisie!$I143<>\"\",IF(OR(Saisie!$I143=\"Herbes_de_soin\",Saisie!$I143=\"Herbes_diverses\",Saisie!$I143=\"Remèdes_et_Antidotes\",Saisie!$I143=\"Sels_alchimiques\"),\"Normale\",\"Bonne\"),\"\")","v":"Bonne"},{"$f":"IF(Saisie!$I143<>\"\",IF(OR(Saisie!$I143=\"Herbes_de_soin\",Saisie!$I143=\"Herbes_diverses\",Saisie!$I143=\"Remèdes_et_Antidotes\",Saisie!$I143=\"Sels_alchimiques\"),\"Normale\",\"Excellente\"),\"\")","v":"Excellente"}]
["md_qlté_144",{"$f":"IF(Saisie!$B144<>\"\",IF(OR(Saisie!$B144=\"Herbes_de_soin\",Saisie!$B144=\"Herbes_diverses\",Saisie!$B144=\"Remèdes_et_Antidotes\",Saisie!$B144=\"Sels_alchimiques\"),\"Normale\",\"Pitoyable\"),\"\")","v":""},{"$f":"IF(Saisie!$B144<>\"\",IF(OR(Saisie!$B144=\"Herbes_de_soin\",Saisie!$B144=\"Herbes_diverses\",Saisie!$B144=\"Remèdes_et_Antidotes\",Saisie!$B144=\"Sels_alchimiques\"),\"Normale\",\"Mauvaise\"),\"\")","v":""},{"$f":"IF(Saisie!$B144<>\"\",IF(OR(Saisie!$B144=\"Herbes_de_soin\",Saisie!$B144=\"Herbes_diverses\",Saisie!$B144=\"Remèdes_et_Antidotes\",Saisie!$B144=\"Sels_alchimiques\"),\"Normale\",\"Normale\"),\"\")","v":""},{"$f":"IF(Saisie!$B144<>\"\",IF(OR(Saisie!$B144=\"Herbes_de_soin\",Saisie!$B144=\"Herbes_diverses\",Saisie!$B144=\"Remèdes_et_Antidotes\",Saisie!$B144=\"Sels_alchimiques\"),\"Normale\",\"Bonne\"),\"\")","v":""},{"$f":"IF(Saisie!$B144<>\"\",IF(OR(Saisie!$B144=\"Herbes_de_soin\",Saisie!$B144=\"Herbes_diverses\",Saisie!$B144=\"Remèdes_et_Antidotes\",Saisie!$B144=\"Sels_alchimiques\"),\"Normale\",\"Excellente\"),\"\")","v":""},null,"md_qlté_L144",{"$f":"IF(Saisie!$I144<>\"\",IF(OR(Saisie!$I144=\"Herbes_de_soin\",Saisie!$I144=\"Herbes_diverses\",Saisie!$I144=\"Remèdes_et_Antidotes\",Saisie!$I144=\"Sels_alchimiques\"),\"Normale\",\"Pitoyable\"),\"\")","v":""},{"$f":"IF(Saisie!$I144<>\"\",IF(OR(Saisie!$I144=\"Herbes_de_soin\",Saisie!$I144=\"Herbes_diverses\",Saisie!$I144=\"Remèdes_et_Antidotes\",Saisie!$I144=\"Sels_alchimiques\"),\"Normale\",\"Mauvaise\"),\"\")","v":""},{"$f":"IF(Saisie!$I144<>\"\",IF(OR(Saisie!$I144=\"Herbes_de_soin\",Saisie!$I144=\"Herbes_diverses\",Saisie!$I144=\"Remèdes_et_Antidotes\",Saisie!$I144=\"Sels_alchimiques\"),\"Normale\",\"Normale\"),\"\")","v":""},{"$f":"IF(Saisie!$I144<>\"\",IF(OR(Saisie!$I144=\"Herbes_de_soin\",Saisie!$I144=\"Herbes_diverses\",Saisie!$I144=\"Remèdes_et_Antidotes\",Saisie!$I144=\"Sels_alchimiques\"),\"Normale\",\"Bonne\"),\"\")","v":""},{"$f":"IF(Saisie!$I144<>\"\",IF(OR(Saisie!$I144=\"Herbes_de_soin\",Saisie!$I144=\"Herbes_diverses\",Saisie!$I144=\"Remèdes_et_Antidotes\",Saisie!$I144=\"Sels_alchimiques\"),\"Normale\",\"Excellente\"),\"\")","v":""}]
["md_qlté_145",{"$f":"IF(Saisie!$B145<>\"\",IF(OR(Saisie!$B145=\"Herbes_de_soin\",Saisie!$B145=\"Herbes_diverses\",Saisie!$B145=\"Remèdes_et_Antidotes\",Saisie!$B145=\"Sels_alchimiques\"),\"Normale\",\"Pitoyable\"),\"\")","v":""},{"$f":"IF(Saisie!$B145<>\"\",IF(OR(Saisie!$B145=\"Herbes_de_soin\",Saisie!$B145=\"Herbes_diverses\",Saisie!$B145=\"Remèdes_et_Antidotes\",Saisie!$B145=\"Sels_alchimiques\"),\"Normale\",\"Mauvaise\"),\"\")","v":""},{"$f":"IF(Saisie!$B145<>\"\",IF(OR(Saisie!$B145=\"Herbes_de_soin\",Saisie!$B145=\"Herbes_diverses\",Saisie!$B145=\"Remèdes_et_Antidotes\",Saisie!$B145=\"Sels_alchimiques\"),\"Normale\",\"Normale\"),\"\")","v":""},{"$f":"IF(Saisie!$B145<>\"\",IF(OR(Saisie!$B145=\"Herbes_de_soin\",Saisie!$B145=\"Herbes_diverses\",Saisie!$B145=\"Remèdes_et_Antidotes\",Saisie!$B145=\"Sels_alchimiques\"),\"Normale\",\"Bonne\"),\"\")","v":""},{"$f":"IF(Saisie!$B145<>\"\",IF(OR(Saisie!$B145=\"Herbes_de_soin\",Saisie!$B145=\"Herbes_diverses\",Saisie!$B145=\"Remèdes_et_Antidotes\",Saisie!$B145=\"Sels_alchimiques\"),\"Normale\",\"Excellente\"),\"\")","v":""},null,"md_qlté_L145",{"$f":"IF(Saisie!$I145<>\"\",IF(OR(Saisie!$I145=\"Herbes_de_soin\",Saisie!$I145=\"Herbes_diverses\",Saisie!$I145=\"Remèdes_et_Antidotes\",Saisie!$I145=\"Sels_alchimiques\"),\"Normale\",\"Pitoyable\"),\"\")","v":""},{"$f":"IF(Saisie!$I145<>\"\",IF(OR(Saisie!$I145=\"Herbes_de_soin\",Saisie!$I145=\"Herbes_diverses\",Saisie!$I145=\"Remèdes_et_Antidotes\",Saisie!$I145=\"Sels_alchimiques\"),\"Normale\",\"Mauvaise\"),\"\")","v":""},{"$f":"IF(Saisie!$I145<>\"\",IF(OR(Saisie!$I145=\"Herbes_de_soin\",Saisie!$I145=\"Herbes_diverses\",Saisie!$I145=\"Remèdes_et_Antidotes\",Saisie!$I145=\"Sels_alchimiques\"),\"Normale\",\"Normale\"),\"\")","v":""},{"$f":"IF(Saisie!$I145<>\"\",IF(OR(Saisie!$I145=\"Herbes_de_soin\",Saisie!$I145=\"Herbes_diverses\",Saisie!$I145=\"Remèdes_et_Antidotes\",Saisie!$I145=\"Sels_alchimiques\"),\"Normale\",\"Bonne\"),\"\")","v":""},{"$f":"IF(Saisie!$I145<>\"\",IF(OR(Saisie!$I145=\"Herbes_de_soin\",Saisie!$I145=\"Herbes_diverses\",Saisie!$I145=\"Remèdes_et_Antidotes\",Saisie!$I145=\"Sels_alchimiques\"),\"Normale\",\"Excellente\"),\"\")","v":""}]
["md_qlté_146",{"$f":"IF(Saisie!$B146<>\"\",IF(OR(Saisie!$B146=\"Herbes_de_soin\",Saisie!$B146=\"Herbes_diverses\",Saisie!$B146=\"Remèdes_et_Antidotes\",Saisie!$B146=\"Sels_alchimiques\"),\"Normale\",\"Pitoyable\"),\"\")","v":""},{"$f":"IF(Saisie!$B146<>\"\",IF(OR(Saisie!$B146=\"Herbes_de_soin\",Saisie!$B146=\"Herbes_diverses\",Saisie!$B146=\"Remèdes_et_Antidotes\",Saisie!$B146=\"Sels_alchimiques\"),\"Normale\",\"Mauvaise\"),\"\")","v":""},{"$f":"IF(Saisie!$B146<>\"\",IF(OR(Saisie!$B146=\"Herbes_de_soin\",Saisie!$B146=\"Herbes_diverses\",Saisie!$B146=\"Remèdes_et_Antidotes\",Saisie!$B146=\"Sels_alchimiques\"),\"Normale\",\"Normale\"),\"\")","v":""},{"$f":"IF(Saisie!$B146<>\"\",IF(OR(Saisie!$B146=\"Herbes_de_soin\",Saisie!$B146=\"Herbes_diverses\",Saisie!$B146=\"Remèdes_et_Antidotes\",Saisie!$B146=\"Sels_alchimiques\"),\"Normale\",\"Bonne\"),\"\")","v":""},{"$f":"IF(Saisie!$B146<>\"\",IF(OR(Saisie!$B146=\"Herbes_de_soin\",Saisie!$B146=\"Herbes_diverses\",Saisie!$B146=\"Remèdes_et_Antidotes\",Saisie!$B146=\"Sels_alchimiques\"),\"Normale\",\"Excellente\"),\"\")","v":""},null,"md_qlté_L146",{"$f":"IF(Saisie!$I146<>\"\",IF(OR(Saisie!$I146=\"Herbes_de_soin\",Saisie!$I146=\"Herbes_diverses\",Saisie!$I146=\"Remèdes_et_Antidotes\",Saisie!$I146=\"Sels_alchimiques\"),\"Normale\",\"Pitoyable\"),\"\")","v":""},{"$f":"IF(Saisie!$I146<>\"\",IF(OR(Saisie!$I146=\"Herbes_de_soin\",Saisie!$I146=\"Herbes_diverses\",Saisie!$I146=\"Remèdes_et_Antidotes\",Saisie!$I146=\"Sels_alchimiques\"),\"Normale\",\"Mauvaise\"),\"\")","v":""},{"$f":"IF(Saisie!$I146<>\"\",IF(OR(Saisie!$I146=\"Herbes_de_soin\",Saisie!$I146=\"Herbes_diverses\",Saisie!$I146=\"Remèdes_et_Antidotes\",Saisie!$I146=\"Sels_alchimiques\"),\"Normale\",\"Normale\"),\"\")","v":""},{"$f":"IF(Saisie!$I146<>\"\",IF(OR(Saisie!$I146=\"Herbes_de_soin\",Saisie!$I146=\"Herbes_diverses\",Saisie!$I146=\"Remèdes_et_Antidotes\",Saisie!$I146=\"Sels_alchimiques\"),\"Normale\",\"Bonne\"),\"\")","v":""},{"$f":"IF(Saisie!$I146<>\"\",IF(OR(Saisie!$I146=\"Herbes_de_soin\",Saisie!$I146=\"Herbes_diverses\",Saisie!$I146=\"Remèdes_et_Antidotes\",Saisie!$I146=\"Sels_alchimiques\"),\"Normale\",\"Excellente\"),\"\")","v":""}]
["md_qlté_147",{"$f":"IF(Saisie!$B147<>\"\",IF(OR(Saisie!$B147=\"Herbes_de_soin\",Saisie!$B147=\"Herbes_diverses\",Saisie!$B147=\"Remèdes_et_Antidotes\",Saisie!$B147=\"Sels_alchimiques\"),\"Normale\",\"Pitoyable\"),\"\")","v":""},{"$f":"IF(Saisie!$B147<>\"\",IF(OR(Saisie!$B147=\"Herbes_de_soin\",Saisie!$B147=\"Herbes_diverses\",Saisie!$B147=\"Remèdes_et_Antidotes\",Saisie!$B147=\"Sels_alchimiques\"),\"Normale\",\"Mauvaise\"),\"\")","v":""},{"$f":"IF(Saisie!$B147<>\"\",IF(OR(Saisie!$B147=\"Herbes_de_soin\",Saisie!$B147=\"Herbes_diverses\",Saisie!$B147=\"Remèdes_et_Antidotes\",Saisie!$B147=\"Sels_alchimiques\"),\"Normale\",\"Normale\"),\"\")","v":""},{"$f":"IF(Saisie!$B147<>\"\",IF(OR(Saisie!$B147=\"Herbes_de_soin\",Saisie!$B147=\"Herbes_diverses\",Saisie!$B147=\"Remèdes_et_Antidotes\",Saisie!$B147=\"Sels_alchimiques\"),\"Normale\",\"Bonne\"),\"\")","v":""},{"$f":"IF(Saisie!$B147<>\"\",IF(OR(Saisie!$B147=\"Herbes_de_soin\",Saisie!$B147=\"Herbes_diverses\",Saisie!$B147=\"Remèdes_et_Antidotes\",Saisie!$B147=\"Sels_alchimiques\"),\"Normale\",\"Excellente\"),\"\")","v":""},null,"md_qlté_L147",{"$f":"IF(Saisie!$I147<>\"\",IF(OR(Saisie!$I147=\"Herbes_de_soin\",Saisie!$I147=\"Herbes_diverses\",Saisie!$I147=\"Remèdes_et_Antidotes\",Saisie!$I147=\"Sels_alchimiques\"),\"Normale\",\"Pitoyable\"),\"\")","v":""},{"$f":"IF(Saisie!$I147<>\"\",IF(OR(Saisie!$I147=\"Herbes_de_soin\",Saisie!$I147=\"Herbes_diverses\",Saisie!$I147=\"Remèdes_et_Antidotes\",Saisie!$I147=\"Sels_alchimiques\"),\"Normale\",\"Mauvaise\"),\"\")","v":""},{"$f":"IF(Saisie!$I147<>\"\",IF(OR(Saisie!$I147=\"Herbes_de_soin\",Saisie!$I147=\"Herbes_diverses\",Saisie!$I147=\"Remèdes_et_Antidotes\",Saisie!$I147=\"Sels_alchimiques\"),\"Normale\",\"Normale\"),\"\")","v":""},{"$f":"IF(Saisie!$I147<>\"\",IF(OR(Saisie!$I147=\"Herbes_de_soin\",Saisie!$I147=\"Herbes_diverses\",Saisie!$I147=\"Remèdes_et_Antidotes\",Saisie!$I147=\"Sels_alchimiques\"),\"Normale\",\"Bonne\"),\"\")","v":""},{"$f":"IF(Saisie!$I147<>\"\",IF(OR(Saisie!$I147=\"Herbes_de_soin\",Saisie!$I147=\"Herbes_diverses\",Saisie!$I147=\"Remèdes_et_Antidotes\",Saisie!$I147=\"Sels_alchimiques\"),\"Normale\",\"Excellente\"),\"\")","v":""}]
["md_qlté_148",{"$f":"IF(Saisie!$B148<>\"\",IF(OR(Saisie!$B148=\"Herbes_de_soin\",Saisie!$B148=\"Herbes_diverses\",Saisie!$B148=\"Remèdes_et_Antidotes\",Saisie!$B148=\"Sels_alchimiques\"),\"Normale\",\"Pitoyable\"),\"\")","v":""},{"$f":"IF(Saisie!$B148<>\"\",IF(OR(Saisie!$B148=\"Herbes_de_soin\",Saisie!$B148=\"Herbes_diverses\",Saisie!$B148=\"Remèdes_et_Antidotes\",Saisie!$B148=\"Sels_alchimiques\"),\"Normale\",\"Mauvaise\"),\"\")","v":""},{"$f":"IF(Saisie!$B148<>\"\",IF(OR(Saisie!$B148=\"Herbes_de_soin\",Saisie!$B148=\"Herbes_diverses\",Saisie!$B148=\"Remèdes_et_Antidotes\",Saisie!$B148=\"Sels_alchimiques\"),\"Normale\",\"Normale\"),\"\")","v":""},{"$f":"IF(Saisie!$B148<>\"\",IF(OR(Saisie!$B148=\"Herbes_de_soin\",Saisie!$B148=\"Herbes_diverses\",Saisie!$B148=\"Remèdes_et_Antidotes\",Saisie!$B148=\"Sels_alchimiques\"),\"Normale\",\"Bonne\"),\"\")","v":""},{"$f":"IF(Saisie!$B148<>\"\",IF(OR(Saisie!$B148=\"Herbes_de_soin\",Saisie!$B148=\"Herbes_diverses\",Saisie!$B148=\"Remèdes_et_Antidotes\",Saisie!$B148=\"Sels_alchimiques\"),\"Normale\",\"Excellente\"),\"\")","v":""},null,"md_qlté_L148",{"$f":"IF(Saisie!$I148<>\"\",IF(OR(Saisie!$I148=\"Herbes_de_soin\",Saisie!$I148=\"Herbes_diverses\",Saisie!$I148=\"Remèdes_et_Antidotes\",Saisie!$I148=\"Sels_alchimiques\"),\"Normale\",\"Pitoyable\"),\"\")","v":""},{"$f":"IF(Saisie!$I148<>\"\",IF(OR(Saisie!$I148=\"Herbes_de_soin\",Saisie!$I148=\"Herbes_diverses\",Saisie!$I148=\"Remèdes_et_Antidotes\",Saisie!$I148=\"Sels_alchimiques\"),\"Normale\",\"Mauvaise\"),\"\")","v":""},{"$f":"IF(Saisie!$I148<>\"\",IF(OR(Saisie!$I148=\"Herbes_de_soin\",Saisie!$I148=\"Herbes_diverses\",Saisie!$I148=\"Remèdes_et_Antidotes\",Saisie!$I148=\"Sels_alchimiques\"),\"Normale\",\"Normale\"),\"\")","v":""},{"$f":"IF(Saisie!$I148<>\"\",IF(OR(Saisie!$I148=\"Herbes_de_soin\",Saisie!$I148=\"Herbes_diverses\",Saisie!$I148=\"Remèdes_et_Antidotes\",Saisie!$I148=\"Sels_alchimiques\"),\"Normale\",\"Bonne\"),\"\")","v":""},{"$f":"IF(Saisie!$I148<>\"\",IF(OR(Saisie!$I148=\"Herbes_de_soin\",Saisie!$I148=\"Herbes_diverses\",Saisie!$I148=\"Remèdes_et_Antidotes\",Saisie!$I148=\"Sels_alchimiques\"),\"Normale\",\"Excellente\"),\"\")","v":""}]
["md_qlté_149",{"$f":"IF(Saisie!$B149<>\"\",IF(OR(Saisie!$B149=\"Herbes_de_soin\",Saisie!$B149=\"Herbes_diverses\",Saisie!$B149=\"Remèdes_et_Antidotes\",Saisie!$B149=\"Sels_alchimiques\"),\"Normale\",\"Pitoyable\"),\"\")","v":""},{"$f":"IF(Saisie!$B149<>\"\",IF(OR(Saisie!$B149=\"Herbes_de_soin\",Saisie!$B149=\"Herbes_diverses\",Saisie!$B149=\"Remèdes_et_Antidotes\",Saisie!$B149=\"Sels_alchimiques\"),\"Normale\",\"Mauvaise\"),\"\")","v":""},{"$f":"IF(Saisie!$B149<>\"\",IF(OR(Saisie!$B149=\"Herbes_de_soin\",Saisie!$B149=\"Herbes_diverses\",Saisie!$B149=\"Remèdes_et_Antidotes\",Saisie!$B149=\"Sels_alchimiques\"),\"Normale\",\"Normale\"),\"\")","v":""},{"$f":"IF(Saisie!$B149<>\"\",IF(OR(Saisie!$B149=\"Herbes_de_soin\",Saisie!$B149=\"Herbes_diverses\",Saisie!$B149=\"Remèdes_et_Antidotes\",Saisie!$B149=\"Sels_alchimiques\"),\"Normale\",\"Bonne\"),\"\")","v":""},{"$f":"IF(Saisie!$B149<>\"\",IF(OR(Saisie!$B149=\"Herbes_de_soin\",Saisie!$B149=\"Herbes_diverses\",Saisie!$B149=\"Remèdes_et_Antidotes\",Saisie!$B149=\"Sels_alchimiques\"),\"Normale\",\"Excellente\"),\"\")","v":""},null,"md_qlté_L149",{"$f":"IF(Saisie!$I149<>\"\",IF(OR(Saisie!$I149=\"Herbes_de_soin\",Saisie!$I149=\"Herbes_diverses\",Saisie!$I149=\"Remèdes_et_Antidotes\",Saisie!$I149=\"Sels_alchimiques\"),\"Normale\",\"Pitoyable\"),\"\")","v":""},{"$f":"IF(Saisie!$I149<>\"\",IF(OR(Saisie!$I149=\"Herbes_de_soin\",Saisie!$I149=\"Herbes_diverses\",Saisie!$I149=\"Remèdes_et_Antidotes\",Saisie!$I149=\"Sels_alchimiques\"),\"Normale\",\"Mauvaise\"),\"\")","v":""},{"$f":"IF(Saisie!$I149<>\"\",IF(OR(Saisie!$I149=\"Herbes_de_soin\",Saisie!$I149=\"Herbes_diverses\",Saisie!$I149=\"Remèdes_et_Antidotes\",Saisie!$I149=\"Sels_alchimiques\"),\"Normale\",\"Normale\"),\"\")","v":""},{"$f":"IF(Saisie!$I149<>\"\",IF(OR(Saisie!$I149=\"Herbes_de_soin\",Saisie!$I149=\"Herbes_diverses\",Saisie!$I149=\"Remèdes_et_Antidotes\",Saisie!$I149=\"Sels_alchimiques\"),\"Normale\",\"Bonne\"),\"\")","v":""},{"$f":"IF(Saisie!$I149<>\"\",IF(OR(Saisie!$I149=\"Herbes_de_soin\",Saisie!$I149=\"Herbes_diverses\",Saisie!$I149=\"Remèdes_et_Antidotes\",Saisie!$I149=\"Sels_alchimiques\"),\"Normale\",\"Excellente\"),\"\")","v":""}]
["md_qlté_150",{"$f":"IF(Saisie!$B150<>\"\",IF(OR(Saisie!$B150=\"Herbes_de_soin\",Saisie!$B150=\"Herbes_diverses\",Saisie!$B150=\"Remèdes_et_Antidotes\",Saisie!$B150=\"Sels_alchimiques\"),\"Normale\",\"Pitoyable\"),\"\")","v":""},{"$f":"IF(Saisie!$B150<>\"\",IF(OR(Saisie!$B150=\"Herbes_de_soin\",Saisie!$B150=\"Herbes_diverses\",Saisie!$B150=\"Remèdes_et_Antidotes\",Saisie!$B150=\"Sels_alchimiques\"),\"Normale\",\"Mauvaise\"),\"\")","v":""},{"$f":"IF(Saisie!$B150<>\"\",IF(OR(Saisie!$B150=\"Herbes_de_soin\",Saisie!$B150=\"Herbes_diverses\",Saisie!$B150=\"Remèdes_et_Antidotes\",Saisie!$B150=\"Sels_alchimiques\"),\"Normale\",\"Normale\"),\"\")","v":""},{"$f":"IF(Saisie!$B150<>\"\",IF(OR(Saisie!$B150=\"Herbes_de_soin\",Saisie!$B150=\"Herbes_diverses\",Saisie!$B150=\"Remèdes_et_Antidotes\",Saisie!$B150=\"Sels_alchimiques\"),\"Normale\",\"Bonne\"),\"\")","v":""},{"$f":"IF(Saisie!$B150<>\"\",IF(OR(Saisie!$B150=\"Herbes_de_soin\",Saisie!$B150=\"Herbes_diverses\",Saisie!$B150=\"Remèdes_et_Antidotes\",Saisie!$B150=\"Sels_alchimiques\"),\"Normale\",\"Excellente\"),\"\")","v":""},null,"md_qlté_L150",{"$f":"IF(Saisie!$I150<>\"\",IF(OR(Saisie!$I150=\"Herbes_de_soin\",Saisie!$I150=\"Herbes_diverses\",Saisie!$I150=\"Remèdes_et_Antidotes\",Saisie!$I150=\"Sels_alchimiques\"),\"Normale\",\"Pitoyable\"),\"\")","v":""},{"$f":"IF(Saisie!$I150<>\"\",IF(OR(Saisie!$I150=\"Herbes_de_soin\",Saisie!$I150=\"Herbes_diverses\",Saisie!$I150=\"Remèdes_et_Antidotes\",Saisie!$I150=\"Sels_alchimiques\"),\"Normale\",\"Mauvaise\"),\"\")","v":""},{"$f":"IF(Saisie!$I150<>\"\",IF(OR(Saisie!$I150=\"Herbes_de_soin\",Saisie!$I150=\"Herbes_diverses\",Saisie!$I150=\"Remèdes_et_Antidotes\",Saisie!$I150=\"Sels_alchimiques\"),\"Normale\",\"Normale\"),\"\")","v":""},{"$f":"IF(Saisie!$I150<>\"\",IF(OR(Saisie!$I150=\"Herbes_de_soin\",Saisie!$I150=\"Herbes_diverses\",Saisie!$I150=\"Remèdes_et_Antidotes\",Saisie!$I150=\"Sels_alchimiques\"),\"Normale\",\"Bonne\"),\"\")","v":""},{"$f":"IF(Saisie!$I150<>\"\",IF(OR(Saisie!$I150=\"Herbes_de_soin\",Saisie!$I150=\"Herbes_diverses\",Saisie!$I150=\"Remèdes_et_Antidotes\",Saisie!$I150=\"Sels_alchimiques\"),\"Normale\",\"Excellente\"),\"\")","v":""}]
["md_qlté_151",{"$f":"IF(Saisie!$B151<>\"\",IF(OR(Saisie!$B151=\"Herbes_de_soin\",Saisie!$B151=\"Herbes_diverses\",Saisie!$B151=\"Remèdes_et_Antidotes\",Saisie!$B151=\"Sels_alchimiques\"),\"Normale\",\"Pitoyable\"),\"\")","v":"Pitoyable"},{"$f":"IF(Saisie!$B151<>\"\",IF(OR(Saisie!$B151=\"Herbes_de_soin\",Saisie!$B151=\"Herbes_diverses\",Saisie!$B151=\"Remèdes_et_Antidotes\",Saisie!$B151=\"Sels_alchimiques\"),\"Normale\",\"Mauvaise\"),\"\")","v":"Mauvaise"},{"$f":"IF(Saisie!$B151<>\"\",IF(OR(Saisie!$B151=\"Herbes_de_soin\",Saisie!$B151=\"Herbes_diverses\",Saisie!$B151=\"Remèdes_et_Antidotes\",Saisie!$B151=\"Sels_alchimiques\"),\"Normale\",\"Normale\"),\"\")","v":"Normale"},{"$f":"IF(Saisie!$B151<>\"\",IF(OR(Saisie!$B151=\"Herbes_de_soin\",Saisie!$B151=\"Herbes_diverses\",Saisie!$B151=\"Remèdes_et_Antidotes\",Saisie!$B151=\"Sels_alchimiques\"),\"Normale\",\"Bonne\"),\"\")","v":"Bonne"},{"$f":"IF(Saisie!$B151<>\"\",IF(OR(Saisie!$B151=\"Herbes_de_soin\",Saisie!$B151=\"Herbes_diverses\",Saisie!$B151=\"Remèdes_et_Antidotes\",Saisie!$B151=\"Sels_alchimiques\"),\"Normale\",\"Excellente\"),\"\")","v":"Excellente"},null,"md_qlté_L151",{"$f":"IF(Saisie!$I151<>\"\",IF(OR(Saisie!$I151=\"Herbes_de_soin\",Saisie!$I151=\"Herbes_diverses\",Saisie!$I151=\"Remèdes_et_Antidotes\",Saisie!$I151=\"Sels_alchimiques\"),\"Normale\",\"Pitoyable\"),\"\")","v":""},{"$f":"IF(Saisie!$I151<>\"\",IF(OR(Saisie!$I151=\"Herbes_de_soin\",Saisie!$I151=\"Herbes_diverses\",Saisie!$I151=\"Remèdes_et_Antidotes\",Saisie!$I151=\"Sels_alchimiques\"),\"Normale\",\"Mauvaise\"),\"\")","v":""},{"$f":"IF(Saisie!$I151<>\"\",IF(OR(Saisie!$I151=\"Herbes_de_soin\",Saisie!$I151=\"Herbes_diverses\",Saisie!$I151=\"Remèdes_et_Antidotes\",Saisie!$I151=\"Sels_alchimiques\"),\"Normale\",\"Normale\"),\"\")","v":""},{"$f":"IF(Saisie!$I151<>\"\",IF(OR(Saisie!$I151=\"Herbes_de_soin\",Saisie!$I151=\"Herbes_diverses\",Saisie!$I151=\"Remèdes_et_Antidotes\",Saisie!$I151=\"Sels_alchimiques\"),\"Normale\",\"Bonne\"),\"\")","v":""},{"$f":"IF(Saisie!$I151<>\"\",IF(OR(Saisie!$I151=\"Herbes_de_soin\",Saisie!$I151=\"Herbes_diverses\",Saisie!$I151=\"Remèdes_et_Antidotes\",Saisie!$I151=\"Sels_alchimiques\"),\"Normale\",\"Excellente\"),\"\")","v":""}]
["md_qlté_152",{"$f":"IF(Saisie!$B152<>\"\",IF(OR(Saisie!$B152=\"Herbes_de_soin\",Saisie!$B152=\"Herbes_diverses\",Saisie!$B152=\"Remèdes_et_Antidotes\",Saisie!$B152=\"Sels_alchimiques\"),\"Normale\",\"Pitoyable\"),\"\")","v":""},{"$f":"IF(Saisie!$B152<>\"\",IF(OR(Saisie!$B152=\"Herbes_de_soin\",Saisie!$B152=\"Herbes_diverses\",Saisie!$B152=\"Remèdes_et_Antidotes\",Saisie!$B152=\"Sels_alchimiques\"),\"Normale\",\"Mauvaise\"),\"\")","v":""},{"$f":"IF(Saisie!$B152<>\"\",IF(OR(Saisie!$B152=\"Herbes_de_soin\",Saisie!$B152=\"Herbes_diverses\",Saisie!$B152=\"Remèdes_et_Antidotes\",Saisie!$B152=\"Sels_alchimiques\"),\"Normale\",\"Normale\"),\"\")","v":""},{"$f":"IF(Saisie!$B152<>\"\",IF(OR(Saisie!$B152=\"Herbes_de_soin\",Saisie!$B152=\"Herbes_diverses\",Saisie!$B152=\"Remèdes_et_Antidotes\",Saisie!$B152=\"Sels_alchimiques\"),\"Normale\",\"Bonne\"),\"\")","v":""},{"$f":"IF(Saisie!$B152<>\"\",IF(OR(Saisie!$B152=\"Herbes_de_soin\",Saisie!$B152=\"Herbes_diverses\",Saisie!$B152=\"Remèdes_et_Antidotes\",Saisie!$B152=\"Sels_alchimiques\"),\"Normale\",\"Excellente\"),\"\")","v":""},null,"md_qlté_L152",{"$f":"IF(Saisie!$I152<>\"\",IF(OR(Saisie!$I152=\"Herbes_de_soin\",Saisie!$I152=\"Herbes_diverses\",Saisie!$I152=\"Remèdes_et_Antidotes\",Saisie!$I152=\"Sels_alchimiques\"),\"Normale\",\"Pitoyable\"),\"\")","v":""},{"$f":"IF(Saisie!$I152<>\"\",IF(OR(Saisie!$I152=\"Herbes_de_soin\",Saisie!$I152=\"Herbes_diverses\",Saisie!$I152=\"Remèdes_et_Antidotes\",Saisie!$I152=\"Sels_alchimiques\"),\"Normale\",\"Mauvaise\"),\"\")","v":""},{"$f":"IF(Saisie!$I152<>\"\",IF(OR(Saisie!$I152=\"Herbes_de_soin\",Saisie!$I152=\"Herbes_diverses\",Saisie!$I152=\"Remèdes_et_Antidotes\",Saisie!$I152=\"Sels_alchimiques\"),\"Normale\",\"Normale\"),\"\")","v":""},{"$f":"IF(Saisie!$I152<>\"\",IF(OR(Saisie!$I152=\"Herbes_de_soin\",Saisie!$I152=\"Herbes_diverses\",Saisie!$I152=\"Remèdes_et_Antidotes\",Saisie!$I152=\"Sels_alchimiques\"),\"Normale\",\"Bonne\"),\"\")","v":""},{"$f":"IF(Saisie!$I152<>\"\",IF(OR(Saisie!$I152=\"Herbes_de_soin\",Saisie!$I152=\"Herbes_diverses\",Saisie!$I152=\"Remèdes_et_Antidotes\",Saisie!$I152=\"Sels_alchimiques\"),\"Normale\",\"Excellente\"),\"\")","v":""}]
["md_qlté_153",{"$f":"IF(Saisie!$B153<>\"\",IF(OR(Saisie!$B153=\"Herbes_de_soin\",Saisie!$B153=\"Herbes_diverses\",Saisie!$B153=\"Remèdes_et_Antidotes\",Saisie!$B153=\"Sels_alchimiques\"),\"Normale\",\"Pitoyable\"),\"\")","v":""},{"$f":"IF(Saisie!$B153<>\"\",IF(OR(Saisie!$B153=\"Herbes_de_soin\",Saisie!$B153=\"Herbes_diverses\",Saisie!$B153=\"Remèdes_et_Antidotes\",Saisie!$B153=\"Sels_alchimiques\"),\"Normale\",\"Mauvaise\"),\"\")","v":""},{"$f":"IF(Saisie!$B153<>\"\",IF(OR(Saisie!$B153=\"Herbes_de_soin\",Saisie!$B153=\"Herbes_diverses\",Saisie!$B153=\"Remèdes_et_Antidotes\",Saisie!$B153=\"Sels_alchimiques\"),\"Normale\",\"Normale\"),\"\")","v":""},{"$f":"IF(Saisie!$B153<>\"\",IF(OR(Saisie!$B153=\"Herbes_de_soin\",Saisie!$B153=\"Herbes_diverses\",Saisie!$B153=\"Remèdes_et_Antidotes\",Saisie!$B153=\"Sels_alchimiques\"),\"Normale\",\"Bonne\"),\"\")","v":""},{"$f":"IF(Saisie!$B153<>\"\",IF(OR(Saisie!$B153=\"Herbes_de_soin\",Saisie!$B153=\"Herbes_diverses\",Saisie!$B153=\"Remèdes_et_Antidotes\",Saisie!$B153=\"Sels_alchimiques\"),\"Normale\",\"Excellente\"),\"\")","v":""},null,"md_qlté_L153",{"$f":"IF(Saisie!$I153<>\"\",IF(OR(Saisie!$I153=\"Herbes_de_soin\",Saisie!$I153=\"Herbes_diverses\",Saisie!$I153=\"Remèdes_et_Antidotes\",Saisie!$I153=\"Sels_alchimiques\"),\"Normale\",\"Pitoyable\"),\"\")","v":""},{"$f":"IF(Saisie!$I153<>\"\",IF(OR(Saisie!$I153=\"Herbes_de_soin\",Saisie!$I153=\"Herbes_diverses\",Saisie!$I153=\"Remèdes_et_Antidotes\",Saisie!$I153=\"Sels_alchimiques\"),\"Normale\",\"Mauvaise\"),\"\")","v":""},{"$f":"IF(Saisie!$I153<>\"\",IF(OR(Saisie!$I153=\"Herbes_de_soin\",Saisie!$I153=\"Herbes_diverses\",Saisie!$I153=\"Remèdes_et_Antidotes\",Saisie!$I153=\"Sels_alchimiques\"),\"Normale\",\"Normale\"),\"\")","v":""},{"$f":"IF(Saisie!$I153<>\"\",IF(OR(Saisie!$I153=\"Herbes_de_soin\",Saisie!$I153=\"Herbes_diverses\",Saisie!$I153=\"Remèdes_et_Antidotes\",Saisie!$I153=\"Sels_alchimiques\"),\"Normale\",\"Bonne\"),\"\")","v":""},{"$f":"IF(Saisie!$I153<>\"\",IF(OR(Saisie!$I153=\"Herbes_de_soin\",Saisie!$I153=\"Herbes_diverses\",Saisie!$I153=\"Remèdes_et_Antidotes\",Saisie!$I153=\"Sels_alchimiques\"),\"Normale\",\"Excellente\"),\"\")","v":""}]
["md_qlté_154",{"$f":"IF(Saisie!$B154<>\"\",IF(OR(Saisie!$B154=\"Herbes_de_soin\",Saisie!$B154=\"Herbes_diverses\",Saisie!$B154=\"Remèdes_et_Antidotes\",Saisie!$B154=\"Sels_alchimiques\"),\"Normale\",\"Pitoyable\"),\"\")","v":""},{"$f":"IF(Saisie!$B154<>\"\",IF(OR(Saisie!$B154=\"Herbes_de_soin\",Saisie!$B154=\"Herbes_diverses\",Saisie!$B154=\"Remèdes_et_Antidotes\",Saisie!$B154=\"Sels_alchimiques\"),\"Normale\",\"Mauvaise\"),\"\")","v":""},{"$f":"IF(Saisie!$B154<>\"\",IF(OR(Saisie!$B154=\"Herbes_de_soin\",Saisie!$B154=\"Herbes_diverses\",Saisie!$B154=\"Remèdes_et_Antidotes\",Saisie!$B154=\"Sels_alchimiques\"),\"Normale\",\"Normale\"),\"\")","v":""},{"$f":"IF(Saisie!$B154<>\"\",IF(OR(Saisie!$B154=\"Herbes_de_soin\",Saisie!$B154=\"Herbes_diverses\",Saisie!$B154=\"Remèdes_et_Antidotes\",Saisie!$B154=\"Sels_alchimiques\"),\"Normale\",\"Bonne\"),\"\")","v":""},{"$f":"IF(Saisie!$B154<>\"\",IF(OR(Saisie!$B154=\"Herbes_de_soin\",Saisie!$B154=\"Herbes_diverses\",Saisie!$B154=\"Remèdes_et_Antidotes\",Saisie!$B154=\"Sels_alchimiques\"),\"Normale\",\"Excellente\"),\"\")","v":""},null,"md_qlté_L154",{"$f":"IF(Saisie!$I154<>\"\",IF(OR(Saisie!$I154=\"Herbes_de_soin\",Saisie!$I154=\"Herbes_diverses\",Saisie!$I154=\"Remèdes_et_Antidotes\",Saisie!$I154=\"Sels_alchimiques\"),\"Normale\",\"Pitoyable\"),\"\")","v":""},{"$f":"IF(Saisie!$I154<>\"\",IF(OR(Saisie!$I154=\"Herbes_de_soin\",Saisie!$I154=\"Herbes_diverses\",Saisie!$I154=\"Remèdes_et_Antidotes\",Saisie!$I154=\"Sels_alchimiques\"),\"Normale\",\"Mauvaise\"),\"\")","v":""},{"$f":"IF(Saisie!$I154<>\"\",IF(OR(Saisie!$I154=\"Herbes_de_soin\",Saisie!$I154=\"Herbes_diverses\",Saisie!$I154=\"Remèdes_et_Antidotes\",Saisie!$I154=\"Sels_alchimiques\"),\"Normale\",\"Normale\"),\"\")","v":""},{"$f":"IF(Saisie!$I154<>\"\",IF(OR(Saisie!$I154=\"Herbes_de_soin\",Saisie!$I154=\"Herbes_diverses\",Saisie!$I154=\"Remèdes_et_Antidotes\",Saisie!$I154=\"Sels_alchimiques\"),\"Normale\",\"Bonne\"),\"\")","v":""},{"$f":"IF(Saisie!$I154<>\"\",IF(OR(Saisie!$I154=\"Herbes_de_soin\",Saisie!$I154=\"Herbes_diverses\",Saisie!$I154=\"Remèdes_et_Antidotes\",Saisie!$I154=\"Sels_alchimiques\"),\"Normale\",\"Excellente\"),\"\")","v":""}]
["md_qlté_155",{"$f":"IF(Saisie!$B155<>\"\",IF(OR(Saisie!$B155=\"Herbes_de_soin\",Saisie!$B155=\"Herbes_diverses\",Saisie!$B155=\"Remèdes_et_Antidotes\",Saisie!$B155=\"Sels_alchimiques\"),\"Normale\",\"Pitoyable\"),\"\")","v":""},{"$f":"IF(Saisie!$B155<>\"\",IF(OR(Saisie!$B155=\"Herbes_de_soin\",Saisie!$B155=\"Herbes_diverses\",Saisie!$B155=\"Remèdes_et_Antidotes\",Saisie!$B155=\"Sels_alchimiques\"),\"Normale\",\"Mauvaise\"),\"\")","v":""},{"$f":"IF(Saisie!$B155<>\"\",IF(OR(Saisie!$B155=\"Herbes_de_soin\",Saisie!$B155=\"Herbes_diverses\",Saisie!$B155=\"Remèdes_et_Antidotes\",Saisie!$B155=\"Sels_alchimiques\"),\"Normale\",\"Normale\"),\"\")","v":""},{"$f":"IF(Saisie!$B155<>\"\",IF(OR(Saisie!$B155=\"Herbes_de_soin\",Saisie!$B155=\"Herbes_diverses\",Saisie!$B155=\"Remèdes_et_Antidotes\",Saisie!$B155=\"Sels_alchimiques\"),\"Normale\",\"Bonne\"),\"\")","v":""},{"$f":"IF(Saisie!$B155<>\"\",IF(OR(Saisie!$B155=\"Herbes_de_soin\",Saisie!$B155=\"Herbes_diverses\",Saisie!$B155=\"Remèdes_et_Antidotes\",Saisie!$B155=\"Sels_alchimiques\"),\"Normale\",\"Excellente\"),\"\")","v":""},null,"md_qlté_L155",{"$f":"IF(Saisie!$I155<>\"\",IF(OR(Saisie!$I155=\"Herbes_de_soin\",Saisie!$I155=\"Herbes_diverses\",Saisie!$I155=\"Remèdes_et_Antidotes\",Saisie!$I155=\"Sels_alchimiques\"),\"Normale\",\"Pitoyable\"),\"\")","v":""},{"$f":"IF(Saisie!$I155<>\"\",IF(OR(Saisie!$I155=\"Herbes_de_soin\",Saisie!$I155=\"Herbes_diverses\",Saisie!$I155=\"Remèdes_et_Antidotes\",Saisie!$I155=\"Sels_alchimiques\"),\"Normale\",\"Mauvaise\"),\"\")","v":""},{"$f":"IF(Saisie!$I155<>\"\",IF(OR(Saisie!$I155=\"Herbes_de_soin\",Saisie!$I155=\"Herbes_diverses\",Saisie!$I155=\"Remèdes_et_Antidotes\",Saisie!$I155=\"Sels_alchimiques\"),\"Normale\",\"Normale\"),\"\")","v":""},{"$f":"IF(Saisie!$I155<>\"\",IF(OR(Saisie!$I155=\"Herbes_de_soin\",Saisie!$I155=\"Herbes_diverses\",Saisie!$I155=\"Remèdes_et_Antidotes\",Saisie!$I155=\"Sels_alchimiques\"),\"Normale\",\"Bonne\"),\"\")","v":""},{"$f":"IF(Saisie!$I155<>\"\",IF(OR(Saisie!$I155=\"Herbes_de_soin\",Saisie!$I155=\"Herbes_diverses\",Saisie!$I155=\"Remèdes_et_Antidotes\",Saisie!$I155=\"Sels_alchimiques\"),\"Normale\",\"Excellente\"),\"\")","v":""}]
["md_qlté_156",{"$f":"IF(Saisie!$B156<>\"\",IF(OR(Saisie!$B156=\"Herbes_de_soin\",Saisie!$B156=\"Herbes_diverses\",Saisie!$B156=\"Remèdes_et_Antidotes\",Saisie!$B156=\"Sels_alchimiques\"),\"Normale\",\"Pitoyable\"),\"\")","v":""},{"$f":"IF(Saisie!$B156<>\"\",IF(OR(Saisie!$B156=\"Herbes_de_soin\",Saisie!$B156=\"Herbes_diverses\",Saisie!$B156=\"Remèdes_et_Antidotes\",Saisie!$B156=\"Sels_alchimiques\"),\"Normale\",\"Mauvaise\"),\"\")","v":""},{"$f":"IF(Saisie!$B156<>\"\",IF(OR(Saisie!$B156=\"Herbes_de_soin\",Saisie!$B156=\"Herbes_diverses\",Saisie!$B156=\"Remèdes_et_Antidotes\",Saisie!$B156=\"Sels_alchimiques\"),\"Normale\",\"Normale\"),\"\")","v":""},{"$f":"IF(Saisie!$B156<>\"\",IF(OR(Saisie!$B156=\"Herbes_de_soin\",Saisie!$B156=\"Herbes_diverses\",Saisie!$B156=\"Remèdes_et_Antidotes\",Saisie!$B156=\"Sels_alchimiques\"),\"Normale\",\"Bonne\"),\"\")","v":""},{"$f":"IF(Saisie!$B156<>\"\",IF(OR(Saisie!$B156=\"Herbes_de_soin\",Saisie!$B156=\"Herbes_diverses\",Saisie!$B156=\"Remèdes_et_Antidotes\",Saisie!$B156=\"Sels_alchimiques\"),\"Normale\",\"Excellente\"),\"\")","v":""},null,"md_qlté_L156",{"$f":"IF(Saisie!$I156<>\"\",IF(OR(Saisie!$I156=\"Herbes_de_soin\",Saisie!$I156=\"Herbes_diverses\",Saisie!$I156=\"Remèdes_et_Antidotes\",Saisie!$I156=\"Sels_alchimiques\"),\"Normale\",\"Pitoyable\"),\"\")","v":""},{"$f":"IF(Saisie!$I156<>\"\",IF(OR(Saisie!$I156=\"Herbes_de_soin\",Saisie!$I156=\"Herbes_diverses\",Saisie!$I156=\"Remèdes_et_Antidotes\",Saisie!$I156=\"Sels_alchimiques\"),\"Normale\",\"Mauvaise\"),\"\")","v":""},{"$f":"IF(Saisie!$I156<>\"\",IF(OR(Saisie!$I156=\"Herbes_de_soin\",Saisie!$I156=\"Herbes_diverses\",Saisie!$I156=\"Remèdes_et_Antidotes\",Saisie!$I156=\"Sels_alchimiques\"),\"Normale\",\"Normale\"),\"\")","v":""},{"$f":"IF(Saisie!$I156<>\"\",IF(OR(Saisie!$I156=\"Herbes_de_soin\",Saisie!$I156=\"Herbes_diverses\",Saisie!$I156=\"Remèdes_et_Antidotes\",Saisie!$I156=\"Sels_alchimiques\"),\"Normale\",\"Bonne\"),\"\")","v":""},{"$f":"IF(Saisie!$I156<>\"\",IF(OR(Saisie!$I156=\"Herbes_de_soin\",Saisie!$I156=\"Herbes_diverses\",Saisie!$I156=\"Remèdes_et_Antidotes\",Saisie!$I156=\"Sels_alchimiques\"),\"Normale\",\"Excellente\"),\"\")","v":""}]
["md_qlté_157",{"$f":"IF(Saisie!$B157<>\"\",IF(OR(Saisie!$B157=\"Herbes_de_soin\",Saisie!$B157=\"Herbes_diverses\",Saisie!$B157=\"Remèdes_et_Antidotes\",Saisie!$B157=\"Sels_alchimiques\"),\"Normale\",\"Pitoyable\"),\"\")","v":""},{"$f":"IF(Saisie!$B157<>\"\",IF(OR(Saisie!$B157=\"Herbes_de_soin\",Saisie!$B157=\"Herbes_diverses\",Saisie!$B157=\"Remèdes_et_Antidotes\",Saisie!$B157=\"Sels_alchimiques\"),\"Normale\",\"Mauvaise\"),\"\")","v":""},{"$f":"IF(Saisie!$B157<>\"\",IF(OR(Saisie!$B157=\"Herbes_de_soin\",Saisie!$B157=\"Herbes_diverses\",Saisie!$B157=\"Remèdes_et_Antidotes\",Saisie!$B157=\"Sels_alchimiques\"),\"Normale\",\"Normale\"),\"\")","v":""},{"$f":"IF(Saisie!$B157<>\"\",IF(OR(Saisie!$B157=\"Herbes_de_soin\",Saisie!$B157=\"Herbes_diverses\",Saisie!$B157=\"Remèdes_et_Antidotes\",Saisie!$B157=\"Sels_alchimiques\"),\"Normale\",\"Bonne\"),\"\")","v":""},{"$f":"IF(Saisie!$B157<>\"\",IF(OR(Saisie!$B157=\"Herbes_de_soin\",Saisie!$B157=\"Herbes_diverses\",Saisie!$B157=\"Remèdes_et_Antidotes\",Saisie!$B157=\"Sels_alchimiques\"),\"Normale\",\"Excellente\"),\"\")","v":""},null,"md_qlté_L157",{"$f":"IF(Saisie!$I157<>\"\",IF(OR(Saisie!$I157=\"Herbes_de_soin\",Saisie!$I157=\"Herbes_diverses\",Saisie!$I157=\"Remèdes_et_Antidotes\",Saisie!$I157=\"Sels_alchimiques\"),\"Normale\",\"Pitoyable\"),\"\")","v":""},{"$f":"IF(Saisie!$I157<>\"\",IF(OR(Saisie!$I157=\"Herbes_de_soin\",Saisie!$I157=\"Herbes_diverses\",Saisie!$I157=\"Remèdes_et_Antidotes\",Saisie!$I157=\"Sels_alchimiques\"),\"Normale\",\"Mauvaise\"),\"\")","v":""},{"$f":"IF(Saisie!$I157<>\"\",IF(OR(Saisie!$I157=\"Herbes_de_soin\",Saisie!$I157=\"Herbes_diverses\",Saisie!$I157=\"Remèdes_et_Antidotes\",Saisie!$I157=\"Sels_alchimiques\"),\"Normale\",\"Normale\"),\"\")","v":""},{"$f":"IF(Saisie!$I157<>\"\",IF(OR(Saisie!$I157=\"Herbes_de_soin\",Saisie!$I157=\"Herbes_diverses\",Saisie!$I157=\"Remèdes_et_Antidotes\",Saisie!$I157=\"Sels_alchimiques\"),\"Normale\",\"Bonne\"),\"\")","v":""},{"$f":"IF(Saisie!$I157<>\"\",IF(OR(Saisie!$I157=\"Herbes_de_soin\",Saisie!$I157=\"Herbes_diverses\",Saisie!$I157=\"Remèdes_et_Antidotes\",Saisie!$I157=\"Sels_alchimiques\"),\"Normale\",\"Excellente\"),\"\")","v":""}]
["md_qlté_158",{"$f":"IF(Saisie!$B158<>\"\",IF(OR(Saisie!$B158=\"Herbes_de_soin\",Saisie!$B158=\"Herbes_diverses\",Saisie!$B158=\"Remèdes_et_Antidotes\",Saisie!$B158=\"Sels_alchimiques\"),\"Normale\",\"Pitoyable\"),\"\")","v":""},{"$f":"IF(Saisie!$B158<>\"\",IF(OR(Saisie!$B158=\"Herbes_de_soin\",Saisie!$B158=\"Herbes_diverses\",Saisie!$B158=\"Remèdes_et_Antidotes\",Saisie!$B158=\"Sels_alchimiques\"),\"Normale\",\"Mauvaise\"),\"\")","v":""},{"$f":"IF(Saisie!$B158<>\"\",IF(OR(Saisie!$B158=\"Herbes_de_soin\",Saisie!$B158=\"Herbes_diverses\",Saisie!$B158=\"Remèdes_et_Antidotes\",Saisie!$B158=\"Sels_alchimiques\"),\"Normale\",\"Normale\"),\"\")","v":""},{"$f":"IF(Saisie!$B158<>\"\",IF(OR(Saisie!$B158=\"Herbes_de_soin\",Saisie!$B158=\"Herbes_diverses\",Saisie!$B158=\"Remèdes_et_Antidotes\",Saisie!$B158=\"Sels_alchimiques\"),\"Normale\",\"Bonne\"),\"\")","v":""},{"$f":"IF(Saisie!$B158<>\"\",IF(OR(Saisie!$B158=\"Herbes_de_soin\",Saisie!$B158=\"Herbes_diverses\",Saisie!$B158=\"Remèdes_et_Antidotes\",Saisie!$B158=\"Sels_alchimiques\"),\"Normale\",\"Excellente\"),\"\")","v":""},null,"md_qlté_L158",{"$f":"IF(Saisie!$I158<>\"\",IF(OR(Saisie!$I158=\"Herbes_de_soin\",Saisie!$I158=\"Herbes_diverses\",Saisie!$I158=\"Remèdes_et_Antidotes\",Saisie!$I158=\"Sels_alchimiques\"),\"Normale\",\"Pitoyable\"),\"\")","v":""},{"$f":"IF(Saisie!$I158<>\"\",IF(OR(Saisie!$I158=\"Herbes_de_soin\",Saisie!$I158=\"Herbes_diverses\",Saisie!$I158=\"Remèdes_et_Antidotes\",Saisie!$I158=\"Sels_alchimiques\"),\"Normale\",\"Mauvaise\"),\"\")","v":""},{"$f":"IF(Saisie!$I158<>\"\",IF(OR(Saisie!$I158=\"Herbes_de_soin\",Saisie!$I158=\"Herbes_diverses\",Saisie!$I158=\"Remèdes_et_Antidotes\",Saisie!$I158=\"Sels_alchimiques\"),\"Normale\",\"Normale\"),\"\")","v":""},{"$f":"IF(Saisie!$I158<>\"\",IF(OR(Saisie!$I158=\"Herbes_de_soin\",Saisie!$I158=\"Herbes_diverses\",Saisie!$I158=\"Remèdes_et_Antidotes\",Saisie!$I158=\"Sels_alchimiques\"),\"Normale\",\"Bonne\"),\"\")","v":""},{"$f":"IF(Saisie!$I158<>\"\",IF(OR(Saisie!$I158=\"Herbes_de_soin\",Saisie!$I158=\"Herbes_diverses\",Saisie!$I158=\"Remèdes_et_Antidotes\",Saisie!$I158=\"Sels_alchimiques\"),\"Normale\",\"Excellente\"),\"\")","v":""}]
["md_qlté_159",{"$f":"IF(Saisie!$B159<>\"\",IF(OR(Saisie!$B159=\"Herbes_de_soin\",Saisie!$B159=\"Herbes_diverses\",Saisie!$B159=\"Remèdes_et_Antidotes\",Saisie!$B159=\"Sels_alchimiques\"),\"Normale\",\"Pitoyable\"),\"\")","v":""},{"$f":"IF(Saisie!$B159<>\"\",IF(OR(Saisie!$B159=\"Herbes_de_soin\",Saisie!$B159=\"Herbes_diverses\",Saisie!$B159=\"Remèdes_et_Antidotes\",Saisie!$B159=\"Sels_alchimiques\"),\"Normale\",\"Mauvaise\"),\"\")","v":""},{"$f":"IF(Saisie!$B159<>\"\",IF(OR(Saisie!$B159=\"Herbes_de_soin\",Saisie!$B159=\"Herbes_diverses\",Saisie!$B159=\"Remèdes_et_Antidotes\",Saisie!$B159=\"Sels_alchimiques\"),\"Normale\",\"Normale\"),\"\")","v":""},{"$f":"IF(Saisie!$B159<>\"\",IF(OR(Saisie!$B159=\"Herbes_de_soin\",Saisie!$B159=\"Herbes_diverses\",Saisie!$B159=\"Remèdes_et_Antidotes\",Saisie!$B159=\"Sels_alchimiques\"),\"Normale\",\"Bonne\"),\"\")","v":""},{"$f":"IF(Saisie!$B159<>\"\",IF(OR(Saisie!$B159=\"Herbes_de_soin\",Saisie!$B159=\"Herbes_diverses\",Saisie!$B159=\"Remèdes_et_Antidotes\",Saisie!$B159=\"Sels_alchimiques\"),\"Normale\",\"Excellente\"),\"\")","v":""},null,"md_qlté_L159",{"$f":"IF(Saisie!$I159<>\"\",IF(OR(Saisie!$I159=\"Herbes_de_soin\",Saisie!$I159=\"Herbes_diverses\",Saisie!$I159=\"Remèdes_et_Antidotes\",Saisie!$I159=\"Sels_alchimiques\"),\"Normale\",\"Pitoyable\"),\"\")","v":""},{"$f":"IF(Saisie!$I159<>\"\",IF(OR(Saisie!$I159=\"Herbes_de_soin\",Saisie!$I159=\"Herbes_diverses\",Saisie!$I159=\"Remèdes_et_Antidotes\",Saisie!$I159=\"Sels_alchimiques\"),\"Normale\",\"Mauvaise\"),\"\")","v":""},{"$f":"IF(Saisie!$I159<>\"\",IF(OR(Saisie!$I159=\"Herbes_de_soin\",Saisie!$I159=\"Herbes_diverses\",Saisie!$I159=\"Remèdes_et_Antidotes\",Saisie!$I159=\"Sels_alchimiques\"),\"Normale\",\"Normale\"),\"\")","v":""},{"$f":"IF(Saisie!$I159<>\"\",IF(OR(Saisie!$I159=\"Herbes_de_soin\",Saisie!$I159=\"Herbes_diverses\",Saisie!$I159=\"Remèdes_et_Antidotes\",Saisie!$I159=\"Sels_alchimiques\"),\"Normale\",\"Bonne\"),\"\")","v":""},{"$f":"IF(Saisie!$I159<>\"\",IF(OR(Saisie!$I159=\"Herbes_de_soin\",Saisie!$I159=\"Herbes_diverses\",Saisie!$I159=\"Remèdes_et_Antidotes\",Saisie!$I159=\"Sels_alchimiques\"),\"Normale\",\"Excellente\"),\"\")","v":""}]
["md_qlté_160",{"$f":"IF(Saisie!$B160<>\"\",IF(OR(Saisie!$B160=\"Herbes_de_soin\",Saisie!$B160=\"Herbes_diverses\",Saisie!$B160=\"Remèdes_et_Antidotes\",Saisie!$B160=\"Sels_alchimiques\"),\"Normale\",\"Pitoyable\"),\"\")","v":"Pitoyable"},{"$f":"IF(Saisie!$B160<>\"\",IF(OR(Saisie!$B160=\"Herbes_de_soin\",Saisie!$B160=\"Herbes_diverses\",Saisie!$B160=\"Remèdes_et_Antidotes\",Saisie!$B160=\"Sels_alchimiques\"),\"Normale\",\"Mauvaise\"),\"\")","v":"Mauvaise"},{"$f":"IF(Saisie!$B160<>\"\",IF(OR(Saisie!$B160=\"Herbes_de_soin\",Saisie!$B160=\"Herbes_diverses\",Saisie!$B160=\"Remèdes_et_Antidotes\",Saisie!$B160=\"Sels_alchimiques\"),\"Normale\",\"Normale\"),\"\")","v":"Normale"},{"$f":"IF(Saisie!$B160<>\"\",IF(OR(Saisie!$B160=\"Herbes_de_soin\",Saisie!$B160=\"Herbes_diverses\",Saisie!$B160=\"Remèdes_et_Antidotes\",Saisie!$B160=\"Sels_alchimiques\"),\"Normale\",\"Bonne\"),\"\")","v":"Bonne"},{"$f":"IF(Saisie!$B160<>\"\",IF(OR(Saisie!$B160=\"Herbes_de_soin\",Saisie!$B160=\"Herbes_diverses\",Saisie!$B160=\"Remèdes_et_Antidotes\",Saisie!$B160=\"Sels_alchimiques\"),\"Normale\",\"Excellente\"),\"\")","v":"Excellente"},null,"md_qlté_L160",{"$f":"IF(Saisie!$I160<>\"\",IF(OR(Saisie!$I160=\"Herbes_de_soin\",Saisie!$I160=\"Herbes_diverses\",Saisie!$I160=\"Remèdes_et_Antidotes\",Saisie!$I160=\"Sels_alchimiques\"),\"Normale\",\"Pitoyable\"),\"\")","v":""},{"$f":"IF(Saisie!$I160<>\"\",IF(OR(Saisie!$I160=\"Herbes_de_soin\",Saisie!$I160=\"Herbes_diverses\",Saisie!$I160=\"Remèdes_et_Antidotes\",Saisie!$I160=\"Sels_alchimiques\"),\"Normale\",\"Mauvaise\"),\"\")","v":""},{"$f":"IF(Saisie!$I160<>\"\",IF(OR(Saisie!$I160=\"Herbes_de_soin\",Saisie!$I160=\"Herbes_diverses\",Saisie!$I160=\"Remèdes_et_Antidotes\",Saisie!$I160=\"Sels_alchimiques\"),\"Normale\",\"Normale\"),\"\")","v":""},{"$f":"IF(Saisie!$I160<>\"\",IF(OR(Saisie!$I160=\"Herbes_de_soin\",Saisie!$I160=\"Herbes_diverses\",Saisie!$I160=\"Remèdes_et_Antidotes\",Saisie!$I160=\"Sels_alchimiques\"),\"Normale\",\"Bonne\"),\"\")","v":""},{"$f":"IF(Saisie!$I160<>\"\",IF(OR(Saisie!$I160=\"Herbes_de_soin\",Saisie!$I160=\"Herbes_diverses\",Saisie!$I160=\"Remèdes_et_Antidotes\",Saisie!$I160=\"Sels_alchimiques\"),\"Normale\",\"Excellente\"),\"\")","v":""}]
["md_qlté_161",{"$f":"IF(Saisie!$B161<>\"\",IF(OR(Saisie!$B161=\"Herbes_de_soin\",Saisie!$B161=\"Herbes_diverses\",Saisie!$B161=\"Remèdes_et_Antidotes\",Saisie!$B161=\"Sels_alchimiques\"),\"Normale\",\"Pitoyable\"),\"\")","v":""},{"$f":"IF(Saisie!$B161<>\"\",IF(OR(Saisie!$B161=\"Herbes_de_soin\",Saisie!$B161=\"Herbes_diverses\",Saisie!$B161=\"Remèdes_et_Antidotes\",Saisie!$B161=\"Sels_alchimiques\"),\"Normale\",\"Mauvaise\"),\"\")","v":""},{"$f":"IF(Saisie!$B161<>\"\",IF(OR(Saisie!$B161=\"Herbes_de_soin\",Saisie!$B161=\"Herbes_diverses\",Saisie!$B161=\"Remèdes_et_Antidotes\",Saisie!$B161=\"Sels_alchimiques\"),\"Normale\",\"Normale\"),\"\")","v":""},{"$f":"IF(Saisie!$B161<>\"\",IF(OR(Saisie!$B161=\"Herbes_de_soin\",Saisie!$B161=\"Herbes_diverses\",Saisie!$B161=\"Remèdes_et_Antidotes\",Saisie!$B161=\"Sels_alchimiques\"),\"Normale\",\"Bonne\"),\"\")","v":""},{"$f":"IF(Saisie!$B161<>\"\",IF(OR(Saisie!$B161=\"Herbes_de_soin\",Saisie!$B161=\"Herbes_diverses\",Saisie!$B161=\"Remèdes_et_Antidotes\",Saisie!$B161=\"Sels_alchimiques\"),\"Normale\",\"Excellente\"),\"\")","v":""},null,"md_qlté_L161",{"$f":"IF(Saisie!$I161<>\"\",IF(OR(Saisie!$I161=\"Herbes_de_soin\",Saisie!$I161=\"Herbes_diverses\",Saisie!$I161=\"Remèdes_et_Antidotes\",Saisie!$I161=\"Sels_alchimiques\"),\"Normale\",\"Pitoyable\"),\"\")","v":"Pitoyable"},{"$f":"IF(Saisie!$I161<>\"\",IF(OR(Saisie!$I161=\"Herbes_de_soin\",Saisie!$I161=\"Herbes_diverses\",Saisie!$I161=\"Remèdes_et_Antidotes\",Saisie!$I161=\"Sels_alchimiques\"),\"Normale\",\"Mauvaise\"),\"\")","v":"Mauvaise"},{"$f":"IF(Saisie!$I161<>\"\",IF(OR(Saisie!$I161=\"Herbes_de_soin\",Saisie!$I161=\"Herbes_diverses\",Saisie!$I161=\"Remèdes_et_Antidotes\",Saisie!$I161=\"Sels_alchimiques\"),\"Normale\",\"Normale\"),\"\")","v":"Normale"},{"$f":"IF(Saisie!$I161<>\"\",IF(OR(Saisie!$I161=\"Herbes_de_soin\",Saisie!$I161=\"Herbes_diverses\",Saisie!$I161=\"Remèdes_et_Antidotes\",Saisie!$I161=\"Sels_alchimiques\"),\"Normale\",\"Bonne\"),\"\")","v":"Bonne"},{"$f":"IF(Saisie!$I161<>\"\",IF(OR(Saisie!$I161=\"Herbes_de_soin\",Saisie!$I161=\"Herbes_diverses\",Saisie!$I161=\"Remèdes_et_Antidotes\",Saisie!$I161=\"Sels_alchimiques\"),\"Normale\",\"Excellente\"),\"\")","v":"Excellente"}]
["md_qlté_162",{"$f":"IF(Saisie!$B162<>\"\",IF(OR(Saisie!$B162=\"Herbes_de_soin\",Saisie!$B162=\"Herbes_diverses\",Saisie!$B162=\"Remèdes_et_Antidotes\",Saisie!$B162=\"Sels_alchimiques\"),\"Normale\",\"Pitoyable\"),\"\")","v":""},{"$f":"IF(Saisie!$B162<>\"\",IF(OR(Saisie!$B162=\"Herbes_de_soin\",Saisie!$B162=\"Herbes_diverses\",Saisie!$B162=\"Remèdes_et_Antidotes\",Saisie!$B162=\"Sels_alchimiques\"),\"Normale\",\"Mauvaise\"),\"\")","v":""},{"$f":"IF(Saisie!$B162<>\"\",IF(OR(Saisie!$B162=\"Herbes_de_soin\",Saisie!$B162=\"Herbes_diverses\",Saisie!$B162=\"Remèdes_et_Antidotes\",Saisie!$B162=\"Sels_alchimiques\"),\"Normale\",\"Normale\"),\"\")","v":""},{"$f":"IF(Saisie!$B162<>\"\",IF(OR(Saisie!$B162=\"Herbes_de_soin\",Saisie!$B162=\"Herbes_diverses\",Saisie!$B162=\"Remèdes_et_Antidotes\",Saisie!$B162=\"Sels_alchimiques\"),\"Normale\",\"Bonne\"),\"\")","v":""},{"$f":"IF(Saisie!$B162<>\"\",IF(OR(Saisie!$B162=\"Herbes_de_soin\",Saisie!$B162=\"Herbes_diverses\",Saisie!$B162=\"Remèdes_et_Antidotes\",Saisie!$B162=\"Sels_alchimiques\"),\"Normale\",\"Excellente\"),\"\")","v":""},null,"md_qlté_L162",{"$f":"IF(Saisie!$I162<>\"\",IF(OR(Saisie!$I162=\"Herbes_de_soin\",Saisie!$I162=\"Herbes_diverses\",Saisie!$I162=\"Remèdes_et_Antidotes\",Saisie!$I162=\"Sels_alchimiques\"),\"Normale\",\"Pitoyable\"),\"\")","v":""},{"$f":"IF(Saisie!$I162<>\"\",IF(OR(Saisie!$I162=\"Herbes_de_soin\",Saisie!$I162=\"Herbes_diverses\",Saisie!$I162=\"Remèdes_et_Antidotes\",Saisie!$I162=\"Sels_alchimiques\"),\"Normale\",\"Mauvaise\"),\"\")","v":""},{"$f":"IF(Saisie!$I162<>\"\",IF(OR(Saisie!$I162=\"Herbes_de_soin\",Saisie!$I162=\"Herbes_diverses\",Saisie!$I162=\"Remèdes_et_Antidotes\",Saisie!$I162=\"Sels_alchimiques\"),\"Normale\",\"Normale\"),\"\")","v":""},{"$f":"IF(Saisie!$I162<>\"\",IF(OR(Saisie!$I162=\"Herbes_de_soin\",Saisie!$I162=\"Herbes_diverses\",Saisie!$I162=\"Remèdes_et_Antidotes\",Saisie!$I162=\"Sels_alchimiques\"),\"Normale\",\"Bonne\"),\"\")","v":""},{"$f":"IF(Saisie!$I162<>\"\",IF(OR(Saisie!$I162=\"Herbes_de_soin\",Saisie!$I162=\"Herbes_diverses\",Saisie!$I162=\"Remèdes_et_Antidotes\",Saisie!$I162=\"Sels_alchimiques\"),\"Normale\",\"Excellente\"),\"\")","v":""}]
["md_qlté_163",{"$f":"IF(Saisie!$B163<>\"\",IF(OR(Saisie!$B163=\"Herbes_de_soin\",Saisie!$B163=\"Herbes_diverses\",Saisie!$B163=\"Remèdes_et_Antidotes\",Saisie!$B163=\"Sels_alchimiques\"),\"Normale\",\"Pitoyable\"),\"\")","v":""},{"$f":"IF(Saisie!$B163<>\"\",IF(OR(Saisie!$B163=\"Herbes_de_soin\",Saisie!$B163=\"Herbes_diverses\",Saisie!$B163=\"Remèdes_et_Antidotes\",Saisie!$B163=\"Sels_alchimiques\"),\"Normale\",\"Mauvaise\"),\"\")","v":""},{"$f":"IF(Saisie!$B163<>\"\",IF(OR(Saisie!$B163=\"Herbes_de_soin\",Saisie!$B163=\"Herbes_diverses\",Saisie!$B163=\"Remèdes_et_Antidotes\",Saisie!$B163=\"Sels_alchimiques\"),\"Normale\",\"Normale\"),\"\")","v":""},{"$f":"IF(Saisie!$B163<>\"\",IF(OR(Saisie!$B163=\"Herbes_de_soin\",Saisie!$B163=\"Herbes_diverses\",Saisie!$B163=\"Remèdes_et_Antidotes\",Saisie!$B163=\"Sels_alchimiques\"),\"Normale\",\"Bonne\"),\"\")","v":""},{"$f":"IF(Saisie!$B163<>\"\",IF(OR(Saisie!$B163=\"Herbes_de_soin\",Saisie!$B163=\"Herbes_diverses\",Saisie!$B163=\"Remèdes_et_Antidotes\",Saisie!$B163=\"Sels_alchimiques\"),\"Normale\",\"Excellente\"),\"\")","v":""},null,"md_qlté_L163",{"$f":"IF(Saisie!$I163<>\"\",IF(OR(Saisie!$I163=\"Herbes_de_soin\",Saisie!$I163=\"Herbes_diverses\",Saisie!$I163=\"Remèdes_et_Antidotes\",Saisie!$I163=\"Sels_alchimiques\"),\"Normale\",\"Pitoyable\"),\"\")","v":""},{"$f":"IF(Saisie!$I163<>\"\",IF(OR(Saisie!$I163=\"Herbes_de_soin\",Saisie!$I163=\"Herbes_diverses\",Saisie!$I163=\"Remèdes_et_Antidotes\",Saisie!$I163=\"Sels_alchimiques\"),\"Normale\",\"Mauvaise\"),\"\")","v":""},{"$f":"IF(Saisie!$I163<>\"\",IF(OR(Saisie!$I163=\"Herbes_de_soin\",Saisie!$I163=\"Herbes_diverses\",Saisie!$I163=\"Remèdes_et_Antidotes\",Saisie!$I163=\"Sels_alchimiques\"),\"Normale\",\"Normale\"),\"\")","v":""},{"$f":"IF(Saisie!$I163<>\"\",IF(OR(Saisie!$I163=\"Herbes_de_soin\",Saisie!$I163=\"Herbes_diverses\",Saisie!$I163=\"Remèdes_et_Antidotes\",Saisie!$I163=\"Sels_alchimiques\"),\"Normale\",\"Bonne\"),\"\")","v":""},{"$f":"IF(Saisie!$I163<>\"\",IF(OR(Saisie!$I163=\"Herbes_de_soin\",Saisie!$I163=\"Herbes_diverses\",Saisie!$I163=\"Remèdes_et_Antidotes\",Saisie!$I163=\"Sels_alchimiques\"),\"Normale\",\"Excellente\"),\"\")","v":""}]
["md_qlté_164",{"$f":"IF(Saisie!$B164<>\"\",IF(OR(Saisie!$B164=\"Herbes_de_soin\",Saisie!$B164=\"Herbes_diverses\",Saisie!$B164=\"Remèdes_et_Antidotes\",Saisie!$B164=\"Sels_alchimiques\"),\"Normale\",\"Pitoyable\"),\"\")","v":""},{"$f":"IF(Saisie!$B164<>\"\",IF(OR(Saisie!$B164=\"Herbes_de_soin\",Saisie!$B164=\"Herbes_diverses\",Saisie!$B164=\"Remèdes_et_Antidotes\",Saisie!$B164=\"Sels_alchimiques\"),\"Normale\",\"Mauvaise\"),\"\")","v":""},{"$f":"IF(Saisie!$B164<>\"\",IF(OR(Saisie!$B164=\"Herbes_de_soin\",Saisie!$B164=\"Herbes_diverses\",Saisie!$B164=\"Remèdes_et_Antidotes\",Saisie!$B164=\"Sels_alchimiques\"),\"Normale\",\"Normale\"),\"\")","v":""},{"$f":"IF(Saisie!$B164<>\"\",IF(OR(Saisie!$B164=\"Herbes_de_soin\",Saisie!$B164=\"Herbes_diverses\",Saisie!$B164=\"Remèdes_et_Antidotes\",Saisie!$B164=\"Sels_alchimiques\"),\"Normale\",\"Bonne\"),\"\")","v":""},{"$f":"IF(Saisie!$B164<>\"\",IF(OR(Saisie!$B164=\"Herbes_de_soin\",Saisie!$B164=\"Herbes_diverses\",Saisie!$B164=\"Remèdes_et_Antidotes\",Saisie!$B164=\"Sels_alchimiques\"),\"Normale\",\"Excellente\"),\"\")","v":""},null,"md_qlté_L164",{"$f":"IF(Saisie!$I164<>\"\",IF(OR(Saisie!$I164=\"Herbes_de_soin\",Saisie!$I164=\"Herbes_diverses\",Saisie!$I164=\"Remèdes_et_Antidotes\",Saisie!$I164=\"Sels_alchimiques\"),\"Normale\",\"Pitoyable\"),\"\")","v":""},{"$f":"IF(Saisie!$I164<>\"\",IF(OR(Saisie!$I164=\"Herbes_de_soin\",Saisie!$I164=\"Herbes_diverses\",Saisie!$I164=\"Remèdes_et_Antidotes\",Saisie!$I164=\"Sels_alchimiques\"),\"Normale\",\"Mauvaise\"),\"\")","v":""},{"$f":"IF(Saisie!$I164<>\"\",IF(OR(Saisie!$I164=\"Herbes_de_soin\",Saisie!$I164=\"Herbes_diverses\",Saisie!$I164=\"Remèdes_et_Antidotes\",Saisie!$I164=\"Sels_alchimiques\"),\"Normale\",\"Normale\"),\"\")","v":""},{"$f":"IF(Saisie!$I164<>\"\",IF(OR(Saisie!$I164=\"Herbes_de_soin\",Saisie!$I164=\"Herbes_diverses\",Saisie!$I164=\"Remèdes_et_Antidotes\",Saisie!$I164=\"Sels_alchimiques\"),\"Normale\",\"Bonne\"),\"\")","v":""},{"$f":"IF(Saisie!$I164<>\"\",IF(OR(Saisie!$I164=\"Herbes_de_soin\",Saisie!$I164=\"Herbes_diverses\",Saisie!$I164=\"Remèdes_et_Antidotes\",Saisie!$I164=\"Sels_alchimiques\"),\"Normale\",\"Excellente\"),\"\")","v":""}]
["md_qlté_165",{"$f":"IF(Saisie!$B165<>\"\",IF(OR(Saisie!$B165=\"Herbes_de_soin\",Saisie!$B165=\"Herbes_diverses\",Saisie!$B165=\"Remèdes_et_Antidotes\",Saisie!$B165=\"Sels_alchimiques\"),\"Normale\",\"Pitoyable\"),\"\")","v":""},{"$f":"IF(Saisie!$B165<>\"\",IF(OR(Saisie!$B165=\"Herbes_de_soin\",Saisie!$B165=\"Herbes_diverses\",Saisie!$B165=\"Remèdes_et_Antidotes\",Saisie!$B165=\"Sels_alchimiques\"),\"Normale\",\"Mauvaise\"),\"\")","v":""},{"$f":"IF(Saisie!$B165<>\"\",IF(OR(Saisie!$B165=\"Herbes_de_soin\",Saisie!$B165=\"Herbes_diverses\",Saisie!$B165=\"Remèdes_et_Antidotes\",Saisie!$B165=\"Sels_alchimiques\"),\"Normale\",\"Normale\"),\"\")","v":""},{"$f":"IF(Saisie!$B165<>\"\",IF(OR(Saisie!$B165=\"Herbes_de_soin\",Saisie!$B165=\"Herbes_diverses\",Saisie!$B165=\"Remèdes_et_Antidotes\",Saisie!$B165=\"Sels_alchimiques\"),\"Normale\",\"Bonne\"),\"\")","v":""},{"$f":"IF(Saisie!$B165<>\"\",IF(OR(Saisie!$B165=\"Herbes_de_soin\",Saisie!$B165=\"Herbes_diverses\",Saisie!$B165=\"Remèdes_et_Antidotes\",Saisie!$B165=\"Sels_alchimiques\"),\"Normale\",\"Excellente\"),\"\")","v":""},null,"md_qlté_L165",{"$f":"IF(Saisie!$I165<>\"\",IF(OR(Saisie!$I165=\"Herbes_de_soin\",Saisie!$I165=\"Herbes_diverses\",Saisie!$I165=\"Remèdes_et_Antidotes\",Saisie!$I165=\"Sels_alchimiques\"),\"Normale\",\"Pitoyable\"),\"\")","v":""},{"$f":"IF(Saisie!$I165<>\"\",IF(OR(Saisie!$I165=\"Herbes_de_soin\",Saisie!$I165=\"Herbes_diverses\",Saisie!$I165=\"Remèdes_et_Antidotes\",Saisie!$I165=\"Sels_alchimiques\"),\"Normale\",\"Mauvaise\"),\"\")","v":""},{"$f":"IF(Saisie!$I165<>\"\",IF(OR(Saisie!$I165=\"Herbes_de_soin\",Saisie!$I165=\"Herbes_diverses\",Saisie!$I165=\"Remèdes_et_Antidotes\",Saisie!$I165=\"Sels_alchimiques\"),\"Normale\",\"Normale\"),\"\")","v":""},{"$f":"IF(Saisie!$I165<>\"\",IF(OR(Saisie!$I165=\"Herbes_de_soin\",Saisie!$I165=\"Herbes_diverses\",Saisie!$I165=\"Remèdes_et_Antidotes\",Saisie!$I165=\"Sels_alchimiques\"),\"Normale\",\"Bonne\"),\"\")","v":""},{"$f":"IF(Saisie!$I165<>\"\",IF(OR(Saisie!$I165=\"Herbes_de_soin\",Saisie!$I165=\"Herbes_diverses\",Saisie!$I165=\"Remèdes_et_Antidotes\",Saisie!$I165=\"Sels_alchimiques\"),\"Normale\",\"Excellente\"),\"\")","v":""}]
["md_qlté_166",{"$f":"IF(Saisie!$B166<>\"\",IF(OR(Saisie!$B166=\"Herbes_de_soin\",Saisie!$B166=\"Herbes_diverses\",Saisie!$B166=\"Remèdes_et_Antidotes\",Saisie!$B166=\"Sels_alchimiques\"),\"Normale\",\"Pitoyable\"),\"\")","v":""},{"$f":"IF(Saisie!$B166<>\"\",IF(OR(Saisie!$B166=\"Herbes_de_soin\",Saisie!$B166=\"Herbes_diverses\",Saisie!$B166=\"Remèdes_et_Antidotes\",Saisie!$B166=\"Sels_alchimiques\"),\"Normale\",\"Mauvaise\"),\"\")","v":""},{"$f":"IF(Saisie!$B166<>\"\",IF(OR(Saisie!$B166=\"Herbes_de_soin\",Saisie!$B166=\"Herbes_diverses\",Saisie!$B166=\"Remèdes_et_Antidotes\",Saisie!$B166=\"Sels_alchimiques\"),\"Normale\",\"Normale\"),\"\")","v":""},{"$f":"IF(Saisie!$B166<>\"\",IF(OR(Saisie!$B166=\"Herbes_de_soin\",Saisie!$B166=\"Herbes_diverses\",Saisie!$B166=\"Remèdes_et_Antidotes\",Saisie!$B166=\"Sels_alchimiques\"),\"Normale\",\"Bonne\"),\"\")","v":""},{"$f":"IF(Saisie!$B166<>\"\",IF(OR(Saisie!$B166=\"Herbes_de_soin\",Saisie!$B166=\"Herbes_diverses\",Saisie!$B166=\"Remèdes_et_Antidotes\",Saisie!$B166=\"Sels_alchimiques\"),\"Normale\",\"Excellente\"),\"\")","v":""},null,"md_qlté_L166",{"$f":"IF(Saisie!$I166<>\"\",IF(OR(Saisie!$I166=\"Herbes_de_soin\",Saisie!$I166=\"Herbes_diverses\",Saisie!$I166=\"Remèdes_et_Antidotes\",Saisie!$I166=\"Sels_alchimiques\"),\"Normale\",\"Pitoyable\"),\"\")","v":""},{"$f":"IF(Saisie!$I166<>\"\",IF(OR(Saisie!$I166=\"Herbes_de_soin\",Saisie!$I166=\"Herbes_diverses\",Saisie!$I166=\"Remèdes_et_Antidotes\",Saisie!$I166=\"Sels_alchimiques\"),\"Normale\",\"Mauvaise\"),\"\")","v":""},{"$f":"IF(Saisie!$I166<>\"\",IF(OR(Saisie!$I166=\"Herbes_de_soin\",Saisie!$I166=\"Herbes_diverses\",Saisie!$I166=\"Remèdes_et_Antidotes\",Saisie!$I166=\"Sels_alchimiques\"),\"Normale\",\"Normale\"),\"\")","v":""},{"$f":"IF(Saisie!$I166<>\"\",IF(OR(Saisie!$I166=\"Herbes_de_soin\",Saisie!$I166=\"Herbes_diverses\",Saisie!$I166=\"Remèdes_et_Antidotes\",Saisie!$I166=\"Sels_alchimiques\"),\"Normale\",\"Bonne\"),\"\")","v":""},{"$f":"IF(Saisie!$I166<>\"\",IF(OR(Saisie!$I166=\"Herbes_de_soin\",Saisie!$I166=\"Herbes_diverses\",Saisie!$I166=\"Remèdes_et_Antidotes\",Saisie!$I166=\"Sels_alchimiques\"),\"Normale\",\"Excellente\"),\"\")","v":""}]
["md_qlté_167",{"$f":"IF(Saisie!$B167<>\"\",IF(OR(Saisie!$B167=\"Herbes_de_soin\",Saisie!$B167=\"Herbes_diverses\",Saisie!$B167=\"Remèdes_et_Antidotes\",Saisie!$B167=\"Sels_alchimiques\"),\"Normale\",\"Pitoyable\"),\"\")","v":""},{"$f":"IF(Saisie!$B167<>\"\",IF(OR(Saisie!$B167=\"Herbes_de_soin\",Saisie!$B167=\"Herbes_diverses\",Saisie!$B167=\"Remèdes_et_Antidotes\",Saisie!$B167=\"Sels_alchimiques\"),\"Normale\",\"Mauvaise\"),\"\")","v":""},{"$f":"IF(Saisie!$B167<>\"\",IF(OR(Saisie!$B167=\"Herbes_de_soin\",Saisie!$B167=\"Herbes_diverses\",Saisie!$B167=\"Remèdes_et_Antidotes\",Saisie!$B167=\"Sels_alchimiques\"),\"Normale\",\"Normale\"),\"\")","v":""},{"$f":"IF(Saisie!$B167<>\"\",IF(OR(Saisie!$B167=\"Herbes_de_soin\",Saisie!$B167=\"Herbes_diverses\",Saisie!$B167=\"Remèdes_et_Antidotes\",Saisie!$B167=\"Sels_alchimiques\"),\"Normale\",\"Bonne\"),\"\")","v":""},{"$f":"IF(Saisie!$B167<>\"\",IF(OR(Saisie!$B167=\"Herbes_de_soin\",Saisie!$B167=\"Herbes_diverses\",Saisie!$B167=\"Remèdes_et_Antidotes\",Saisie!$B167=\"Sels_alchimiques\"),\"Normale\",\"Excellente\"),\"\")","v":""},null,"md_qlté_L167",{"$f":"IF(Saisie!$I167<>\"\",IF(OR(Saisie!$I167=\"Herbes_de_soin\",Saisie!$I167=\"Herbes_diverses\",Saisie!$I167=\"Remèdes_et_Antidotes\",Saisie!$I167=\"Sels_alchimiques\"),\"Normale\",\"Pitoyable\"),\"\")","v":""},{"$f":"IF(Saisie!$I167<>\"\",IF(OR(Saisie!$I167=\"Herbes_de_soin\",Saisie!$I167=\"Herbes_diverses\",Saisie!$I167=\"Remèdes_et_Antidotes\",Saisie!$I167=\"Sels_alchimiques\"),\"Normale\",\"Mauvaise\"),\"\")","v":""},{"$f":"IF(Saisie!$I167<>\"\",IF(OR(Saisie!$I167=\"Herbes_de_soin\",Saisie!$I167=\"Herbes_diverses\",Saisie!$I167=\"Remèdes_et_Antidotes\",Saisie!$I167=\"Sels_alchimiques\"),\"Normale\",\"Normale\"),\"\")","v":""},{"$f":"IF(Saisie!$I167<>\"\",IF(OR(Saisie!$I167=\"Herbes_de_soin\",Saisie!$I167=\"Herbes_diverses\",Saisie!$I167=\"Remèdes_et_Antidotes\",Saisie!$I167=\"Sels_alchimiques\"),\"Normale\",\"Bonne\"),\"\")","v":""},{"$f":"IF(Saisie!$I167<>\"\",IF(OR(Saisie!$I167=\"Herbes_de_soin\",Saisie!$I167=\"Herbes_diverses\",Saisie!$I167=\"Remèdes_et_Antidotes\",Saisie!$I167=\"Sels_alchimiques\"),\"Normale\",\"Excellente\"),\"\")","v":""}]
["md_qlté_168",{"$f":"IF(Saisie!$B168<>\"\",IF(OR(Saisie!$B168=\"Herbes_de_soin\",Saisie!$B168=\"Herbes_diverses\",Saisie!$B168=\"Remèdes_et_Antidotes\",Saisie!$B168=\"Sels_alchimiques\"),\"Normale\",\"Pitoyable\"),\"\")","v":""},{"$f":"IF(Saisie!$B168<>\"\",IF(OR(Saisie!$B168=\"Herbes_de_soin\",Saisie!$B168=\"Herbes_diverses\",Saisie!$B168=\"Remèdes_et_Antidotes\",Saisie!$B168=\"Sels_alchimiques\"),\"Normale\",\"Mauvaise\"),\"\")","v":""},{"$f":"IF(Saisie!$B168<>\"\",IF(OR(Saisie!$B168=\"Herbes_de_soin\",Saisie!$B168=\"Herbes_diverses\",Saisie!$B168=\"Remèdes_et_Antidotes\",Saisie!$B168=\"Sels_alchimiques\"),\"Normale\",\"Normale\"),\"\")","v":""},{"$f":"IF(Saisie!$B168<>\"\",IF(OR(Saisie!$B168=\"Herbes_de_soin\",Saisie!$B168=\"Herbes_diverses\",Saisie!$B168=\"Remèdes_et_Antidotes\",Saisie!$B168=\"Sels_alchimiques\"),\"Normale\",\"Bonne\"),\"\")","v":""},{"$f":"IF(Saisie!$B168<>\"\",IF(OR(Saisie!$B168=\"Herbes_de_soin\",Saisie!$B168=\"Herbes_diverses\",Saisie!$B168=\"Remèdes_et_Antidotes\",Saisie!$B168=\"Sels_alchimiques\"),\"Normale\",\"Excellente\"),\"\")","v":""},null,"md_qlté_L168",{"$f":"IF(Saisie!$I168<>\"\",IF(OR(Saisie!$I168=\"Herbes_de_soin\",Saisie!$I168=\"Herbes_diverses\",Saisie!$I168=\"Remèdes_et_Antidotes\",Saisie!$I168=\"Sels_alchimiques\"),\"Normale\",\"Pitoyable\"),\"\")","v":""},{"$f":"IF(Saisie!$I168<>\"\",IF(OR(Saisie!$I168=\"Herbes_de_soin\",Saisie!$I168=\"Herbes_diverses\",Saisie!$I168=\"Remèdes_et_Antidotes\",Saisie!$I168=\"Sels_alchimiques\"),\"Normale\",\"Mauvaise\"),\"\")","v":""},{"$f":"IF(Saisie!$I168<>\"\",IF(OR(Saisie!$I168=\"Herbes_de_soin\",Saisie!$I168=\"Herbes_diverses\",Saisie!$I168=\"Remèdes_et_Antidotes\",Saisie!$I168=\"Sels_alchimiques\"),\"Normale\",\"Normale\"),\"\")","v":""},{"$f":"IF(Saisie!$I168<>\"\",IF(OR(Saisie!$I168=\"Herbes_de_soin\",Saisie!$I168=\"Herbes_diverses\",Saisie!$I168=\"Remèdes_et_Antidotes\",Saisie!$I168=\"Sels_alchimiques\"),\"Normale\",\"Bonne\"),\"\")","v":""},{"$f":"IF(Saisie!$I168<>\"\",IF(OR(Saisie!$I168=\"Herbes_de_soin\",Saisie!$I168=\"Herbes_diverses\",Saisie!$I168=\"Remèdes_et_Antidotes\",Saisie!$I168=\"Sels_alchimiques\"),\"Normale\",\"Excellente\"),\"\")","v":""}]
["md_qlté_169",{"$f":"IF(Saisie!$B169<>\"\",IF(OR(Saisie!$B169=\"Herbes_de_soin\",Saisie!$B169=\"Herbes_diverses\",Saisie!$B169=\"Remèdes_et_Antidotes\",Saisie!$B169=\"Sels_alchimiques\"),\"Normale\",\"Pitoyable\"),\"\")","v":"Pitoyable"},{"$f":"IF(Saisie!$B169<>\"\",IF(OR(Saisie!$B169=\"Herbes_de_soin\",Saisie!$B169=\"Herbes_diverses\",Saisie!$B169=\"Remèdes_et_Antidotes\",Saisie!$B169=\"Sels_alchimiques\"),\"Normale\",\"Mauvaise\"),\"\")","v":"Mauvaise"},{"$f":"IF(Saisie!$B169<>\"\",IF(OR(Saisie!$B169=\"Herbes_de_soin\",Saisie!$B169=\"Herbes_diverses\",Saisie!$B169=\"Remèdes_et_Antidotes\",Saisie!$B169=\"Sels_alchimiques\"),\"Normale\",\"Normale\"),\"\")","v":"Normale"},{"$f":"IF(Saisie!$B169<>\"\",IF(OR(Saisie!$B169=\"Herbes_de_soin\",Saisie!$B169=\"Herbes_diverses\",Saisie!$B169=\"Remèdes_et_Antidotes\",Saisie!$B169=\"Sels_alchimiques\"),\"Normale\",\"Bonne\"),\"\")","v":"Bonne"},{"$f":"IF(Saisie!$B169<>\"\",IF(OR(Saisie!$B169=\"Herbes_de_soin\",Saisie!$B169=\"Herbes_diverses\",Saisie!$B169=\"Remèdes_et_Antidotes\",Saisie!$B169=\"Sels_alchimiques\"),\"Normale\",\"Excellente\"),\"\")","v":"Excellente"},null,"md_qlté_L169",{"$f":"IF(Saisie!$I169<>\"\",IF(OR(Saisie!$I169=\"Herbes_de_soin\",Saisie!$I169=\"Herbes_diverses\",Saisie!$I169=\"Remèdes_et_Antidotes\",Saisie!$I169=\"Sels_alchimiques\"),\"Normale\",\"Pitoyable\"),\"\")","v":""},{"$f":"IF(Saisie!$I169<>\"\",IF(OR(Saisie!$I169=\"Herbes_de_soin\",Saisie!$I169=\"Herbes_diverses\",Saisie!$I169=\"Remèdes_et_Antidotes\",Saisie!$I169=\"Sels_alchimiques\"),\"Normale\",\"Mauvaise\"),\"\")","v":""},{"$f":"IF(Saisie!$I169<>\"\",IF(OR(Saisie!$I169=\"Herbes_de_soin\",Saisie!$I169=\"Herbes_diverses\",Saisie!$I169=\"Remèdes_et_Antidotes\",Saisie!$I169=\"Sels_alchimiques\"),\"Normale\",\"Normale\"),\"\")","v":""},{"$f":"IF(Saisie!$I169<>\"\",IF(OR(Saisie!$I169=\"Herbes_de_soin\",Saisie!$I169=\"Herbes_diverses\",Saisie!$I169=\"Remèdes_et_Antidotes\",Saisie!$I169=\"Sels_alchimiques\"),\"Normale\",\"Bonne\"),\"\")","v":""},{"$f":"IF(Saisie!$I169<>\"\",IF(OR(Saisie!$I169=\"Herbes_de_soin\",Saisie!$I169=\"Herbes_diverses\",Saisie!$I169=\"Remèdes_et_Antidotes\",Saisie!$I169=\"Sels_alchimiques\"),\"Normale\",\"Excellente\"),\"\")","v":""}]
["md_qlté_170",{"$f":"IF(Saisie!$B170<>\"\",IF(OR(Saisie!$B170=\"Herbes_de_soin\",Saisie!$B170=\"Herbes_diverses\",Saisie!$B170=\"Remèdes_et_Antidotes\",Saisie!$B170=\"Sels_alchimiques\"),\"Normale\",\"Pitoyable\"),\"\")","v":""},{"$f":"IF(Saisie!$B170<>\"\",IF(OR(Saisie!$B170=\"Herbes_de_soin\",Saisie!$B170=\"Herbes_diverses\",Saisie!$B170=\"Remèdes_et_Antidotes\",Saisie!$B170=\"Sels_alchimiques\"),\"Normale\",\"Mauvaise\"),\"\")","v":""},{"$f":"IF(Saisie!$B170<>\"\",IF(OR(Saisie!$B170=\"Herbes_de_soin\",Saisie!$B170=\"Herbes_diverses\",Saisie!$B170=\"Remèdes_et_Antidotes\",Saisie!$B170=\"Sels_alchimiques\"),\"Normale\",\"Normale\"),\"\")","v":""},{"$f":"IF(Saisie!$B170<>\"\",IF(OR(Saisie!$B170=\"Herbes_de_soin\",Saisie!$B170=\"Herbes_diverses\",Saisie!$B170=\"Remèdes_et_Antidotes\",Saisie!$B170=\"Sels_alchimiques\"),\"Normale\",\"Bonne\"),\"\")","v":""},{"$f":"IF(Saisie!$B170<>\"\",IF(OR(Saisie!$B170=\"Herbes_de_soin\",Saisie!$B170=\"Herbes_diverses\",Saisie!$B170=\"Remèdes_et_Antidotes\",Saisie!$B170=\"Sels_alchimiques\"),\"Normale\",\"Excellente\"),\"\")","v":""},null,"md_qlté_L170",{"$f":"IF(Saisie!$I170<>\"\",IF(OR(Saisie!$I170=\"Herbes_de_soin\",Saisie!$I170=\"Herbes_diverses\",Saisie!$I170=\"Remèdes_et_Antidotes\",Saisie!$I170=\"Sels_alchimiques\"),\"Normale\",\"Pitoyable\"),\"\")","v":""},{"$f":"IF(Saisie!$I170<>\"\",IF(OR(Saisie!$I170=\"Herbes_de_soin\",Saisie!$I170=\"Herbes_diverses\",Saisie!$I170=\"Remèdes_et_Antidotes\",Saisie!$I170=\"Sels_alchimiques\"),\"Normale\",\"Mauvaise\"),\"\")","v":""},{"$f":"IF(Saisie!$I170<>\"\",IF(OR(Saisie!$I170=\"Herbes_de_soin\",Saisie!$I170=\"Herbes_diverses\",Saisie!$I170=\"Remèdes_et_Antidotes\",Saisie!$I170=\"Sels_alchimiques\"),\"Normale\",\"Normale\"),\"\")","v":""},{"$f":"IF(Saisie!$I170<>\"\",IF(OR(Saisie!$I170=\"Herbes_de_soin\",Saisie!$I170=\"Herbes_diverses\",Saisie!$I170=\"Remèdes_et_Antidotes\",Saisie!$I170=\"Sels_alchimiques\"),\"Normale\",\"Bonne\"),\"\")","v":""},{"$f":"IF(Saisie!$I170<>\"\",IF(OR(Saisie!$I170=\"Herbes_de_soin\",Saisie!$I170=\"Herbes_diverses\",Saisie!$I170=\"Remèdes_et_Antidotes\",Saisie!$I170=\"Sels_alchimiques\"),\"Normale\",\"Excellente\"),\"\")","v":""}]
["md_qlté_171",{"$f":"IF(Saisie!$B171<>\"\",IF(OR(Saisie!$B171=\"Herbes_de_soin\",Saisie!$B171=\"Herbes_diverses\",Saisie!$B171=\"Remèdes_et_Antidotes\",Saisie!$B171=\"Sels_alchimiques\"),\"Normale\",\"Pitoyable\"),\"\")","v":""},{"$f":"IF(Saisie!$B171<>\"\",IF(OR(Saisie!$B171=\"Herbes_de_soin\",Saisie!$B171=\"Herbes_diverses\",Saisie!$B171=\"Remèdes_et_Antidotes\",Saisie!$B171=\"Sels_alchimiques\"),\"Normale\",\"Mauvaise\"),\"\")","v":""},{"$f":"IF(Saisie!$B171<>\"\",IF(OR(Saisie!$B171=\"Herbes_de_soin\",Saisie!$B171=\"Herbes_diverses\",Saisie!$B171=\"Remèdes_et_Antidotes\",Saisie!$B171=\"Sels_alchimiques\"),\"Normale\",\"Normale\"),\"\")","v":""},{"$f":"IF(Saisie!$B171<>\"\",IF(OR(Saisie!$B171=\"Herbes_de_soin\",Saisie!$B171=\"Herbes_diverses\",Saisie!$B171=\"Remèdes_et_Antidotes\",Saisie!$B171=\"Sels_alchimiques\"),\"Normale\",\"Bonne\"),\"\")","v":""},{"$f":"IF(Saisie!$B171<>\"\",IF(OR(Saisie!$B171=\"Herbes_de_soin\",Saisie!$B171=\"Herbes_diverses\",Saisie!$B171=\"Remèdes_et_Antidotes\",Saisie!$B171=\"Sels_alchimiques\"),\"Normale\",\"Excellente\"),\"\")","v":""},null,"md_qlté_L171",{"$f":"IF(Saisie!$I171<>\"\",IF(OR(Saisie!$I171=\"Herbes_de_soin\",Saisie!$I171=\"Herbes_diverses\",Saisie!$I171=\"Remèdes_et_Antidotes\",Saisie!$I171=\"Sels_alchimiques\"),\"Normale\",\"Pitoyable\"),\"\")","v":""},{"$f":"IF(Saisie!$I171<>\"\",IF(OR(Saisie!$I171=\"Herbes_de_soin\",Saisie!$I171=\"Herbes_diverses\",Saisie!$I171=\"Remèdes_et_Antidotes\",Saisie!$I171=\"Sels_alchimiques\"),\"Normale\",\"Mauvaise\"),\"\")","v":""},{"$f":"IF(Saisie!$I171<>\"\",IF(OR(Saisie!$I171=\"Herbes_de_soin\",Saisie!$I171=\"Herbes_diverses\",Saisie!$I171=\"Remèdes_et_Antidotes\",Saisie!$I171=\"Sels_alchimiques\"),\"Normale\",\"Normale\"),\"\")","v":""},{"$f":"IF(Saisie!$I171<>\"\",IF(OR(Saisie!$I171=\"Herbes_de_soin\",Saisie!$I171=\"Herbes_diverses\",Saisie!$I171=\"Remèdes_et_Antidotes\",Saisie!$I171=\"Sels_alchimiques\"),\"Normale\",\"Bonne\"),\"\")","v":""},{"$f":"IF(Saisie!$I171<>\"\",IF(OR(Saisie!$I171=\"Herbes_de_soin\",Saisie!$I171=\"Herbes_diverses\",Saisie!$I171=\"Remèdes_et_Antidotes\",Saisie!$I171=\"Sels_alchimiques\"),\"Normale\",\"Excellente\"),\"\")","v":""}]
["md_qlté_172",{"$f":"IF(Saisie!$B172<>\"\",IF(OR(Saisie!$B172=\"Herbes_de_soin\",Saisie!$B172=\"Herbes_diverses\",Saisie!$B172=\"Remèdes_et_Antidotes\",Saisie!$B172=\"Sels_alchimiques\"),\"Normale\",\"Pitoyable\"),\"\")","v":""},{"$f":"IF(Saisie!$B172<>\"\",IF(OR(Saisie!$B172=\"Herbes_de_soin\",Saisie!$B172=\"Herbes_diverses\",Saisie!$B172=\"Remèdes_et_Antidotes\",Saisie!$B172=\"Sels_alchimiques\"),\"Normale\",\"Mauvaise\"),\"\")","v":""},{"$f":"IF(Saisie!$B172<>\"\",IF(OR(Saisie!$B172=\"Herbes_de_soin\",Saisie!$B172=\"Herbes_diverses\",Saisie!$B172=\"Remèdes_et_Antidotes\",Saisie!$B172=\"Sels_alchimiques\"),\"Normale\",\"Normale\"),\"\")","v":""},{"$f":"IF(Saisie!$B172<>\"\",IF(OR(Saisie!$B172=\"Herbes_de_soin\",Saisie!$B172=\"Herbes_diverses\",Saisie!$B172=\"Remèdes_et_Antidotes\",Saisie!$B172=\"Sels_alchimiques\"),\"Normale\",\"Bonne\"),\"\")","v":""},{"$f":"IF(Saisie!$B172<>\"\",IF(OR(Saisie!$B172=\"Herbes_de_soin\",Saisie!$B172=\"Herbes_diverses\",Saisie!$B172=\"Remèdes_et_Antidotes\",Saisie!$B172=\"Sels_alchimiques\"),\"Normale\",\"Excellente\"),\"\")","v":""},null,"md_qlté_L172",{"$f":"IF(Saisie!$I172<>\"\",IF(OR(Saisie!$I172=\"Herbes_de_soin\",Saisie!$I172=\"Herbes_diverses\",Saisie!$I172=\"Remèdes_et_Antidotes\",Saisie!$I172=\"Sels_alchimiques\"),\"Normale\",\"Pitoyable\"),\"\")","v":""},{"$f":"IF(Saisie!$I172<>\"\",IF(OR(Saisie!$I172=\"Herbes_de_soin\",Saisie!$I172=\"Herbes_diverses\",Saisie!$I172=\"Remèdes_et_Antidotes\",Saisie!$I172=\"Sels_alchimiques\"),\"Normale\",\"Mauvaise\"),\"\")","v":""},{"$f":"IF(Saisie!$I172<>\"\",IF(OR(Saisie!$I172=\"Herbes_de_soin\",Saisie!$I172=\"Herbes_diverses\",Saisie!$I172=\"Remèdes_et_Antidotes\",Saisie!$I172=\"Sels_alchimiques\"),\"Normale\",\"Normale\"),\"\")","v":""},{"$f":"IF(Saisie!$I172<>\"\",IF(OR(Saisie!$I172=\"Herbes_de_soin\",Saisie!$I172=\"Herbes_diverses\",Saisie!$I172=\"Remèdes_et_Antidotes\",Saisie!$I172=\"Sels_alchimiques\"),\"Normale\",\"Bonne\"),\"\")","v":""},{"$f":"IF(Saisie!$I172<>\"\",IF(OR(Saisie!$I172=\"Herbes_de_soin\",Saisie!$I172=\"Herbes_diverses\",Saisie!$I172=\"Remèdes_et_Antidotes\",Saisie!$I172=\"Sels_alchimiques\"),\"Normale\",\"Excellente\"),\"\")","v":""}]
["md_qlté_173",{"$f":"IF(Saisie!$B173<>\"\",IF(OR(Saisie!$B173=\"Herbes_de_soin\",Saisie!$B173=\"Herbes_diverses\",Saisie!$B173=\"Remèdes_et_Antidotes\",Saisie!$B173=\"Sels_alchimiques\"),\"Normale\",\"Pitoyable\"),\"\")","v":""},{"$f":"IF(Saisie!$B173<>\"\",IF(OR(Saisie!$B173=\"Herbes_de_soin\",Saisie!$B173=\"Herbes_diverses\",Saisie!$B173=\"Remèdes_et_Antidotes\",Saisie!$B173=\"Sels_alchimiques\"),\"Normale\",\"Mauvaise\"),\"\")","v":""},{"$f":"IF(Saisie!$B173<>\"\",IF(OR(Saisie!$B173=\"Herbes_de_soin\",Saisie!$B173=\"Herbes_diverses\",Saisie!$B173=\"Remèdes_et_Antidotes\",Saisie!$B173=\"Sels_alchimiques\"),\"Normale\",\"Normale\"),\"\")","v":""},{"$f":"IF(Saisie!$B173<>\"\",IF(OR(Saisie!$B173=\"Herbes_de_soin\",Saisie!$B173=\"Herbes_diverses\",Saisie!$B173=\"Remèdes_et_Antidotes\",Saisie!$B173=\"Sels_alchimiques\"),\"Normale\",\"Bonne\"),\"\")","v":""},{"$f":"IF(Saisie!$B173<>\"\",IF(OR(Saisie!$B173=\"Herbes_de_soin\",Saisie!$B173=\"Herbes_diverses\",Saisie!$B173=\"Remèdes_et_Antidotes\",Saisie!$B173=\"Sels_alchimiques\"),\"Normale\",\"Excellente\"),\"\")","v":""},null,"md_qlté_L173",{"$f":"IF(Saisie!$I173<>\"\",IF(OR(Saisie!$I173=\"Herbes_de_soin\",Saisie!$I173=\"Herbes_diverses\",Saisie!$I173=\"Remèdes_et_Antidotes\",Saisie!$I173=\"Sels_alchimiques\"),\"Normale\",\"Pitoyable\"),\"\")","v":""},{"$f":"IF(Saisie!$I173<>\"\",IF(OR(Saisie!$I173=\"Herbes_de_soin\",Saisie!$I173=\"Herbes_diverses\",Saisie!$I173=\"Remèdes_et_Antidotes\",Saisie!$I173=\"Sels_alchimiques\"),\"Normale\",\"Mauvaise\"),\"\")","v":""},{"$f":"IF(Saisie!$I173<>\"\",IF(OR(Saisie!$I173=\"Herbes_de_soin\",Saisie!$I173=\"Herbes_diverses\",Saisie!$I173=\"Remèdes_et_Antidotes\",Saisie!$I173=\"Sels_alchimiques\"),\"Normale\",\"Normale\"),\"\")","v":""},{"$f":"IF(Saisie!$I173<>\"\",IF(OR(Saisie!$I173=\"Herbes_de_soin\",Saisie!$I173=\"Herbes_diverses\",Saisie!$I173=\"Remèdes_et_Antidotes\",Saisie!$I173=\"Sels_alchimiques\"),\"Normale\",\"Bonne\"),\"\")","v":""},{"$f":"IF(Saisie!$I173<>\"\",IF(OR(Saisie!$I173=\"Herbes_de_soin\",Saisie!$I173=\"Herbes_diverses\",Saisie!$I173=\"Remèdes_et_Antidotes\",Saisie!$I173=\"Sels_alchimiques\"),\"Normale\",\"Excellente\"),\"\")","v":""}]
["md_qlté_174",{"$f":"IF(Saisie!$B174<>\"\",IF(OR(Saisie!$B174=\"Herbes_de_soin\",Saisie!$B174=\"Herbes_diverses\",Saisie!$B174=\"Remèdes_et_Antidotes\",Saisie!$B174=\"Sels_alchimiques\"),\"Normale\",\"Pitoyable\"),\"\")","v":""},{"$f":"IF(Saisie!$B174<>\"\",IF(OR(Saisie!$B174=\"Herbes_de_soin\",Saisie!$B174=\"Herbes_diverses\",Saisie!$B174=\"Remèdes_et_Antidotes\",Saisie!$B174=\"Sels_alchimiques\"),\"Normale\",\"Mauvaise\"),\"\")","v":""},{"$f":"IF(Saisie!$B174<>\"\",IF(OR(Saisie!$B174=\"Herbes_de_soin\",Saisie!$B174=\"Herbes_diverses\",Saisie!$B174=\"Remèdes_et_Antidotes\",Saisie!$B174=\"Sels_alchimiques\"),\"Normale\",\"Normale\"),\"\")","v":""},{"$f":"IF(Saisie!$B174<>\"\",IF(OR(Saisie!$B174=\"Herbes_de_soin\",Saisie!$B174=\"Herbes_diverses\",Saisie!$B174=\"Remèdes_et_Antidotes\",Saisie!$B174=\"Sels_alchimiques\"),\"Normale\",\"Bonne\"),\"\")","v":""},{"$f":"IF(Saisie!$B174<>\"\",IF(OR(Saisie!$B174=\"Herbes_de_soin\",Saisie!$B174=\"Herbes_diverses\",Saisie!$B174=\"Remèdes_et_Antidotes\",Saisie!$B174=\"Sels_alchimiques\"),\"Normale\",\"Excellente\"),\"\")","v":""},null,"md_qlté_L174",{"$f":"IF(Saisie!$I174<>\"\",IF(OR(Saisie!$I174=\"Herbes_de_soin\",Saisie!$I174=\"Herbes_diverses\",Saisie!$I174=\"Remèdes_et_Antidotes\",Saisie!$I174=\"Sels_alchimiques\"),\"Normale\",\"Pitoyable\"),\"\")","v":""},{"$f":"IF(Saisie!$I174<>\"\",IF(OR(Saisie!$I174=\"Herbes_de_soin\",Saisie!$I174=\"Herbes_diverses\",Saisie!$I174=\"Remèdes_et_Antidotes\",Saisie!$I174=\"Sels_alchimiques\"),\"Normale\",\"Mauvaise\"),\"\")","v":""},{"$f":"IF(Saisie!$I174<>\"\",IF(OR(Saisie!$I174=\"Herbes_de_soin\",Saisie!$I174=\"Herbes_diverses\",Saisie!$I174=\"Remèdes_et_Antidotes\",Saisie!$I174=\"Sels_alchimiques\"),\"Normale\",\"Normale\"),\"\")","v":""},{"$f":"IF(Saisie!$I174<>\"\",IF(OR(Saisie!$I174=\"Herbes_de_soin\",Saisie!$I174=\"Herbes_diverses\",Saisie!$I174=\"Remèdes_et_Antidotes\",Saisie!$I174=\"Sels_alchimiques\"),\"Normale\",\"Bonne\"),\"\")","v":""},{"$f":"IF(Saisie!$I174<>\"\",IF(OR(Saisie!$I174=\"Herbes_de_soin\",Saisie!$I174=\"Herbes_diverses\",Saisie!$I174=\"Remèdes_et_Antidotes\",Saisie!$I174=\"Sels_alchimiques\"),\"Normale\",\"Excellente\"),\"\")","v":""}]
["md_qlté_175",{"$f":"IF(Saisie!$B175<>\"\",IF(OR(Saisie!$B175=\"Herbes_de_soin\",Saisie!$B175=\"Herbes_diverses\",Saisie!$B175=\"Remèdes_et_Antidotes\",Saisie!$B175=\"Sels_alchimiques\"),\"Normale\",\"Pitoyable\"),\"\")","v":""},{"$f":"IF(Saisie!$B175<>\"\",IF(OR(Saisie!$B175=\"Herbes_de_soin\",Saisie!$B175=\"Herbes_diverses\",Saisie!$B175=\"Remèdes_et_Antidotes\",Saisie!$B175=\"Sels_alchimiques\"),\"Normale\",\"Mauvaise\"),\"\")","v":""},{"$f":"IF(Saisie!$B175<>\"\",IF(OR(Saisie!$B175=\"Herbes_de_soin\",Saisie!$B175=\"Herbes_diverses\",Saisie!$B175=\"Remèdes_et_Antidotes\",Saisie!$B175=\"Sels_alchimiques\"),\"Normale\",\"Normale\"),\"\")","v":""},{"$f":"IF(Saisie!$B175<>\"\",IF(OR(Saisie!$B175=\"Herbes_de_soin\",Saisie!$B175=\"Herbes_diverses\",Saisie!$B175=\"Remèdes_et_Antidotes\",Saisie!$B175=\"Sels_alchimiques\"),\"Normale\",\"Bonne\"),\"\")","v":""},{"$f":"IF(Saisie!$B175<>\"\",IF(OR(Saisie!$B175=\"Herbes_de_soin\",Saisie!$B175=\"Herbes_diverses\",Saisie!$B175=\"Remèdes_et_Antidotes\",Saisie!$B175=\"Sels_alchimiques\"),\"Normale\",\"Excellente\"),\"\")","v":""},null,"md_qlté_L175",{"$f":"IF(Saisie!$I175<>\"\",IF(OR(Saisie!$I175=\"Herbes_de_soin\",Saisie!$I175=\"Herbes_diverses\",Saisie!$I175=\"Remèdes_et_Antidotes\",Saisie!$I175=\"Sels_alchimiques\"),\"Normale\",\"Pitoyable\"),\"\")","v":""},{"$f":"IF(Saisie!$I175<>\"\",IF(OR(Saisie!$I175=\"Herbes_de_soin\",Saisie!$I175=\"Herbes_diverses\",Saisie!$I175=\"Remèdes_et_Antidotes\",Saisie!$I175=\"Sels_alchimiques\"),\"Normale\",\"Mauvaise\"),\"\")","v":""},{"$f":"IF(Saisie!$I175<>\"\",IF(OR(Saisie!$I175=\"Herbes_de_soin\",Saisie!$I175=\"Herbes_diverses\",Saisie!$I175=\"Remèdes_et_Antidotes\",Saisie!$I175=\"Sels_alchimiques\"),\"Normale\",\"Normale\"),\"\")","v":""},{"$f":"IF(Saisie!$I175<>\"\",IF(OR(Saisie!$I175=\"Herbes_de_soin\",Saisie!$I175=\"Herbes_diverses\",Saisie!$I175=\"Remèdes_et_Antidotes\",Saisie!$I175=\"Sels_alchimiques\"),\"Normale\",\"Bonne\"),\"\")","v":""},{"$f":"IF(Saisie!$I175<>\"\",IF(OR(Saisie!$I175=\"Herbes_de_soin\",Saisie!$I175=\"Herbes_diverses\",Saisie!$I175=\"Remèdes_et_Antidotes\",Saisie!$I175=\"Sels_alchimiques\"),\"Normale\",\"Excellente\"),\"\")","v":""}]
["md_qlté_176",{"$f":"IF(Saisie!$B176<>\"\",IF(OR(Saisie!$B176=\"Herbes_de_soin\",Saisie!$B176=\"Herbes_diverses\",Saisie!$B176=\"Remèdes_et_Antidotes\",Saisie!$B176=\"Sels_alchimiques\"),\"Normale\",\"Pitoyable\"),\"\")","v":""},{"$f":"IF(Saisie!$B176<>\"\",IF(OR(Saisie!$B176=\"Herbes_de_soin\",Saisie!$B176=\"Herbes_diverses\",Saisie!$B176=\"Remèdes_et_Antidotes\",Saisie!$B176=\"Sels_alchimiques\"),\"Normale\",\"Mauvaise\"),\"\")","v":""},{"$f":"IF(Saisie!$B176<>\"\",IF(OR(Saisie!$B176=\"Herbes_de_soin\",Saisie!$B176=\"Herbes_diverses\",Saisie!$B176=\"Remèdes_et_Antidotes\",Saisie!$B176=\"Sels_alchimiques\"),\"Normale\",\"Normale\"),\"\")","v":""},{"$f":"IF(Saisie!$B176<>\"\",IF(OR(Saisie!$B176=\"Herbes_de_soin\",Saisie!$B176=\"Herbes_diverses\",Saisie!$B176=\"Remèdes_et_Antidotes\",Saisie!$B176=\"Sels_alchimiques\"),\"Normale\",\"Bonne\"),\"\")","v":""},{"$f":"IF(Saisie!$B176<>\"\",IF(OR(Saisie!$B176=\"Herbes_de_soin\",Saisie!$B176=\"Herbes_diverses\",Saisie!$B176=\"Remèdes_et_Antidotes\",Saisie!$B176=\"Sels_alchimiques\"),\"Normale\",\"Excellente\"),\"\")","v":""},null,"md_qlté_L176",{"$f":"IF(Saisie!$I176<>\"\",IF(OR(Saisie!$I176=\"Herbes_de_soin\",Saisie!$I176=\"Herbes_diverses\",Saisie!$I176=\"Remèdes_et_Antidotes\",Saisie!$I176=\"Sels_alchimiques\"),\"Normale\",\"Pitoyable\"),\"\")","v":""},{"$f":"IF(Saisie!$I176<>\"\",IF(OR(Saisie!$I176=\"Herbes_de_soin\",Saisie!$I176=\"Herbes_diverses\",Saisie!$I176=\"Remèdes_et_Antidotes\",Saisie!$I176=\"Sels_alchimiques\"),\"Normale\",\"Mauvaise\"),\"\")","v":""},{"$f":"IF(Saisie!$I176<>\"\",IF(OR(Saisie!$I176=\"Herbes_de_soin\",Saisie!$I176=\"Herbes_diverses\",Saisie!$I176=\"Remèdes_et_Antidotes\",Saisie!$I176=\"Sels_alchimiques\"),\"Normale\",\"Normale\"),\"\")","v":""},{"$f":"IF(Saisie!$I176<>\"\",IF(OR(Saisie!$I176=\"Herbes_de_soin\",Saisie!$I176=\"Herbes_diverses\",Saisie!$I176=\"Remèdes_et_Antidotes\",Saisie!$I176=\"Sels_alchimiques\"),\"Normale\",\"Bonne\"),\"\")","v":""},{"$f":"IF(Saisie!$I176<>\"\",IF(OR(Saisie!$I176=\"Herbes_de_soin\",Saisie!$I176=\"Herbes_diverses\",Saisie!$I176=\"Remèdes_et_Antidotes\",Saisie!$I176=\"Sels_alchimiques\"),\"Normale\",\"Excellente\"),\"\")","v":""}]
["md_qlté_177",{"$f":"IF(Saisie!$B177<>\"\",IF(OR(Saisie!$B177=\"Herbes_de_soin\",Saisie!$B177=\"Herbes_diverses\",Saisie!$B177=\"Remèdes_et_Antidotes\",Saisie!$B177=\"Sels_alchimiques\"),\"Normale\",\"Pitoyable\"),\"\")","v":""},{"$f":"IF(Saisie!$B177<>\"\",IF(OR(Saisie!$B177=\"Herbes_de_soin\",Saisie!$B177=\"Herbes_diverses\",Saisie!$B177=\"Remèdes_et_Antidotes\",Saisie!$B177=\"Sels_alchimiques\"),\"Normale\",\"Mauvaise\"),\"\")","v":""},{"$f":"IF(Saisie!$B177<>\"\",IF(OR(Saisie!$B177=\"Herbes_de_soin\",Saisie!$B177=\"Herbes_diverses\",Saisie!$B177=\"Remèdes_et_Antidotes\",Saisie!$B177=\"Sels_alchimiques\"),\"Normale\",\"Normale\"),\"\")","v":""},{"$f":"IF(Saisie!$B177<>\"\",IF(OR(Saisie!$B177=\"Herbes_de_soin\",Saisie!$B177=\"Herbes_diverses\",Saisie!$B177=\"Remèdes_et_Antidotes\",Saisie!$B177=\"Sels_alchimiques\"),\"Normale\",\"Bonne\"),\"\")","v":""},{"$f":"IF(Saisie!$B177<>\"\",IF(OR(Saisie!$B177=\"Herbes_de_soin\",Saisie!$B177=\"Herbes_diverses\",Saisie!$B177=\"Remèdes_et_Antidotes\",Saisie!$B177=\"Sels_alchimiques\"),\"Normale\",\"Excellente\"),\"\")","v":""},null,"md_qlté_L177",{"$f":"IF(Saisie!$I177<>\"\",IF(OR(Saisie!$I177=\"Herbes_de_soin\",Saisie!$I177=\"Herbes_diverses\",Saisie!$I177=\"Remèdes_et_Antidotes\",Saisie!$I177=\"Sels_alchimiques\"),\"Normale\",\"Pitoyable\"),\"\")","v":""},{"$f":"IF(Saisie!$I177<>\"\",IF(OR(Saisie!$I177=\"Herbes_de_soin\",Saisie!$I177=\"Herbes_diverses\",Saisie!$I177=\"Remèdes_et_Antidotes\",Saisie!$I177=\"Sels_alchimiques\"),\"Normale\",\"Mauvaise\"),\"\")","v":""},{"$f":"IF(Saisie!$I177<>\"\",IF(OR(Saisie!$I177=\"Herbes_de_soin\",Saisie!$I177=\"Herbes_diverses\",Saisie!$I177=\"Remèdes_et_Antidotes\",Saisie!$I177=\"Sels_alchimiques\"),\"Normale\",\"Normale\"),\"\")","v":""},{"$f":"IF(Saisie!$I177<>\"\",IF(OR(Saisie!$I177=\"Herbes_de_soin\",Saisie!$I177=\"Herbes_diverses\",Saisie!$I177=\"Remèdes_et_Antidotes\",Saisie!$I177=\"Sels_alchimiques\"),\"Normale\",\"Bonne\"),\"\")","v":""},{"$f":"IF(Saisie!$I177<>\"\",IF(OR(Saisie!$I177=\"Herbes_de_soin\",Saisie!$I177=\"Herbes_diverses\",Saisie!$I177=\"Remèdes_et_Antidotes\",Saisie!$I177=\"Sels_alchimiques\"),\"Normale\",\"Excellente\"),\"\")","v":""}]
["md_qlté_178",{"$f":"IF(Saisie!$B178<>\"\",IF(OR(Saisie!$B178=\"Herbes_de_soin\",Saisie!$B178=\"Herbes_diverses\",Saisie!$B178=\"Remèdes_et_Antidotes\",Saisie!$B178=\"Sels_alchimiques\"),\"Normale\",\"Pitoyable\"),\"\")","v":""},{"$f":"IF(Saisie!$B178<>\"\",IF(OR(Saisie!$B178=\"Herbes_de_soin\",Saisie!$B178=\"Herbes_diverses\",Saisie!$B178=\"Remèdes_et_Antidotes\",Saisie!$B178=\"Sels_alchimiques\"),\"Normale\",\"Mauvaise\"),\"\")","v":""},{"$f":"IF(Saisie!$B178<>\"\",IF(OR(Saisie!$B178=\"Herbes_de_soin\",Saisie!$B178=\"Herbes_diverses\",Saisie!$B178=\"Remèdes_et_Antidotes\",Saisie!$B178=\"Sels_alchimiques\"),\"Normale\",\"Normale\"),\"\")","v":""},{"$f":"IF(Saisie!$B178<>\"\",IF(OR(Saisie!$B178=\"Herbes_de_soin\",Saisie!$B178=\"Herbes_diverses\",Saisie!$B178=\"Remèdes_et_Antidotes\",Saisie!$B178=\"Sels_alchimiques\"),\"Normale\",\"Bonne\"),\"\")","v":""},{"$f":"IF(Saisie!$B178<>\"\",IF(OR(Saisie!$B178=\"Herbes_de_soin\",Saisie!$B178=\"Herbes_diverses\",Saisie!$B178=\"Remèdes_et_Antidotes\",Saisie!$B178=\"Sels_alchimiques\"),\"Normale\",\"Excellente\"),\"\")","v":""},null,"md_qlté_L178",{"$f":"IF(Saisie!$I178<>\"\",IF(OR(Saisie!$I178=\"Herbes_de_soin\",Saisie!$I178=\"Herbes_diverses\",Saisie!$I178=\"Remèdes_et_Antidotes\",Saisie!$I178=\"Sels_alchimiques\"),\"Normale\",\"Pitoyable\"),\"\")","v":""},{"$f":"IF(Saisie!$I178<>\"\",IF(OR(Saisie!$I178=\"Herbes_de_soin\",Saisie!$I178=\"Herbes_diverses\",Saisie!$I178=\"Remèdes_et_Antidotes\",Saisie!$I178=\"Sels_alchimiques\"),\"Normale\",\"Mauvaise\"),\"\")","v":""},{"$f":"IF(Saisie!$I178<>\"\",IF(OR(Saisie!$I178=\"Herbes_de_soin\",Saisie!$I178=\"Herbes_diverses\",Saisie!$I178=\"Remèdes_et_Antidotes\",Saisie!$I178=\"Sels_alchimiques\"),\"Normale\",\"Normale\"),\"\")","v":""},{"$f":"IF(Saisie!$I178<>\"\",IF(OR(Saisie!$I178=\"Herbes_de_soin\",Saisie!$I178=\"Herbes_diverses\",Saisie!$I178=\"Remèdes_et_Antidotes\",Saisie!$I178=\"Sels_alchimiques\"),\"Normale\",\"Bonne\"),\"\")","v":""},{"$f":"IF(Saisie!$I178<>\"\",IF(OR(Saisie!$I178=\"Herbes_de_soin\",Saisie!$I178=\"Herbes_diverses\",Saisie!$I178=\"Remèdes_et_Antidotes\",Saisie!$I178=\"Sels_alchimiques\"),\"Normale\",\"Excellente\"),\"\")","v":""}]
["md_qlté_179",{"$f":"IF(Saisie!$B179<>\"\",IF(OR(Saisie!$B179=\"Herbes_de_soin\",Saisie!$B179=\"Herbes_diverses\",Saisie!$B179=\"Remèdes_et_Antidotes\",Saisie!$B179=\"Sels_alchimiques\"),\"Normale\",\"Pitoyable\"),\"\")","v":"Pitoyable"},{"$f":"IF(Saisie!$B179<>\"\",IF(OR(Saisie!$B179=\"Herbes_de_soin\",Saisie!$B179=\"Herbes_diverses\",Saisie!$B179=\"Remèdes_et_Antidotes\",Saisie!$B179=\"Sels_alchimiques\"),\"Normale\",\"Mauvaise\"),\"\")","v":"Mauvaise"},{"$f":"IF(Saisie!$B179<>\"\",IF(OR(Saisie!$B179=\"Herbes_de_soin\",Saisie!$B179=\"Herbes_diverses\",Saisie!$B179=\"Remèdes_et_Antidotes\",Saisie!$B179=\"Sels_alchimiques\"),\"Normale\",\"Normale\"),\"\")","v":"Normale"},{"$f":"IF(Saisie!$B179<>\"\",IF(OR(Saisie!$B179=\"Herbes_de_soin\",Saisie!$B179=\"Herbes_diverses\",Saisie!$B179=\"Remèdes_et_Antidotes\",Saisie!$B179=\"Sels_alchimiques\"),\"Normale\",\"Bonne\"),\"\")","v":"Bonne"},{"$f":"IF(Saisie!$B179<>\"\",IF(OR(Saisie!$B179=\"Herbes_de_soin\",Saisie!$B179=\"Herbes_diverses\",Saisie!$B179=\"Remèdes_et_Antidotes\",Saisie!$B179=\"Sels_alchimiques\"),\"Normale\",\"Excellente\"),\"\")","v":"Excellente"},null,"md_qlté_L179",{"$f":"IF(Saisie!$I179<>\"\",IF(OR(Saisie!$I179=\"Herbes_de_soin\",Saisie!$I179=\"Herbes_diverses\",Saisie!$I179=\"Remèdes_et_Antidotes\",Saisie!$I179=\"Sels_alchimiques\"),\"Normale\",\"Pitoyable\"),\"\")","v":""},{"$f":"IF(Saisie!$I179<>\"\",IF(OR(Saisie!$I179=\"Herbes_de_soin\",Saisie!$I179=\"Herbes_diverses\",Saisie!$I179=\"Remèdes_et_Antidotes\",Saisie!$I179=\"Sels_alchimiques\"),\"Normale\",\"Mauvaise\"),\"\")","v":""},{"$f":"IF(Saisie!$I179<>\"\",IF(OR(Saisie!$I179=\"Herbes_de_soin\",Saisie!$I179=\"Herbes_diverses\",Saisie!$I179=\"Remèdes_et_Antidotes\",Saisie!$I179=\"Sels_alchimiques\"),\"Normale\",\"Normale\"),\"\")","v":""},{"$f":"IF(Saisie!$I179<>\"\",IF(OR(Saisie!$I179=\"Herbes_de_soin\",Saisie!$I179=\"Herbes_diverses\",Saisie!$I179=\"Remèdes_et_Antidotes\",Saisie!$I179=\"Sels_alchimiques\"),\"Normale\",\"Bonne\"),\"\")","v":""},{"$f":"IF(Saisie!$I179<>\"\",IF(OR(Saisie!$I179=\"Herbes_de_soin\",Saisie!$I179=\"Herbes_diverses\",Saisie!$I179=\"Remèdes_et_Antidotes\",Saisie!$I179=\"Sels_alchimiques\"),\"Normale\",\"Excellente\"),\"\")","v":""}]
["md_qlté_180",{"$f":"IF(Saisie!$B180<>\"\",IF(OR(Saisie!$B180=\"Herbes_de_soin\",Saisie!$B180=\"Herbes_diverses\",Saisie!$B180=\"Remèdes_et_Antidotes\",Saisie!$B180=\"Sels_alchimiques\"),\"Normale\",\"Pitoyable\"),\"\")","v":""},{"$f":"IF(Saisie!$B180<>\"\",IF(OR(Saisie!$B180=\"Herbes_de_soin\",Saisie!$B180=\"Herbes_diverses\",Saisie!$B180=\"Remèdes_et_Antidotes\",Saisie!$B180=\"Sels_alchimiques\"),\"Normale\",\"Mauvaise\"),\"\")","v":""},{"$f":"IF(Saisie!$B180<>\"\",IF(OR(Saisie!$B180=\"Herbes_de_soin\",Saisie!$B180=\"Herbes_diverses\",Saisie!$B180=\"Remèdes_et_Antidotes\",Saisie!$B180=\"Sels_alchimiques\"),\"Normale\",\"Normale\"),\"\")","v":""},{"$f":"IF(Saisie!$B180<>\"\",IF(OR(Saisie!$B180=\"Herbes_de_soin\",Saisie!$B180=\"Herbes_diverses\",Saisie!$B180=\"Remèdes_et_Antidotes\",Saisie!$B180=\"Sels_alchimiques\"),\"Normale\",\"Bonne\"),\"\")","v":""},{"$f":"IF(Saisie!$B180<>\"\",IF(OR(Saisie!$B180=\"Herbes_de_soin\",Saisie!$B180=\"Herbes_diverses\",Saisie!$B180=\"Remèdes_et_Antidotes\",Saisie!$B180=\"Sels_alchimiques\"),\"Normale\",\"Excellente\"),\"\")","v":""},null,"md_qlté_L180",{"$f":"IF(Saisie!$I180<>\"\",IF(OR(Saisie!$I180=\"Herbes_de_soin\",Saisie!$I180=\"Herbes_diverses\",Saisie!$I180=\"Remèdes_et_Antidotes\",Saisie!$I180=\"Sels_alchimiques\"),\"Normale\",\"Pitoyable\"),\"\")","v":"Pitoyable"},{"$f":"IF(Saisie!$I180<>\"\",IF(OR(Saisie!$I180=\"Herbes_de_soin\",Saisie!$I180=\"Herbes_diverses\",Saisie!$I180=\"Remèdes_et_Antidotes\",Saisie!$I180=\"Sels_alchimiques\"),\"Normale\",\"Mauvaise\"),\"\")","v":"Mauvaise"},{"$f":"IF(Saisie!$I180<>\"\",IF(OR(Saisie!$I180=\"Herbes_de_soin\",Saisie!$I180=\"Herbes_diverses\",Saisie!$I180=\"Remèdes_et_Antidotes\",Saisie!$I180=\"Sels_alchimiques\"),\"Normale\",\"Normale\"),\"\")","v":"Normale"},{"$f":"IF(Saisie!$I180<>\"\",IF(OR(Saisie!$I180=\"Herbes_de_soin\",Saisie!$I180=\"Herbes_diverses\",Saisie!$I180=\"Remèdes_et_Antidotes\",Saisie!$I180=\"Sels_alchimiques\"),\"Normale\",\"Bonne\"),\"\")","v":"Bonne"},{"$f":"IF(Saisie!$I180<>\"\",IF(OR(Saisie!$I180=\"Herbes_de_soin\",Saisie!$I180=\"Herbes_diverses\",Saisie!$I180=\"Remèdes_et_Antidotes\",Saisie!$I180=\"Sels_alchimiques\"),\"Normale\",\"Excellente\"),\"\")","v":"Excellente"}]
["md_qlté_181",{"$f":"IF(Saisie!$B181<>\"\",IF(OR(Saisie!$B181=\"Herbes_de_soin\",Saisie!$B181=\"Herbes_diverses\",Saisie!$B181=\"Remèdes_et_Antidotes\",Saisie!$B181=\"Sels_alchimiques\"),\"Normale\",\"Pitoyable\"),\"\")","v":""},{"$f":"IF(Saisie!$B181<>\"\",IF(OR(Saisie!$B181=\"Herbes_de_soin\",Saisie!$B181=\"Herbes_diverses\",Saisie!$B181=\"Remèdes_et_Antidotes\",Saisie!$B181=\"Sels_alchimiques\"),\"Normale\",\"Mauvaise\"),\"\")","v":""},{"$f":"IF(Saisie!$B181<>\"\",IF(OR(Saisie!$B181=\"Herbes_de_soin\",Saisie!$B181=\"Herbes_diverses\",Saisie!$B181=\"Remèdes_et_Antidotes\",Saisie!$B181=\"Sels_alchimiques\"),\"Normale\",\"Normale\"),\"\")","v":""},{"$f":"IF(Saisie!$B181<>\"\",IF(OR(Saisie!$B181=\"Herbes_de_soin\",Saisie!$B181=\"Herbes_diverses\",Saisie!$B181=\"Remèdes_et_Antidotes\",Saisie!$B181=\"Sels_alchimiques\"),\"Normale\",\"Bonne\"),\"\")","v":""},{"$f":"IF(Saisie!$B181<>\"\",IF(OR(Saisie!$B181=\"Herbes_de_soin\",Saisie!$B181=\"Herbes_diverses\",Saisie!$B181=\"Remèdes_et_Antidotes\",Saisie!$B181=\"Sels_alchimiques\"),\"Normale\",\"Excellente\"),\"\")","v":""},null,"md_qlté_L181",{"$f":"IF(Saisie!$I181<>\"\",IF(OR(Saisie!$I181=\"Herbes_de_soin\",Saisie!$I181=\"Herbes_diverses\",Saisie!$I181=\"Remèdes_et_Antidotes\",Saisie!$I181=\"Sels_alchimiques\"),\"Normale\",\"Pitoyable\"),\"\")","v":""},{"$f":"IF(Saisie!$I181<>\"\",IF(OR(Saisie!$I181=\"Herbes_de_soin\",Saisie!$I181=\"Herbes_diverses\",Saisie!$I181=\"Remèdes_et_Antidotes\",Saisie!$I181=\"Sels_alchimiques\"),\"Normale\",\"Mauvaise\"),\"\")","v":""},{"$f":"IF(Saisie!$I181<>\"\",IF(OR(Saisie!$I181=\"Herbes_de_soin\",Saisie!$I181=\"Herbes_diverses\",Saisie!$I181=\"Remèdes_et_Antidotes\",Saisie!$I181=\"Sels_alchimiques\"),\"Normale\",\"Normale\"),\"\")","v":""},{"$f":"IF(Saisie!$I181<>\"\",IF(OR(Saisie!$I181=\"Herbes_de_soin\",Saisie!$I181=\"Herbes_diverses\",Saisie!$I181=\"Remèdes_et_Antidotes\",Saisie!$I181=\"Sels_alchimiques\"),\"Normale\",\"Bonne\"),\"\")","v":""},{"$f":"IF(Saisie!$I181<>\"\",IF(OR(Saisie!$I181=\"Herbes_de_soin\",Saisie!$I181=\"Herbes_diverses\",Saisie!$I181=\"Remèdes_et_Antidotes\",Saisie!$I181=\"Sels_alchimiques\"),\"Normale\",\"Excellente\"),\"\")","v":""}]
["md_qlté_182",{"$f":"IF(Saisie!$B182<>\"\",IF(OR(Saisie!$B182=\"Herbes_de_soin\",Saisie!$B182=\"Herbes_diverses\",Saisie!$B182=\"Remèdes_et_Antidotes\",Saisie!$B182=\"Sels_alchimiques\"),\"Normale\",\"Pitoyable\"),\"\")","v":""},{"$f":"IF(Saisie!$B182<>\"\",IF(OR(Saisie!$B182=\"Herbes_de_soin\",Saisie!$B182=\"Herbes_diverses\",Saisie!$B182=\"Remèdes_et_Antidotes\",Saisie!$B182=\"Sels_alchimiques\"),\"Normale\",\"Mauvaise\"),\"\")","v":""},{"$f":"IF(Saisie!$B182<>\"\",IF(OR(Saisie!$B182=\"Herbes_de_soin\",Saisie!$B182=\"Herbes_diverses\",Saisie!$B182=\"Remèdes_et_Antidotes\",Saisie!$B182=\"Sels_alchimiques\"),\"Normale\",\"Normale\"),\"\")","v":""},{"$f":"IF(Saisie!$B182<>\"\",IF(OR(Saisie!$B182=\"Herbes_de_soin\",Saisie!$B182=\"Herbes_diverses\",Saisie!$B182=\"Remèdes_et_Antidotes\",Saisie!$B182=\"Sels_alchimiques\"),\"Normale\",\"Bonne\"),\"\")","v":""},{"$f":"IF(Saisie!$B182<>\"\",IF(OR(Saisie!$B182=\"Herbes_de_soin\",Saisie!$B182=\"Herbes_diverses\",Saisie!$B182=\"Remèdes_et_Antidotes\",Saisie!$B182=\"Sels_alchimiques\"),\"Normale\",\"Excellente\"),\"\")","v":""},null,"md_qlté_L182",{"$f":"IF(Saisie!$I182<>\"\",IF(OR(Saisie!$I182=\"Herbes_de_soin\",Saisie!$I182=\"Herbes_diverses\",Saisie!$I182=\"Remèdes_et_Antidotes\",Saisie!$I182=\"Sels_alchimiques\"),\"Normale\",\"Pitoyable\"),\"\")","v":""},{"$f":"IF(Saisie!$I182<>\"\",IF(OR(Saisie!$I182=\"Herbes_de_soin\",Saisie!$I182=\"Herbes_diverses\",Saisie!$I182=\"Remèdes_et_Antidotes\",Saisie!$I182=\"Sels_alchimiques\"),\"Normale\",\"Mauvaise\"),\"\")","v":""},{"$f":"IF(Saisie!$I182<>\"\",IF(OR(Saisie!$I182=\"Herbes_de_soin\",Saisie!$I182=\"Herbes_diverses\",Saisie!$I182=\"Remèdes_et_Antidotes\",Saisie!$I182=\"Sels_alchimiques\"),\"Normale\",\"Normale\"),\"\")","v":""},{"$f":"IF(Saisie!$I182<>\"\",IF(OR(Saisie!$I182=\"Herbes_de_soin\",Saisie!$I182=\"Herbes_diverses\",Saisie!$I182=\"Remèdes_et_Antidotes\",Saisie!$I182=\"Sels_alchimiques\"),\"Normale\",\"Bonne\"),\"\")","v":""},{"$f":"IF(Saisie!$I182<>\"\",IF(OR(Saisie!$I182=\"Herbes_de_soin\",Saisie!$I182=\"Herbes_diverses\",Saisie!$I182=\"Remèdes_et_Antidotes\",Saisie!$I182=\"Sels_alchimiques\"),\"Normale\",\"Excellente\"),\"\")","v":""}]
["md_qlté_183",{"$f":"IF(Saisie!$B183<>\"\",IF(OR(Saisie!$B183=\"Herbes_de_soin\",Saisie!$B183=\"Herbes_diverses\",Saisie!$B183=\"Remèdes_et_Antidotes\",Saisie!$B183=\"Sels_alchimiques\"),\"Normale\",\"Pitoyable\"),\"\")","v":""},{"$f":"IF(Saisie!$B183<>\"\",IF(OR(Saisie!$B183=\"Herbes_de_soin\",Saisie!$B183=\"Herbes_diverses\",Saisie!$B183=\"Remèdes_et_Antidotes\",Saisie!$B183=\"Sels_alchimiques\"),\"Normale\",\"Mauvaise\"),\"\")","v":""},{"$f":"IF(Saisie!$B183<>\"\",IF(OR(Saisie!$B183=\"Herbes_de_soin\",Saisie!$B183=\"Herbes_diverses\",Saisie!$B183=\"Remèdes_et_Antidotes\",Saisie!$B183=\"Sels_alchimiques\"),\"Normale\",\"Normale\"),\"\")","v":""},{"$f":"IF(Saisie!$B183<>\"\",IF(OR(Saisie!$B183=\"Herbes_de_soin\",Saisie!$B183=\"Herbes_diverses\",Saisie!$B183=\"Remèdes_et_Antidotes\",Saisie!$B183=\"Sels_alchimiques\"),\"Normale\",\"Bonne\"),\"\")","v":""},{"$f":"IF(Saisie!$B183<>\"\",IF(OR(Saisie!$B183=\"Herbes_de_soin\",Saisie!$B183=\"Herbes_diverses\",Saisie!$B183=\"Remèdes_et_Antidotes\",Saisie!$B183=\"Sels_alchimiques\"),\"Normale\",\"Excellente\"),\"\")","v":""},null,"md_qlté_L183",{"$f":"IF(Saisie!$I183<>\"\",IF(OR(Saisie!$I183=\"Herbes_de_soin\",Saisie!$I183=\"Herbes_diverses\",Saisie!$I183=\"Remèdes_et_Antidotes\",Saisie!$I183=\"Sels_alchimiques\"),\"Normale\",\"Pitoyable\"),\"\")","v":""},{"$f":"IF(Saisie!$I183<>\"\",IF(OR(Saisie!$I183=\"Herbes_de_soin\",Saisie!$I183=\"Herbes_diverses\",Saisie!$I183=\"Remèdes_et_Antidotes\",Saisie!$I183=\"Sels_alchimiques\"),\"Normale\",\"Mauvaise\"),\"\")","v":""},{"$f":"IF(Saisie!$I183<>\"\",IF(OR(Saisie!$I183=\"Herbes_de_soin\",Saisie!$I183=\"Herbes_diverses\",Saisie!$I183=\"Remèdes_et_Antidotes\",Saisie!$I183=\"Sels_alchimiques\"),\"Normale\",\"Normale\"),\"\")","v":""},{"$f":"IF(Saisie!$I183<>\"\",IF(OR(Saisie!$I183=\"Herbes_de_soin\",Saisie!$I183=\"Herbes_diverses\",Saisie!$I183=\"Remèdes_et_Antidotes\",Saisie!$I183=\"Sels_alchimiques\"),\"Normale\",\"Bonne\"),\"\")","v":""},{"$f":"IF(Saisie!$I183<>\"\",IF(OR(Saisie!$I183=\"Herbes_de_soin\",Saisie!$I183=\"Herbes_diverses\",Saisie!$I183=\"Remèdes_et_Antidotes\",Saisie!$I183=\"Sels_alchimiques\"),\"Normale\",\"Excellente\"),\"\")","v":""}]
["md_qlté_184",{"$f":"IF(Saisie!$B184<>\"\",IF(OR(Saisie!$B184=\"Herbes_de_soin\",Saisie!$B184=\"Herbes_diverses\",Saisie!$B184=\"Remèdes_et_Antidotes\",Saisie!$B184=\"Sels_alchimiques\"),\"Normale\",\"Pitoyable\"),\"\")","v":""},{"$f":"IF(Saisie!$B184<>\"\",IF(OR(Saisie!$B184=\"Herbes_de_soin\",Saisie!$B184=\"Herbes_diverses\",Saisie!$B184=\"Remèdes_et_Antidotes\",Saisie!$B184=\"Sels_alchimiques\"),\"Normale\",\"Mauvaise\"),\"\")","v":""},{"$f":"IF(Saisie!$B184<>\"\",IF(OR(Saisie!$B184=\"Herbes_de_soin\",Saisie!$B184=\"Herbes_diverses\",Saisie!$B184=\"Remèdes_et_Antidotes\",Saisie!$B184=\"Sels_alchimiques\"),\"Normale\",\"Normale\"),\"\")","v":""},{"$f":"IF(Saisie!$B184<>\"\",IF(OR(Saisie!$B184=\"Herbes_de_soin\",Saisie!$B184=\"Herbes_diverses\",Saisie!$B184=\"Remèdes_et_Antidotes\",Saisie!$B184=\"Sels_alchimiques\"),\"Normale\",\"Bonne\"),\"\")","v":""},{"$f":"IF(Saisie!$B184<>\"\",IF(OR(Saisie!$B184=\"Herbes_de_soin\",Saisie!$B184=\"Herbes_diverses\",Saisie!$B184=\"Remèdes_et_Antidotes\",Saisie!$B184=\"Sels_alchimiques\"),\"Normale\",\"Excellente\"),\"\")","v":""},null,"md_qlté_L184",{"$f":"IF(Saisie!$I184<>\"\",IF(OR(Saisie!$I184=\"Herbes_de_soin\",Saisie!$I184=\"Herbes_diverses\",Saisie!$I184=\"Remèdes_et_Antidotes\",Saisie!$I184=\"Sels_alchimiques\"),\"Normale\",\"Pitoyable\"),\"\")","v":""},{"$f":"IF(Saisie!$I184<>\"\",IF(OR(Saisie!$I184=\"Herbes_de_soin\",Saisie!$I184=\"Herbes_diverses\",Saisie!$I184=\"Remèdes_et_Antidotes\",Saisie!$I184=\"Sels_alchimiques\"),\"Normale\",\"Mauvaise\"),\"\")","v":""},{"$f":"IF(Saisie!$I184<>\"\",IF(OR(Saisie!$I184=\"Herbes_de_soin\",Saisie!$I184=\"Herbes_diverses\",Saisie!$I184=\"Remèdes_et_Antidotes\",Saisie!$I184=\"Sels_alchimiques\"),\"Normale\",\"Normale\"),\"\")","v":""},{"$f":"IF(Saisie!$I184<>\"\",IF(OR(Saisie!$I184=\"Herbes_de_soin\",Saisie!$I184=\"Herbes_diverses\",Saisie!$I184=\"Remèdes_et_Antidotes\",Saisie!$I184=\"Sels_alchimiques\"),\"Normale\",\"Bonne\"),\"\")","v":""},{"$f":"IF(Saisie!$I184<>\"\",IF(OR(Saisie!$I184=\"Herbes_de_soin\",Saisie!$I184=\"Herbes_diverses\",Saisie!$I184=\"Remèdes_et_Antidotes\",Saisie!$I184=\"Sels_alchimiques\"),\"Normale\",\"Excellente\"),\"\")","v":""}]
["md_qlté_185",{"$f":"IF(Saisie!$B185<>\"\",IF(OR(Saisie!$B185=\"Herbes_de_soin\",Saisie!$B185=\"Herbes_diverses\",Saisie!$B185=\"Remèdes_et_Antidotes\",Saisie!$B185=\"Sels_alchimiques\"),\"Normale\",\"Pitoyable\"),\"\")","v":""},{"$f":"IF(Saisie!$B185<>\"\",IF(OR(Saisie!$B185=\"Herbes_de_soin\",Saisie!$B185=\"Herbes_diverses\",Saisie!$B185=\"Remèdes_et_Antidotes\",Saisie!$B185=\"Sels_alchimiques\"),\"Normale\",\"Mauvaise\"),\"\")","v":""},{"$f":"IF(Saisie!$B185<>\"\",IF(OR(Saisie!$B185=\"Herbes_de_soin\",Saisie!$B185=\"Herbes_diverses\",Saisie!$B185=\"Remèdes_et_Antidotes\",Saisie!$B185=\"Sels_alchimiques\"),\"Normale\",\"Normale\"),\"\")","v":""},{"$f":"IF(Saisie!$B185<>\"\",IF(OR(Saisie!$B185=\"Herbes_de_soin\",Saisie!$B185=\"Herbes_diverses\",Saisie!$B185=\"Remèdes_et_Antidotes\",Saisie!$B185=\"Sels_alchimiques\"),\"Normale\",\"Bonne\"),\"\")","v":""},{"$f":"IF(Saisie!$B185<>\"\",IF(OR(Saisie!$B185=\"Herbes_de_soin\",Saisie!$B185=\"Herbes_diverses\",Saisie!$B185=\"Remèdes_et_Antidotes\",Saisie!$B185=\"Sels_alchimiques\"),\"Normale\",\"Excellente\"),\"\")","v":""},null,"md_qlté_L185",{"$f":"IF(Saisie!$I185<>\"\",IF(OR(Saisie!$I185=\"Herbes_de_soin\",Saisie!$I185=\"Herbes_diverses\",Saisie!$I185=\"Remèdes_et_Antidotes\",Saisie!$I185=\"Sels_alchimiques\"),\"Normale\",\"Pitoyable\"),\"\")","v":""},{"$f":"IF(Saisie!$I185<>\"\",IF(OR(Saisie!$I185=\"Herbes_de_soin\",Saisie!$I185=\"Herbes_diverses\",Saisie!$I185=\"Remèdes_et_Antidotes\",Saisie!$I185=\"Sels_alchimiques\"),\"Normale\",\"Mauvaise\"),\"\")","v":""},{"$f":"IF(Saisie!$I185<>\"\",IF(OR(Saisie!$I185=\"Herbes_de_soin\",Saisie!$I185=\"Herbes_diverses\",Saisie!$I185=\"Remèdes_et_Antidotes\",Saisie!$I185=\"Sels_alchimiques\"),\"Normale\",\"Normale\"),\"\")","v":""},{"$f":"IF(Saisie!$I185<>\"\",IF(OR(Saisie!$I185=\"Herbes_de_soin\",Saisie!$I185=\"Herbes_diverses\",Saisie!$I185=\"Remèdes_et_Antidotes\",Saisie!$I185=\"Sels_alchimiques\"),\"Normale\",\"Bonne\"),\"\")","v":""},{"$f":"IF(Saisie!$I185<>\"\",IF(OR(Saisie!$I185=\"Herbes_de_soin\",Saisie!$I185=\"Herbes_diverses\",Saisie!$I185=\"Remèdes_et_Antidotes\",Saisie!$I185=\"Sels_alchimiques\"),\"Normale\",\"Excellente\"),\"\")","v":""}]
["md_qlté_186",{"$f":"IF(Saisie!$B186<>\"\",IF(OR(Saisie!$B186=\"Herbes_de_soin\",Saisie!$B186=\"Herbes_diverses\",Saisie!$B186=\"Remèdes_et_Antidotes\",Saisie!$B186=\"Sels_alchimiques\"),\"Normale\",\"Pitoyable\"),\"\")","v":""},{"$f":"IF(Saisie!$B186<>\"\",IF(OR(Saisie!$B186=\"Herbes_de_soin\",Saisie!$B186=\"Herbes_diverses\",Saisie!$B186=\"Remèdes_et_Antidotes\",Saisie!$B186=\"Sels_alchimiques\"),\"Normale\",\"Mauvaise\"),\"\")","v":""},{"$f":"IF(Saisie!$B186<>\"\",IF(OR(Saisie!$B186=\"Herbes_de_soin\",Saisie!$B186=\"Herbes_diverses\",Saisie!$B186=\"Remèdes_et_Antidotes\",Saisie!$B186=\"Sels_alchimiques\"),\"Normale\",\"Normale\"),\"\")","v":""},{"$f":"IF(Saisie!$B186<>\"\",IF(OR(Saisie!$B186=\"Herbes_de_soin\",Saisie!$B186=\"Herbes_diverses\",Saisie!$B186=\"Remèdes_et_Antidotes\",Saisie!$B186=\"Sels_alchimiques\"),\"Normale\",\"Bonne\"),\"\")","v":""},{"$f":"IF(Saisie!$B186<>\"\",IF(OR(Saisie!$B186=\"Herbes_de_soin\",Saisie!$B186=\"Herbes_diverses\",Saisie!$B186=\"Remèdes_et_Antidotes\",Saisie!$B186=\"Sels_alchimiques\"),\"Normale\",\"Excellente\"),\"\")","v":""},null,"md_qlté_L186",{"$f":"IF(Saisie!$I186<>\"\",IF(OR(Saisie!$I186=\"Herbes_de_soin\",Saisie!$I186=\"Herbes_diverses\",Saisie!$I186=\"Remèdes_et_Antidotes\",Saisie!$I186=\"Sels_alchimiques\"),\"Normale\",\"Pitoyable\"),\"\")","v":""},{"$f":"IF(Saisie!$I186<>\"\",IF(OR(Saisie!$I186=\"Herbes_de_soin\",Saisie!$I186=\"Herbes_diverses\",Saisie!$I186=\"Remèdes_et_Antidotes\",Saisie!$I186=\"Sels_alchimiques\"),\"Normale\",\"Mauvaise\"),\"\")","v":""},{"$f":"IF(Saisie!$I186<>\"\",IF(OR(Saisie!$I186=\"Herbes_de_soin\",Saisie!$I186=\"Herbes_diverses\",Saisie!$I186=\"Remèdes_et_Antidotes\",Saisie!$I186=\"Sels_alchimiques\"),\"Normale\",\"Normale\"),\"\")","v":""},{"$f":"IF(Saisie!$I186<>\"\",IF(OR(Saisie!$I186=\"Herbes_de_soin\",Saisie!$I186=\"Herbes_diverses\",Saisie!$I186=\"Remèdes_et_Antidotes\",Saisie!$I186=\"Sels_alchimiques\"),\"Normale\",\"Bonne\"),\"\")","v":""},{"$f":"IF(Saisie!$I186<>\"\",IF(OR(Saisie!$I186=\"Herbes_de_soin\",Saisie!$I186=\"Herbes_diverses\",Saisie!$I186=\"Remèdes_et_Antidotes\",Saisie!$I186=\"Sels_alchimiques\"),\"Normale\",\"Excellente\"),\"\")","v":""}]
["md_qlté_187",{"$f":"IF(Saisie!$B187<>\"\",IF(OR(Saisie!$B187=\"Herbes_de_soin\",Saisie!$B187=\"Herbes_diverses\",Saisie!$B187=\"Remèdes_et_Antidotes\",Saisie!$B187=\"Sels_alchimiques\"),\"Normale\",\"Pitoyable\"),\"\")","v":""},{"$f":"IF(Saisie!$B187<>\"\",IF(OR(Saisie!$B187=\"Herbes_de_soin\",Saisie!$B187=\"Herbes_diverses\",Saisie!$B187=\"Remèdes_et_Antidotes\",Saisie!$B187=\"Sels_alchimiques\"),\"Normale\",\"Mauvaise\"),\"\")","v":""},{"$f":"IF(Saisie!$B187<>\"\",IF(OR(Saisie!$B187=\"Herbes_de_soin\",Saisie!$B187=\"Herbes_diverses\",Saisie!$B187=\"Remèdes_et_Antidotes\",Saisie!$B187=\"Sels_alchimiques\"),\"Normale\",\"Normale\"),\"\")","v":""},{"$f":"IF(Saisie!$B187<>\"\",IF(OR(Saisie!$B187=\"Herbes_de_soin\",Saisie!$B187=\"Herbes_diverses\",Saisie!$B187=\"Remèdes_et_Antidotes\",Saisie!$B187=\"Sels_alchimiques\"),\"Normale\",\"Bonne\"),\"\")","v":""},{"$f":"IF(Saisie!$B187<>\"\",IF(OR(Saisie!$B187=\"Herbes_de_soin\",Saisie!$B187=\"Herbes_diverses\",Saisie!$B187=\"Remèdes_et_Antidotes\",Saisie!$B187=\"Sels_alchimiques\"),\"Normale\",\"Excellente\"),\"\")","v":""},null,"md_qlté_L187",{"$f":"IF(Saisie!$I187<>\"\",IF(OR(Saisie!$I187=\"Herbes_de_soin\",Saisie!$I187=\"Herbes_diverses\",Saisie!$I187=\"Remèdes_et_Antidotes\",Saisie!$I187=\"Sels_alchimiques\"),\"Normale\",\"Pitoyable\"),\"\")","v":""},{"$f":"IF(Saisie!$I187<>\"\",IF(OR(Saisie!$I187=\"Herbes_de_soin\",Saisie!$I187=\"Herbes_diverses\",Saisie!$I187=\"Remèdes_et_Antidotes\",Saisie!$I187=\"Sels_alchimiques\"),\"Normale\",\"Mauvaise\"),\"\")","v":""},{"$f":"IF(Saisie!$I187<>\"\",IF(OR(Saisie!$I187=\"Herbes_de_soin\",Saisie!$I187=\"Herbes_diverses\",Saisie!$I187=\"Remèdes_et_Antidotes\",Saisie!$I187=\"Sels_alchimiques\"),\"Normale\",\"Normale\"),\"\")","v":""},{"$f":"IF(Saisie!$I187<>\"\",IF(OR(Saisie!$I187=\"Herbes_de_soin\",Saisie!$I187=\"Herbes_diverses\",Saisie!$I187=\"Remèdes_et_Antidotes\",Saisie!$I187=\"Sels_alchimiques\"),\"Normale\",\"Bonne\"),\"\")","v":""},{"$f":"IF(Saisie!$I187<>\"\",IF(OR(Saisie!$I187=\"Herbes_de_soin\",Saisie!$I187=\"Herbes_diverses\",Saisie!$I187=\"Remèdes_et_Antidotes\",Saisie!$I187=\"Sels_alchimiques\"),\"Normale\",\"Excellente\"),\"\")","v":""}]
["md_qlté_188",{"$f":"IF(Saisie!$B188<>\"\",IF(OR(Saisie!$B188=\"Herbes_de_soin\",Saisie!$B188=\"Herbes_diverses\",Saisie!$B188=\"Remèdes_et_Antidotes\",Saisie!$B188=\"Sels_alchimiques\"),\"Normale\",\"Pitoyable\"),\"\")","v":"Pitoyable"},{"$f":"IF(Saisie!$B188<>\"\",IF(OR(Saisie!$B188=\"Herbes_de_soin\",Saisie!$B188=\"Herbes_diverses\",Saisie!$B188=\"Remèdes_et_Antidotes\",Saisie!$B188=\"Sels_alchimiques\"),\"Normale\",\"Mauvaise\"),\"\")","v":"Mauvaise"},{"$f":"IF(Saisie!$B188<>\"\",IF(OR(Saisie!$B188=\"Herbes_de_soin\",Saisie!$B188=\"Herbes_diverses\",Saisie!$B188=\"Remèdes_et_Antidotes\",Saisie!$B188=\"Sels_alchimiques\"),\"Normale\",\"Normale\"),\"\")","v":"Normale"},{"$f":"IF(Saisie!$B188<>\"\",IF(OR(Saisie!$B188=\"Herbes_de_soin\",Saisie!$B188=\"Herbes_diverses\",Saisie!$B188=\"Remèdes_et_Antidotes\",Saisie!$B188=\"Sels_alchimiques\"),\"Normale\",\"Bonne\"),\"\")","v":"Bonne"},{"$f":"IF(Saisie!$B188<>\"\",IF(OR(Saisie!$B188=\"Herbes_de_soin\",Saisie!$B188=\"Herbes_diverses\",Saisie!$B188=\"Remèdes_et_Antidotes\",Saisie!$B188=\"Sels_alchimiques\"),\"Normale\",\"Excellente\"),\"\")","v":"Excellente"},null,"md_qlté_L188",{"$f":"IF(Saisie!$I188<>\"\",IF(OR(Saisie!$I188=\"Herbes_de_soin\",Saisie!$I188=\"Herbes_diverses\",Saisie!$I188=\"Remèdes_et_Antidotes\",Saisie!$I188=\"Sels_alchimiques\"),\"Normale\",\"Pitoyable\"),\"\")","v":""},{"$f":"IF(Saisie!$I188<>\"\",IF(OR(Saisie!$I188=\"Herbes_de_soin\",Saisie!$I188=\"Herbes_diverses\",Saisie!$I188=\"Remèdes_et_Antidotes\",Saisie!$I188=\"Sels_alchimiques\"),\"Normale\",\"Mauvaise\"),\"\")","v":""},{"$f":"IF(Saisie!$I188<>\"\",IF(OR(Saisie!$I188=\"Herbes_de_soin\",Saisie!$I188=\"Herbes_diverses\",Saisie!$I188=\"Remèdes_et_Antidotes\",Saisie!$I188=\"Sels_alchimiques\"),\"Normale\",\"Normale\"),\"\")","v":""},{"$f":"IF(Saisie!$I188<>\"\",IF(OR(Saisie!$I188=\"Herbes_de_soin\",Saisie!$I188=\"Herbes_diverses\",Saisie!$I188=\"Remèdes_et_Antidotes\",Saisie!$I188=\"Sels_alchimiques\"),\"Normale\",\"Bonne\"),\"\")","v":""},{"$f":"IF(Saisie!$I188<>\"\",IF(OR(Saisie!$I188=\"Herbes_de_soin\",Saisie!$I188=\"Herbes_diverses\",Saisie!$I188=\"Remèdes_et_Antidotes\",Saisie!$I188=\"Sels_alchimiques\"),\"Normale\",\"Excellente\"),\"\")","v":""}]
["md_qlté_189",{"$f":"IF(Saisie!$B189<>\"\",IF(OR(Saisie!$B189=\"Herbes_de_soin\",Saisie!$B189=\"Herbes_diverses\",Saisie!$B189=\"Remèdes_et_Antidotes\",Saisie!$B189=\"Sels_alchimiques\"),\"Normale\",\"Pitoyable\"),\"\")","v":""},{"$f":"IF(Saisie!$B189<>\"\",IF(OR(Saisie!$B189=\"Herbes_de_soin\",Saisie!$B189=\"Herbes_diverses\",Saisie!$B189=\"Remèdes_et_Antidotes\",Saisie!$B189=\"Sels_alchimiques\"),\"Normale\",\"Mauvaise\"),\"\")","v":""},{"$f":"IF(Saisie!$B189<>\"\",IF(OR(Saisie!$B189=\"Herbes_de_soin\",Saisie!$B189=\"Herbes_diverses\",Saisie!$B189=\"Remèdes_et_Antidotes\",Saisie!$B189=\"Sels_alchimiques\"),\"Normale\",\"Normale\"),\"\")","v":""},{"$f":"IF(Saisie!$B189<>\"\",IF(OR(Saisie!$B189=\"Herbes_de_soin\",Saisie!$B189=\"Herbes_diverses\",Saisie!$B189=\"Remèdes_et_Antidotes\",Saisie!$B189=\"Sels_alchimiques\"),\"Normale\",\"Bonne\"),\"\")","v":""},{"$f":"IF(Saisie!$B189<>\"\",IF(OR(Saisie!$B189=\"Herbes_de_soin\",Saisie!$B189=\"Herbes_diverses\",Saisie!$B189=\"Remèdes_et_Antidotes\",Saisie!$B189=\"Sels_alchimiques\"),\"Normale\",\"Excellente\"),\"\")","v":""},null,"md_qlté_L189",{"$f":"IF(Saisie!$I189<>\"\",IF(OR(Saisie!$I189=\"Herbes_de_soin\",Saisie!$I189=\"Herbes_diverses\",Saisie!$I189=\"Remèdes_et_Antidotes\",Saisie!$I189=\"Sels_alchimiques\"),\"Normale\",\"Pitoyable\"),\"\")","v":"Pitoyable"},{"$f":"IF(Saisie!$I189<>\"\",IF(OR(Saisie!$I189=\"Herbes_de_soin\",Saisie!$I189=\"Herbes_diverses\",Saisie!$I189=\"Remèdes_et_Antidotes\",Saisie!$I189=\"Sels_alchimiques\"),\"Normale\",\"Mauvaise\"),\"\")","v":"Mauvaise"},{"$f":"IF(Saisie!$I189<>\"\",IF(OR(Saisie!$I189=\"Herbes_de_soin\",Saisie!$I189=\"Herbes_diverses\",Saisie!$I189=\"Remèdes_et_Antidotes\",Saisie!$I189=\"Sels_alchimiques\"),\"Normale\",\"Normale\"),\"\")","v":"Normale"},{"$f":"IF(Saisie!$I189<>\"\",IF(OR(Saisie!$I189=\"Herbes_de_soin\",Saisie!$I189=\"Herbes_diverses\",Saisie!$I189=\"Remèdes_et_Antidotes\",Saisie!$I189=\"Sels_alchimiques\"),\"Normale\",\"Bonne\"),\"\")","v":"Bonne"},{"$f":"IF(Saisie!$I189<>\"\",IF(OR(Saisie!$I189=\"Herbes_de_soin\",Saisie!$I189=\"Herbes_diverses\",Saisie!$I189=\"Remèdes_et_Antidotes\",Saisie!$I189=\"Sels_alchimiques\"),\"Normale\",\"Excellente\"),\"\")","v":"Excellente"}]
["md_qlté_190",{"$f":"IF(Saisie!$B190<>\"\",IF(OR(Saisie!$B190=\"Herbes_de_soin\",Saisie!$B190=\"Herbes_diverses\",Saisie!$B190=\"Remèdes_et_Antidotes\",Saisie!$B190=\"Sels_alchimiques\"),\"Normale\",\"Pitoyable\"),\"\")","v":""},{"$f":"IF(Saisie!$B190<>\"\",IF(OR(Saisie!$B190=\"Herbes_de_soin\",Saisie!$B190=\"Herbes_diverses\",Saisie!$B190=\"Remèdes_et_Antidotes\",Saisie!$B190=\"Sels_alchimiques\"),\"Normale\",\"Mauvaise\"),\"\")","v":""},{"$f":"IF(Saisie!$B190<>\"\",IF(OR(Saisie!$B190=\"Herbes_de_soin\",Saisie!$B190=\"Herbes_diverses\",Saisie!$B190=\"Remèdes_et_Antidotes\",Saisie!$B190=\"Sels_alchimiques\"),\"Normale\",\"Normale\"),\"\")","v":""},{"$f":"IF(Saisie!$B190<>\"\",IF(OR(Saisie!$B190=\"Herbes_de_soin\",Saisie!$B190=\"Herbes_diverses\",Saisie!$B190=\"Remèdes_et_Antidotes\",Saisie!$B190=\"Sels_alchimiques\"),\"Normale\",\"Bonne\"),\"\")","v":""},{"$f":"IF(Saisie!$B190<>\"\",IF(OR(Saisie!$B190=\"Herbes_de_soin\",Saisie!$B190=\"Herbes_diverses\",Saisie!$B190=\"Remèdes_et_Antidotes\",Saisie!$B190=\"Sels_alchimiques\"),\"Normale\",\"Excellente\"),\"\")","v":""},null,"md_qlté_L190",{"$f":"IF(Saisie!$I190<>\"\",IF(OR(Saisie!$I190=\"Herbes_de_soin\",Saisie!$I190=\"Herbes_diverses\",Saisie!$I190=\"Remèdes_et_Antidotes\",Saisie!$I190=\"Sels_alchimiques\"),\"Normale\",\"Pitoyable\"),\"\")","v":""},{"$f":"IF(Saisie!$I190<>\"\",IF(OR(Saisie!$I190=\"Herbes_de_soin\",Saisie!$I190=\"Herbes_diverses\",Saisie!$I190=\"Remèdes_et_Antidotes\",Saisie!$I190=\"Sels_alchimiques\"),\"Normale\",\"Mauvaise\"),\"\")","v":""},{"$f":"IF(Saisie!$I190<>\"\",IF(OR(Saisie!$I190=\"Herbes_de_soin\",Saisie!$I190=\"Herbes_diverses\",Saisie!$I190=\"Remèdes_et_Antidotes\",Saisie!$I190=\"Sels_alchimiques\"),\"Normale\",\"Normale\"),\"\")","v":""},{"$f":"IF(Saisie!$I190<>\"\",IF(OR(Saisie!$I190=\"Herbes_de_soin\",Saisie!$I190=\"Herbes_diverses\",Saisie!$I190=\"Remèdes_et_Antidotes\",Saisie!$I190=\"Sels_alchimiques\"),\"Normale\",\"Bonne\"),\"\")","v":""},{"$f":"IF(Saisie!$I190<>\"\",IF(OR(Saisie!$I190=\"Herbes_de_soin\",Saisie!$I190=\"Herbes_diverses\",Saisie!$I190=\"Remèdes_et_Antidotes\",Saisie!$I190=\"Sels_alchimiques\"),\"Normale\",\"Excellente\"),\"\")","v":""}]
["md_qlté_191",{"$f":"IF(Saisie!$B191<>\"\",IF(OR(Saisie!$B191=\"Herbes_de_soin\",Saisie!$B191=\"Herbes_diverses\",Saisie!$B191=\"Remèdes_et_Antidotes\",Saisie!$B191=\"Sels_alchimiques\"),\"Normale\",\"Pitoyable\"),\"\")","v":""},{"$f":"IF(Saisie!$B191<>\"\",IF(OR(Saisie!$B191=\"Herbes_de_soin\",Saisie!$B191=\"Herbes_diverses\",Saisie!$B191=\"Remèdes_et_Antidotes\",Saisie!$B191=\"Sels_alchimiques\"),\"Normale\",\"Mauvaise\"),\"\")","v":""},{"$f":"IF(Saisie!$B191<>\"\",IF(OR(Saisie!$B191=\"Herbes_de_soin\",Saisie!$B191=\"Herbes_diverses\",Saisie!$B191=\"Remèdes_et_Antidotes\",Saisie!$B191=\"Sels_alchimiques\"),\"Normale\",\"Normale\"),\"\")","v":""},{"$f":"IF(Saisie!$B191<>\"\",IF(OR(Saisie!$B191=\"Herbes_de_soin\",Saisie!$B191=\"Herbes_diverses\",Saisie!$B191=\"Remèdes_et_Antidotes\",Saisie!$B191=\"Sels_alchimiques\"),\"Normale\",\"Bonne\"),\"\")","v":""},{"$f":"IF(Saisie!$B191<>\"\",IF(OR(Saisie!$B191=\"Herbes_de_soin\",Saisie!$B191=\"Herbes_diverses\",Saisie!$B191=\"Remèdes_et_Antidotes\",Saisie!$B191=\"Sels_alchimiques\"),\"Normale\",\"Excellente\"),\"\")","v":""},null,"md_qlté_L191",{"$f":"IF(Saisie!$I191<>\"\",IF(OR(Saisie!$I191=\"Herbes_de_soin\",Saisie!$I191=\"Herbes_diverses\",Saisie!$I191=\"Remèdes_et_Antidotes\",Saisie!$I191=\"Sels_alchimiques\"),\"Normale\",\"Pitoyable\"),\"\")","v":""},{"$f":"IF(Saisie!$I191<>\"\",IF(OR(Saisie!$I191=\"Herbes_de_soin\",Saisie!$I191=\"Herbes_diverses\",Saisie!$I191=\"Remèdes_et_Antidotes\",Saisie!$I191=\"Sels_alchimiques\"),\"Normale\",\"Mauvaise\"),\"\")","v":""},{"$f":"IF(Saisie!$I191<>\"\",IF(OR(Saisie!$I191=\"Herbes_de_soin\",Saisie!$I191=\"Herbes_diverses\",Saisie!$I191=\"Remèdes_et_Antidotes\",Saisie!$I191=\"Sels_alchimiques\"),\"Normale\",\"Normale\"),\"\")","v":""},{"$f":"IF(Saisie!$I191<>\"\",IF(OR(Saisie!$I191=\"Herbes_de_soin\",Saisie!$I191=\"Herbes_diverses\",Saisie!$I191=\"Remèdes_et_Antidotes\",Saisie!$I191=\"Sels_alchimiques\"),\"Normale\",\"Bonne\"),\"\")","v":""},{"$f":"IF(Saisie!$I191<>\"\",IF(OR(Saisie!$I191=\"Herbes_de_soin\",Saisie!$I191=\"Herbes_diverses\",Saisie!$I191=\"Remèdes_et_Antidotes\",Saisie!$I191=\"Sels_alchimiques\"),\"Normale\",\"Excellente\"),\"\")","v":""}]
["md_qlté_192",{"$f":"IF(Saisie!$B192<>\"\",IF(OR(Saisie!$B192=\"Herbes_de_soin\",Saisie!$B192=\"Herbes_diverses\",Saisie!$B192=\"Remèdes_et_Antidotes\",Saisie!$B192=\"Sels_alchimiques\"),\"Normale\",\"Pitoyable\"),\"\")","v":""},{"$f":"IF(Saisie!$B192<>\"\",IF(OR(Saisie!$B192=\"Herbes_de_soin\",Saisie!$B192=\"Herbes_diverses\",Saisie!$B192=\"Remèdes_et_Antidotes\",Saisie!$B192=\"Sels_alchimiques\"),\"Normale\",\"Mauvaise\"),\"\")","v":""},{"$f":"IF(Saisie!$B192<>\"\",IF(OR(Saisie!$B192=\"Herbes_de_soin\",Saisie!$B192=\"Herbes_diverses\",Saisie!$B192=\"Remèdes_et_Antidotes\",Saisie!$B192=\"Sels_alchimiques\"),\"Normale\",\"Normale\"),\"\")","v":""},{"$f":"IF(Saisie!$B192<>\"\",IF(OR(Saisie!$B192=\"Herbes_de_soin\",Saisie!$B192=\"Herbes_diverses\",Saisie!$B192=\"Remèdes_et_Antidotes\",Saisie!$B192=\"Sels_alchimiques\"),\"Normale\",\"Bonne\"),\"\")","v":""},{"$f":"IF(Saisie!$B192<>\"\",IF(OR(Saisie!$B192=\"Herbes_de_soin\",Saisie!$B192=\"Herbes_diverses\",Saisie!$B192=\"Remèdes_et_Antidotes\",Saisie!$B192=\"Sels_alchimiques\"),\"Normale\",\"Excellente\"),\"\")","v":""},null,"md_qlté_L192",{"$f":"IF(Saisie!$I192<>\"\",IF(OR(Saisie!$I192=\"Herbes_de_soin\",Saisie!$I192=\"Herbes_diverses\",Saisie!$I192=\"Remèdes_et_Antidotes\",Saisie!$I192=\"Sels_alchimiques\"),\"Normale\",\"Pitoyable\"),\"\")","v":""},{"$f":"IF(Saisie!$I192<>\"\",IF(OR(Saisie!$I192=\"Herbes_de_soin\",Saisie!$I192=\"Herbes_diverses\",Saisie!$I192=\"Remèdes_et_Antidotes\",Saisie!$I192=\"Sels_alchimiques\"),\"Normale\",\"Mauvaise\"),\"\")","v":""},{"$f":"IF(Saisie!$I192<>\"\",IF(OR(Saisie!$I192=\"Herbes_de_soin\",Saisie!$I192=\"Herbes_diverses\",Saisie!$I192=\"Remèdes_et_Antidotes\",Saisie!$I192=\"Sels_alchimiques\"),\"Normale\",\"Normale\"),\"\")","v":""},{"$f":"IF(Saisie!$I192<>\"\",IF(OR(Saisie!$I192=\"Herbes_de_soin\",Saisie!$I192=\"Herbes_diverses\",Saisie!$I192=\"Remèdes_et_Antidotes\",Saisie!$I192=\"Sels_alchimiques\"),\"Normale\",\"Bonne\"),\"\")","v":""},{"$f":"IF(Saisie!$I192<>\"\",IF(OR(Saisie!$I192=\"Herbes_de_soin\",Saisie!$I192=\"Herbes_diverses\",Saisie!$I192=\"Remèdes_et_Antidotes\",Saisie!$I192=\"Sels_alchimiques\"),\"Normale\",\"Excellente\"),\"\")","v":""}]
["md_qlté_193",{"$f":"IF(Saisie!$B193<>\"\",IF(OR(Saisie!$B193=\"Herbes_de_soin\",Saisie!$B193=\"Herbes_diverses\",Saisie!$B193=\"Remèdes_et_Antidotes\",Saisie!$B193=\"Sels_alchimiques\"),\"Normale\",\"Pitoyable\"),\"\")","v":""},{"$f":"IF(Saisie!$B193<>\"\",IF(OR(Saisie!$B193=\"Herbes_de_soin\",Saisie!$B193=\"Herbes_diverses\",Saisie!$B193=\"Remèdes_et_Antidotes\",Saisie!$B193=\"Sels_alchimiques\"),\"Normale\",\"Mauvaise\"),\"\")","v":""},{"$f":"IF(Saisie!$B193<>\"\",IF(OR(Saisie!$B193=\"Herbes_de_soin\",Saisie!$B193=\"Herbes_diverses\",Saisie!$B193=\"Remèdes_et_Antidotes\",Saisie!$B193=\"Sels_alchimiques\"),\"Normale\",\"Normale\"),\"\")","v":""},{"$f":"IF(Saisie!$B193<>\"\",IF(OR(Saisie!$B193=\"Herbes_de_soin\",Saisie!$B193=\"Herbes_diverses\",Saisie!$B193=\"Remèdes_et_Antidotes\",Saisie!$B193=\"Sels_alchimiques\"),\"Normale\",\"Bonne\"),\"\")","v":""},{"$f":"IF(Saisie!$B193<>\"\",IF(OR(Saisie!$B193=\"Herbes_de_soin\",Saisie!$B193=\"Herbes_diverses\",Saisie!$B193=\"Remèdes_et_Antidotes\",Saisie!$B193=\"Sels_alchimiques\"),\"Normale\",\"Excellente\"),\"\")","v":""},null,"md_qlté_L193",{"$f":"IF(Saisie!$I193<>\"\",IF(OR(Saisie!$I193=\"Herbes_de_soin\",Saisie!$I193=\"Herbes_diverses\",Saisie!$I193=\"Remèdes_et_Antidotes\",Saisie!$I193=\"Sels_alchimiques\"),\"Normale\",\"Pitoyable\"),\"\")","v":""},{"$f":"IF(Saisie!$I193<>\"\",IF(OR(Saisie!$I193=\"Herbes_de_soin\",Saisie!$I193=\"Herbes_diverses\",Saisie!$I193=\"Remèdes_et_Antidotes\",Saisie!$I193=\"Sels_alchimiques\"),\"Normale\",\"Mauvaise\"),\"\")","v":""},{"$f":"IF(Saisie!$I193<>\"\",IF(OR(Saisie!$I193=\"Herbes_de_soin\",Saisie!$I193=\"Herbes_diverses\",Saisie!$I193=\"Remèdes_et_Antidotes\",Saisie!$I193=\"Sels_alchimiques\"),\"Normale\",\"Normale\"),\"\")","v":""},{"$f":"IF(Saisie!$I193<>\"\",IF(OR(Saisie!$I193=\"Herbes_de_soin\",Saisie!$I193=\"Herbes_diverses\",Saisie!$I193=\"Remèdes_et_Antidotes\",Saisie!$I193=\"Sels_alchimiques\"),\"Normale\",\"Bonne\"),\"\")","v":""},{"$f":"IF(Saisie!$I193<>\"\",IF(OR(Saisie!$I193=\"Herbes_de_soin\",Saisie!$I193=\"Herbes_diverses\",Saisie!$I193=\"Remèdes_et_Antidotes\",Saisie!$I193=\"Sels_alchimiques\"),\"Normale\",\"Excellente\"),\"\")","v":""}]
["md_qlté_194",{"$f":"IF(Saisie!$B194<>\"\",IF(OR(Saisie!$B194=\"Herbes_de_soin\",Saisie!$B194=\"Herbes_diverses\",Saisie!$B194=\"Remèdes_et_Antidotes\",Saisie!$B194=\"Sels_alchimiques\"),\"Normale\",\"Pitoyable\"),\"\")","v":""},{"$f":"IF(Saisie!$B194<>\"\",IF(OR(Saisie!$B194=\"Herbes_de_soin\",Saisie!$B194=\"Herbes_diverses\",Saisie!$B194=\"Remèdes_et_Antidotes\",Saisie!$B194=\"Sels_alchimiques\"),\"Normale\",\"Mauvaise\"),\"\")","v":""},{"$f":"IF(Saisie!$B194<>\"\",IF(OR(Saisie!$B194=\"Herbes_de_soin\",Saisie!$B194=\"Herbes_diverses\",Saisie!$B194=\"Remèdes_et_Antidotes\",Saisie!$B194=\"Sels_alchimiques\"),\"Normale\",\"Normale\"),\"\")","v":""},{"$f":"IF(Saisie!$B194<>\"\",IF(OR(Saisie!$B194=\"Herbes_de_soin\",Saisie!$B194=\"Herbes_diverses\",Saisie!$B194=\"Remèdes_et_Antidotes\",Saisie!$B194=\"Sels_alchimiques\"),\"Normale\",\"Bonne\"),\"\")","v":""},{"$f":"IF(Saisie!$B194<>\"\",IF(OR(Saisie!$B194=\"Herbes_de_soin\",Saisie!$B194=\"Herbes_diverses\",Saisie!$B194=\"Remèdes_et_Antidotes\",Saisie!$B194=\"Sels_alchimiques\"),\"Normale\",\"Excellente\"),\"\")","v":""},null,"md_qlté_L194",{"$f":"IF(Saisie!$I194<>\"\",IF(OR(Saisie!$I194=\"Herbes_de_soin\",Saisie!$I194=\"Herbes_diverses\",Saisie!$I194=\"Remèdes_et_Antidotes\",Saisie!$I194=\"Sels_alchimiques\"),\"Normale\",\"Pitoyable\"),\"\")","v":""},{"$f":"IF(Saisie!$I194<>\"\",IF(OR(Saisie!$I194=\"Herbes_de_soin\",Saisie!$I194=\"Herbes_diverses\",Saisie!$I194=\"Remèdes_et_Antidotes\",Saisie!$I194=\"Sels_alchimiques\"),\"Normale\",\"Mauvaise\"),\"\")","v":""},{"$f":"IF(Saisie!$I194<>\"\",IF(OR(Saisie!$I194=\"Herbes_de_soin\",Saisie!$I194=\"Herbes_diverses\",Saisie!$I194=\"Remèdes_et_Antidotes\",Saisie!$I194=\"Sels_alchimiques\"),\"Normale\",\"Normale\"),\"\")","v":""},{"$f":"IF(Saisie!$I194<>\"\",IF(OR(Saisie!$I194=\"Herbes_de_soin\",Saisie!$I194=\"Herbes_diverses\",Saisie!$I194=\"Remèdes_et_Antidotes\",Saisie!$I194=\"Sels_alchimiques\"),\"Normale\",\"Bonne\"),\"\")","v":""},{"$f":"IF(Saisie!$I194<>\"\",IF(OR(Saisie!$I194=\"Herbes_de_soin\",Saisie!$I194=\"Herbes_diverses\",Saisie!$I194=\"Remèdes_et_Antidotes\",Saisie!$I194=\"Sels_alchimiques\"),\"Normale\",\"Excellente\"),\"\")","v":""}]
["md_qlté_195",{"$f":"IF(Saisie!$B195<>\"\",IF(OR(Saisie!$B195=\"Herbes_de_soin\",Saisie!$B195=\"Herbes_diverses\",Saisie!$B195=\"Remèdes_et_Antidotes\",Saisie!$B195=\"Sels_alchimiques\"),\"Normale\",\"Pitoyable\"),\"\")","v":""},{"$f":"IF(Saisie!$B195<>\"\",IF(OR(Saisie!$B195=\"Herbes_de_soin\",Saisie!$B195=\"Herbes_diverses\",Saisie!$B195=\"Remèdes_et_Antidotes\",Saisie!$B195=\"Sels_alchimiques\"),\"Normale\",\"Mauvaise\"),\"\")","v":""},{"$f":"IF(Saisie!$B195<>\"\",IF(OR(Saisie!$B195=\"Herbes_de_soin\",Saisie!$B195=\"Herbes_diverses\",Saisie!$B195=\"Remèdes_et_Antidotes\",Saisie!$B195=\"Sels_alchimiques\"),\"Normale\",\"Normale\"),\"\")","v":""},{"$f":"IF(Saisie!$B195<>\"\",IF(OR(Saisie!$B195=\"Herbes_de_soin\",Saisie!$B195=\"Herbes_diverses\",Saisie!$B195=\"Remèdes_et_Antidotes\",Saisie!$B195=\"Sels_alchimiques\"),\"Normale\",\"Bonne\"),\"\")","v":""},{"$f":"IF(Saisie!$B195<>\"\",IF(OR(Saisie!$B195=\"Herbes_de_soin\",Saisie!$B195=\"Herbes_diverses\",Saisie!$B195=\"Remèdes_et_Antidotes\",Saisie!$B195=\"Sels_alchimiques\"),\"Normale\",\"Excellente\"),\"\")","v":""},null,"md_qlté_L195",{"$f":"IF(Saisie!$I195<>\"\",IF(OR(Saisie!$I195=\"Herbes_de_soin\",Saisie!$I195=\"Herbes_diverses\",Saisie!$I195=\"Remèdes_et_Antidotes\",Saisie!$I195=\"Sels_alchimiques\"),\"Normale\",\"Pitoyable\"),\"\")","v":""},{"$f":"IF(Saisie!$I195<>\"\",IF(OR(Saisie!$I195=\"Herbes_de_soin\",Saisie!$I195=\"Herbes_diverses\",Saisie!$I195=\"Remèdes_et_Antidotes\",Saisie!$I195=\"Sels_alchimiques\"),\"Normale\",\"Mauvaise\"),\"\")","v":""},{"$f":"IF(Saisie!$I195<>\"\",IF(OR(Saisie!$I195=\"Herbes_de_soin\",Saisie!$I195=\"Herbes_diverses\",Saisie!$I195=\"Remèdes_et_Antidotes\",Saisie!$I195=\"Sels_alchimiques\"),\"Normale\",\"Normale\"),\"\")","v":""},{"$f":"IF(Saisie!$I195<>\"\",IF(OR(Saisie!$I195=\"Herbes_de_soin\",Saisie!$I195=\"Herbes_diverses\",Saisie!$I195=\"Remèdes_et_Antidotes\",Saisie!$I195=\"Sels_alchimiques\"),\"Normale\",\"Bonne\"),\"\")","v":""},{"$f":"IF(Saisie!$I195<>\"\",IF(OR(Saisie!$I195=\"Herbes_de_soin\",Saisie!$I195=\"Herbes_diverses\",Saisie!$I195=\"Remèdes_et_Antidotes\",Saisie!$I195=\"Sels_alchimiques\"),\"Normale\",\"Excellente\"),\"\")","v":""}]
["md_qlté_196",{"$f":"IF(Saisie!$B196<>\"\",IF(OR(Saisie!$B196=\"Herbes_de_soin\",Saisie!$B196=\"Herbes_diverses\",Saisie!$B196=\"Remèdes_et_Antidotes\",Saisie!$B196=\"Sels_alchimiques\"),\"Normale\",\"Pitoyable\"),\"\")","v":""},{"$f":"IF(Saisie!$B196<>\"\",IF(OR(Saisie!$B196=\"Herbes_de_soin\",Saisie!$B196=\"Herbes_diverses\",Saisie!$B196=\"Remèdes_et_Antidotes\",Saisie!$B196=\"Sels_alchimiques\"),\"Normale\",\"Mauvaise\"),\"\")","v":""},{"$f":"IF(Saisie!$B196<>\"\",IF(OR(Saisie!$B196=\"Herbes_de_soin\",Saisie!$B196=\"Herbes_diverses\",Saisie!$B196=\"Remèdes_et_Antidotes\",Saisie!$B196=\"Sels_alchimiques\"),\"Normale\",\"Normale\"),\"\")","v":""},{"$f":"IF(Saisie!$B196<>\"\",IF(OR(Saisie!$B196=\"Herbes_de_soin\",Saisie!$B196=\"Herbes_diverses\",Saisie!$B196=\"Remèdes_et_Antidotes\",Saisie!$B196=\"Sels_alchimiques\"),\"Normale\",\"Bonne\"),\"\")","v":""},{"$f":"IF(Saisie!$B196<>\"\",IF(OR(Saisie!$B196=\"Herbes_de_soin\",Saisie!$B196=\"Herbes_diverses\",Saisie!$B196=\"Remèdes_et_Antidotes\",Saisie!$B196=\"Sels_alchimiques\"),\"Normale\",\"Excellente\"),\"\")","v":""},null,"md_qlté_L196",{"$f":"IF(Saisie!$I196<>\"\",IF(OR(Saisie!$I196=\"Herbes_de_soin\",Saisie!$I196=\"Herbes_diverses\",Saisie!$I196=\"Remèdes_et_Antidotes\",Saisie!$I196=\"Sels_alchimiques\"),\"Normale\",\"Pitoyable\"),\"\")","v":""},{"$f":"IF(Saisie!$I196<>\"\",IF(OR(Saisie!$I196=\"Herbes_de_soin\",Saisie!$I196=\"Herbes_diverses\",Saisie!$I196=\"Remèdes_et_Antidotes\",Saisie!$I196=\"Sels_alchimiques\"),\"Normale\",\"Mauvaise\"),\"\")","v":""},{"$f":"IF(Saisie!$I196<>\"\",IF(OR(Saisie!$I196=\"Herbes_de_soin\",Saisie!$I196=\"Herbes_diverses\",Saisie!$I196=\"Remèdes_et_Antidotes\",Saisie!$I196=\"Sels_alchimiques\"),\"Normale\",\"Normale\"),\"\")","v":""},{"$f":"IF(Saisie!$I196<>\"\",IF(OR(Saisie!$I196=\"Herbes_de_soin\",Saisie!$I196=\"Herbes_diverses\",Saisie!$I196=\"Remèdes_et_Antidotes\",Saisie!$I196=\"Sels_alchimiques\"),\"Normale\",\"Bonne\"),\"\")","v":""},{"$f":"IF(Saisie!$I196<>\"\",IF(OR(Saisie!$I196=\"Herbes_de_soin\",Saisie!$I196=\"Herbes_diverses\",Saisie!$I196=\"Remèdes_et_Antidotes\",Saisie!$I196=\"Sels_alchimiques\"),\"Normale\",\"Excellente\"),\"\")","v":""}]
["md_qlté_197",{"$f":"IF(Saisie!$B197<>\"\",IF(OR(Saisie!$B197=\"Herbes_de_soin\",Saisie!$B197=\"Herbes_diverses\",Saisie!$B197=\"Remèdes_et_Antidotes\",Saisie!$B197=\"Sels_alchimiques\"),\"Normale\",\"Pitoyable\"),\"\")","v":"Pitoyable"},{"$f":"IF(Saisie!$B197<>\"\",IF(OR(Saisie!$B197=\"Herbes_de_soin\",Saisie!$B197=\"Herbes_diverses\",Saisie!$B197=\"Remèdes_et_Antidotes\",Saisie!$B197=\"Sels_alchimiques\"),\"Normale\",\"Mauvaise\"),\"\")","v":"Mauvaise"},{"$f":"IF(Saisie!$B197<>\"\",IF(OR(Saisie!$B197=\"Herbes_de_soin\",Saisie!$B197=\"Herbes_diverses\",Saisie!$B197=\"Remèdes_et_Antidotes\",Saisie!$B197=\"Sels_alchimiques\"),\"Normale\",\"Normale\"),\"\")","v":"Normale"},{"$f":"IF(Saisie!$B197<>\"\",IF(OR(Saisie!$B197=\"Herbes_de_soin\",Saisie!$B197=\"Herbes_diverses\",Saisie!$B197=\"Remèdes_et_Antidotes\",Saisie!$B197=\"Sels_alchimiques\"),\"Normale\",\"Bonne\"),\"\")","v":"Bonne"},{"$f":"IF(Saisie!$B197<>\"\",IF(OR(Saisie!$B197=\"Herbes_de_soin\",Saisie!$B197=\"Herbes_diverses\",Saisie!$B197=\"Remèdes_et_Antidotes\",Saisie!$B197=\"Sels_alchimiques\"),\"Normale\",\"Excellente\"),\"\")","v":"Excellente"},null,"md_qlté_L197",{"$f":"IF(Saisie!$I197<>\"\",IF(OR(Saisie!$I197=\"Herbes_de_soin\",Saisie!$I197=\"Herbes_diverses\",Saisie!$I197=\"Remèdes_et_Antidotes\",Saisie!$I197=\"Sels_alchimiques\"),\"Normale\",\"Pitoyable\"),\"\")","v":""},{"$f":"IF(Saisie!$I197<>\"\",IF(OR(Saisie!$I197=\"Herbes_de_soin\",Saisie!$I197=\"Herbes_diverses\",Saisie!$I197=\"Remèdes_et_Antidotes\",Saisie!$I197=\"Sels_alchimiques\"),\"Normale\",\"Mauvaise\"),\"\")","v":""},{"$f":"IF(Saisie!$I197<>\"\",IF(OR(Saisie!$I197=\"Herbes_de_soin\",Saisie!$I197=\"Herbes_diverses\",Saisie!$I197=\"Remèdes_et_Antidotes\",Saisie!$I197=\"Sels_alchimiques\"),\"Normale\",\"Normale\"),\"\")","v":""},{"$f":"IF(Saisie!$I197<>\"\",IF(OR(Saisie!$I197=\"Herbes_de_soin\",Saisie!$I197=\"Herbes_diverses\",Saisie!$I197=\"Remèdes_et_Antidotes\",Saisie!$I197=\"Sels_alchimiques\"),\"Normale\",\"Bonne\"),\"\")","v":""},{"$f":"IF(Saisie!$I197<>\"\",IF(OR(Saisie!$I197=\"Herbes_de_soin\",Saisie!$I197=\"Herbes_diverses\",Saisie!$I197=\"Remèdes_et_Antidotes\",Saisie!$I197=\"Sels_alchimiques\"),\"Normale\",\"Excellente\"),\"\")","v":""}]
["md_qlté_198",{"$f":"IF(Saisie!$B198<>\"\",IF(OR(Saisie!$B198=\"Herbes_de_soin\",Saisie!$B198=\"Herbes_diverses\",Saisie!$B198=\"Remèdes_et_Antidotes\",Saisie!$B198=\"Sels_alchimiques\"),\"Normale\",\"Pitoyable\"),\"\")","v":""},{"$f":"IF(Saisie!$B198<>\"\",IF(OR(Saisie!$B198=\"Herbes_de_soin\",Saisie!$B198=\"Herbes_diverses\",Saisie!$B198=\"Remèdes_et_Antidotes\",Saisie!$B198=\"Sels_alchimiques\"),\"Normale\",\"Mauvaise\"),\"\")","v":""},{"$f":"IF(Saisie!$B198<>\"\",IF(OR(Saisie!$B198=\"Herbes_de_soin\",Saisie!$B198=\"Herbes_diverses\",Saisie!$B198=\"Remèdes_et_Antidotes\",Saisie!$B198=\"Sels_alchimiques\"),\"Normale\",\"Normale\"),\"\")","v":""},{"$f":"IF(Saisie!$B198<>\"\",IF(OR(Saisie!$B198=\"Herbes_de_soin\",Saisie!$B198=\"Herbes_diverses\",Saisie!$B198=\"Remèdes_et_Antidotes\",Saisie!$B198=\"Sels_alchimiques\"),\"Normale\",\"Bonne\"),\"\")","v":""},{"$f":"IF(Saisie!$B198<>\"\",IF(OR(Saisie!$B198=\"Herbes_de_soin\",Saisie!$B198=\"Herbes_diverses\",Saisie!$B198=\"Remèdes_et_Antidotes\",Saisie!$B198=\"Sels_alchimiques\"),\"Normale\",\"Excellente\"),\"\")","v":""},null,"md_qlté_L198",{"$f":"IF(Saisie!$I198<>\"\",IF(OR(Saisie!$I198=\"Herbes_de_soin\",Saisie!$I198=\"Herbes_diverses\",Saisie!$I198=\"Remèdes_et_Antidotes\",Saisie!$I198=\"Sels_alchimiques\"),\"Normale\",\"Pitoyable\"),\"\")","v":""},{"$f":"IF(Saisie!$I198<>\"\",IF(OR(Saisie!$I198=\"Herbes_de_soin\",Saisie!$I198=\"Herbes_diverses\",Saisie!$I198=\"Remèdes_et_Antidotes\",Saisie!$I198=\"Sels_alchimiques\"),\"Normale\",\"Mauvaise\"),\"\")","v":""},{"$f":"IF(Saisie!$I198<>\"\",IF(OR(Saisie!$I198=\"Herbes_de_soin\",Saisie!$I198=\"Herbes_diverses\",Saisie!$I198=\"Remèdes_et_Antidotes\",Saisie!$I198=\"Sels_alchimiques\"),\"Normale\",\"Normale\"),\"\")","v":""},{"$f":"IF(Saisie!$I198<>\"\",IF(OR(Saisie!$I198=\"Herbes_de_soin\",Saisie!$I198=\"Herbes_diverses\",Saisie!$I198=\"Remèdes_et_Antidotes\",Saisie!$I198=\"Sels_alchimiques\"),\"Normale\",\"Bonne\"),\"\")","v":""},{"$f":"IF(Saisie!$I198<>\"\",IF(OR(Saisie!$I198=\"Herbes_de_soin\",Saisie!$I198=\"Herbes_diverses\",Saisie!$I198=\"Remèdes_et_Antidotes\",Saisie!$I198=\"Sels_alchimiques\"),\"Normale\",\"Excellente\"),\"\")","v":""}]
["md_qlté_199",{"$f":"IF(Saisie!$B199<>\"\",IF(OR(Saisie!$B199=\"Herbes_de_soin\",Saisie!$B199=\"Herbes_diverses\",Saisie!$B199=\"Remèdes_et_Antidotes\",Saisie!$B199=\"Sels_alchimiques\"),\"Normale\",\"Pitoyable\"),\"\")","v":"Pitoyable"},{"$f":"IF(Saisie!$B199<>\"\",IF(OR(Saisie!$B199=\"Herbes_de_soin\",Saisie!$B199=\"Herbes_diverses\",Saisie!$B199=\"Remèdes_et_Antidotes\",Saisie!$B199=\"Sels_alchimiques\"),\"Normale\",\"Mauvaise\"),\"\")","v":"Mauvaise"},{"$f":"IF(Saisie!$B199<>\"\",IF(OR(Saisie!$B199=\"Herbes_de_soin\",Saisie!$B199=\"Herbes_diverses\",Saisie!$B199=\"Remèdes_et_Antidotes\",Saisie!$B199=\"Sels_alchimiques\"),\"Normale\",\"Normale\"),\"\")","v":"Normale"},{"$f":"IF(Saisie!$B199<>\"\",IF(OR(Saisie!$B199=\"Herbes_de_soin\",Saisie!$B199=\"Herbes_diverses\",Saisie!$B199=\"Remèdes_et_Antidotes\",Saisie!$B199=\"Sels_alchimiques\"),\"Normale\",\"Bonne\"),\"\")","v":"Bonne"},{"$f":"IF(Saisie!$B199<>\"\",IF(OR(Saisie!$B199=\"Herbes_de_soin\",Saisie!$B199=\"Herbes_diverses\",Saisie!$B199=\"Remèdes_et_Antidotes\",Saisie!$B199=\"Sels_alchimiques\"),\"Normale\",\"Excellente\"),\"\")","v":"Excellente"},null,"md_qlté_L199",{"$f":"IF(Saisie!$I199<>\"\",IF(OR(Saisie!$I199=\"Herbes_de_soin\",Saisie!$I199=\"Herbes_diverses\",Saisie!$I199=\"Remèdes_et_Antidotes\",Saisie!$I199=\"Sels_alchimiques\"),\"Normale\",\"Pitoyable\"),\"\")","v":""},{"$f":"IF(Saisie!$I199<>\"\",IF(OR(Saisie!$I199=\"Herbes_de_soin\",Saisie!$I199=\"Herbes_diverses\",Saisie!$I199=\"Remèdes_et_Antidotes\",Saisie!$I199=\"Sels_alchimiques\"),\"Normale\",\"Mauvaise\"),\"\")","v":""},{"$f":"IF(Saisie!$I199<>\"\",IF(OR(Saisie!$I199=\"Herbes_de_soin\",Saisie!$I199=\"Herbes_diverses\",Saisie!$I199=\"Remèdes_et_Antidotes\",Saisie!$I199=\"Sels_alchimiques\"),\"Normale\",\"Normale\"),\"\")","v":""},{"$f":"IF(Saisie!$I199<>\"\",IF(OR(Saisie!$I199=\"Herbes_de_soin\",Saisie!$I199=\"Herbes_diverses\",Saisie!$I199=\"Remèdes_et_Antidotes\",Saisie!$I199=\"Sels_alchimiques\"),\"Normale\",\"Bonne\"),\"\")","v":""},{"$f":"IF(Saisie!$I199<>\"\",IF(OR(Saisie!$I199=\"Herbes_de_soin\",Saisie!$I199=\"Herbes_diverses\",Saisie!$I199=\"Remèdes_et_Antidotes\",Saisie!$I199=\"Sels_alchimiques\"),\"Normale\",\"Excellente\"),\"\")","v":""}]
["md_qlté_200",{"$f":"IF(Saisie!$B200<>\"\",IF(OR(Saisie!$B200=\"Herbes_de_soin\",Saisie!$B200=\"Herbes_diverses\",Saisie!$B200=\"Remèdes_et_Antidotes\",Saisie!$B200=\"Sels_alchimiques\"),\"Normale\",\"Pitoyable\"),\"\")","v":""},{"$f":"IF(Saisie!$B200<>\"\",IF(OR(Saisie!$B200=\"Herbes_de_soin\",Saisie!$B200=\"Herbes_diverses\",Saisie!$B200=\"Remèdes_et_Antidotes\",Saisie!$B200=\"Sels_alchimiques\"),\"Normale\",\"Mauvaise\"),\"\")","v":""},{"$f":"IF(Saisie!$B200<>\"\",IF(OR(Saisie!$B200=\"Herbes_de_soin\",Saisie!$B200=\"Herbes_diverses\",Saisie!$B200=\"Remèdes_et_Antidotes\",Saisie!$B200=\"Sels_alchimiques\"),\"Normale\",\"Normale\"),\"\")","v":""},{"$f":"IF(Saisie!$B200<>\"\",IF(OR(Saisie!$B200=\"Herbes_de_soin\",Saisie!$B200=\"Herbes_diverses\",Saisie!$B200=\"Remèdes_et_Antidotes\",Saisie!$B200=\"Sels_alchimiques\"),\"Normale\",\"Bonne\"),\"\")","v":""},{"$f":"IF(Saisie!$B200<>\"\",IF(OR(Saisie!$B200=\"Herbes_de_soin\",Saisie!$B200=\"Herbes_diverses\",Saisie!$B200=\"Remèdes_et_Antidotes\",Saisie!$B200=\"Sels_alchimiques\"),\"Normale\",\"Excellente\"),\"\")","v":""},null,"md_qlté_L200",{"$f":"IF(Saisie!$I200<>\"\",IF(OR(Saisie!$I200=\"Herbes_de_soin\",Saisie!$I200=\"Herbes_diverses\",Saisie!$I200=\"Remèdes_et_Antidotes\",Saisie!$I200=\"Sels_alchimiques\"),\"Normale\",\"Pitoyable\"),\"\")","v":""},{"$f":"IF(Saisie!$I200<>\"\",IF(OR(Saisie!$I200=\"Herbes_de_soin\",Saisie!$I200=\"Herbes_diverses\",Saisie!$I200=\"Remèdes_et_Antidotes\",Saisie!$I200=\"Sels_alchimiques\"),\"Normale\",\"Mauvaise\"),\"\")","v":""},{"$f":"IF(Saisie!$I200<>\"\",IF(OR(Saisie!$I200=\"Herbes_de_soin\",Saisie!$I200=\"Herbes_diverses\",Saisie!$I200=\"Remèdes_et_Antidotes\",Saisie!$I200=\"Sels_alchimiques\"),\"Normale\",\"Normale\"),\"\")","v":""},{"$f":"IF(Saisie!$I200<>\"\",IF(OR(Saisie!$I200=\"Herbes_de_soin\",Saisie!$I200=\"Herbes_diverses\",Saisie!$I200=\"Remèdes_et_Antidotes\",Saisie!$I200=\"Sels_alchimiques\"),\"Normale\",\"Bonne\"),\"\")","v":""},{"$f":"IF(Saisie!$I200<>\"\",IF(OR(Saisie!$I200=\"Herbes_de_soin\",Saisie!$I200=\"Herbes_diverses\",Saisie!$I200=\"Remèdes_et_Antidotes\",Saisie!$I200=\"Sels_alchimiques\"),\"Normale\",\"Excellente\"),\"\")","v":""}]
["md_qlté_201",{"$f":"IF(Saisie!$B201<>\"\",IF(OR(Saisie!$B201=\"Herbes_de_soin\",Saisie!$B201=\"Herbes_diverses\",Saisie!$B201=\"Remèdes_et_Antidotes\",Saisie!$B201=\"Sels_alchimiques\"),\"Normale\",\"Pitoyable\"),\"\")","v":""},{"$f":"IF(Saisie!$B201<>\"\",IF(OR(Saisie!$B201=\"Herbes_de_soin\",Saisie!$B201=\"Herbes_diverses\",Saisie!$B201=\"Remèdes_et_Antidotes\",Saisie!$B201=\"Sels_alchimiques\"),\"Normale\",\"Mauvaise\"),\"\")","v":""},{"$f":"IF(Saisie!$B201<>\"\",IF(OR(Saisie!$B201=\"Herbes_de_soin\",Saisie!$B201=\"Herbes_diverses\",Saisie!$B201=\"Remèdes_et_Antidotes\",Saisie!$B201=\"Sels_alchimiques\"),\"Normale\",\"Normale\"),\"\")","v":""},{"$f":"IF(Saisie!$B201<>\"\",IF(OR(Saisie!$B201=\"Herbes_de_soin\",Saisie!$B201=\"Herbes_diverses\",Saisie!$B201=\"Remèdes_et_Antidotes\",Saisie!$B201=\"Sels_alchimiques\"),\"Normale\",\"Bonne\"),\"\")","v":""},{"$f":"IF(Saisie!$B201<>\"\",IF(OR(Saisie!$B201=\"Herbes_de_soin\",Saisie!$B201=\"Herbes_diverses\",Saisie!$B201=\"Remèdes_et_Antidotes\",Saisie!$B201=\"Sels_alchimiques\"),\"Normale\",\"Excellente\"),\"\")","v":""},null,"md_qlté_L201",{"$f":"IF(Saisie!$I201<>\"\",IF(OR(Saisie!$I201=\"Herbes_de_soin\",Saisie!$I201=\"Herbes_diverses\",Saisie!$I201=\"Remèdes_et_Antidotes\",Saisie!$I201=\"Sels_alchimiques\"),\"Normale\",\"Pitoyable\"),\"\")","v":""},{"$f":"IF(Saisie!$I201<>\"\",IF(OR(Saisie!$I201=\"Herbes_de_soin\",Saisie!$I201=\"Herbes_diverses\",Saisie!$I201=\"Remèdes_et_Antidotes\",Saisie!$I201=\"Sels_alchimiques\"),\"Normale\",\"Mauvaise\"),\"\")","v":""},{"$f":"IF(Saisie!$I201<>\"\",IF(OR(Saisie!$I201=\"Herbes_de_soin\",Saisie!$I201=\"Herbes_diverses\",Saisie!$I201=\"Remèdes_et_Antidotes\",Saisie!$I201=\"Sels_alchimiques\"),\"Normale\",\"Normale\"),\"\")","v":""},{"$f":"IF(Saisie!$I201<>\"\",IF(OR(Saisie!$I201=\"Herbes_de_soin\",Saisie!$I201=\"Herbes_diverses\",Saisie!$I201=\"Remèdes_et_Antidotes\",Saisie!$I201=\"Sels_alchimiques\"),\"Normale\",\"Bonne\"),\"\")","v":""},{"$f":"IF(Saisie!$I201<>\"\",IF(OR(Saisie!$I201=\"Herbes_de_soin\",Saisie!$I201=\"Herbes_diverses\",Saisie!$I201=\"Remèdes_et_Antidotes\",Saisie!$I201=\"Sels_alchimiques\"),\"Normale\",\"Excellente\"),\"\")","v":""}]
["md_qlté_202",{"$f":"IF(Saisie!$B202<>\"\",IF(OR(Saisie!$B202=\"Herbes_de_soin\",Saisie!$B202=\"Herbes_diverses\",Saisie!$B202=\"Remèdes_et_Antidotes\",Saisie!$B202=\"Sels_alchimiques\"),\"Normale\",\"Pitoyable\"),\"\")","v":""},{"$f":"IF(Saisie!$B202<>\"\",IF(OR(Saisie!$B202=\"Herbes_de_soin\",Saisie!$B202=\"Herbes_diverses\",Saisie!$B202=\"Remèdes_et_Antidotes\",Saisie!$B202=\"Sels_alchimiques\"),\"Normale\",\"Mauvaise\"),\"\")","v":""},{"$f":"IF(Saisie!$B202<>\"\",IF(OR(Saisie!$B202=\"Herbes_de_soin\",Saisie!$B202=\"Herbes_diverses\",Saisie!$B202=\"Remèdes_et_Antidotes\",Saisie!$B202=\"Sels_alchimiques\"),\"Normale\",\"Normale\"),\"\")","v":""},{"$f":"IF(Saisie!$B202<>\"\",IF(OR(Saisie!$B202=\"Herbes_de_soin\",Saisie!$B202=\"Herbes_diverses\",Saisie!$B202=\"Remèdes_et_Antidotes\",Saisie!$B202=\"Sels_alchimiques\"),\"Normale\",\"Bonne\"),\"\")","v":""},{"$f":"IF(Saisie!$B202<>\"\",IF(OR(Saisie!$B202=\"Herbes_de_soin\",Saisie!$B202=\"Herbes_diverses\",Saisie!$B202=\"Remèdes_et_Antidotes\",Saisie!$B202=\"Sels_alchimiques\"),\"Normale\",\"Excellente\"),\"\")","v":""},null,"md_qlté_L202",{"$f":"IF(Saisie!$I202<>\"\",IF(OR(Saisie!$I202=\"Herbes_de_soin\",Saisie!$I202=\"Herbes_diverses\",Saisie!$I202=\"Remèdes_et_Antidotes\",Saisie!$I202=\"Sels_alchimiques\"),\"Normale\",\"Pitoyable\"),\"\")","v":""},{"$f":"IF(Saisie!$I202<>\"\",IF(OR(Saisie!$I202=\"Herbes_de_soin\",Saisie!$I202=\"Herbes_diverses\",Saisie!$I202=\"Remèdes_et_Antidotes\",Saisie!$I202=\"Sels_alchimiques\"),\"Normale\",\"Mauvaise\"),\"\")","v":""},{"$f":"IF(Saisie!$I202<>\"\",IF(OR(Saisie!$I202=\"Herbes_de_soin\",Saisie!$I202=\"Herbes_diverses\",Saisie!$I202=\"Remèdes_et_Antidotes\",Saisie!$I202=\"Sels_alchimiques\"),\"Normale\",\"Normale\"),\"\")","v":""},{"$f":"IF(Saisie!$I202<>\"\",IF(OR(Saisie!$I202=\"Herbes_de_soin\",Saisie!$I202=\"Herbes_diverses\",Saisie!$I202=\"Remèdes_et_Antidotes\",Saisie!$I202=\"Sels_alchimiques\"),\"Normale\",\"Bonne\"),\"\")","v":""},{"$f":"IF(Saisie!$I202<>\"\",IF(OR(Saisie!$I202=\"Herbes_de_soin\",Saisie!$I202=\"Herbes_diverses\",Saisie!$I202=\"Remèdes_et_Antidotes\",Saisie!$I202=\"Sels_alchimiques\"),\"Normale\",\"Excellente\"),\"\")","v":""}]
["md_qlté_203",{"$f":"IF(Saisie!$B203<>\"\",IF(OR(Saisie!$B203=\"Herbes_de_soin\",Saisie!$B203=\"Herbes_diverses\",Saisie!$B203=\"Remèdes_et_Antidotes\",Saisie!$B203=\"Sels_alchimiques\"),\"Normale\",\"Pitoyable\"),\"\")","v":""},{"$f":"IF(Saisie!$B203<>\"\",IF(OR(Saisie!$B203=\"Herbes_de_soin\",Saisie!$B203=\"Herbes_diverses\",Saisie!$B203=\"Remèdes_et_Antidotes\",Saisie!$B203=\"Sels_alchimiques\"),\"Normale\",\"Mauvaise\"),\"\")","v":""},{"$f":"IF(Saisie!$B203<>\"\",IF(OR(Saisie!$B203=\"Herbes_de_soin\",Saisie!$B203=\"Herbes_diverses\",Saisie!$B203=\"Remèdes_et_Antidotes\",Saisie!$B203=\"Sels_alchimiques\"),\"Normale\",\"Normale\"),\"\")","v":""},{"$f":"IF(Saisie!$B203<>\"\",IF(OR(Saisie!$B203=\"Herbes_de_soin\",Saisie!$B203=\"Herbes_diverses\",Saisie!$B203=\"Remèdes_et_Antidotes\",Saisie!$B203=\"Sels_alchimiques\"),\"Normale\",\"Bonne\"),\"\")","v":""},{"$f":"IF(Saisie!$B203<>\"\",IF(OR(Saisie!$B203=\"Herbes_de_soin\",Saisie!$B203=\"Herbes_diverses\",Saisie!$B203=\"Remèdes_et_Antidotes\",Saisie!$B203=\"Sels_alchimiques\"),\"Normale\",\"Excellente\"),\"\")","v":""},null,"md_qlté_L203",{"$f":"IF(Saisie!$I203<>\"\",IF(OR(Saisie!$I203=\"Herbes_de_soin\",Saisie!$I203=\"Herbes_diverses\",Saisie!$I203=\"Remèdes_et_Antidotes\",Saisie!$I203=\"Sels_alchimiques\"),\"Normale\",\"Pitoyable\"),\"\")","v":""},{"$f":"IF(Saisie!$I203<>\"\",IF(OR(Saisie!$I203=\"Herbes_de_soin\",Saisie!$I203=\"Herbes_diverses\",Saisie!$I203=\"Remèdes_et_Antidotes\",Saisie!$I203=\"Sels_alchimiques\"),\"Normale\",\"Mauvaise\"),\"\")","v":""},{"$f":"IF(Saisie!$I203<>\"\",IF(OR(Saisie!$I203=\"Herbes_de_soin\",Saisie!$I203=\"Herbes_diverses\",Saisie!$I203=\"Remèdes_et_Antidotes\",Saisie!$I203=\"Sels_alchimiques\"),\"Normale\",\"Normale\"),\"\")","v":""},{"$f":"IF(Saisie!$I203<>\"\",IF(OR(Saisie!$I203=\"Herbes_de_soin\",Saisie!$I203=\"Herbes_diverses\",Saisie!$I203=\"Remèdes_et_Antidotes\",Saisie!$I203=\"Sels_alchimiques\"),\"Normale\",\"Bonne\"),\"\")","v":""},{"$f":"IF(Saisie!$I203<>\"\",IF(OR(Saisie!$I203=\"Herbes_de_soin\",Saisie!$I203=\"Herbes_diverses\",Saisie!$I203=\"Remèdes_et_Antidotes\",Saisie!$I203=\"Sels_alchimiques\"),\"Normale\",\"Excellente\"),\"\")","v":""}]
["md_qlté_204",{"$f":"IF(Saisie!$B204<>\"\",IF(OR(Saisie!$B204=\"Herbes_de_soin\",Saisie!$B204=\"Herbes_diverses\",Saisie!$B204=\"Remèdes_et_Antidotes\",Saisie!$B204=\"Sels_alchimiques\"),\"Normale\",\"Pitoyable\"),\"\")","v":""},{"$f":"IF(Saisie!$B204<>\"\",IF(OR(Saisie!$B204=\"Herbes_de_soin\",Saisie!$B204=\"Herbes_diverses\",Saisie!$B204=\"Remèdes_et_Antidotes\",Saisie!$B204=\"Sels_alchimiques\"),\"Normale\",\"Mauvaise\"),\"\")","v":""},{"$f":"IF(Saisie!$B204<>\"\",IF(OR(Saisie!$B204=\"Herbes_de_soin\",Saisie!$B204=\"Herbes_diverses\",Saisie!$B204=\"Remèdes_et_Antidotes\",Saisie!$B204=\"Sels_alchimiques\"),\"Normale\",\"Normale\"),\"\")","v":""},{"$f":"IF(Saisie!$B204<>\"\",IF(OR(Saisie!$B204=\"Herbes_de_soin\",Saisie!$B204=\"Herbes_diverses\",Saisie!$B204=\"Remèdes_et_Antidotes\",Saisie!$B204=\"Sels_alchimiques\"),\"Normale\",\"Bonne\"),\"\")","v":""},{"$f":"IF(Saisie!$B204<>\"\",IF(OR(Saisie!$B204=\"Herbes_de_soin\",Saisie!$B204=\"Herbes_diverses\",Saisie!$B204=\"Remèdes_et_Antidotes\",Saisie!$B204=\"Sels_alchimiques\"),\"Normale\",\"Excellente\"),\"\")","v":""},null,"md_qlté_L204",{"$f":"IF(Saisie!$I204<>\"\",IF(OR(Saisie!$I204=\"Herbes_de_soin\",Saisie!$I204=\"Herbes_diverses\",Saisie!$I204=\"Remèdes_et_Antidotes\",Saisie!$I204=\"Sels_alchimiques\"),\"Normale\",\"Pitoyable\"),\"\")","v":""},{"$f":"IF(Saisie!$I204<>\"\",IF(OR(Saisie!$I204=\"Herbes_de_soin\",Saisie!$I204=\"Herbes_diverses\",Saisie!$I204=\"Remèdes_et_Antidotes\",Saisie!$I204=\"Sels_alchimiques\"),\"Normale\",\"Mauvaise\"),\"\")","v":""},{"$f":"IF(Saisie!$I204<>\"\",IF(OR(Saisie!$I204=\"Herbes_de_soin\",Saisie!$I204=\"Herbes_diverses\",Saisie!$I204=\"Remèdes_et_Antidotes\",Saisie!$I204=\"Sels_alchimiques\"),\"Normale\",\"Normale\"),\"\")","v":""},{"$f":"IF(Saisie!$I204<>\"\",IF(OR(Saisie!$I204=\"Herbes_de_soin\",Saisie!$I204=\"Herbes_diverses\",Saisie!$I204=\"Remèdes_et_Antidotes\",Saisie!$I204=\"Sels_alchimiques\"),\"Normale\",\"Bonne\"),\"\")","v":""},{"$f":"IF(Saisie!$I204<>\"\",IF(OR(Saisie!$I204=\"Herbes_de_soin\",Saisie!$I204=\"Herbes_diverses\",Saisie!$I204=\"Remèdes_et_Antidotes\",Saisie!$I204=\"Sels_alchimiques\"),\"Normale\",\"Excellente\"),\"\")","v":""}]